Workbook

Sheet Design Converter
A1: LM5176 DC/DC Controller Design Tool
O2: http://www.ti.com/product/lm5176
A3: About | C3: xx | F3: = Input Box | O3: TERMS OF USE
A5: Step 1: Operating Specifications | L5: V 1.0.1 | M5: October 2022
D6: Input Voltage - Min, VIN(min) | E6: 9 | F6: V
D7: Input Voltage - Nom, VIN(nom) | E7: 24 | F7: V
D8: Input Voltage - Max, VIN(max) | E8: 36 | F8: V
D9: Output Voltage, VOUT | E9: 12 | F9: V
D10: Full Load Output Current, IOUT(max) | E10: 15 | F10: A
D11: Switching Frequency | E11: 250 | F11: kHz
D12: Frequency Set Resistor, RT | E12: =IF('Standard Value Calculator'!O4/1000>288, "N/A",'Standard Value Calculator'!O4/1000) -> 33.2 | F12: kΩ
A14: Step 2: Filter Inductor
D15: Recommended Filter Inductance | E15: =Lopt*1000000 -> 2.008333333 | F15: µH
D16: Inductance, LF | E16: 3.3 | F16: µH
D17: Inductor DCR | E17: 3.7 | F17: mΩ
D18: Pk-to-Pk Ripple Current at VIN(min), DIL1 | E18: ='Variable Management'!B78 -> 2.817673946 | F18: Apk-pk
D19: Pk-to-Pk Ripple Current at VIN(nom), DIL2 | E19: ='Variable Management'!B79 -> 7.31991153 | F19: Apk-pk
D20: Pk-to-Pk Ripple Current at VIN(max), DIL3 | E20: ='Variable Management'!B80 -> 9.76597435 | F20: Apk-pk
D21: DIL as a % at VIN(min) | E21: ='Variable Management'!B90*100 -> 12.67953276 | F21: %
D22: DIL as a % at VIN(nom) | E22: ='Variable Management'!B91*100 -> 48.7994102 | F22: %
D23: DIL as a % at VIN(max) | E23: ='Variable Management'!B92*100 -> 65.10649567 | F23: %
A25: Step 3: OCP, Sense Resistors, Slope Comp
D26: Required IOCP(MIN) Setpoint at VIN(nom) | E26: 15 | F26: A
D27: Recommended Sense Resistance | E27: =Rs_ideal*1000 -> 5.078062689 | F27: mΩ
D28: Sense Resistance, RS | E28: 3 | F28: mΩ
D29: Peak Inductor Current, ILPK | E29: ='Variable Management'!B135 -> 40 | F29: A
D30: =IF('Variable Management'!B85>'Variable Management'!B83, "Power Loss in Rs at Full Load (Max VIN)", "Power Loss in Rs at Full Load (Min VIN)") -> Power Loss in Rs at Full Load (Max VIN) | E30: ='Variable Management'!B86 -> 0.4642380278 | F30: W
D31: Recommended SLOPE Capacitance | E31: ='Standard Value Calculator'!O14 -> 470 | F31: pF
D32: SLOPE Capacitance, CSLOPE | E32: 470 | F32: pF
D33: VIN(min) | E33: ='Variable Management'!B127 -> 28.62357585 | F33: A
C34: IOUT(typ) at OCP Inception: | D34: VIN(nom) | E34: ='Variable Management'!B128 -> 30.32662243 | F34: A
D35: VIN(max) | E35: ='Variable Management'!B129 -> 31.54965384 | F35: A
D36: Set Const Current Loop Setpoint (?) | E36: N/A | F36: A
D37: Output Leg Shunt Resistance, RCS(out) | E37: =Rshunt -> 0 | F37: mΩ
A39: Step 4: Output Capacitor
D40: Output Voltage Ripple Spec | E40: 100 | F40: mVpk-pk
D41: Minimum Output Capacitance | E41: ='Variable Management'!B168 -> 154.972067 | F41: µF
D42: Output Capacitance, COUT | E42: 298 | F42: µF
D43: Maximum Permitted ESR | E43: ='Variable Management'!B172 -> 3.199730044 | F43: mΩ
D44: Output Capacitor ESR | E44: 3 | F44: mΩ
D45: Resulting Output Voltage Ripple (max) | E45: =Vripple2*1000 -> 97.00404934 | F45: mVpk-pk
D46: Output Capacitor RMS Current (max) | E46: ='Variable Management'!B163 -> 8.660254038 | F46: A (rms)
M47: VIN(nom) | N47: =VIN_nom&"V" -> 24V
A48: Step 5: Input Capacitor
D49: Input Voltage Ripple Spec | E49: 200 | F49: mVpk-pk
D50: Minimum Input Capacitance | E50: ='Variable Management'!B188 -> 75 | F50: µF
D51: Input Capacitance, CIN | E51: 186 | F51: µF
D52: Maximum Permitted ESR | E52: ='Variable Management'!B193 -> 6.002862531 | F52: mΩ
D53: Input Capacitor ESR | E53: 5 | F53: mΩ
D54: Resulting Input Voltage Ripple (max) | E54: =Vinripple2*1000 -> 180.0600972 | F54: mVpk-pk
D55: Input Capacitor RMS Current (max) | E55: ='Variable Management'!B181 -> 7.499842153 | F55: A (rms)
A57: Step 6: Soft-start, Dither, UVLO
D58: Soft-Start Time, tSS | E58: 15 | F58: ms
D59: Soft-Start Capacitance, CSS | E59: =IF(Tss>1.28/1000,Css_u*1000000000,"N/A") -> 100 | F59: nF
D60: Modulating Frequency | E60: 4 | F60: =IF(DITHER=1, "kHz", "") -> 
D61: =IF(DITHER=1, "DITH Capacitance, Cd", "*Short DITH pin to GND") -> *Short DITH pin to GND | E61: =IF(DITHER=1,IF(E60>0,'Standard Value Calculator'!O19*1000000000,"N/A"),"") ->  | F61: =IF(DITHER=1, "nF", "") -> 
D62: Required Input Voltage UVLO On | E62: 8 | F62: V
D63: Input Voltage UVLO Off | E63: ='Variable Management'!B216 -> 7.186028199 | F63: V
D64: Upper UVLO Resistor, RUV1 | E64: 249 | F64: kΩ
D65: Lower UVLO Resistor, RUV2 | E65: ='Variable Management'!E213 -> 42.2 | F65: kΩ
A67: Step 7: Compensation Design
D68: Load Pole Frequency | E68: =Fp_dominant -> 1025.516001 | F68: Hz
D69: COUT ESR Zero Frequency | E69: =Fesr/1000 -> 178.0256636 | F69: kHz
D70: Boost RHP Zero Frequency | E70: =Frhp/1000 -> 9.521000018 | F70: kHz
D71: Desired Crossover Frequency | E71: 7 | F71: =" kHz " -> kHz
D72: Error Amp Pole Frequency | E72: =Fp1_u -> 0.241125769 | F72: Hz
D73: Upper Feedback Resistor, RFB1 | E73: 280 | F73: kΩ
D74: Lower Feedback Resistor, RFB2 | E74: =IF(Vout=Vref,"OPEN",Rfb2_u/1000) -> 20 | F74: =IF(Vout=Vref,"","kΩ") -> kΩ
A76: Compensation Components
B77: Calculated / | C77: Std Values | D77: =" Selected" -> Selected | F77: Actual P/Z Frequencies
A78: RC | B78: =Rcea1/1000 -> 2.322057496 | C78: ='Standard Value Calculator'!O27 -> 2.32 | D78: 1.5 | E78: kΩ | F78: =Fp1_u -> 0.241125769 | G78: Hz (FPEA) | I78: Min COMP Voltage | J78: =ROUND('Variable Management'!B269,2)&"V" -> 1.23V
A79: CC1 | B79: =Cc1ea*1000000000 -> 44.55674565 | C79: ='Standard Value Calculator'!O28 -> 47 | D79: 33 | E79: nF | F79: =Fz1_u/1000 -> 3.215251379 | G79: kHz (FZCOMP) | I79: Max COMP Voltage | J79: =ROUND('Variable Management'!B270,2)&"V" -> 1.98V
A80: CC2 | B80: =IF(Cc2ea*1000000000000<0, 0, Cc2ea*1000000000000) -> 1373.519528 | C80: ='Standard Value Calculator'!O29 -> 1500 | D80: 100 | E80: pF | F80: =Fp2_u/1000 -> 847.0249302 | G80: kHz (FPCOMP)
A82: Efficiency / Power Loss Analyzer
A84: Step 8: Efficiency | M84: VIN(nom) | N84: =VIN_nom&"V" -> 24V
D85: Buck-Leg Power MOSFETs (Q1, Q2) | E85: CSD18563Q5A
E86: Hi-side | F86: Low-side
D87: On-State Resistance, RDS(on) | E87: 2 | F87: 2 | G87: mΩ
D88: Total Gate Charge, QG | E88: 90 | F88: 90 | G88: nC
D89: Gate-Drain Charge, QGD | E89: 6 | F89: 6 | G89: nC
D90: Gate-Source Charge, QGS | E90: 19 | F90: 19 | G90: nC
D91: Gate Resistance, RG | E91: 1.7 | F91: 1.7 | G91: Ω
D92: Transconductance, gFS | E92: 100 | F92: 100 | G92: S
D93: Gate-Source Threshold Voltage, VTH | E93: 1.85 | F93: 1.85 | G93: V
D94: Body Diode Forward Voltage, VBD | E94: 0.65 | F94: 0.65 | G94: V
D95: Body Diode Rev Recovery Charge, QRR | F95: 60 | G95: nC
D96: Thermal Resistance, θJA | E96: 50 | F96: 50 | G96: °C/W
D98: Boost-Leg Power MOSFETs (Q3, Q4) | E98: CSD16321Q5
E99: Hi-side | F99: Low-side
D100: On-State Resistance, RDS(on) | E100: 2 | F100: 2 | G100: mΩ
D101: Total Gate Charge, QG | E101: 90 | F101: 90 | G101: nC
D102: Gate-Drain Charge, QGD | E102: 6 | F102: 6 | G102: nC
D103: Gate-Source Charge, QGS | E103: 19 | F103: 19 | G103: nC
D104: Gate Resistance, RG | E104: 1.7 | F104: 1.7 | G104: Ω
D105: Transconductance, gFS | E105: 100 | F105: 100 | G105: S
D106: Gate-Source Threshold Voltage, VTH | E106: 1.85 | F106: 1.85 | G106: V
D107: Body Diode Forward Voltage, VBD | E107: 0.65 | F107: 0.65 | G107: V
D108: Body Diode Rev Recovery Charge, QRR | E108: 60 | G108: nC
D109: Thermal Resistance, θJA | E109: 50 | F109: 50 | G109: °C/W
A111: External Schottky Diode (if applicable) | E111: Buck Leg | F111: Boost Leg
D112: Schottky Fwd Voltage, VFWDsch | E112: 0 | F112: 0 | G112: V
D113: Schottky Rev Recovery Charge, QRRsch | E113: 0 | F113: 0 | G113: nC

Sheet BOM & Schematic
B45: ** Tie MODE to VCC (or voltage > 2.4V) for No Hiccup **
A46: ="VIN = "&VIN_min&" V to "&VIN_max&" V, VOUT = "& Vout &" V, IOUT = " &Iout & " A, Fsw = " & Fsw/1000 &" kHz, Current Limit = "&ROUNDUP(Ilimit_DC,0)&" A" -> VIN = 9 V to 36 V, VOUT = 12 V, IOUT = 15 A, Fsw = 250 kHz, Current Limit = 15 A
A47: High Efficiency Synchronous Buck-Boost Regulator BOM
A48: Count | B48: Ref Des | C48: Value | D48: Description | H48: Size | I48: Part Number | J48: MFR
A49: 2 | B49: CBOOT1, CBOOT2 | C49: 0.1 | D49: =C49 -> 0.1 | H49: 0603 | I49: Std | J49: Std
A50: 1 | B50: CC1 | C50: ='Design Converter'!D79 -> 33 | D50: 33 | H50: 0603 | I50: Std | J50: Std
A51: 1 | B51: CC2 | C51: ='Design Converter'!D80 -> 100 | D51: 100 | H51: 0603 | I51: Std | J51: Std
A52: 1 | B52: CSLOPE | C52: =Cslope -> 470 | D52: 470 | H52: 0603 | I52: Std | J52: Std
A53: 1 | B53: CCS | C53: 100 | D53: =C53 -> 100 | H53: 0603 | I53: Std | J53: Std
A54: 1 | B54: CDITH | C54: =Cdither*1000000000 -> 10 | D54: =C54 -> 10 | H54: 0603 | I54: Std | J54: Std
A55: =ROUNDUP('Design Converter'!E51/10,0) -> 19 | B55: CIN | C55: 10 | D55: =C55 -> 10 | H55: 1210 | I55: Std | J55: Std
A56: =ROUNDUP('Design Converter'!E42/22,0) -> 14 | B56: COUT | C56: 22 | D56: =C56 -> 22 | H56: 1210 | I56: Std | J56: Std
A57: 1 | B57: CSS | C57: ='Design Converter'!E59 -> 100 | D57: =C57 -> 100 | H57: 0603 | I57: Std | J57: Std
A58: 1 | B58: CVCC | C58: 1 | D58: 1 | H58: 0603 | I58: Std | J58: Std
A59: 1 | B59: CVIN | C59: 0.1 | D59: 0.1 | H59: 0603 | I59: Std | J59: Std
A60: 3 | B60: DBOOT1, DBOOT2, DVIN | C60: See description | D60: Schottky Diode, 200mA | H60: - | I60: - | J60: Various
A61: 1 | B61: LF | C61: ='Design Converter'!E16 -> 3.3 | D61: ="Inductor, "&Lf*1000000&"µH, "&Rdcr*1000&"mΩ, >"&ROUNDUP(IL_peak_OCP*1.1,0)&"A" -> Inductor, 3.3µH, 3.7mΩ, >44A | H61: - | I61: - | J61: Various
A62: 2 | B62: Q1, Q2 | C62: See description | D62: ='Design Converter'!E87 -> 2 | H62: Std | I62: ='Design Converter'!E85 -> CSD18563Q5A | J62: -
A63: 2 | B63: Q3, Q4 | C63: See description | D63: ='Design Converter'!E100 -> 2 | H63: Std | I63: ='Design Converter'!E98 -> CSD16321Q5 | J63: -
A64: 1 | B64: RC1 | C64: ='Design Converter'!D78 -> 1.5 | D64: =C64 -> 1.5 | H64: 0603 | I64: Std | J64: Std
A65: 1 | B65: RS | C65: =Rs*1000 -> 3 | D65: 3 | H65: 2512 | I65: Std | J65: Std
A66: 1 | B66: RCS(out) | C66: ='Standard Value Calculator'!O21 -> 0 | D66: =C66 -> 0 | H66: 2512 | I66: Std | J66: Std
A67: 1 | B67: RT | C67: ='Design Converter'!E12 -> 33.2 | D67: 33.2 | H67: 0603 | I67: Std | J67: Std
A68: 1 | B68: RFB1 | C68: ='Design Converter'!E73 -> 280 | D68: 280 | H68: 0603 | I68: Std | J68: Std
A69: 1 | B69: RFB2 | C69: ='Design Converter'!E74 -> 20 | D69: 20 | H69: 0603 | I69: Std | J69: Std
A70: 1 | B70: RPGOOD | C70: 20 | D70: 20 | H70: 0603 | I70: Std | J70: Std
A71: 2 | B71: RCS, RCSG | C71: 100 | D71: 100 | H71: 0603 | I71: Std | J71: Std
A72: 1 | B72: RUV1 | C72: ='Design Converter'!E64 -> 249 | D72: 249 | H72: 0603 | I72: Std | J72: Std
A73: 1 | B73: RUV2 | C73: ='Design Converter'!E65 -> 42.2 | D73: 42.2 | H73: 0603 | I73: Std | J73: Std
A74: 1 | B74: RVIN | C74: 2.2 | D74: 2.2 | H74: 0603 | I74: Std | J74: Std
A75: 1 | B75: U1 | C75: LM5176 | D75: IC, LM5176, Buck-Boost PWM Controller | H75: TSSOP-28 | I75: LM5176PWP | J75: TI
A78: NOTES:
A79: ** For information on TI NexFETTM MOSFETs, see ** | D79: http://www.ti.com/nexfet | E79: **
A80: ** Inductor saturation current should be higher than the peak inductor current at the OCP setpoint for all input voltages and operating temperatures **
A81: ** Effective input and output capacitances should be appropriately derated for applied voltage and temperature, particularly with ceramics **

Sheet Licenses
A5: Version Number | B5: 1.0.1
A35: Version History
A36: Version | B36: Change List Description
A37: 1.0.0 | B37: Initial Release
A38: 1.0.1 | B38: Fixed display of comments, optimized proposal of inductor

Sheet EVMs (hidden)
A1: LM5175 Quickstart Design Tool
B6: LM5175EVM-HD PCB Layout | M6: LM5175EVM-HP PCB Layout | W6: LM5175EVM PCB Layout

Sheet Variable Management (hidden)
A1: EXCEL Variables Names/Calculations
B2: Input from user =
B3: Output =
B4: Constant
A5: Variable Name | B5: Value | C5: STD Units | E5: Notes | I5: Iteration
A6: Step 1: Operational Specs
A7: VIN_min | B7: ='Design Converter'!E6 -> 9 | C7: V | D7: Minimum input voltage | I7: 1
B8: ='Design Converter'!E7 -> 24 | C8: V | D8: Nominal input voltage | K8: Efficiency vs IOUT Plot | L8: 1 | M8: DITHER Enabled | O8: 1
A9: VIN_max | B9: ='Design Converter'!E8 -> 36 | C9: V | D9: Maximum input voltage | K9: Efficiency vs VIN Plot | L9: 2 | M9: DITHER Disabled | O9: 2
A10: VIN_edgebuckboost | B10: =B40 -> 10.5974026 | C10: V | K10: PLOT_TYPE | L10: 1 | M10: DITHER Yes/No | O10: 2 | P10: 1 = Yes, 2 = No
A12: Vout | B12: ='Design Converter'!E9 -> 12 | C12: V | D12: Output Voltage | I12: 1
A13: Iout | B13: ='Design Converter'!E10 -> 15 | C13: A | D13: Maximum Output Current | I13: 1
A14: Rout | B14: =Vout/Iout -> 0.8 | C14: W | D14: Load resistance
A15: Pout | B15: =Vout*Iout -> 180 | C15: W | D15: Output power
A16: Efficiency | B16: 0.9 | D16: Edited by Vijay from 96% to 90% to match datasheet calculations.
A17: Pin | B17: =Pout/Efficiency -> 200 | C17: W | D17: Calculate input power assuming 90% efficiency
A18: Iin_Vinmin | B18: =Pin/VIN_min -> 22.22222222 | C18: A
A19: Iin_Vinnom | B19: =Pin/VIN_nom -> 8.333333333 | C19: A | D19: Input currents at min, nom, max Vin
A20: Iin_Vinmax | B20: =Pin/VIN_max -> 5.555555556 | C20: A
A22: Fsw | B22: ='Design Converter'!E11*1000 -> 250000 | C22: Hz | D22: Nominal Switching Frequency | I22: 1
A23: Ts | B23: =1/Fsw -> 4e-06 | C23: sec | D23: Period
A24: Vref | B24: 0.8 | C24: V | D24: Reference Voltage
A25: Rt | B25: =((1/Fsw)-190*10^-9)/(116*10^-12) -> 32844.82759 | C25: W | D25: Frequency Set Resistor | F25: edited based on LM5176 curve fit.
A28: Toff_min_buck | B28: 3e-07 | C28: sec | D28: 200ns | E28: buck min timer
A29: Ton_min_boost | B29: =0.0000003 -> 3e-07 | C29: sec | D29: 300ns | E29: boost min timer
A30: T_max_BB | B30: 1.2e-06 | C30: sec | E30: max timer before transition from BB
A32: D_min_boost | B32: =Ton_min_boost/Ts -> 0.075
A33: D_max_exitBB_to_boost | B33: =B30/(2*Ts) -> 0.15
A34: D_max_buck_BB | B34: =1-B28/(2*Ts) -> 0.9625
A36: D_min_boost_exitBB_to_buck | B36: =Ton_min_boost/(2*Ts) -> 0.0375
A37: D_max_exitBB_to_buck | B37: =1-B30/(2*Ts) -> 0.85
A38: D_max_buck_enterBB | B38: =1-Toff_min_buck/Ts -> 0.925
A40: VIN_BB_to_boost | B40: =Vout*(1-B33)/B34 -> 10.5974026 | C40: V
A41: VIN_boost_to_BB | B41: =Vout*(1-B32) -> 11.1 | C41: V
A42: VIN_buck_to_BB | B42: =Vout/B38 -> 12.97297297 | C42: V
A43: VIN_BB_to_buck | B43: =Vout/B37*(1-B36) -> 13.58823529 | C43: V
A47: Step 2: Filter Inductor
A48: Don1 | B48: =Vout/VIN_nom -> 0.5 | C48: =(Vout-VIN_nom)/Vout -> -1 | E48: Ideal Duty Cycle at VIN(nom) | I48: 1
A49: Doff1 | B49: =1-48:48 -> 0.5 | E49: Ideal 1- Duty Cycle at VIN(nom) | I49: 1
A51: Don_Vinmin | B51: =IF(VIN_min>Vout, Vout/VIN_min, (Vout-VIN_min)/Vout) -> 0.25 | C51: =IF(VIN_min>Vout, "BUCK", "BOOST") -> BOOST
A52: Don_Vinnom | B52: =IF(VIN_nom>Vout, Vout/VIN_nom, (Vout-VIN_nom)/Vout) -> 0.5 | C52: =IF(VIN_nom>Vout, "BUCK", "BOOST") -> BUCK
A53: Don_Vinmax | B53: =IF(VIN_max>Vout, Vout/VIN_max, (Vout-VIN_max)/Vout) -> 0.3333333333 | C53: =IF(VIN_max>Vout, "BUCK", "BOOST") -> BUCK
A54: Don_buckboost | B54: =B33 -> 0.15 | C54: lower edge of BUCK-BOOST
A56: Lf_Vinmin | B56: =(VIN_min-Vout)*Don_Vinmin/(Fsw*Iout*0.3) -> -6.666666667e-07 | C56: =VIN_min/(Iin_Vinmin*0.3*Fsw)*(1-VIN_min/Vout) -> 1.35e-06 | D56: H
A57: Lf_Vinnom | B57: =(VIN_nom-Vout)*Don_Vinnom/(Fsw*Iout*0.4) -> 4e-06 | C57: =VIN_nom/(Iin_Vinnom*0.4*Fsw)*(1-VIN_nom/Vout) -> -2.88e-05 | D57: H | I57: 1
A58: Lf_Vinmax | B58: =(VIN_max-Vout)*Don_Vinmax/(Fsw*Iout*0.3) -> 7.111111111e-06 | C58: =VIN_max/(Iin_Vinmax*0.3*Fsw)*(1-VIN_max/Vout) -> -0.0001728 | D58: H
A60: L_Vinmin | B60: =IF(VIN_min>Vout, (VIN_min-Vout)*Don_Vinmin/(Fsw*Iout*0.3), VIN_min/(Iin_Vinmin*0.3*Fsw)*(1-VIN_min/Vout)) -> 1.35e-06 | C60: H | D60: =IF(VIN_min>Vout, "BUCK", "BOOST") -> BOOST | E60: Calculated inductance for 30% ripple at VIN(min)
A61: L_Vinnom | B61: =IF(VIN_nom>Vout, (VIN_nom-Vout)*Don_Vinnom/(Fsw*Iout*0.4), VIN_nom/(Iin_Vinnom*0.4*Fsw)*(1-VIN_nom/Vout)) -> 4e-06 | C61: H | D61: =IF(VIN_nom>Vout, "BUCK", "BOOST") -> BUCK | E61: Calculated inductance for 40% ripple at VIN(nom)
A62: L_Vinmax | B62: =IF(VIN_max>Vout, (VIN_max-Vout)*Don_Vinmax/(Fsw*Iout*0.8), VIN_max/(Iin_Vinmax*0.8*Fsw)*(1-VIN_max/Vout)) -> 2.666666667e-06 | C62: H | D62: =IF(VIN_max>Vout, "BUCK", "BOOST") -> BUCK | E62: Calculated inductance for 30% ripple at VIN(max)
A64: Lopt | B64: =AVERAGE(B60,B62) -> 2.008333333e-06 | C64: H | D64: anerage of calculated inductances at VIN(min) and VIN(nom)
A66: Lf | B66: ='Design Converter'!E16/1000000 -> 3.3e-06 | C66: H | E66: Chosen inductance | I66: 2
A67: Rdcr | B67: ='Design Converter'!E17/1000 -> 0.0037 | C67: W | E67: Chosen inductor DCR | I67: 1
A69: Don2 | B69: =(Vout+Iout*(Rdcr+Rs))/(Vin+Iout*Rs) -> 0.5032439177 | I69: 2
A70: Doff2 | B70: =1-_Don2 -> 0.4967560823 | I70: 2
A72: Don_Vinmin_2 | B72: =IF(VIN_min>Vout, (Vout+Iout*(Rdcr+Rs))/(VIN_min+Iout*Rs), (Vout-VIN_min+Iin_Vinmin*(Rdcr))/(Vout-Iin_Vinmin*Rs)) -> 0.2582867784 | C72: =IF(VIN_min>Vout, "BUCK", "BOOST") -> BOOST | E72: Duty cycles adjusted for DCR and shunt voltage drops | I72: 2 | J72: Vijay's simplification | L72: =(1-VIN_min*90%/Vout) -> 0.325
A73: Don_Vinnom_2 | B73: =IF(VIN_nom>Vout, (Vout+Iout*(Rdcr+Rs))/(VIN_nom+Iout*Rs), (Vout-VIN_nom+Iin_Vinnom*(Rdcr))/(Vout-Iin_Vinnom*Rs)) -> 0.5032439177 | C73: =IF(VIN_nom>Vout, "BUCK", "BOOST") -> BUCK | E73: need to include RDS(on) later
A74: Don_Vinmax_2 | B74: =IF(VIN_max>Vout, (Vout+Iout*(Rdcr+Rs))/(VIN_max+Iout*Rs), (Vout-VIN_max+Iin_Vinmax*(Rdcr))/(Vout-Iin_Vinmax*Rs)) -> 0.3357053683 | C74: =IF(VIN_max>Vout, "BUCK", "BOOST") -> BUCK
A76: Vripple1 | B76: ='Design Converter'!E40/1000 -> 0.1 | C76: V | E76: Output voltage ripple spec(pk-pk) | I76: 1
A78: Iripple_Vinmin | B78: =IF(VIN_min>Vout, (VIN_min-Vout)*Don_Vinmin_2/(Fsw*Lf),VIN_min*Don_Vinmin_2/(Lf*Fsw)) -> 2.817673946 | C78: =(VIN_min-Vout)*Don_Vinmin_2/(Fsw*Lf) -> -0.9392246487 | D78: A | E78: =IF(VIN_min>Vout, "BUCK", "BOOST") -> BOOST | H78: =VIN_min*Don_Vinmin_2/(Lopt*Fsw) -> 4.629870882
A79: Iripple_Vinnom | B79: =IF(VIN_nom>Vout, (VIN_nom-Vout)*Don_Vinnom_2/(Fsw*Lf),VIN_nom*Don_Vinnom_2/(Lf*Fsw)) -> 7.31991153 | C79: =(VIN_nom-Vout)*Don_Vinnom_2/(Fsw*Lf) -> 7.31991153 | D79: A | E79: =IF(VIN_nom>Vout, "BUCK", "BOOST") -> BUCK
A80: Iripple_Vinmax | B80: =IF(VIN_max>Vout, (VIN_max-Vout)*Don_Vinmax_2/(Fsw*Lf),VIN_max*Don_Vinmax_2/(Lf*Fsw)) -> 9.76597435 | C80: =(VIN_max-Vout)*Don_Vinmax_2/(Fsw*Lf) -> 9.76597435 | D80: A | E80: =IF(VIN_max>Vout, "BUCK", "BOOST") -> BUCK
A81: Iripple_edgebuckboost | B81: =VIN_edgebuckboost*Don_buckboost/(Lf*Fsw/2) -> 3.853600945 | D81: A | E81: BUCK-BOOST
A83: Ishunt_rms_Vinmin | B83: =IF(VIN_min>Vout, SQRT(1-Don_Vinmin_2)*SQRT(Iout^2+(Iripple_Vinmin^2)/12), SQRT(Don_Vinmin_2)*SQRT(Iin_Vinmin^2+(Iripple_Vinmin^2)/12)) -> 11.30132341 | C83: A | E83: =SQRT(1-Don_Vinmin_2)*SQRT(Iout^2+(Iripple_Vinmin^2)/12) -> 12.93739532 | F83: =SQRT(Don_Vinmin_2)*SQRT(Iout^2+(Iripple_Vinmin^2)/12) -> 7.634488164
A84: Ishunt_rms_Vinnom | B84: =IF(VIN_nom>Vout, SQRT(1-Don_Vinnom_2)*SQRT(Iout^2+(Iripple_Vinnom^2)/12), SQRT(Don_Vinnom_2)*SQRT(Iin_Vinnom^2+(Iripple_Vinnom^2)/12)) -> 10.67652472 | C84: A | E84: =SQRT(1-Don_Vinnom_2)*SQRT(Iout^2+(Iripple_Vinnom^2)/12) -> 10.67652472 | F84: =SQRT(Don_Vinnom_2)*SQRT(Iout^2+(Iripple_Vinnom^2)/12) -> 10.74601842
A85: Ishunt_rms_Vinmax | B85: =IF(VIN_max>Vout, SQRT(1-Don_Vinmax_2)*SQRT(Iout^2+(Iripple_Vinmax^2)/12), SQRT(Don_Vinmax_2)*SQRT(Iin_Vinmax^2+(Iripple_Vinmax^2)/12)) -> 12.4396949 | C85: A | E85: =SQRT(1-Don_Vinmax_2)*SQRT(Iout^2+(Iripple_Vinmax^2)/12) -> 12.4396949 | F85: =SQRT(Don_Vinmax_2)*SQRT(Iout^2+(Iripple_Vinmax^2)/12) -> 8.843180724
A86: Max shunt power loss at full load | B86: =MAX(B83,B85)^2*Rs -> 0.4642380278 | C86: W | D86: =IF(B85>B83, "BUCK", "BOOST") -> BUCK
A88: Max inductor ripple current | B88: =MAX(B78:B80) -> 9.76597435 | C88: A
F89: Ripple I | G89: Iin
A90: % Ripple Current | B90: =IF(VIN_min>Vout, B78/Iout, B78/Iin_Vinmin) -> 0.1267953276 | C90: =IF(VIN_min>Vout, "BUCK", "BOOST") -> BOOST | F90: =B78 -> 2.817673946 | G90: =Iin_Vinmin -> 22.22222222
B91: =IF(VIN_nom>Vout, B79/Iout, B79/Iin_Vinnom) -> 0.487994102 | C91: =IF(VIN_nom>Vout, "BUCK", "BOOST") -> BUCK | F91: =B79 -> 7.31991153 | G91: =Iin_Vinnom -> 8.333333333
B92: =IF(VIN_max>Vout, B80/Iout, B80/Iin_Vinmax) -> 0.6510649567 | C92: =IF(VIN_max>Vout, "BUCK", "BOOST") -> BUCK | F92: =B80 -> 9.76597435 | G92: =Iin_Vinmax -> 5.555555556
A94: Temp | B94: 100
A95: DCR at hot | B95: =Rdcr*(1+0.0039*(B94-25)) -> 0.00478225 | C95: W
A98: Step 3: Sense Resistors, Slope Comp, Current Limit
A100: Ilimit_DC | B100: ='Design Converter'!E26 -> 15 | C100: A | E100: Chosen OCP level - based on output current | K100: At Iout = Ilimit_DC: | N100: Shunt
K101: I_valley BUCK | L101: I_peak BOOST
A102: Ilimit_inductor_Vinmin | B102: =IF(VIN_min>Vout, Ilimit_DC-Iripple_Vinmin/2, Ilimit_DC*Vout/VIN_min/0.9+Iripple_Vinmin/2) -> 23.6310592 | C102: A | D102: =IF(VIN_min>Vout, "BUCK", "BOOST") -> BOOST | E102: Vijay's simplication to match datasheet calculation. | K102: =Ilimit_DC-Iripple_Vinmin/2 -> 13.59116303 | L102: =Ilimit_DC/(1-Don_Vinmin_2)+Iripple_Vinmin/2 -> 21.63228663 | M102: =IF(VIN_min>Vout, "BUCK", "BOOST") -> BOOST | N102: =IF(VIN_min>Vout, Buck_CS_threshold/K102, Boost_CS_Threshold/L102) -> 0.005547263774 | P102: =Boost_CS_Threshold/L102 -> 0.005547263774
A103: Ilimit_inductor_Vinnom | B103: =IF(VIN_nom>Vout, Ilimit_DC-Iripple_Vinnom/2, Ilimit_DC/(1-Don_Vinnom_2)+Iripple_Vinnom/2) -> 11.34004424 | C103: A | D103: =IF(VIN_nom>Vout, "BUCK", "BOOST") -> BUCK | E103: or | K103: =Ilimit_DC-Iripple_Vinnom/2 -> 11.34004424 | L103: =Ilimit_DC/(1-Don_Vinnom_2)+Iripple_Vinnom/2 -> 33.85586183 | M103: =IF(VIN_nom>Vout, "BUCK", "BOOST") -> BUCK | N103: =IF(VIN_nom>Vout, Buck_CS_threshold/K103, Boost_CS_Threshold/L103) -> 0.007054646202 | P103: =Boost_CS_Threshold/L103 -> 0.003544437906
A104: Ilimit_inductor_Vinmax | B104: =IF(VIN_max>Vout, Ilimit_DC-Iripple_Vinmax/2, Ilimit_DC/(1-Don_Vinmax_2)+Iripple_Vinmax/2) -> 10.11701282 | C104: A | D104: =IF(VIN_max>Vout, "BUCK", "BOOST") -> BUCK | E104: Peak inductor current at current limit inception (if operating in boost) | K104: =Ilimit_DC-Iripple_Vinmax/2 -> 10.11701282 | L104: =Ilimit_DC/(1-Don_Vinmax_2)+Iripple_Vinmax/2 -> 27.46332922 | M104: =IF(VIN_max>Vout, "BUCK", "BOOST") -> BUCK | N104: =IF(VIN_max>Vout, Buck_CS_threshold/K104, Boost_CS_Threshold/L104) -> 0.007907472431 | P104: =Boost_CS_Threshold/L104 -> 0.004369462968
A105: Ilimit_inductor_buckboost | B105: =Ilimit_DC/(1-Don_buckboost)+Iripple_edgebuckboost/2 -> 19.5738593 | C105: A | D105: edge of buck-boost
A107: Buck CS threshold_min | B107: 0.068 | C107: V
A108: Buck CS threshold | B108: 0.08 | C108: V | D108: 80mV ± 20% | E108: Vijay's edits 80 mV ± 15%.
A109: Buck CS threshold_max | B109: 0.092 | C109: V
A111: Boost CS Threshold_min | B111: 0.108 | C111: V
A112: Boost CS Threshold | B112: 0.12 | C112: V | D112: 160mV ± 20% | E112: Vijay's edits. Used 120 mV ± 15% for min max. Check after char data to see if it is ok.
A113: Boost CS Threshold_max | B113: 0.138 | C113: V | E113: Note: min/max are not really being used in calculations. So irrelevant if variation small.
A115: Assume we'd like to achieve current limit particularly at VIN(min) and boost side of buck-boost region; accept inevitable variation over line thereafter
A116: Shunt required to get OCP at VIN(min) | B116: =IF(VIN_min>Vout,Buck_CS_threshold/B102, Boost_CS_Threshold/B102) -> 0.005078062689 | C116: W | D116: =IF(VIN_min>Vout, "BUCK", "BOOST") -> BOOST
A117: Shunt required to get OCP at VIN(nom) | B117: =IF(VIN_nom>Vout,Buck_CS_threshold/B103, Boost_CS_Threshold/B103) -> 0.007054646202 | C117: W | D117: =IF(VIN_nom>Vout, "BUCK", "BOOST") -> BUCK
A118: Shunt required to get OCP at VIN(max) | B118: =IF(VIN_max>Vout,Buck_CS_threshold/B104, Boost_CS_Threshold/B104) -> 0.007907472431 | C118: W | D118: =IF(VIN_max>Vout, "BUCK", "BOOST") -> BUCK
A119: Shunt required to get OCP at VIN(edge-bb) | B119: =IF(VIN_min<VIN_edgebuckboost,Buck_CS_threshold/B105, 10) -> 0.004087083635 | C119: W | D119: Edge of B-B
A121: Rs_ideal | B121: =MIN(B116:B118) -> 0.005078062689 | C121: W | E121: Ideal Rs for the required OCP -- based on 80mV or 160mV CL threshold
A122: Rs | B122: ='Design Converter'!E28/1000 -> 0.003 | C122: W | E122: Selected (starndard value) current limit sense resistor
A124: BOOST current limit - peak | B124: =Boost_CS_Threshold/Rs -> 40 | C124: A | E124: Peak inductor current limit in BOOST
A125: BUCK current limit - valley | B125: =Buck_CS_threshold/Rs -> 26.66666667 | C125: A | E125: Valley inductor current limit in BUCK
A127: Iout_OCP_Vinmin | B127: =IF(VIN_min>Vout,Buck_CS_threshold/Rs+Iripple_Vinmin/2, (Boost_CS_Threshold/Rs-Iripple_Vinmin/2)*(1-Don_Vinmin_2)) -> 28.62357585 | C127: A | D127: =IF(VIN_min>Vout, "BUCK", "BOOST") -> BOOST | E127: Current limit setpoints (i.e. IOUT) after standard components are selected
A128: Iout_OCP_Vinnom | B128: =IF(VIN_nom>Vout,Buck_CS_threshold/Rs+Iripple_Vinnom/2, IF(VIN_nom<VIN_edgebuckboost,(Boost_CS_Threshold/Rs-Iripple_Vinnom/2)*(1-Don_Vinnom_2),(Buck_CS_threshold/Rs-Iripple_Vinnom/2)*(1-Don_Vinnom_2))) -> 30.32662243 | C128: A | D128: =IF(VIN_nom>Vout,"BUCK",IF(VIN_nom<VIN_edgebuckboost,"BOOST","BUCK-BOOST")) -> BUCK
A129: Iout_OCP_Vinmax | B129: =IF(VIN_max>Vout, Buck_CS_threshold/Rs+Iripple_Vinmax/2, (Boost_CS_Threshold/Rs-Iripple_Vinmax/2)*(1-Don_Vinmax_2)) -> 31.54965384 | C129: A | D129: =IF(VIN_max>Vout, "BUCK", "BOOST") -> BUCK
A130: Iout_edgebuckboost | B130: =(Buck_CS_threshold/Rs-Iripple_edgebuckboost/2)*(1-Don_buckboost) -> 21.02888627 | C130: A | D130: lower edge of buck-boost window | K130: RMS current in Rs | M130: Power diss in Rs
A132: ILpeak_OCP_Vinmin | B132: =IF(VIN_min>Vout, Buck_CS_threshold/Rs+Iripple_Vinmin, Boost_CS_Threshold/Rs) -> 40 | C132: A | D132: =IF(VIN_min>Vout, "BUCK", "BOOST") -> BOOST | E132: Peak inductor currents in OCP | H132: =SQRT(Don_Vinmin_2)*SQRT(Iin_Vinmin^2+(Iripple_Vinmin^2)/12) -> 11.30132341 | K132: =IF(VIN_min>Vout, SQRT(1-Don_Vinmin_2)*SQRT(Iout_OCP_Vinmin^2+(Iripple_Vinmin^2)/12), SQRT(Don_Vinmin_2)*SQRT(Iin_Vinmin^2+(Iripple_Vinmin^2)/12)) -> 11.30132341 | L132: A | M132: =K132^2*Rs -> 0.3831597323 | N132: W
A133: ILpeak_OCP_Vinnom | B133: =IF(VIN_nom>Vout, Buck_CS_threshold/Rs+Iripple_Vinnom, IF(VIN_nom<VIN_edgebuckboost, Boost_CS_Threshold/Rs, Buck_CS_threshold/Rs)) -> 33.9865782 | C133: A | D133: =IF(VIN_nom>Vout,"BUCK",IF(VIN_nom<VIN_edgebuckboost,"BOOST","BUCK-BOOST")) -> BUCK | H133: =SQRT(1-Don_Vinnom_2)*SQRT(Iout_OCP_Vinnom^2+(Iripple_Vinnom^2)/12) -> 21.426307 | K133: =IF(VIN_nom>Vout, SQRT(1-Don_Vinnom_2)*SQRT(Iout_OCP_Vinnom^2+(Iripple_Vinnom^2)/12), SQRT(Don_Vinnom_2)*SQRT(Iin_Vinnom^2+(Iripple_Vinnom^2)/12)) -> 21.426307 | L133: A | M133: =K133^2*Rs -> 1.377259895 | N133: W
A134: ILpeak_OCP_Vinmax | B134: =IF(VIN_max>Vout, Buck_CS_threshold/Rs+Iripple_Vinmax, Boost_CS_Threshold/Rs) -> 36.43264102 | C134: A | D134: =IF(VIN_max>Vout, "BUCK", "BOOST") -> BUCK | H134: =SQRT(1-Don_Vinmax_2)*SQRT(Iout_OCP_Vinmax^2+(Iripple_Vinmax^2)/12) -> 25.81677254 | K134: =IF(VIN_max>Vout, SQRT(1-Don_Vinmax_2)*SQRT(Iout_OCP_Vinmax^2+(Iripple_Vinmax^2)/12), SQRT(Don_Vinmax_2)*SQRT(Iin_Vinmax^2+(Iripple_Vinmax^2)/12)) -> 25.81677254 | L134: A | M134: =K134^2*Rs -> 1.999517233 | N134: W
A135: Worst case peak inductor current | B135: =MAX(B132:B134) -> 40 | C135: A | K135: Vijay verified that this calculation (Vinmax) are correct for OCP.
A137: IL_peak_OCP | B137: =MAX(B132:B134) -> 40 | C137: A | E137: Peak inductor current over the full input range
A139: Cslope_ideal | B139: =Lf/Rs*0.4*10^6 -> 440 | C139: pF | E139: Vijay edit: removed the derating.
A140: Cslope_recommended | B140: ='Standard Value Calculator'!O14 -> 470 | C140: pF | E140: Standard size based on Csideal slope capacitor
A141: Cslope_selected | B141: ='Design Converter'!E32 -> 470 | C141: pF | E141: Selected SLOPE cap
A143: Islope_fixed | B143: 4e-06 | C143: A
G144: =Islope_fixed/(Cslope*10^-12) -> 8510.638298
A145: SLOPE comp dv/dt = I_slope_total/Cslope | B145: =(ABS((VIN_min-Vout))*2*10^-6 + Islope_fixed)/(Cslope*10^-12) -> 21276.59574 | C145: V/s | E145: at VIN_min
A146: SLOPE comp dv/dt = I_slope_total/Cslope | B146: =(ABS((VIN_nom-Vout))*2*10^-6 + Islope_fixed)/(Cslope*10^-12) -> 59574.46809 | C146: V/s | E146: at VIN_nom
A147: SLOPE comp dv/dt = I_slope_total/Cslope | B147: =(ABS((VIN_max-Vout))*2*10^-6 + Islope_fixed)/(Cslope*10^-12) -> 110638.2979 | C147: V/s | E147: at VIN_max
K148: BUCK | L148: BOOST
A149: DV_SLOPEcomp at Vinmin | B149: =IF(D149="BUCK", K149,L149) -> 0.02198185348 | C149: V | D149: =IF(VIN_min>Vout, "BUCK", "BOOST") -> BOOST | E149: at VIN_min | K149: =B145*(1-Don_Vinmin_2)/Fsw -> 0.0631245295 | L149: =B145*Don_Vinmin_2/Fsw -> 0.02198185348 | N149: =IF(VIN_min>Vout, "BUCK", "BOOST") -> BOOST
A150: DV_SLOPEcomp at Vinnom | B150: =IF(D150="BUCK", K150,L150) -> 0.1183759175 | C150: V | D150: =IF(VIN_nom>Vout,"BUCK",IF(VIN_nom<VIN_edgebuckboost,"BOOST","BUCK-BOOST")) -> BUCK | E150: at VIN_nom | K150: =B146*(1-Don_Vinnom_2)/Fsw -> 0.1183759175 | L150: =B146*Don_Vinnom_2/Fsw -> 0.1199219548 | N150: =IF(VIN_nom>Vout, "BUCK", "BOOST") -> BUCK
A151: DV_SLOPEcomp at Vinmax | B151: =IF(D151="BUCK", K151,L151) -> 0.2939857094 | C151: V | D151: =IF(VIN_max>Vout, "BUCK", "BOOST") -> BUCK | E151: at VIN_max | K151: =B147*(1-Don_Vinmax_2)/Fsw -> 0.2939857094 | L151: =B147*Don_Vinmax_2/Fsw -> 0.1485674821 | N151: =IF(VIN_max>Vout, "BUCK", "BOOST") -> BUCK
A154: Required Constant Current Loop Setpoint | B154: ='Design Converter'!E36 -> N/A | C154: A
A155: Current Limit Threshold | B155: 50 | C155: mV | E155: Restored to 50mV as ICTRL went away and the 25mV centering also went away.
A156: Shunt Resistor in Output Leg | B156: =IF(Constant_Current_Loop_Setpoint="N/A", 0, Iout_threshold/Constant_Current_Loop_Setpoint) -> 0 | C156: mΩ
A159: Step 4: Output Capacitor
A160: Icoutrms_VINmin | B160: =IF(D160="BUCK", Iripple_Vinmin/SQRT(12), Iout*SQRT((Vout-VIN_min)/VIN_min)) -> 8.660254038 | C160: A | D160: =IF(VIN_min>Vout, "BUCK", "BOOST") -> BOOST | E160: Output Cap RMS current
A161: Icoutrms_VINnom | B161: =IF(D161="BUCK", Iripple_Vinnom/SQRT(12), Iout*SQRT((Vout-VIN_nom)/VIN_nom)) -> 2.113076446 | C161: A | D161: =IF(VIN_nom>Vout,"BUCK",IF(VIN_nom<VIN_edgebuckboost,"BOOST","BUCK-BOOST")) -> BUCK
A162: Icoutrms_VINmax | B162: =IF(D162="BUCK", Iripple_Vinmax/SQRT(12), Iout*SQRT((Vout-VIN_max)/VIN_max)) -> 2.81919396 | C162: A | D162: =IF(VIN_max>Vout, "BUCK", "BOOST") -> BUCK
A163: Max Cout rms current | B163: =MAX(B160:B162) -> 8.660254038 | C163: A
A165: Output Ripple Spec (pk-pk) | B165: =Vripple1*1000 -> 100 | C165: mV | E165: Vout ripple spec at Vin(nom)
A167: Coutmin | B167: =IF(VIN_min>Vout, Iripple_Vinmin/(Fsw*8*Vripple1), Iout*Don_Vinmin_2/(Vripple1*Fsw)) -> 0.000154972067 | C167: F | E167: Minimum Output Capacitnace | H167: =Vripple2 -> 0.09700404934 | I167: 1 | K167: =Coutmin -> 0.000154972067
A168: Reported Coutmin | B168: =IF(Coutmin*1000000<22, 22,Coutmin*1000000) -> 154.972067 | C168: uF | K168: =Coutmin*1000000 -> 154.972067
A169: Cout | B169: ='Design Converter'!E42/1000000 -> 0.000298 | C169: F | E169: Chosen Output Capacitance | I169: 1
A170: Resrmax | B170: =IF(VIN_min>Vout, SQRT((Vripple1/Iripple_Vinmin)^2-(1/(Fsw*Cout*8))^2), (Vripple1-Iout*Don_Vinmin_2/(Fsw*Cout))/Iout) -> 0.003199730044 | C170: W | E170: Max ESR before ripple exceeds Vripple1 | I170: 1
A172: Reported Cout ESR max | B172: =IF(OR(CoutEsrMax>0.3, CoutEsrMax<0, (ISERROR(CoutEsrMax))), "N/A", CoutEsrMax*1000) -> 3.199730044 | C172: mΩ
A173: CoutEsr | B173: ='Design Converter'!E44/1000 -> 0.003 | C173: W | E173: Chosen ESR | I173: 1 | K173: =ISERROR(CoutEsrMax) -> FALSE | L173: =ISERROR(B172) -> FALSE
A174: Vripple | B174: =IF(VIN_min>Vout, Iripple_Vinmax*SQRT(CoutEsr^2+(1/(8*Fsw*Cout))^2), CoutEsr*Iout+Iout*Don_Vinmin_2/(Fsw*Cout)) -> 0.09700404934 | C174: Vp-p | L174: =OR(CoutEsrMax>0.3,CoutEsrMax<0) -> FALSE
K175: =OR(TRUE, FALSE, TRUE) -> TRUE
A176: Step 5: Input Capacitor
A178: Icinrms_VINmin | B178: =IF(D178="BUCK", Iout*SQRT(Don_Vinmin_2*(1-Don_Vinmax_2)), Iripple_Vinmin/SQRT(12)) -> 0.8133924057 | C178: A | D178: =IF(VIN_min>Vout, "BUCK", "BOOST") -> BOOST | F178: =Iripple_Vinmin/SQRT(12) -> 0.8133924057 | G178: =Iout*SQRT(Don_Vinmax_2*(1-Don_Vinmax_2)) -> 7.083546897 | H178: =Iout*0.25 -> 3.75
A179: Icinrms_VINnom | B179: =IF(D179="BUCK", Iout*SQRT(Don_Vinnom_2*(1-Don_Vinnom_2)), Iripple_Vinnom/SQRT(12)) -> 7.499842153 | C179: A | D179: =IF(VIN_nom>Vout,"BUCK",IF(VIN_nom<VIN_edgebuckboost,"BOOST","BUCK-BOOST")) -> BUCK
A180: Icinrms_VINmiax | B180: =IF(D180="BUCK", Iout*SQRT(Don_Vinmax_2*(1-Don_Vinmax_2)), Iripple_Vinmax/SQRT(12)) -> 7.083546897 | C180: A | D180: =IF(VIN_max>Vout, "BUCK", "BOOST") -> BUCK
A181: Max Cin rms current | B181: =MAX(B178:B180) -> 7.499842153 | C181: A | D181: …report this
A183: Vinripple1 | B183: ='Design Converter'!E49/1000 -> 0.2 | C183: Vp-p | D183: Input voltage ripple spec (pk-pk)
A185: Cinmin_Vinmax | B185: =IF(VIN_max>Vout, Iout*Don_Vinmax_2*(1-Don_Vinmax_2)/(Vinripple1*Fsw), Iripple_Vinmax/(Fsw*8*Vinripple1)) -> 6.69021822e-05 | C185: F | D185: Calculate cap at Vinmax and 50% duty cycle (Vin = 2*Vout) | K185: =Iripple_Vinnom/(Fsw*8*Vinripple1) -> 1.829977882e-05
A186: Cinmin_50%D | B186: =IF(VIN_max>Vout, Iout*0.5*(1-0.5)/(Vinripple1*Fsw), Iripple_Vinmax/(Fsw*8*Vinripple1)) -> 7.5e-05 | D186: Buck 50% typically worst case
A187: Cinmin | B187: =IF(VIN_max<2*Vout, B185,B186) -> 7.5e-05
A188: Reported Cinmin | B188: =IF(Cinmin*1000000<10, 10,Cinmin*1000000) -> 75 | C188: uF | D188: …report this
A189: Cin | B189: ='Design Converter'!E51/1000000 -> 0.000186 | C189: F | D189: Input capacitance
A190: CinEsrMax_Vinmax | B190: =IF(VIN_max>Vout, -(Iout*Don_Vinmax_2*(1-Don_Vinmax_2)/(Cin*Fsw)-Vinripple1)/(Iout+Iripple_Vinmax/2), SQRT((Vinripple1/Iripple_Vinmax)^2-(1/(Fsw*Cin*8))^2)) -> 0.006440791243 | C190: W
A191: CinEsrMax_50%D | B191: =IF(VIN_max>Vout, -(Iout*0.5*(1-0.5)/(Cin*Fsw)-Vinripple1)/(Iout+Iripple_Vinmax/2), SQRT((Vinripple1/Iripple_Vinmax)^2-(1/(Fsw*Cin*8))^2)) -> 0.006002862531 | C191: W | D191: Calculate ESR at Vinmax and 50% duty cycle (Vin = 2*Vout)
A192: CinEsrMax | B192: =IF(VIN_max<2*Vout, B190,B191) -> 0.006002862531 | C192: W
A193: Reported Cin ESR max | B193: =IF(OR(CinEsrMax>0.3, CinEsrMax<0), "N/A",CinEsrMax*1000) -> 6.002862531 | C193: mΩ | D193: …report this
A194: RCinEsr | B194: ='Design Converter'!E53/1000 -> 0.005 | C194: W | D194: Input capacitance series resistance (ESR)
K195: =CinEsrMax -> 0.006002862531
A196: Vinripple2_Vinmax | B196: =IF(VIN_max>Vout, Iout*Don_Vinmax_2*(1-Don_Vinmax_2)/(Cin*Fsw)+(Iout +Iripple_Vinmax/2)*RCinEsr, Iripple_Vinmax*SQRT(RCinEsr^2+(1/(8*Fsw*Cin))^2)) -> 0.1713527662 | C196: Vp-p
A197: Vinripple2_50%D | B197: =IF(VIN_max>Vout, Iout*0.5*(1-0.5)/(Cin*Fsw)+(Iout +Iripple_Vinmax/2)*RCinEsr, Iripple_Vinmax*SQRT(RCinEsr^2+(1/(8*Fsw*Cin))^2)) -> 0.1800600972 | C197: Vp-p | D197: Calculate ripple at Vinmax and 50% duty cycle (Vin = 2*Vout)
A198: Vinripple2 | B198: =IF(VIN_max<2*Vout, B196,B197) -> 0.1800600972 | C198: Vp-p | D198: …report highest of these
B200: =Iout*Don_Vinmax_2*(1-Don_Vinmax_2)/(Cin*Fsw) -> 0.07193783032 | C200: Vp-p
A202: Step 6a: Soft Start
A203: Tss | B203: ='Design Converter'!E58/1000 -> 0.015 | C203: s | D203: Soft-start time
A204: Iss | B204: =Cout*Vout/Tss -> 0.2384 | C204: A | D204: Load cap current during soft start
A205: Css | B205: =0.000005*Tss/0.8 -> 9.375e-08 | C205: F
A206: Css_u | B206: ='Standard Value Calculator'!B4 -> 1e-07 | C206: F
A208: Step 6b: Other Components - UVLO, Dither, MODE
A210: VINUVLO_ON | B210: ='Design Converter'!E62 -> 8 | C210: V
A212: RUV1 | B212: ='Design Converter'!E64 -> 249 | C212: kΩ | E212: ='Standard Value Calculator'!O16 -> 249 | F212: kΩ | G212: =IF(Ruvlo1<0,"N/A",E212) -> 249 | H212: =IF(Ruvlo1<0,"N/A",E212&"kΩ") -> 249kΩ
A213: RUV2 | B213: =Vuvlo_on/((VINuvlo_on-Vuvlo_on)/Ruvlo1+Iuvlo1) -> 41.88278116 | C213: kΩ | E213: ='Standard Value Calculator'!O17 -> 42.2 | F213: kΩ | G213: =IF(G212="N/A","N/A",E213) -> 42.2 | H213: =IF(H212="N/A","N/A",E213&"kΩ") -> 42.2kΩ
A215: VINUVLO_ON_ACTUAL | B215: =(E212+E213)/E213*Vuvlo_on-Iuvlo1*E212 -> 7.945478199
A216: VINUVLO_OFF_ACTUAL | B216: =(E212+E213)/E213*Vuvlo_off-Iuvlo2*E212 -> 7.186028199
A218: Rising UVLO/EN Threshold | B218: 1.22 | C218: V
A219: Falling UVLO/EN Threshold | B219: 1.22 | C219: V
A220: Voltage Hysteresis | B220: =B218-B219 -> 0 | C220: V
A221: Rising UVLO/EN Current | B221: 0.0019 | C221: mA | E221: 1.9uA kept by Vijay based on lab data (2017/5/05)
A222: Falling UVLO/EN Current | B222: 0.00495 | C222: mA | E222: 4.95uA if UVLO =1.5V | G222: changed to 4.95uA by Vijay on 5/5/2017
A223: UVLO/EN Current Hysteresis | B223: =B222-B221 -> 0.00305 | C223: mA | E223: 3.05uA hysteresis current
A225: RPG | B225: 20 | C225: kΩ
A226: RSB | C226: W
A227: Rh | B227: 0 | C227: W
A228: Rmode | C228: W | D228: TBD | E228: Tie to GND or VCC for DCM/CCM, respectively. Use 93.1k or 200k for hiccup in DCM, CCM, respectively.
A230: Dither Modulation Frequency | B230: ='Design Converter'!E60*1000 -> 4000 | C230: Hz
A231: Cdither_calculated | B231: =10*10^-6/Fdither/0.24 -> 1.041666667e-08 | C231: F
A232: Cdither_stdvalue | B232: ='Standard Value Calculator'!O19 -> 1e-08 | C232: F
A235: Step 7: Compensation
A236: Pi | B236: 3.14159265 | D236: p
A237: CS Amp Gain | B237: 5
A238: Ri | B238: =Rs*CSAmp_gain -> 0.015 | C238: W | D238: Current Sense effective resistance = shunt resistor Rs * CS amp gain
A239: gm | B239: 0.00127 | C239: S | D239: Error Amp Transconductance
A241: gm_slopecomp | B241: 2e-06 | C241: S | D241: adaptive slope comp gm amplifier transconductance
A242: Isc_const | B242: 4e-06 | C242: A | D242: slope comp constant current source
A244: Se_fixed | B244: =Isc_const/(Cslope*10^-12) -> 8510.638298 | C244: V/s
A245: Se_proportional | B245: =(ABS((Vin-Vout))*gm_slopecomp)/(Cslope*10^-12) -> 51063.82979 | C245: V/s
A246: Se | B246: =Se_fixed+Se_proportional -> 59574.46809 | C246: V/s | D246: Slope comp slope - internal
A248: V_sc_fixed | B248: =Se_fixed/Fsw -> 0.03404255319 | C248: V/s | D248: Fixed slope comp amplitude over full period
A249: V_sc_proportional | B249: =Se_proportional/Fsw -> 0.2042553191 | C249: V/s | D249: Proportional slope comp amplitude over full period
A250: V_sc_total | B250: =Se/Fsw -> 0.2382978723 | C250: V/s | D250: Total slope comp amplitude over full period
A251: K_SL | B251: =gm_slopecomp/(Cslope*10^-12*Fsw) -> 0.0170212766 | D251: Proportional slope comp factor, where Vslope= Abs(Vin-Vout)*KSL
D252: KSL = gm/(Cslope*Fsw)
A254: Se_ext | B254: =(ABS((Vin-Vout))*gm_slopecomp+0.000004)/(Cslope*10^-12)/Ri -> 3971631.206 | C254: A/s | D254: Slope Comp Slope - referred to inductor current
A255: Sn | B255: =IF(VIN_nom>Vout, (Vin-Vout)/Lf, Vin/Lf) -> 3636363.636 | C255: A/s | D255: On-time Slope | I255: =Cslope -> 470
A256: Sf | B256: =IF(VIN_nom>Vout, Vout/Lf, (Vout-Vin)/Lf) -> 3636363.636 | C256: A/s | D256: Off-time Slope
A258: Se_int | B258: =Se/1000 -> 59.57446809 | C258: mV/μs | D258: Slope Comp Slope - referred to IC
A259: Sn_int | B259: =Sn*Ri/1000 -> 54.54545455 | C259: mV/μs | D259: etc
A260: Sf_int | B260: =Sf*Ri/1000 -> 54.54545455 | C260: mV/μs | D260: etc
A262: Toff_Vinmax | B262: =(1-Don_Vinmax_2)/Fsw -> 2.657178527e-06 | C262: sec
... 190 more rows

Sheet Schematic Management (hidden)
A2: =IF(DITHER=1, "SCH_WITH_DITH", "SCH_NO_DITH") -> SCH_NO_DITH

Sheet Efficiency Plot Management (hidden)
A2: =IF(PLOT_TYPE=1, "EFF_IOUT", "EFF_VIN") -> EFF_IOUT

Sheet Efficiency vs VIN Calculations (hidden)
A1: BUCK-BOOST CONTROLLER POWER TOOL
H2: =BD9 -> 0.9611603285 | I2: Low VIN
H3: =BD109 -> 0.9669042359 | I3: Nom VIN
H4: =BD209 -> 0.9533325108 | I4: High VIN
A6: Enter the values of your design and MOSFET datasheet specifications below. Note that thermal resistance (θJA) will change when components are placed on the PCB | BU6: 80 | BV6: 100 | BW6: 120 | BX6: 140 | BY6: 160 | BZ6: 180 | CA6: 20 | CB6: 30 | CC6: 40 | CD6: 50
G7: Operating Point Condtions | Q7: Filter Inductor | U7: Cout | X7: Cin | AA7: High-side BUCK "Control" MOSFET Losses | AF7: Low-side BUCK "Sync" MOSFET Losses | AJ7: Low-side BOOST "Control" MOSFET Losses | AO7: High-side BOOST "Sync" MOSFET Losses | AS7: Pass FET | AT7: External Diode | AU7: Diode/FET | AV7: Sense Rs | AW7: Output Rs | AX7: Controller IC Losses | BB7: RESULTS | BH7: Consolidated Buck/Boost Efficiency & Losses
A8: Input Parameters | G8: Step | H8: Vin | I8: Mode | J8: Mode Digit | K8: Iout | L8: Iin | M8: Avg IL | N8: Actual Duty Cycle BUCK Leg | O8: Actual Duty Cycle BOOST Leg | P8: Ripple Current pk-pk | Q8: Irms Lf | R8: DCR Loss | S8: Core Loss | T8: Total Inductor Loss | U8: Irms Cout | V8: Cout ESR Loss | W8: Total Cout Loss | X8: Irms Cin | Y8: Cin ESR Loss | Z8: Total Cin Loss | AA8: Irms | AB8: RDS(on) Loss | AC8: Transition Loss | AD8: Dead Time Loss | AE8: Total Control MOSFET Loss | AF8: Irms | AG8: RDS(on) Loss | AH8: Deadtime Loss | AI8: Total Sync MOSFET Loss | AJ8: Irms | AK8: RDS(on) Loss | AL8: Transition Loss | AM8: Dead Time Loss | AN8: Total Control MOSFET Loss | AO8: Irms | AP8: RDS(on) Loss | AQ8: Deadtime Loss | AR8: Total Sync MOSFET Loss | AS8: Q1/Q3 RDS(on) Loss @ D = 100% | AT8: Deadtime Loss | AU8: Reverse Recovery Loss | AV8: Isense Shunt Loss | AW8: Iout Shunt Loss | AX8: IQ Loss | AY8: Switching Current Loss | AZ8: Switching Current Diss | BA8: Total IC Loss | BB8: Total Loss | BC8: Pout | BD8: EFF, h | BE8: Control FET Temp Rise | BF8: Sync FET Temp Rise | BH8: h | BI8: Inductor Cu & Core Loss | BJ8: Total MOSFET Loss | BK8: Total Sync MOSFET Loss | BL8: Shunt Loss | BS8: Qg | BU8: θJA=80 | BV8: θJA=100 | BW8: θJA=120 | BX8: θJA=140 | BY8: θJA=160 | BZ8: θJA=180 | CA8: θJA=20 | CB8: θJA=30 | CC8: θJA=40 | CD8: θJA=50
A9: Design | B9: Input Value | C9: Units | D9: Description | G9: 0 | H9: =VIN_min+(VIN_max-VIN_min)*(G9/200) -> 9 | I9: =IF(H9>VIN_BB_to_buck, "BUCK", IF(H9<VIN_boost_to_BB,"BOOST","BUCK-BST")) -> BOOST | J9: =IF(I9="BOOST",2, IF(I9="BUCK", 1,3)) -> 2 | K9: =Iout -> 15 | L9: =Vout*K9/(H9*Efficiency) -> 22.22222222 | M9: =Iout/(1-O9) -> 20.32551098 | N9: =CHOOSE(J9,(Vout+(Rdson2+Rs+Rdcr)*K9)/(H9+(Rs+Rdson2-Rdson1)*K9),1,IF(H9<Vout,D_max_buck_BB,Vout/H9*(1-D_min_boost_exitBB_to_buck))) -> 1 | O9: =CHOOSE(J9,0,(Vout+(Rdson3+Rdcr)*L9-H9)/(Vout+(Rdson3-Rdson4-Rs)*L9), IF(H9>Vout,D_min_boost_exitBB_to_buck, (Vout-H9*D_max_buck_BB)/Vout)) -> 0.2620111732 | P9: =MAX(0, CHOOSE(J9, (H9-(Rdson1+Rdcr)*K9-Vout)*N9/(Fsw*Lf), (H9-(Rdson4+Rdcr+Rs)*L9)*O9/(Fsw*Lf), IF(H9<Vout, (H9-(Rdson4+Rdcr+Rs)*L9)*O9/(0.5*Fsw*Lf),(H9-(Rdson1+Rdcr)*K9-Vout)*N9/(0.5*Fsw*Lf)))) -> 2.796903109 | Q9: =CHOOSE(J9, SQRT(K9^2+(P9^2)/12), SQRT(L9^2+(P9^2)/12), SQRT(M9^2+(P9^2)/12)) -> 22.23688489 | R9: =(Q9^2*Rdcr*(1+Ltc*Ta-Ltc*25))/(1-Q9^2*Rdcr*Ltc*ThetaCa) -> 2.143274578 | S9: =ABS(7.759*10^-3*Fsw^0.9458*(0.00787*P9)^2.304) -> 0.1501924062 | T9: =R9+S9 -> 2.293466984 | U9: =IF(H9>Vout, P9/SQRT(12), SQRT(O9/(1-O9))*SQRT(K9^2+(P9^2)/12)) -> 8.950648436 | V9: =RCoutEsr*U9^2 -> 0.2403423223 | W9: =V9 -> 0.2403423223 | X9: =IF(H9>Vout, SQRT(N9*(1-N9))*SQRT(K9^2+(P9^2)/12), P9/SQRT(12)) -> 0.8073963815 | Y9: =RCinEsr*X9^2 -> 0.003259444585 | Z9: =Y9 -> 0.003259444585 | AA9: =CHOOSE(J9, SQRT(N9)*SQRT(K9^2+(P9^2)/12), SQRT(L9^2+(P9^2)/12), SQRT(N9)*SQRT(M9^2+(P9^2)/12)) -> 22.23688489 | AB9: =Rdson1*AA9^2 -> 0.9889580988 | AC9: =CHOOSE(J9, (H9*K9/2)*(Fsw)*(Tr_buck+Tf_buck), 0, (H9*M9/2)*(Fsw/2)*(Tr_buck+Tf_buck)) -> 0 | AD9: =IF(H9>Vout, IF(K9>P9/2,0,ABS(K9-P9/2)*Vsd_Q1*Deadtime*Fsw),0) -> 0 | AE9: =(AD9+AC9+AB9*(1+RdsonTopTc*Ta-RdsonTopTc*25))/(1-AB9*RdsonTopTc*ThetaJA_Q1) -> 1.232794525 | AF9: =CHOOSE(J9, SQRT((1-N9))*SQRT(K9^2+(P9^2)/12), 0, SQRT((1-N9))*SQRT(M9^2+(P9^2)/12)) -> 0 | AG9: =Rdson2*AF9^2 -> 0 | AH9: =CHOOSE(J9, IF(K9<P9/2,Deadtime*Fsw*IF(VfdSky_Q2>0,0,Vsd_Q2)*(K9+P9/2),2*Deadtime*Fsw*IF(VfdSky_Q2>0,0,Vsd_Q2)*K9),0, IF(K9<P9/2,Deadtime*Fsw/2*IF(VfdSky_Q2>0,0,Vsd_Q2)*(K9+P9/2),2*Deadtime*Fsw/2*IF(VfdSky_Q2>0,0,Vsd_Q2)*K9)) -> 0 | AI9: =(AH9+AG9*(1+RdsonBotTc*Ta-RdsonBotTc*25))/(1-AG9*RdsonBotTc*ThetaJA_Q2) -> 0 | AJ9: =CHOOSE(J9, 0, SQRT(O9)*SQRT(L9^2+(P9^2)/12), SQRT(O9)*SQRT(M9^2+(P9^2)/12)) -> 11.38240027 | AK9: =Rdson4*AJ9^2 -> 0.2591180717 | AL9: =CHOOSE(J9, 0, (Vout*L9/2)*(Fsw)*(Tr_boost+Tf_boost), (Vout*Iout/2)*(Fsw/2)*(Tr_boost+Tf_boost)) -> 0.7665186868 | AM9: =IF(H9>Vout, 0, IF(L9>P9/2,0,ABS(L9-P9/2)*Vsd_Q4*Deadtime*Fsw)) -> 0 | AN9: =(AM9+AL9+AK9*(1+RdsonTopTc*Ta-RdsonTopTc*25))/(1-AK9*RdsonTopTc*ThetaJA_Q4) -> 1.081694054 | AO9: =CHOOSE(J9, SQRT(Iout^2+(P9^2)/12), SQRT(1-O9)*SQRT(L9^2+(P9^2)/12), SQRT(1-O9)*SQRT(M9^2+(P9^2)/12)) -> 19.10287972 | AP9: =Rdson3*AO9^2 -> 0.7298400271 | AQ9: =CHOOSE(J9, 0, IF(L9<P9/2,Deadtime*Fsw*IF(VfdSky_Q3>0,0,Vsd_Q3)*(L9+P9/2), 2*Deadtime*Fsw*IF(VfdSky_Q3>0,0,Vsd_Q3)*L9), IF(L9<P9/2,Deadtime*Fsw/2*IF(VfdSky_Q3>0,0,Vsd_Q3)*(L9+P9/2), 2*Deadtime*Fsw/2*IF(VfdSky_Q3>0,0,Vsd_Q3)*L9)) -> 0.3611111111 | AR9: =(AQ9+AP9*(1+RdsonBotTc*Ta-RdsonBotTc*25))/(1-AP9*RdsonBotTc*ThetaJA_Q3) -> 1.277412492 | AS9: =CHOOSE(J9, Rdson3*Q9^2, Rdson1*Q9^2, 0) -> 0.9889580988 | AT9: =CHOOSE(J9, 2*Deadtime*Fsw*IF(VfdSky_Q2>0,VfdSky_Q2,0)*K9, 2*Deadtime*Fsw*IF(VfdSky_Q3>0,VfdSky_Q3,0)*L9, 2*Deadtime*Fsw/2*IF(VfdSky_Q2>0,VfdSky_Q2,0)*K9+2*Deadtime*Fsw/2*IF(VfdSky_Q3>0,VfdSky_Q3,0)*L9) -> 0 | AU9: =CHOOSE(J9, IF(QrrSky_Q2>0,QrrSky_Q2,Qrr_Q2)*Fsw*(H9-K9*Rdson1), IF(QrrSky_Q3>0,QrrSky_Q3,Qrr_Q3)*Fsw*Vout, IF(QrrSky_Q2>0,QrrSky_Q2,Qrr_Q2)*Fsw/2*(H9-K9*Rdson1)+IF(QrrSky_Q3>0,QrrSky_Q3,Qrr_Q3)*Fsw/2*Vout) -> 0.18 | AV9: =CHOOSE(J9, Rs*AF9^2, Rs*AJ9^2, Rs*(AF9^2+AJ9^2)) -> 0.3886771076 | AW9: =Rshunt_std/1000*Iout^2 -> 0 | AX9: =IF(Vout>8, Iq*Vout, Iq*H9) -> 0.036 | AY9: =CHOOSE(J9, (Qg_Q1+Qg_Q2)*Fsw, (Qg_Q3+Qg_Q4)*Fsw, (Qg_Q1+Qg_Q2+Qg_Q3+Qg_Q4)*Fsw/2)*IF(Vout>8, Vout, H9) -> 0.54 | AZ9: =(Vin-Vdd)*Fsw*(Qg_Q1+Qg_Q2)+(RdsonDRT+RdsonDRT2)*Fsw*Qg_Q1*Vdd/(RdsonDRT+2*Rgate1+RdsonDRT2)+(RdsonDRB+RdsonDRB2)*Fsw*Qg_Q2*Vdd/(RdsonDRB+2*Rgate2+RdsonDRB2) -> 0.8855084746 | BA9: =SUM(AX9:AY9) -> 0.576 | BB9: =SUM(T9,W9,Z9,AE9,AI9,AN9,AR9, AT9,AU9,BA9,AV9,AW9) -> 7.273646929 | BC9: =Vout*K9 -> 180 | BD9: =BC9/(BC9+BB9) -> 0.9611603285 | BE9: =IF(H9>Vout,ThetaJA_Q1*(AE9+AU9),ThetaJA_Q4*(AN9+AU9)) -> 63.0847027 | BF9: =IF(H9>Vout, AI9*ThetaJA_Q2, ThetaJA_Q3*AR9) -> 63.87062459 | BH9: =BD9*100 -> 96.11603285 | BI9: =T9 -> 2.293466984 | BJ9: =AE9+AI9+AN9+AR9+AU9 -> 3.77190107 | BK9: =AI9+AU9*0.33 -> 0.0594 | BL9: =AV9 -> 0.3886771076 | BP9: 250kHz / 5-1.2V /25A | BQ9: 70 | BR9: 70 | BS9: 70 | BT9: =250000*(5-Vdd)*BS9/1000000000+((250000*BS9/1000000000*Vdd)*2.5/(2*4)) -> -0.002734375 | BU9: =BU$6*$BT9 -> -0.21875 | BV9: -0.2734375 | BW9: -0.328125 | BX9: -0.3828125 | BY9: -0.4375 | BZ9: -0.4921875 | CA9: -0.0546875 | CB9: -0.08203125 | CC9: -0.109375 | CD9: -0.13671875
G10: 1 | H10: 9.135 | I10: BOOST | J10: =IF(I10="BOOST",2, IF(I10="BUCK", 1,3)) -> 2 | K10: 15 | L10: 21.893815 | M10: 20.01389701 | N10: 1 | O10: =CHOOSE(J10,0,(Vout+(Rdson3+Rdcr)*L10-H10)/(Vout+(Rdson3-Rdson4-Rs)*L10),IF(H10>Vout,D_min_boost_exitBB_to_buck, (Vout-H10*D_max_buck_BB)/Vout)) -> 0.250520776 | P10: 2.716107934 | Q10: 21.90785031 | R10: 2.069891375 | S10: =7.759*10^-3*Fsw^0.9458*(0.00787*P10)^2.304 -> 0.1403838469 | T10: =R10+S10 -> 2.210275221 | U10: 8.684120457 | V10: 0.2262418443 | W10: =V10 -> 0.2262418443 | X10: 0.7840728235 | Y10: 0.003073850963 | Z10: =Y10 -> 0.003073850963 | AA10: 21.90785031 | AB10: 0.9599078107 | AC10: 0 | AD10: 0 | AE10: 1.187977608 | AF10: 0 | AG10: 0 | AH10: 0 | AI10: 0 | AJ10: 10.9653283 | AK10: 0.2404768496 | AL10: 0.7551908244 | AM10: 0 | AN10: 1.04597419 | AO10: 18.96616673 | AP10: 0.719430961 | AQ10: 0.3557744937 | AR10: 1.255914161 | AS10: 0.9599078107 | AT10: 0 | AU10: 0.18 | AV10: 0.3607152744 | AW10: 0 | AX10: 0.036 | AY10: 0.54 | AZ10: 0.8855084746 | BA10: =SUM(AX10:AY10) -> 0.576 | BB10: =SUM(T10,W10,Z10,AE10,AI10,AN10,AR10, AT10,AU10,BA10,AV10,AW10) -> 7.046172149 | BC10: 180 | BD10: =BC10/(BC10+BB10) -> 0.9623292363 | BE10: 61.29870948 | BF10: 62.79570806 | BH10: =BD10*100 -> 96.23292363 | BI10: =T10 -> 2.210275221 | BJ10: =AE10+AI10+AN10+AR10+AU10 -> 3.669865958 | BK10: =AI10+AU10*0.33 -> 0.0594 | BL10: =AV10 -> 0.3607152744
A11: Vin | B11: =Vin -> 24 | C11: V | D11: Vin | G11: 2 | H11: 9.27 | I11: BOOST | J11: 2 | K11: 15 | L11: 21.57497303 | M11: 19.71187594 | N11: 1 | O11: 0.2390374187 | P11: 2.631526068 | Q11: 21.58834266 | R11: 2.00036502 | S11: 0.130515377 | T11: 2.130880397 | U11: 8.417803373 | V11: 0.2125782409 | W11: 0.2125782409 | X11: 0.7596561418 | Y11: 0.002885387269 | Z11: 0.002885387269 | AA11: 21.58834266 | AB11: 0.9321130775 | AC11: 0 | AD11: 0 | AE11: 1.145696888 | AF11: 0 | AG11: 0 | AH11: 0 | AI11: 0 | AJ11: 10.55485443 | AK11: 0.2228099039 | AL11: 0.7441928998 | AM11: 0 | AN11: 1.01210417 | AO11: 18.83219548 | AP11: 0.7093031736 | AQ11: 0.3505933118 | AR11: 1.23510997 | AS11: 0.9321130775 | AT11: 0 | AU11: 0.18 | AV11: 0.3342148559 | AW11: 0 | AX11: 0.036 | AY11: 0.54 | AZ11: 0.8855084746 | BA11: =SUM(AX11:AY11) -> 0.576 | BB11: =SUM(T11,W11,Z11,AE11,AI11,AN11,AR11, AT11,AU11,BA11,AV11,AW11) -> 6.829469909 | BC11: 180 | BD11: 0.9634454355 | BE11: 59.60520852 | BF11: 61.75549848 | BH11: 96.34454355 | BI11: 2.130880397 | BJ11: 3.572911028 | BK11: 0.0594 | BL11: 0.3342148559 | BP11: 250kHz / 12-5V / 30A | BQ11: 90 | BR11: 90 | BS11: 90 | BT11: =250000*(12-Vdd)*BS11/1000000000+((250000*BS9/1000000000*Vdd)*2.5/(2*4)) -> 0.142265625 | BU11: 11.38125 | BV11: 14.2265625 | BW11: 17.071875 | BX11: 19.9171875 | BY11: 22.7625 | BZ11: 25.6078125 | CA11: 2.8453125 | CB11: 4.26796875 | CC11: 5.690625 | CD11: 7.11328125
A12: Vout | B12: =Vout -> 12 | C12: V | D12: Vout | G12: 3 | H12: 9.405 | I12: BOOST | J12: 2 | K12: 15 | L12: 21.26528442 | M12: 19.41900402 | N12: 1 | O12: 0.2275607964 | P12: 2.543162094 | Q12: 21.27795325 | R12: 1.934419876 | S12: 0.1206382387 | T12: 2.055058114 | U12: 8.151309209 | V12: 0.1993315254 | W12: 0.1993315254 | X12: 0.7341476599 | Y12: 0.002694863932 | Z12: 0.002694863932 | AA12: 21.27795325 | AB12: 0.9055025888 | AC12: 0 | AD12: 0 | AE12: 1.105755478 | AF12: 0 | AG12: 0 | AH12: 0 | AI12: 0 | AJ12: 10.15029286 | AK12: 0.2060568902 | AL12: 0.733510705 | AM12: 0 | AN12: 0.9799528006 | AO12: 18.7008783 | AP12: 0.6994456986 | AQ12: 0.3455608719 | AR12: 1.214967301 | AS12: 0.9055025888 | AT12: 0 | AU12: 0.18 | AV12: 0.3090853353 | AW12: 0 | AX12: 0.036 | AY12: 0.54 | AZ12: 0.8855084746 | BA12: 0.576 | BB12: 6.622845419 | BC12: 180 | BD12: 0.96451214 | BE12: 57.99764003 | BF12: 60.74836505 | BH12: 96.451214 | BI12: 2.055058114 | BJ12: 3.48067558 | BK12: 0.0594 | BL12: 0.3090853353 | BP12: 250kHz / 18-1.2V / 20A | BQ12: 60 | BR12: 60 | BS12: 60 | BT12: =250000*(18-Vdd)*BS12/1000000000+((250000*BS9/1000000000*Vdd)*2.5/(2*4)) -> 0.198515625 | BU12: 15.88125 | BV12: 19.8515625 | BW12: 23.821875 | BX12: 27.7921875 | BY12: 31.7625 | BZ12: 35.7328125 | CA12: 3.9703125 | CB12: 5.95546875 | CC12: 7.940625 | CD12: 9.92578125
A13: Fsw | B13: =Fsw/1000 -> 250 | C13: kHz | D13: Switching Frequency | G13: 4 | H13: 9.54 | I13: BOOST | J13: 2 | K13: 15 | L13: 20.96436059 | M13: 19.13486484 | N13: 1 | O13: 0.2160906217 | P13: 2.451020335 | Q13: 20.9762971 | R13: 1.871805372 | S13: 0.1108047775 | T13: 1.982610149 | U13: 7.884223089 | V13: 0.1864829212 | W13: 0.1864829212 | X13: 0.707548625 | Y13: 0.002503125284 | Z13: 0.002503125284 | AA13: 20.9762971 | AB13: 0.8800100798 | AC13: 0 | AD13: 0 | AE13: 1.067976011 | AF13: 0 | AG13: 0 | AH13: 0 | AI13: 0 | AJ13: 9.750946755 | AK13: 0.1901619252 | AL13: 0.7231308366 | AM13: 0 | AN13: 0.9494007362 | AO13: 18.57213174 | AP13: 0.6898481545 | AQ13: 0.3406708595 | AR13: 1.195455579 | AS13: 0.8800100798 | AT13: 0 | AU13: 0.18 | AV13: 0.2852428879 | AW13: 0 | AX13: 0.036 | AY13: 0.54 | AZ13: 0.8855084746 | BA13: 0.576 | BB13: 6.425671409 | BC13: 180 | BD13: 0.9655322609 | BE13: 56.47003681 | BF13: 59.77277895 | BH13: 96.55322609 | BI13: 1.982610149 | BJ13: 3.392832326 | BK13: 0.0594 | BL13: 0.2852428879 | BP13: 500kHz / 5-1.2V / 15A | BQ13: 30 | BR13: 30 | BS13: 30 | BT13: =500000*(5-Vdd)*BS13/1000000000+((500000*BS9/1000000000*Vdd)*2.5/(2*4)) -> 0.04453125 | BU13: 3.5625 | BV13: 4.453125 | BW13: 5.34375 | BX13: 6.234375 | BY13: 7.125 | BZ13: 8.015625 | CA13: 0.890625 | CB13: 1.3359375 | CC13: 1.78125 | CD13: 2.2265625
A14: Iout | B14: =Iout -> 15 | C14: A | D14: Max Output Current | G14: 5 | H14: 9.675 | I14: BOOST | J14: 2 | K14: 15 | L14: 20.67183463 | M14: 18.85906725 | N14: 1 | O14: 0.2046266234 | P14: 2.355104865 | Q14: 20.68301131 | R14: 1.812293264 | S14: 0.1010682651 | T14: 1.913361529 | U14: 7.616096248 | V14: 0.1740147662 | W14: 0.1740147662 | X14: 0.679860214 | Y14: 0.002311049553 | Z14: 0.002311049553 | AA14: 20.68301131 | AB14: 0.8555739134 | AC14: 0 | AD14: 0 | AE14: 1.032198301 | AF14: 0 | AG14: 0 | AH14: 0 | AI14: 0 | AJ14: 9.35609964 | AK14: 0.1750732009 | AL14: 0.7130406389 | AM14: 0 | AN14: 0.9203391852 | AO14: 18.4458764 | AP14: 0.6805007124 | AQ14: 0.3359173127 | AR14: 1.17654612 | AS14: 0.8555739134 | AT14: 0 | AU14: 0.18 | AV14: 0.2626098014 | AW14: 0 | AX14: 0.036 | AY14: 0.54 | AZ14: 0.8855084746 | BA14: 0.576 | BB14: 6.237380752 | BC14: 180 | BD14: 0.9665084382 | BE14: 55.01695926 | BF14: 58.82730598 | BH14: 96.65084382 | BI14: 1.913361529 | BJ14: 3.309083606 | BK14: 0.0594 | BL14: 0.2626098014 | BP14: 500kHz / 12-5V / 15A | BQ14: 45 | BR14: 45 | BS14: 45 | BT14: =500000*(12-Vdd)*BS14/1000000000+((500000*BS9/1000000000*Vdd)*2.5/(2*4)) -> 0.18328125 | BU14: 14.6625 | BV14: 18.328125 | BW14: 21.99375 | BX14: 25.659375 | BY14: 29.325 | BZ14: 32.990625 | CA14: 3.665625 | CB14: 5.4984375 | CC14: 7.33125 | CD14: 9.1640625
A15: Ta | B15: =Ta -> 25 | C15: °C | D15: Ambient Temperature | G15: 6 | H15: 9.81 | I15: BOOST | J15: 2 | K15: 15 | L15: 20.38735984 | M15: 18.59124345 | N15: 1 | O15: 0.1931685451 | P15: 2.255419535 | Q15: 20.39775357 | R15: 1.755675246 | S15: 0.09148270163 | T15: 1.847157948 | U15: 7.346437409 | V15: 0.1619104278 | W15: 0.1619104278 | X15: 0.6510835379 | Y15: 0.002119548866 | Z15: 0.002119548866 | AA15: 20.39775357 | AB15: 0.8321367018 | AC15: 0 | AD15: 0 | AE15: 0.9982773453 | AF15: 0 | AG15: 0 | AH15: 0 | AI15: 0 | AJ15: 8.965005187 | AK15: 0.160742636 | AL15: 0.703228153 | AM15: 0 | AN15: 0.8926687754 | AO15: 18.32203681 | AP15: 0.6713940658 | AQ15: 0.3312945973 | AR15: 1.158211995 | AS15: 0.8321367018 | AT15: 0 | AU15: 0.18 | AV15: 0.241113954 | AW15: 0 | AX15: 0.036 | AY15: 0.54 | AZ15: 0.8855084746 | BA15: 0.576 | BB15: 6.057459994 | BC15: 180 | BD15: 0.9674430684 | BE15: 53.63343877 | BF15: 57.91059976 | BH15: 96.74430684 | BI15: 1.847157948 | BJ15: 3.229158116 | BK15: 0.0594 | BL15: 0.241113954 | BP15: 1Mhz / 5-1.2V / 10A | BQ15: 20 | BR15: 20 | BS15: 20 | BT15: =1000000*(5-Vdd)*BS15/1000000000+((1000000*BS9/1000000000*Vdd)*2.5/(2*4)) -> 0.1140625 | BU15: 9.125 | BV15: 11.40625 | BW15: 13.6875 | BX15: 15.96875 | BY15: 18.25 | BZ15: 20.53125 | CA15: 2.28125 | CB15: 3.421875 | CC15: 4.5625 | CD15: 5.703125
A16: Vcc | B16: =Vdd -> 7.5 | C16: V | D16: Subregulated VCC Voltage | G16: 7 | H16: 9.945 | I16: BOOST | J16: 2 | K16: 15 | L16: 20.11060835 | M16: 18.33104723 | N16: 1 | O16: 0.1817161445 | P16: 2.151967981 | Q16: 20.12020084 | R16: 1.701760855 | S16: 0.08210259621 | T16: 1.783863451 | U16: 7.074701988 | V16: 0.1501542247 | W16: 0.1501542247 | X16: 0.6212196464 | Y16: 0.001929569246 | Z16: 0.001929569246 | AA16: 20.12020084 | AB16: 0.8096449638 | AC16: 0 | AD16: 0 | AE16: 0.9660815811 | AF16: 0 | AG16: 0 | AH16: 0 | AI16: 0 | AJ16: 8.576874759 | AK16: 0.1471255612 | AL16: 0.6936820695 | AM16: 0 | AN16: 0.8662985632 | AO16: 18.20054124 | AP16: 0.6625194025 | AQ16: 0.3267973856 | AR16: 1.140427912 | AS16: 0.8096449638 | AT16: 0 | AU16: 0.18 | AV16: 0.2206883419 | AW16: 0 | AX16: 0.036 | AY16: 0.54 | AZ16: 0.8855084746 | BA16: 0.576 | BB16: 5.885443643 | BC16: 180 | BD16: 0.9683383296 | BE16: 52.31492816 | BF16: 57.0213956 | BH16: 96.83383296 | BI16: 1.783863451 | BJ16: 3.152808056 | BK16: 0.0594 | BL16: 0.2206883419 | BP16: 1Mhz / 12-1.2V/ 10A | BQ16: 25 | BR16: 25 | BS16: 25 | BT16: =1000000*(12-Vdd)*BS16/1000000000+((1000000*BS9/1000000000*Vdd)*2.5/(2*4)) -> 0.2765625 | BU16: 22.125 | BV16: 27.65625 | BW16: 33.1875 | BX16: 38.71875 | BY16: 44.25 | BZ16: 49.78125 | CA16: 5.53125 | CB16: 8.296875 | CC16: 11.0625 | CD16: 13.828125
A17: Components | B17: Input Value | C17: Units | D17: Description | G17: 8 | H17: 10.08 | I17: BOOST | J17: 2 | K17: 15 | L17: 19.84126984 | M17: 18.07815241 | N17: 1 | O17: 0.1702691924 | P17: 2.044753641 | Q17: 19.85004804 | R17: 1.650375637 | S17: 0.07298271861 | T17: 1.723358356 | U17: 6.800278311 | V17: 0.1387313553 | W17: 0.1387313553 | X17: 0.5902695325 | Y17: 0.001742090605 | Z17: 0.001742090605 | AA17: 19.85004804 | AB17: 0.7880488141 | AC17: 0 | AD17: 0 | AE17: 0.9354913902 | AF17: 0 | AG17: 0 | AH17: 0 | AI17: 0 | AJ17: 8.190861834 | AK17: 0.1341804352 | AL17: 0.6843916846 | AM17: 0 | AN17: 0.8411451646 | AO17: 18.08132156 | AP17: 0.6538683789 | AQ17: 0.3224206349 | AR17: 1.123170096 | AS17: 0.7880488141 | AT17: 0 | AU17: 0.18 | AV17: 0.2012706527 | AW17: 0 | AX17: 0.036 | AY17: 0.54 | AZ17: 0.8855084746 | BA17: 0.576 | BB17: 5.720909105 | BC17: 180 | BD17: 0.9691962034 | BE17: 51.05725823 | BF17: 56.15850479 | BH17: 96.91962034 | BI17: 1.723358356 | BJ17: 3.079806651 | BK17: 0.0594 | BL17: 0.2012706527 | BP17: 500kHz / 18-1.2V / 20A | BQ17: 50 | BR17: 50 | BS17: 50 | BT17: =500000*(18-Vdd)*BS17/1000000000+((500000*BS15/1000000000*Vdd)*2.5/(2*4)) -> 0.2859375 | BU17: 22.875 | BV17: 28.59375 | BW17: 34.3125 | BX17: 40.03125 | BY17: 45.75 | BZ17: 51.46875 | CA17: 5.71875 | CB17: 8.578125 | CC17: 11.4375 | CD17: 14.296875
A18: L | B18: =Lf*1000000 -> 3.3 | C18: uH | D18: Filter Inductance | G18: 9 | H18: 10.215 | I18: BOOST | J18: 2 | K18: 15 | L18: 19.57905042 | M18: 17.83225141 | N18: 1 | O18: 0.1588274717 | P18: 1.933779771 | Q18: 19.58700693 | R18: 1.601359538 | S18: 0.06417781885 | T18: 1.665537357 | U18: 6.522469714 | V18: 0.1276278335 | W18: 0.1276278335 | X18: 0.5582341357 | Y18: 0.001558126751 | Z18: 0.001558126751 | AA18: 19.58700693 | AB18: 0.7673016811 | AC18: 0 | AD18: 0 | AE18: 0.9063977908 | AF18: 0 | AG18: 0 | AH18: 0 | AI18: 0 | AJ18: 7.806042085 | AK18: 0.1218685861 | AL18: 0.6753468606 | AM18: 0 | AN18: 0.8171319907 | AO18: 17.96431317 | AP18: 0.645433095 | AQ18: 0.3181595693 | AR18: 1.106416189 | AS18: 0.7673016811 | AT18: 0 | AU18: 0.18 | AV18: 0.1828028791 | AW18: 0 | AX18: 0.036 | AY18: 0.54 | AZ18: 0.8855084746 | BA18: 0.576 | BB18: 5.563472167 | BC18: 180 | BD18: 0.970018495 | BE18: 49.85659954 | BF18: 55.32080947 | BH18: 97.0018495 | BI18: 1.665537357 | BJ18: 3.009945971 | BK18: 0.0594 | BL18: 0.1828028791 | BP18: θJA=120°C/W - 160°C/W
A19: Rdcr | B19: =Rdcr*1000 -> 3.7 | C19: mW | D19: Inductor DCR at 25°C | G19: 10 | H19: 10.35 | I19: BOOST | J19: 2 | K19: 15 | L19: 19.3236715 | M19: 17.59305388 | N19: 1 | O19: 0.1473907767 | P19: 1.819049454 | Q19: 19.33080508 | R19: 1.554565473 | S19: 0.05574230688 | T19: 1.610307779 | U19: 6.240470836 | V19: 0.1168304288 | W19: 0.1168304288 | X19: 0.525114346 | Y19: 0.001378725382 | Z19: 0.001378725382 | AA19: 19.33080508 | AB19: 0.7473600504 | AC19: 0 | AD19: 0 | AE19: 0.8787013 | AF19: 0 | AG19: 0 | AH19: 0 | AI19: 0 | AJ19: 7.42138728 | AK19: 0.1101539783 | AL19: 0.6665379885 | AM19: 0 | AN19: 0.794188573 | AO19: 17.84945478 | AP19: 0.6372060721 | AQ19: 0.3140096618 | AR19: 1.090145157 | AS19: 0.7473600504 | AT19: 0 | AU19: 0.18 | AV19: 0.1652309675 | AW19: 0 | AX19: 0.036 | AY19: 0.54 | AZ19: 0.8855084746 | BA19: 0.576 | BB19: 5.412782931 | BC19: 180 | BD19: 0.9708068514 | BE19: 48.70942865 | BF19: 54.50725783 | BH19: 97.08068514 | BI19: 1.610307779 | BJ19: 2.94303503 | BK19: 0.0594 | BL19: 0.1652309675 | BP19: θJA=30°C/W - 50°C/W
A20: LTc | B20: =Ltc*1000000 -> 4000 | C20: ppm | D20: Inductor Series Resistance Temp Co | G20: 11 | H20: 10.485 | I20: BOOST | J20: 2 | K20: 15 | L20: 19.07486886 | M20: 17.36028554 | N20: 1 | O20: 0.1359589123 | P20: 1.700565611 | Q20: 19.08118486 | R20: 1.509858071 | S20: 0.04772988323 | T20: 1.557587954 | U20: 5.953335536 | V20: 0.106326612 | W20: 0.106326612 | X20: 0.4909110067 | Y20: 0.001204968083 | Z20: 0.001204968083 | AA20: 19.08118486 | AB20: 0.7281832313 | AC20: 0 | AD20: 0 | AE20: 0.8523109379 | AF20: 0 | AG20: 0 | AH20: 0 | AI20: 0 | AJ20: 7.035730243 | AK20: 0.09900300009 | AL20: 0.6579559543 | AM20: 0 | AN20: 0.7722499671 | AO20: 17.73668841 | AP20: 0.6291802312 | AQ20: 0.309966619 | AR20: 1.074337195 | AS20: 0.7281832313 | AT20: 0 | AU20: 0.18 | AV20: 0.1485045001 | AW20: 0 | AX20: 0.036 | AY20: 0.54 | AZ20: 0.8855084746 | BA20: 0.576 | BB20: 5.268522134 | BC20: 180 | BD20: 0.9715627778 | BE20: 47.61249836 | BF20: 53.71685976 | BH20: 97.15627778 | BI20: 1.557587954 | BJ20: 2.8788981 | BK20: 0.0594 | BL20: 0.1485045001
A21: ThetaCa | B21: =ThetaCa -> 20 | C21: °C/W | D21: Core to Ambient Thermal Resistance | G21: 12 | H21: 10.62 | I21: BOOST | J21: 2 | K21: 15 | L21: 18.83239171 | M21: 17.13368707 | N21: 1 | O21: 0.1245316935 | P21: 1.578331014 | Q21: 18.83790253 | R21: 1.46711256 | S21: 0.04019310855 | T21: 1.507305668 | U21: 5.659932453 | V21: 0.09610450611 | W21: 0.09610450611 | X21: 0.455624918 | Y21: 0.00103797033 | Z21: 0.00103797033 | AA21: 18.83790253 | AB21: 0.7097331435 | AC21: 0 | AD21: 0 | AE21: 0.827143354 | AF21: 0 | AG21: 0 | AH21: 0 | AI21: 0 | AJ21: 6.647716535 | AK21: 0.08838427027 | AL21: 0.6495921074 | AM21: 0 | AN21: 0.7512562243 | AO21: 17.62595917 | AP21: 0.6213488732 | AQ21: 0.3060263653 | AR21: 1.058973656 | AS21: 0.7097331435 | AT21: 0 | AU21: 0.18 | AV21: 0.1325764054 | AW21: 0 | AX21: 0.036 | AY21: 0.54 | AZ21: 0.8855084746 | BA21: 0.576 | BB21: 5.130397785 | BC21: 180 | BD21: 0.9722876532 | BE21: 46.56281122 | BF21: 52.94868281 | BH21: 97.22876532 | BI21: 1.507305668 | BJ21: 2.817373234 | BK21: 0.0594 | BL21: 0.1325764054
A22: Cin | B22: =Cin*1000000 -> 186 | C22: μF | D22: Input Capacitance | G22: 13 | H22: 10.755 | I22: BOOST | J22: 2 | K22: 15 | L22: 18.59600186 | M22: 16.91301305 | N22: 1 | O22: 0.1131089444 | P22: 1.452348294 | Q22: 18.60072744 | R22: 1.426213775 | S22: 0.03318289477 | T22: 1.45939667 | U22: 5.35888172 | V22: 0.08615283987 | W22: 0.08615283987 | X22: 0.4192568391 | Y22: 0.0008788814858 | Z22: 0.0008788814858 | AA22: 18.60072744 | AB22: 0.6919741229 | AC22: 0 | AD22: 0 | AE22: 0.8031220595 | AF22: 0 | AG22: 0 | AH22: 0 | AI22: 0 | AJ22: 6.255735872 | AK22: 0.07826846261 | AL22: 0.6414382316 | AM22: 0 | AN22: 0.7311519216 | AO22: 17.51721525 | AP22: 0.6137056603 | AQ22: 0.3021850302 | AR22: 1.04403697 | AS22: 0.6919741229 | AT22: 0 | AU22: 0.18 | AV22: 0.1174026939 | AW22: 0 | AX22: 0.036 | AY22: 0.54 | AZ22: 0.8855084746 | BA22: 0.576 | BB22: 4.998142037 | BC22: 180 | BD22: 0.9729827447 | BE22: 45.55759608 | BF22: 52.20184851 | BH22: 97.29827447 | BI22: 1.45939667 | BJ22: 2.758310951 | BK22: 0.0594 | BL22: 0.1174026939
A23: RCinEsr | B23: =RCinEsr*1000 -> 5 | C23: mW | D23: Input Capacitor ESR | G23: 14 | H23: 10.89 | I23: BOOST | J23: 2 | K23: 15 | L23: 18.36547291 | M23: 16.6980311 | N23: 1 | O23: 0.1016904982 | P23: 1.322619947 | Q23: 18.36944126 | R23: 1.387055276 | S23: 0.02674789395 | T23: 1.41380317 | U23: 5.04846202 | V23: 0.0764609063 | W23: 0.0764609063 | X23: 0.3818074912 | Y23: 0.0007288848018 | Z23: 0.0007288848018 | AA23: 18.36944126 | AB23: 0.6748727444 | AC23: 0 | AD23: 0 | AE23: 0.7801767492 | AF23: 0 | AG23: 0 | AH23: 0 | AI23: 0 | AJ23: 5.857821505 | AK23: 0.06862814557 | AL23: 0.633486518 | AM23: 0 | AN23: 0.7118857432 | AO23: 17.41040779 | AP23: 0.6062445988 | AQ23: 0.2984389348 | AR23: 1.029510579 | AS23: 0.6748727444 | AT23: 0 | AU23: 0.18 | AV23: 0.1029422184 | AW23: 0 | AX23: 0.036 | AY23: 0.54 | AZ23: 0.8855084746 | BA23: 0.576 | BB23: 4.871508251 | BC23: 180 | BD23: 0.973649221 | BE23: 44.59428716 | BF23: 51.47552896 | BH23: 97.3649221 | BI23: 1.41380317 | BJ23: 2.701573072 | BK23: 0.0594 | BL23: 0.1029422184
A24: Cout | B24: =Cout*1000000 -> 298 | C24: μF | D24: Output Capcitance | G24: 15 | H24: 11.025 | I24: BOOST | J24: 2 | K24: 15 | L24: 18.14058957 | M24: 16.48852095 | N24: 1 | O24: 0.0902761959 | P24: 1.189148349 | Q24: 18.14383723 | R24: 1.349538557 | S24: 0.02093374962 | T24: 1.370472306 | U24: 4.72646887 | V24: 0.06701852393 | W24: 0.06701852393 | X24: 0.3432775597 | Y24: 0.0005891974151 | Z24: 0.0005891974151 | AA24: 18.14383723 | AB24: 0.6583976588 | AC24: 0 | AD24: 0 | AE24: 0.7582427029 | AF24: 0 | AG24: 0 | AH24: 0 | AI24: 0 | AJ24: 5.45149686 | AK24: 0.05943763603 | AL24: 0.6257295402 | AM24: 0 | AN24: 0.6934101078 | AO24: 17.30549079 | AP24: 0.5989600228 | AQ24: 0.2947845805 | AR24: 1.015378874 | AS24: 0.6583976588 | AT24: 0 | AU24: 0.18 | AV24: 0.08915645404 | AW24: 0 | AX24: 0.036 | AY24: 0.54 | AZ24: 0.8855084746 | BA24: 0.576 | BB24: 4.750268166 | BC24: 180 | BD24: 0.9742881663 | BE24: 43.67050539 | BF24: 50.7689437 | BH24: 97.42881663 | BI24: 1.370472306 | BJ24: 2.647031685 | BK24: 0.0594 | BL24: 0.08915645404
A25: RCoutEsr | B25: =CoutEsr*1000 -> 3 | C25: mW | D25: Output Capacitor ESR | G25: 16 | H25: 11.16 | I25: BUCK-BST | J25: 3 | K25: 15 | L25: 17.92114695 | M25: 16.75743611 | N25: 0.9625 | O25: 0.104875 | P25: 2.797705507 | Q25: 16.77688672 | R25: 1.136065964 | S25: 0.1502917004 | T25: 1.286357665 | U25: 5.141785914 | V25: 0.07931388717 | W25: 0.07931388717 | X25: 0.8076280137 | Y25: 0.003261315043 | Z25: 0.003261315043 | AA25: 16.45931441 | AB25: 0.5418180615 | AC25: 0.349985242 | AD25: 0 | AE25: 1.000187202 | AF25: 3.248830144 | AG25: 0.0211097946 | AH25: 0.121875 | AI25: 0.14359103 | AJ25: 5.433095753 | AK25: 0.05903705891 | AL25: 0.2587000568 | AM25: 0 | AN25: 0.3215335953 | AO25: 15.87278799 | AP25: 0.5038907972 | AQ25: 0.145609319 | AR25: 0.7222913045 | AS25: 0 | AT25: 0 | AU25: 0.173475 | AV25: 0.1202202803 | AW25: 0 | AX25: 0.036 | AY25: 0.54 | AZ25: 0.8855084746 | BA25: 0.576 | BB25: 4.426231278 | BC25: 180 | BD25: 0.9759999906 | BE25: 24.75042976 | BF25: 36.11456522 | BH25: 97.59999906 | BI25: 1.286357665 | BJ25: 2.361078131 | BK25: 0.20083778 | BL25: 0.1202202803 | BP25: EFF_1 @ 25°C | BQ25: Vin | BR25: Iout | BS25: Vout | BT25: Efficiency | BU25: Pdis
A26: Top Driver | B26: Input Value | C26: Units | D26: Description | G26: 17 | H26: 11.295 | I26: BUCK-BST | J26: 3 | K26: 15 | L26: 17.70694998 | M26: 16.55714803 | N26: 0.9625 | O26: 0.094046875 | P26: 2.540052093 | Q26: 16.57337643 | R26: 1.106246847 | S26: 0.1202986074 | T26: 1.226545455 | U26: 4.838701727 | V26: 0.07023910321 | W26: 0.07023910321 | X26: 0.7332498798 | Y26: 0.002688276931 | Z26: 0.002688276931 | AA26: 16.25965639 | AB26: 0.5287528522 | AC26: 0.349985242 | AD26: 0 | AE26: 0.9826543525 | AF26: 3.209420545 | AG26: 0.02060076047 | AH26: 0.121875 | AI26: 0.1430652109 | AJ26: 5.082567783 | AK26: 0.05166499054 | AL26: 0.2587000568 | AM26: 0 | AN26: 0.3136055327 | AO26: 15.77479987 | AP26: 0.4976886221 | AQ26: 0.1438689686 | AR26: 0.7124758117 | AS26: 0 | AT26: 0 | AU26: 0.1744875 | AV26: 0.1083986265 | AW26: 0 | AX26: 0.036 | AY26: 0.54 | AZ26: 0.8855084746 | BA26: 0.576 | BB26: 4.310159869 | BC26: 180 | BD26: 0.9766146377 | BE26: 24.40465163 | BF26: 35.62379058 | BH26: 97.66146377 | BI26: 1.226545455 | BJ26: 2.326288408 | BK26: 0.2006460859 | BL26: 0.1083986265 | BP26: Vin=10V | BQ26: 9.998964 | BR26: 0.1027 | BS26: 5.121136 | BT26: 61.87068324 | BU26: 324.123657
A27: RdsonDRT | B27: =RdsonDRT -> 1.5 | C27: W | D27: Drain to Source Resistance of pullup Top FET Driver | G27: 18 | H27: 11.43 | I27: BUCK-BST | J27: 3 | K27: 15 | L27: 17.49781277 | M27: 16.36159116 | N27: 0.9625 | O27: 0.08321875 | P27: 2.275204464 | Q27: 16.37476855 | R27: 1.077620157 | S27: 0.09334225075 | T27: 1.170962407 | U27: 4.523607519 | V27: 0.06138907495 | W27: 0.06138907495 | X27: 0.6567949549 | Y27: 0.002156898064 | Z27: 0.002156898064 | AA27: 16.06480799 | AB27: 0.5161561117 | AC27: 0.349985242 | AD27: 0 | AE27: 0.965846911 | AF27: 3.170960295 | AG27: 0.02010997838 | AH27: 0.121875 | AI27: 0.1425583474 | AJ27: 4.723737593 | AK27: 0.04462739369 | AL27: 0.2587000568 | AM27: 0 | AN27: 0.3060591751 | AO27: 15.67862712 | AP27: 0.4916386964 | AQ27: 0.1421697288 | AR27: 0.7029255006 | AS27: 0 | AT27: 0 | AU27: 0.1755 | AV27: 0.0971060581 | AW27: 0 | AX27: 0.036 | AY27: 0.54 | AZ27: 0.8855084746 | BA27: 0.576 | BB27: 4.200504373 | BC27: 180 | BD27: 0.9771960213 | BE27: 24.07795876 | BF27: 35.14627503 | BH27: 97.71960213 | BI27: 1.170962407 | BJ27: 2.292889934 | BK27: 0.2004733474 | BL27: 0.0971060581 | BP27: Vout=5.1V | BQ27: 9.998667 | BR27: 0.1166 | BS27: 5.121298 | BT27: 64.72942057 | BU27: 325.3788646
A28: RdsonDRT2 | B28: =RdsonDRT2 -> 1 | C28: W | D28: Drain to Source Resistance of pulldown Top FET Driver | G28: 19 | H28: 11.565 | I28: BUCK-BST | J28: 3 | K28: 15 | L28: 17.29355815 | M28: 16.17059983 | N28: 0.9625 | O28: 0.072390625 | P28: 2.003166357 | Q28: 16.18093596 | R28: 1.050128389 | S28: 0.06960800776 | T28: 1.119736397 | U28: 4.19345838 | V28: 0.05275527956 | W28: 0.05275527956 | X28: 0.5782643177 | Y28: 0.001671948106 | Z28: 0.001671948106 | AA28: 15.87464449 | AB28: 0.5040086752 | AC28: 0.349985242 | AD28: 0 | AE28: 0.949728164 | AF28: 3.133424774 | AG28: 0.01963670163 | AH28: 0.121875 | AI28: 0.1420696575 | AJ28: 4.353562685 | AK28: 0.03790701611 | AL28: 0.2587000568 | AM28: 0 | AN28: 0.2988729492 | AO28: 15.58426066 | AP28: 0.4857383607 | AQ28: 0.14051016 | AR28: 0.6936333899 | AS28: 0 | AT28: 0 | AU28: 0.1765125 | AV28: 0.08631557661 | AW28: 0 | AX28: 0.036 | AY28: 0.54 | AZ28: 0.8855084746 | BA28: 0.576 | BB28: 4.097295861 | BC28: 180 | BD28: 0.9777438564 | BE28: 23.76927246 | BF28: 34.68166949 | BH28: 97.77438564 | BI28: 1.119736397 | BJ28: 2.260816661 | BK28: 0.2003187825 | BL28: 0.08631557661 | BP28: L=3.3uH/30mOhm | BQ28: 9.998766 | BR28: 0.1466 | BS28: 5.121323 | BT28: 69.88537692 | BU28: 323.5244619
A29: Bottom Driver | B29: Input Value | C29: Units | D29: Description | G29: 20 | H29: 11.7 | I29: BUCK-BST | J29: 3 | K29: 15 | L29: 17.09401709 | M29: 15.98401598 | N29: 0.9625 | O29: 0.0615625 | P29: 1.723941336 | Q29: 15.99176136 | R29: 1.0237182 | S29: 0.04925507637 | T29: 1.072973276 | U29: 3.844019617 | V29: 0.04432946044 | W29: 0.04432946044 | X29: 0.4976589973 | Y29: 0.001238322388 | Z29: 0.001238322388 | AA29: 15.68905081 | AB29: 0.4922926306 | AC29: 0.349985242 | AD29: 0 | AE29: 0.9342641431 | AF29: 3.096791272 | AG29: 0.01918023236 | AH29: 0.121875 | AI29: 0.1415984104 | AJ29: 3.967842495 | AK29: 0.03148754812 | AL29: 0.2587000568 | AM29: 0 | AN29: 0.2920266455 | AO29: 15.4916964 | AP29: 0.4799853148 | AQ29: 0.1388888889 | AR29: 0.6845931338 | AS29: 0 | AT29: 0 | AU29: 0.177525 | AV29: 0.07600167072 | AW29: 0 | AX29: 0.036 | AY29: 0.54 | AZ29: 0.8855084746 | BA29: 0.576 | BB29: 4.000550063 | BC29: 180 | BD29: 0.9782579451 | BE29: 23.47758228 | BF29: 34.22965669 | BH29: 97.82579451 | BI29: 1.072973276 | BJ29: 2.230007333 | BK29: 0.2001816604 | BL29: 0.07600167072 | BP29: 4394 Top and Bottom Fets | BQ29: 9.99879 | BR29: 0.1958 | BS29: 5.12176 | BT29: 75.66251657 | BU29: 322.5719977
A30: RdsonDRB | B30: =RdsonDRB -> 1.5 | C30: W | D30: Drain to Source Resistance of pullup Bottom FET Driver | G30: 21 | H30: 11.835 | I30: BUCK-BST | J30: 3 | K30: 15 | L30: 16.89902831 | M30: 15.80168881 | N30: 0.9625 | O30: 0.050734375 | P30: 1.437532805 | Q30: 15.80713692 | R30: 0.9983400796 | S30: 0.03240817116 | T30: 1.030748251 | U30: 3.469082864 | V30: 0.03610360775 | W30: 0.03610360775 | X30: 0.4149799758 | Y30: 0.0008610419017 | Z30: 0.0008610419017 | AA30: 15.50792115 | AB30: 0.4809912367 | AC30: 0.349985242 | AD30: 0 | AE30: 0.9194233981 | AF30: 3.061038901 | AG30: 0.01873991831 | AH30: 0.121875 | AI30: 0.1411439234 | AJ30: 3.560445746 | AK30: 0.02535354782 | AL30: 0.2587000568 | AM30: 0 | AN30: 0.2855012988 | AO30: 15.40093515 | AP30: 0.4743776072 | AQ30: 0.137304605 | AR30: 0.6757989941 | AS30: 0 | AT30: 0 | AU30: 0.1785375 | AV30: 0.06614019919 | AW30: 0 | AX30: 0.036 | AY30: 0.54 | AZ30: 0.8855084746 | BA30: 0.576 | BB30: 3.910258214 | BC30: 180 | BD30: 0.9787382267 | BE30: 23.20193994 | BF30: 33.7899497 | BH30: 97.87382267 | BI30: 1.030748251 | BJ30: 2.200405114 | BK30: 0.2000612984 | BL30: 0.06614019919 | BQ30: 9.998766 | BR30: 0.2681 | BS30: 5.122408 | BT30: 80.95755345 | BU30: 323.0250607
A31: RdsonDRB2 | B31: 1 | C31: W | D31: Drain to Source Resistance of pulldown Bottom FET Driver | G31: 22 | H31: 11.97 | I31: BUCK-BST | J31: 3 | K31: 15 | L31: 16.70843776 | M31: 15.62347427 | N31: 0.9625 | O31: 0.03990625 | P31: 1.14394401 | Q31: 15.62696384 | R31: 0.9739480543 | S31: 0.01914554713 | T31: 0.9930936014 | U31: 3.058863635 | V31: 0.02806994021 | W31: 0.02806994021 | X31: 0.330228191 | Y31: 0.0005452532905 | Z31: 0.0005452532905 | AA31: 15.3311586 | AB31: 0.4700888479 | AC31: 0.349985242 | AD31: 0 | AE31: 0.9051767931 | AF31: 3.026148536 | AG31: 0.01831514992 | AH31: 0.121875 | AI31: 0.1407055586 | AJ31: 3.12172805 | AK31: 0.01949037204 | AL31: 0.2587000568 | AM31: 0 | AN31: 0.2792790795 | AO31: 15.31198266 | AP31: 0.4689136258 | AQ31: 0.1357560568 | AR31: 0.6672458134 | AS31: 0 | AT31: 0 | AU31: 0.17955 | AV31: 0.05670828294 | AW31: 0 | AX31: 0.036 | AY31: 0.54 | AZ31: 0.8855084746 | BA31: 0.576 | BB31: 3.826374322 | BC31: 180 | BD31: 0.9791848458 | BE31: 22.94145397 | BF31: 33.36229067 | BH31: 97.91848458 | BI31: 0.9930936014 | BJ31: 2.171957245 | BK31: 0.1999570586 | BL31: 0.05670828294 | BQ31: 9.998704 | BR31: 0.3655 | BS31: 5.123094 | BT31: 85.41902227 | BU31: 319.6330069
A32: Deadtime | B32: Input Value | C32: Units | D32: Description | G32: 23 | H32: 12.105 | I32: BUCK-BST | J32: 3 | K32: 15 | L32: 16.52209831 | M32: 15.58441558 | N32: 0.9541511772 | O32: 0.0375 | P32: 0.04510532838 | Q32: 15.58442102 | R32: 0.9682421198 | S32: 1.113894756e-05 | T32: 0.9682532588 | U32: 0.01302078674 | V32: 5.08622662e-07 | W32: 5.08622662e-07 | X32: 3.137358247 | Y32: 0.04921508386 | Z32: 0.04921508386 | AA32: 15.22296566 | AB32: 0.4634773669 | AC32: 0.3530476129 | AD32: 0 | AE32: 0.8999458901 | AF32: 3.336988939 | AG32: 0.02227099036 | AH32: 0.121875 | AI32: 0.1447909178 | AJ32: 3.017910154 | AK32: 0.0182155634 | AL32: 0.2587000568 | AM32: 0 | AN32: 0.2779281437 | AO32: 15.28942108 | AP32: 0.4675327939 | AQ32: 0.1342420487 | AR32: 0.6638490862 | AS32: 0 | AT32: 0 | AU32: 0.1805625 | AV32: 0.06072983064 | AW32: 0 | AX32: 0.036 | AY32: 0.54 | AZ32: 0.8855084746 | BA32: 0.576 | BB32: 3.82127522 | BC32: 180 | BD32: 0.9792120079 | BE32: 54.02541951 | BF32: 7.239545889 | BH32: 97.92120079 | BI32: 0.9682532588 | BJ32: 2.167076538 | BK32: 0.2043765428 | BL32: 0.06072983064 | BQ32: 9.998729 | BR32: 0.4906 | BS32: 5.123817 | BT32: 88.55185027 | BU32: 324.9815318
A33: Deadtime | B33: =Deadtime*1000000000 -> 50 | C33: ns | D33: Total Deadtime | G33: 24 | H33: 12.24 | I33: BUCK-BST | J33: 3 | K33: 15 | L33: 16.33986928 | M33: 15.58441558 | N33: 0.943627451 | O33: 0.0375 | P33: 0.3534313725 | Q33: 15.58474955 | R33: 0.9682861046 | S33: 0.001278786785 | T33: 0.9695648914 | U33: 0.102026849 | V33: 3.122843378e-05 | W33: 3.122843378e-05 | X33: 3.459675967 | Y33: 0.05984678897 | Z33: 0.05984678897 | AA33: 15.13910185 | AB33: 0.4583848096 | AC33: 0.3569849469 | AD33: 0 | AE33: 0.8976649521 | AF33: 3.700272124 | AG33: 0.02738402759 | AH33: 0.121875 | AI33: 0.150080992 | AJ33: 3.017973773 | AK33: 0.01821633139 | AL33: 0.2587000568 | AM33: 0 | AN33: 0.2779289574 | AO33: 15.28974339 | AP33: 0.4675525058 | AQ33: 0.1327614379 | AR33: 0.6622403728 | AS33: 0 | AT33: 0 | AU33: 0.181575 | AV33: 0.06840053847 | AW33: 0 | AX33: 0.036 | AY33: 0.54 | AZ33: 0.8855084746 | BA33: 0.576 | BB33: 3.843333722 | BC33: 180 | BD33: 0.9790945168 | BE33: 53.9619976 | BF33: 7.5040496 | BH33: 97.90945168 | BI33: 0.9695648914 | BJ33: 2.169490274 | BK33: 0.210000742 | BL33: 0.06840053847 | BQ33: 9.998642 | BR33: 0.6455 | BS33: 5.12373 | BT33: 90.41893857 | BU33: 350.4584847
A34: IQ | B34: Input Value | C34: Units | D34: Description | G34: 25 | H34: 12.375 | I34: BUCK-BST | J34: 3 | K34: 15 | L34: 16.16161616 | M34: 15.58441558 | N34: 0.9333333333 | O34: 0.0375 | P34: 0.655030303 | Q34: 15.58556269 | R34: 0.968394977 | S34: 0.00529870135 | T34: 0.9736936784 | U34: 0.1890909609 | V34: 0.0001072661745 | W34: 0.0001072661745 | X34: 3.741954674 | Y34: 0.0700111239 | Z34: 0.0700111239 | AA34: 15.05708405 | AB34: 0.4534315604 | AC34: 0.3609222808 | AD34: 0 | AE34: 0.89556976 | AF34: 4.024174984 | AG34: 0.0323879686 | AH34: 0.121875 | AI34: 0.1552687364 | AJ34: 3.018131238 | AK34: 0.01821823234 | AL34: 0.2587000568 | AM34: 0 | AN34: 0.2779309713 | AO34: 15.29054114 | AP34: 0.4676012967 | AQ34: 0.1313131313 | AR34: 0.6607036 | AS34: 0 | AT34: 0 | AU34: 0.1825875 | AV34: 0.07590930141 | AW34: 0 | AX34: 0.036 | AY34: 0.54 | AZ34: 0.8855084746 | BA34: 0.576 | BB34: 3.867781938 | BC34: 180 | BD34: 0.9789643303 | BE34: 53.907863 | BF34: 7.76343682 | BH34: 97.89643303 | BI34: 0.9736936784 | BJ34: 2.172060568 | BK34: 0.2155226114 | BL34: 0.07590930141 | BQ34: 9.998605 | BR34: 0.8324 | BS34: 5.123156 | BT34: 91.67894636 | BU34: 387.0599604
A35: IQ | B35: =Iq*1000 -> 3 | C35: mA | D35: Quiescent Current Of Controller (Not Switching!) | G35: 26 | H35: 12.51 | I35: BUCK-BST | J35: 3 | K35: 15 | L35: 15.98721023 | M35: 15.58441558 | N35: 0.9232613909 | O35: 0.0375 | P35: 0.9501199041 | Q35: 15.58682894 | R35: 0.9685645307 | S35: 0.01248258886 | T35: 0.9810471195 | U35: 0.2742759912 | V35: 0.000225681958 | W35: 0.000225681958 | X35: 3.993311121 | Y35: 0.07973266856 | Z35: 0.07973266856 | AA35: 14.97683711 | AB35: 0.4486112999 | AC35: 0.3648596148 | AD35: 0 | AE35: 0.8936513318 | AF35: 4.317821961 | AG35: 0.03728717298 | AH35: 0.121875 | AI35: 0.1603580325 | AJ35: 3.018376445 | AK35: 0.01822119273 | AL35: 0.2587000568 | AM35: 0 | AN35: 0.2779341077 | AO35: 15.29178342 | AP35: 0.4676772801 | AQ35: 0.1298960831 | AR35: 0.6592352312 | AS35: 0 | AT35: 0 | AU35: 0.1836 | AV35: 0.08326254856 | AW35: 0 | AX35: 0.036 | AY35: 0.54 | AZ35: 0.8855084746 | BA35: 0.576 | BB35: 3.895046722 | BC35: 180 | BD35: 0.9788191863 | BE35: 53.86256659 | BF35: 8.017901626 | BH35: 97.88191863 | BI35: 0.9810471195 | BJ35: 2.174778703 | BK35: 0.2209460325 | BL35: 0.08326254856 | BQ35: 9.998605 | BR35: 1.0529 | BS35: 5.121822 | BT35: 92.88993897 | BU35: 412.7776298
A36: High-side FET | B36: Input Value | C36: Units | D36: Description | G36: 27 | H36: 12.645 | I36: BUCK-BST | J36: 3 | K36: 15 | L36: 15.81652827 | M36: 15.58441558 | N36: 0.9134045077 | O36: 0.0375 | P36: 1.23890866 | Q36: 15.58851876 | R36: 0.9687908294 | S36: 0.02300730322 | T36: 0.9917981326 | U36: 0.357642124 | V36: 0.0003837236667 | W36: 0.0003837236667 | X36: 4.219819607 | Y36: 0.0890343876 | Z36: 0.0890343876 | AA36: 14.89829005 | AB36: 0.4439180927 | AC36: 0.3687969488 | AD36: 0 | AE36: 0.891901263 | AF36: 4.587250879 | AG36: 0.04208574126 | AH36: 0.121875 | AI36: 0.1653525381 | AJ36: 3.018703677 | AK36: 0.01822514377 | AL36: 0.2587000568 | AM36: 0 | AN36: 0.2779382936 | AO36: 15.29344124 | AP36: 0.4677786902 | AQ36: 0.1285092922 | AR36: 0.6578319346 | AS36: 0 | AT36: 0 | AU36: 0.1846125 | AV36: 0.09046632755 | AW36: 0 | AX36: 0.036 | AY36: 0.54 | AZ36: 0.8855084746 | BA36: 0.576 | BB36: 3.925319101 | BC36: 180 | BD36: 0.9786580819 | BE36: 53.82568815 | BF36: 8.267626904 | BH36: 97.86580819 | BI36: 0.9917981326 | BJ36: 2.177636529 | BK36: 0.2262746631 | BL36: 0.09046632755 | BQ36: 9.998667 | BR36: 1.3093 | BS36: 5.119565 | BT36: 93.69036421 | BU36: 451.4207279
A37: RdsonTop | B37: =Rdson1*1000 -> 2 | C37: mW | D37: Drain-Source Resistance of Top FET | G37: 28 | H37: 12.78 | I37: BUCK-BST | J37: 3 | K37: 15 | L37: 15.64945227 | M37: 15.58441558 | N37: 0.9037558685 | O37: 0.0375 | P37: 1.521596244 | Q37: 15.59060445 | R37: 0.9690701879 | S37: 0.03694205721 | T37: 1.006012245 | U37: 0.4392470006 | V37: 0.0005788137825 | W37: 0.0005788137825 | X37: 4.425782604 | Y37: 0.0979377583 | Z37: 0.0979377583 | AA37: 14.82137577 | AB37: 0.4393463597 | AC37: 0.3727342828 | AD37: 0 | AE37: 0.8903116817 | AF37: 4.83671037 | AG37: 0.04678753441 | AH37: 0.121875 | AI37: 0.1702557033 | AJ37: 3.019107569 | AK37: 0.01823002103 | AL37: 0.2587000568 | AM37: 0 | AN37: 0.2779434608 | AO37: 15.29548746 | AP37: 0.467903873 | AQ37: 0.1271517997 | AR37: 0.6564905687 | AS37: 0 | AT37: 0 | AU37: 0.185625 | AV37: 0.09752633315 | AW37: 0 | AX37: 0.036 | AY37: 0.54 | AZ37: 0.8855084746 | BA37: 0.576 | BB37: 3.958681565 | BC37: 180 | BD37: 0.978480594 | BE37: 53.79683408 | BF37: 8.512785166 | BH37: 97.8480594 | BI37: 1.006012245 | BJ37: 2.180626415 | BK37: 0.2315119533 | BL37: 0.09752633315 | BQ37: 9.998543 | BR37: 1.602 | BS37: 5.118281 | BT37: 93.86447333 | BU37: 535.9658972
A38: RdsonTopTc | B38: =RdsonTopTc*1000000 -> 4000 | C38: ppm | D38: Drain to Source Resistance Temp Co | G38: 29 | H38: 12.915 | I38: BUCK-BST | J38: 3 | K38: 15 | L38: 15.48586914 | M38: 15.58441558 | N38: 0.8943089431 | O38: 0.0375 | P38: 1.798373984 | Q38: 15.59306004 | R38: 0.9693991544 | S38: 0.05429336275 | T38: 1.023692517 | U38: 0.5191458518 | V38: 0.0008085372463 | W38: 0.0008085372463 | X38: 4.61438808 | Y38: 0.1064628868 | Z38: 0.1064628868 | AA38: 14.74603085 | AB38: 0.4348908515 | AC38: 0.3766716167 | AD38: 0 | AE38: 0.8888752074 | AF38: 5.069328927 | AG38: 0.05139619154 | AH38: 0.121875 | AI38: 0.1750707859 | AJ38: 3.019583093 | AK38: 0.01823576411 | AL38: 0.2587000568 | AM38: 0 | AN38: 0.2779495454 | AO38: 15.29789657 | AP38: 0.4680512789 | AQ38: 0.1258226868 | AR38: 0.6552081701 | AS38: 0 | AT38: 0 | AU38: 0.1866375 | AV38: 0.1044479335 | AW38: 0 | AX38: 0.036 | AY38: 0.54 | AZ38: 0.8855084746 | BA38: 0.576 | BB38: 3.995153083 | BC38: 180 | BD38: 0.9782866395 | BE38: 53.77563537 | BF38: 8.753539294 | BH38: 97.82866395 | BI38: 1.023692517 | BJ38: 2.183741209 | BK38: 0.2366611609 | BL38: 0.1044479335 | BQ38: 9.998543 | BR38: 1.935 | BS38: 5.117146 | BT38: 94.2245272 | BU38: 606.9211641
A39: QgTop | B39: =Qg_Q1*1000000000 -> 90 | C39: nC | D39: Gate Charge Of Top FET | G39: 30 | H39: 13.05 | I39: BUCK-BST | J39: 3 | K39: 15 | L39: 15.3256705 | M39: 15.58441558 | N39: 0.8850574713 | O39: 0.0375 | P39: 2.069425287 | Q39: 15.59586118 | R39: 0.969774494 | S39: 0.07502759462 | T39: 1.044802089 | U39: 0.5973916234 | V39: 0.001070630255 | W39: 0.001070630255 | X39: 4.788081317 | Y39: 0.1146286135 | Z39: 0.1146286135 | AA39: 14.67219523 | AB39: 0.4305466255 | AC39: 0.3806089507 | AD39: 0 | AE39: 0.8875849142 | AF39: 5.287492136 | AG39: 0.05591514617 | AH39: 0.121875 | AI39: 0.1798008645 | AJ39: 3.02012553 | AK39: 0.01824231644 | AL39: 0.2587000568 | AM39: 0 | AN39: 0.2779564873 | AO39: 15.30064468 | AP39: 0.4682194553 | AQ39: 0.1245210728 | AR39: 0.6539819418 | AS39: 0 | AT39: 0 | AU39: 0.18765 | AV39: 0.1112361939 | AW39: 0 | AX39: 0.036 | AY39: 0.54 | AZ39: 0.8855084746 | BA39: 0.576 | BB39: 4.034711734 | BC39: 180 | BD39: 0.9780763547 | BE39: 53.76174571 | BF39: 8.990043225 | BH39: 97.80763547 | BI39: 1.044802089 | BJ39: 2.186974208 | BK39: 0.2417253645 | BL39: 0.1112361939 | BQ39: 9.998506 | BR39: 2.31 | BS39: 5.116635 | BT39: 94.4926635 | BU39: 688.8741306
A40: QgdTop | B40: =Qgd_Q1*1000000000 -> 6 | C40: nC | D40: Gate to Drain Charge | G40: 31 | H40: 13.185 | I40: BUCK-BST | J40: 3 | K40: 15 | L40: 15.16875237 | M40: 15.58441558 | N40: 0.8759954494 | O40: 0.0375 | P40: 2.334926052 | Q40: 15.59898498 | R40: 0.9701931741 | S40: 0.09908421866 | T40: 1.069277393 | U40: 0.6740350924 | V40: 0.001362969917 | W40: 0.001362969917 | X40: 4.948789946 | Y40: 0.1224526097 | Z40: 0.1224526097 | AA40: 14.59981205 | AB40: 0.4263090238 | AC40: 0.3845462847 | AD40: 0 | AE40: 0.8864342964 | AF40: 5.493070227 | AG40: 0.06034764103 | AH40: 0.121875 | AI40: 0.1844488516 | AJ40: 3.020730452 | AK40: 0.01824962493 | AL40: 0.2587000568 | AM40: 0 | AN40: 0.2779642303 | AO40: 15.30370935 | AP40: 0.4684070399 | AQ40: 0.123246113 | AR40: 0.6528092418 | AS40: 0 | AT40: 0 | AU40: 0.1886625 | AV40: 0.1178958989 | AW40: 0 | AX40: 0.036 | AY40: 0.54 | AZ40: 0.8855084746 | BA40: 0.576 | BB40: 4.077307991 | BC40: 180 | BD40: 0.9778500238 | BE40: 53.75483982 | BF40: 9.222442582 | BH40: 97.78500238 | BI40: 1.069277393 | BJ40: 2.19031912 | BK40: 0.2467074766 | BL40: 0.1178958989 | BQ40: 9.998432 | BR40: 2.727 | BS40: 5.115812 | BT40: 94.55877042 | BU40: 802.7769493
A41: QgsTop | B41: =Qgs_Q1*1000000000 -> 19 | C41: nC | G41: 32 | H41: 13.32 | I41: BUCK-BST | J41: 3 | K41: 15 | L41: 15.01501502 | M41: 15.58441558 | N41: 0.8671171171 | O41: 0.0375 | P41: 2.595045045 | Q41: 15.60240998 | R41: 0.9706523503 | S41: 0.1263842766 | T41: 1.097036627 | U41: 0.7491249777 | V41: 0.001683564696 | W41: 0.001683564696 | X41: 5.09806757 | Y41: 0.1299514647 | Z41: 0.1299514647 | AA41: 14.52882743 | AB41: 0.422173653 | AC41: 0.3884836187 | AD41: 0 | AE41: 0.8854172376 | AF41: 5.687562819 | AG41: 0.06469674164 | AH41: 0.121875 | AI41: 0.189017505 | AJ41: 3.021393702 | AK41: 0.0182576398 | AL41: 0.2587000568 | AM41: 0 | AN41: 0.2779727217 | AO41: 15.30706952 | AP41: 0.4686127549 | AQ41: 0.121996997 | AR41: 0.6516875737 | AS41: 0 | AT41: 0 | AU41: 0.189675 | AV41: 0.1244315722 | AW41: 0 | AX41: 0.036 | AY41: 0.54 | AZ41: 0.8855084746 | BA41: 0.576 | BB41: 4.122873267 | BC41: 180 | BD41: 0.9776080332 | BE41: 53.75461188 | BF41: 9.450875249 | BH41: 97.76080332 | BI41: 1.097036627 | BJ41: 2.193770038 | BK41: 0.251610255 | BL41: 0.1244315722 | BQ41: 9.998518 | BR41: 3.186 | BS41: 5.114889 | BT41: 94.58411933 | BU41: 933.1099081
A42: RGateTop | B42: =Rgate1 -> 1.7 | C42: W | D42: Gate Resistance | G42: 33 | H42: 13.455 | I42: BUCK-BST | J42: 3 | K42: 15 | L42: 14.86436269 | M42: 15.58441558 | N42: 0.8584169454 | O42: =CHOOSE(J42,0,(Vout+(Rdson3+Rdcr)*L42-H42)/(Vout+(Rdson3-Rdson4-Rs)*L42),IF(H42>Vout,D_min_boost_exitBB_to_buck, (Vout-H42*D_max_buck_BB)/Vout)) -> 0.0375 | P42: 2.849944259 | Q42: 15.60611603 | R42: 0.9711493536 | S42: 0.1568361535 | T42: 1.127985507 | U42: 0.8227080425 | V42: 0.002030545569 | W42: 0.002030545569 | X42: 5.237189449 | Y42: 0.1371407666 | Z42: 0.1371407666 | AA42: 14.45919027 | AB42: 0.4181363665 | AC42: 0.3924209526 | AD42: 0 | AE42: 0.8845279825 | AF42: 5.872195022 | AG42: 0.06896534876 | AH42: 0.121875 | AI42: 0.1935094379 | AJ42: 3.022111375 | AK42: 0.01826631432 | AL42: 0.2587000568 | AM42: 0 | AN42: 0.2779819121 | AO42: 15.31070542 | AP42: 0.4688354009 | AQ42: 0.1207729469 | AR42: 0.650614577 | AS42: 0 | AT42: 0 | AU42: 0.1906875 | AV42: 0.1308474946 | AW42: 0 | AX42: 0.036 | AY42: 0.54 | AZ42: 0.8855084746 | BA42: 0.576 | BB42: 4.171325723 | BC42: 180 | BD42: 0.9773508405 | BE42: 53.76077412 | BF42: 9.675471897 | BH42: 97.73508405 | BI42: 1.127985507 | BJ42: 2.19732141 | BK42: 0.2564363129 | BL42: 0.1308474946 | BQ42: 9.998419 | BR42: 3.692 | BS42: 5.113754 | BT42: 94.44136337 | BU42: 1111.239121
A43: GfsTop | B43: =Gfs_Q1 -> 100 | C43: S | D43: Transconductance of Top FET | G43: 34 | H43: 13.59 | I43: BUCK | J43: 1 | K43: 15 | L43: 14.71670346 | M43: 15 | N43: 0.8896589659 | O43: 0 | P43: 1.622414441 | Q43: 15.00730996 | R43: 0.8928321983 | S43: 0.04282683601 | T43: 0.9356590343 | U43: 0.4683507073 | V43: 0.000658057155 | W43: 0.000658057155 | X43: 4.702005768 | Y43: 0.1105442912 | Z43: 0.1105442912 | AA43: 14.15515511 | AB43: 0.4007368323 | AC43: 0.7629897017 | AD43: 0 | AE43: 1.265122794 | AF43: 4.985071338 | AG43: 0.04970187248 | AH43: 0.24375 | AI43: 0.2963981814 | AJ43: 0 | AK43: 0 | AL43: 0 | AM43: 0 | AN43: 0 | AO43: 15.00730996 | AP43: 0.4504387048 | AQ43: 0 | AR43: 0.4950353183 | AS43: 0.4504387048 | AT43: 0 | AU43: 0.2034 | AV43: 0.07455280873 | AW43: 0 | AX43: 0.036 | AY43: 0.54 | AZ43: 0.8855084746 | BA43: 0.576 | BB43: 3.957370485 | BC43: 180 | BD43: 0.9784875677 | BE43: 73.42613971 | BF43: 14.81990907 | BH43: 97.84875677 | BI43: 0.9356590343 | BJ43: 2.259956294 | BK43: 0.3635201814 | BL43: 0.07455280873 | BQ43: 9.998246 | BR43: 4.243 | BS43: 5.112059 | BT43: 94.26717862 | BU43: 1319.097078
A44: VthTop | B44: =Vth_Q1 -> 1.85 | C44: V | D44: Threshold Voltage of Top FET | G44: 35 | H44: 13.725 | I44: BUCK | J44: 1 | K44: 15 | L44: 14.571949 | M44: 15 | N44: 0.8809368192 | O44: 0 | P44: 1.750661715 | Q44: 15.00851096 | R44: 0.8929853157 | S44: 0.05103183012 | T44: 0.9440171458 | U44: 0.5053725063 | V44: 0.0007662041103 | W44: 0.0007662041103 | X44: 4.860699001 | Y44: 0.1181319739 | Z44: 0.1181319739 | AA44: 14.08672342 | AB44: 0.3968715536 | AC44: 0.7705690696 | AD44: 0 | AE44: 1.268094772 | AF44: 5.178766705 | AG44: 0.05363924917 | AH44: 0.24375 | AI44: 0.3006141931 | AJ44: 0 | AK44: 0 | AL44: 0 | AM44: 0 | AN44: 0 | AO44: 15.00851096 | AP44: 0.4505108027 | AQ44: 0 | AR44: 0.4951224008 | AS44: 0.4505108027 | AT44: 0 | AU44: 0.205425 | AV44: 0.08045887376 | AW44: 0 | AX44: 0.036 | AY44: 0.54 | AZ44: 0.8855084746 | BA44: 0.576 | BB44: 3.988630563 | BC44: 180 | BD44: 0.9783213204 | BE44: 73.67598858 | BF44: 15.03070965 | BH44: 97.83213204 | BI44: 0.9440171458 | BJ44: 2.269256365 | BK44: 0.3684044431 | BL44: 0.08045887376 | BQ44: 9.998147 | BR44: 4.849 | BS44: 5.110774 | BT44: 93.95381599 | BU44: 1594.798321
A45: VspTop | B45: =Vsp_Q1 -> 2 | C45: V | G45: 36 | H45: 13.86 | I45: BUCK | J45: 1 | K45: 15 | L45: 14.43001443 | M45: 15 | N45: 0.8723840345 | O45: 0 | P45: 1.876418751 | Q45: 15.00977722 | R45: 0.8931467701 | S45: 0.05987630224 | T45: 0.9530230724 | U45: 0.5416754354 | V45: 0.0008802368319 | W45: 0.0008802368319 | X45: 5.008187802 | Y45: 0.1254097253 | Z45: 0.1254097253 | AA45: 14.01935719 | AB45: 0.3930847519 | AC45: 0.7781484375 | AD45: 0 | AE45: 1.271168587 | AF45: 5.361999284 | AG45: 0.05750207265 | AH45: 0.24375 | AI45: 0.3047569034 | AJ45: 0 | AK45: 0 | AL45: 0 | AM45: 0 | AN45: 0 | AO45: 15.00977722 | AP45: 0.4505868246 | AQ45: 0 | AR45: 0.4952142256 | AS45: 0.4505868246 | AT45: 0 | AU45: 0.20745 | AV45: 0.08625310897 | AW45: 0 | AX45: 0.036 | AY45: 0.54 | AZ45: 0.8855084746 | BA45: 0.576 | BB45: 4.02015586 | BC45: 180 | BD45: 0.97815372 | BE45: 73.93092936 | BF45: 15.23784517 | BH45: 97.815372 | BI45: 0.9530230724 | BJ45: 2.278589716 | BK45: 0.3732154034 | BL45: 0.08625310897 | BQ45: 9.997986 | BR45: 5.496 | BS45: 5.109789 | BT45: 93.59977136 | BU45: 1920.305692
A46: VsdTop | B46: =Vsd_Q1 -> 0.65 | C46: V | G46: 37 | H46: 13.995 | I46: BUCK | J46: 1 | K46: 15 | L46: 14.29081815 | M46: 15 | N46: 0.8639957265 | O46: 0 | P46: 1.999757382 | Q46: 15.01110431 | R46: 0.8933159988 | S46: 0.06933538227 | T46: 0.962651381 | U46: 0.5772802313 | V46: 0.0009997573962 | W46: 0.0009997573962 | X46: 5.145703016 | Y46: 0.1323912977 | Z46: 0.1323912977 | AA46: 13.95302717 | AB46: 0.3893739343 | AC46: 0.7857278054 | AD46: 0 | AE46: 1.274340754 | AF46: 5.535908715 | AG46: 0.0612925706 | AH46: 0.24375 | AI46: 0.3088283473 | AJ46: 0 | AK46: 0 | AL46: 0 | AM46: 0 | AN46: 0 | AO46: 15.01110431 | AP46: 0.4506665049 | AQ46: 0 | AR46: 0.4953104729 | AS46: 0.4506665049 | AT46: 0 | AU46: 0.209475 | AV46: 0.09193885589 | AW46: 0 | AX46: 0.036 | AY46: 0.54 | AZ46: 0.8855084746 | BA46: 0.576 | BB46: 4.051935866 | BC46: 180 | BD46: 0.9779848234 | BE46: 74.19078772 | BF46: 15.44141736 | BH46: 97.79848234 | BI46: 0.962651381 | BJ46: 2.287954574 | BK46: 0.3779550973 | BL46: 0.09193885589 | BQ46: 9.9979 | BR46: 6.195 | BS46: 5.109191 | BT46: 93.15665167 | BU46: 2325.135176
A47: θJATop | B47: =ThetaJA_Q1 -> 50 | C47: °C/W | D47: Junction to Ambient Resistance | G47: 38 | H47: 14.13 | I47: BUCK | J47: 1 | K47: 15 | L47: 14.15428167 | M47: 15 | N47: 0.8557671958 | O47: 0 | P47: 2.120746705 | Q47: 15.01248804 | R47: 0.8934924724 | S47: 0.07938407576 | T47: 0.9728765481 | U47: 0.6122068405 | V47: 0.001124391647 | W47: 0.001124391647 | X47: 5.274271907 | Y47: 0.1390897208 | Z47: 0.1390897208 | AA47: 13.88770529 | AB47: 0.3857367164 | AC47: 0.7933071733 | AD47: 0 | AE47: 1.277607949 | AF47: 5.701441836 | AG47: 0.06501287801 | AH47: 0.24375 | AI47: 0.31283048 | AJ47: 0 | AK47: 0 | AL47: 0 | AM47: 0 | AN47: 0 | AO47: 15.01248804 | AP47: 0.4507495944 | AQ47: 0 | AR47: 0.4954108416 | AS47: 0.4507495944 | AT47: 0 | AU47: 0.2115 | AV47: 0.09751931702 | AW47: 0 | AX47: 0.036 | AY47: 0.54 | AZ47: 0.8855084746 | BA47: 0.576 | BB47: 4.083959248 | BC47: 180 | BD47: 0.9778146925 | BE47: 74.45539744 | BF47: 15.641524 | BH47: 97.78146925 | BI47: 0.9728765481 | BJ47: 2.29734927 | BK47: 0.38262548 | BL47: 0.09751931702 | BQ47: 9.997627 | BR47: 6.947 | BS47: 5.108667 | BT47: 92.65680763 | BU47: 2812.629001
A48: Low-side FET | B48: Input Value | C48: Units | D48: Description | G48: 39 | H48: 14.265 | I48: BUCK | J48: 1 | K48: 15 | L48: 14.02032948 | M48: 15 | N48: 0.8476939203 | O48: 0 | P48: 2.239453211 | Q48: 15.01392451 | R48: 0.8936756933 | S48: 0.08999747974 | T48: 0.983673173 | U48: 0.6464744572 | V48: 0.001253787671 | W48: 0.001253787671 | X48: 5.394763145 | Y48: 0.145517347 | Z48: 0.145517347 | AA48: 13.82336457 | AB48: 0.3821708163 | AC48: 0.8008865412 | AD48: 0 | AE48: 1.280966998 | AF48: 5.859395966 | AG48: 0.06866504217 | AH48: 0.24375 | AI48: 0.3167651811 | AJ48: 0 | AK48: 0 | AL48: 0 | AM48: 0 | AN48: 0 | AO48: 15.01392451 | AP48: 0.4508358584 | AQ48: 0 | AR48: 0.4955150489 | AS48: 0.4508358584 | AT48: 0 | AU48: 0.213525 | AV48: 0.1029975633 | AW48: 0 | AX48: 0.036 | AY48: 0.54 | AZ48: 0.8855084746 | BA48: 0.576 | BB48: 4.116214099 | BC48: 180 | BD48: 0.9776433916 | BE48: 74.72459991 | BF48: 15.83825905 | BH48: 97.76433916 | BI48: 0.983673173 | BJ48: 2.306772228 | BK48: 0.3872284311 | BL48: 0.1029975633 | BQ48: 9.997528 | BR48: 7.753 | BS48: 5.10853 | BT48: 92.03433642 | BU48: 3427.976174
A49: RdsonBot | B49: =Rdson2*1000 -> 2 | C49: mW | D49: Drain-Source Resistance of Low-side FET | G49: 40 | H49: 14.4 | I49: BUCK | J49: 1 | K49: 15 | L49: 13.88888889 | M49: 15 | N49: 0.8397715472 | O49: 0 | P49: 2.355940904 | Q49: 15.01541002 | R49: 0.8938651932 | S49: 0.1011509476 | T49: 0.9950161408 | U49: 0.6801015577 | V49: 0.001387614386 | W49: 0.001387614386 | X49: 5.507919615 | Y49: 0.1516858924 | Z49: 0.1516858924 | AA49: 13.75997909 | AB49: 0.378674049 | AC49: 0.8084659091 | AD49: 0 | AE49: 1.284414874 | AF49: 6.010450369 | AG49: 0.07225102728 | AH49: 0.24375 | AI49: 0.3206342582 | AJ49: 0 | AK49: 0 | AL49: 0 | AM49: 0 | AN49: 0 | AO49: 15.01541002 | AP49: 0.4509250763 | AQ49: 0 | AR49: 0.4956228286 | AS49: 0.4509250763 | AT49: 0 | AU49: 0.21555 | AV49: 0.1083765409 | AW49: 0 | AX49: 0.036 | AY49: 0.54 | AZ49: 0.8855084746 | BA49: 0.576 | BB49: 4.14868815 | BC49: 180 | BD49: 0.9774709872 | BE49: 74.99824371 | BF49: 16.03171291 | BH49: 97.74709872 | BI49: 0.9950161408 | BJ49: 2.316221961 | BK49: 0.3917657582 | BL49: 0.1083765409 | BQ49: 9.997009 | BR49: 8.612 | BS49: 5.108542 | BT49: 91.34637826 | BU49: 4167.806561
A50: RdsonBotTc | B50: =RdsonBotTc*1000000 -> 4000 | C50: ppm | D50: Drain To Source Resitance Temp Co | G50: 41 | H50: 14.535 | I50: BUCK | J50: 1 | K50: 15 | L50: 13.75988992 | M50: 15 | N50: 0.8319958848 | O50: 0 | P50: 2.470271418 | Q50: 15.0169411 | R50: 0.8940605314 | S50: 0.112820215 | T50: 1.006880746 | U50: 0.713105934 | V50: 0.00152556022 | W50: 0.00152556022 | X50: 5.614382878 | Y50: 0.1576064755 | Z50: 0.1576064755 | AA50: 13.69752389 | AB50: 0.3752443214 | AC50: 0.816045277 | AD50: 0 | AE50: 1.287948684 | AF50: 6.155189631 | AG50: 0.07577271878 | AH50: 0.24375 | AI50: 0.3244394506 | AJ50: 0 | AK50: 0 | AL50: 0 | AM50: 0 | AN50: 0 | AO50: 15.0169411 | AP50: 0.4510170401 | AQ50: 0 | AR50: 0.4957339301 | AS50: 0.4510170401 | AT50: 0 | AU50: 0.217575 | AV50: 0.1136590782 | AW50: 0 | AX50: 0.036 | AY50: 0.54 | AZ50: 0.8855084746 | BA50: 0.576 | BB50: 4.181368925 | BC50: 180 | BD50: 0.9772975467 | BE50: 75.27618422 | BF50: 16.22197253 | BH50: 97.72975467 | BI50: 1.006880746 | BJ50: 2.325697065 | BK50: 0.3962392006 | BL50: 0.1136590782 | BQ50: 9.996959 | BR50: 9.523 | BS50: 5.108754 | BT50: 90.54782619 | BU50: 5078.581624
A51: QgBot | B51: =Qg_Q2*1000000000 -> 90 | C51: nC | D51: Gate Charge Of Top FET | G51: 42 | H51: 14.67 | I51: BUCK | J51: 1 | K51: 15 | L51: 13.63326517 | M51: 15 | N51: 0.824362895 | O51: 0 | P51: 2.582504124 | Q51: 15.01851448 | R51: 0.8942612931 | S51: 0.1249814946 | T51: 1.019242788 | U51: 0.7455047255 | V51: 0.001667331887 | W51: 0.001667331887 | X51: 5.714711765 | Y51: 0.1632896528 | Z51: 0.1632896528 | AA51: 13.63597498 | AB51: 0.3718796271 | AC51: 0.8236246449 | AD51: 0 | AE51: 1.291565663 | AF51: 6.294121364 | AG51: 0.07923192748 | AH51: 0.24375 | AI51: 0.3281824328 | AJ51: 0 | AK51: 0 | AL51: 0 | AM51: 0 | AN51: 0 | AO51: 15.01851448 | AP51: 0.4511115546 | AQ51: 0 | AR51: 0.4958481176 | AS51: 0.4511115546 | AT51: 0 | AU51: 0.2196 | AV51: 0.1188478912 | AW51: 0 | AX51: 0.036 | AY51: 0.54 | AZ51: 0.8855084746 | BA51: 0.576 | BB51: 4.214243878 | BC51: 180 | BD51: 0.9771231378 | BE51: 75.55828317 | BF51: 16.40912164 | BH51: 97.71231378 | BI51: 1.019242788 | BJ51: 2.335196214 | BK51: 0.4006504328 | BL51: 0.1188478912 | BQ51: 9.996464 | BR51: 10.493 | BS51: 5.109228 | BT51: 89.62666026 | BU51: 6204.922159
A52: RGateBot | B52: =Rgate2 -> 1.7 | C52: W | D52: Gate Resistance | G52: 43 | H52: 14.805 | I52: BUCK | J52: 1 | K52: 15 | L52: 13.50894968 | M52: 15 | N52: 0.8168686869 | O52: 0 | P52: 2.692696235 | Q52: 15.02012709 | R52: 0.8944670878 | S52: 0.1376115479 | T52: 1.032078636 | U52: 0.7773144481 | V52: 0.001812653254 | W52: 0.001812653254 | X52: 5.809396736 | Y52: 0.1687454522 | Z52: 0.1687454522 | AA52: 13.57530925 | AB52: 0.3685780422 | AC52: 0.8312040128 | AD52: 0 | AE52: 1.295263167 | AF52: 6.427689837 | AG52: 0.08263039329 | AH52: 0.24375 | AI52: 0.3318648174 | AJ52: 0 | AK52: 0 | AL52: 0 | AM52: 0 | AN52: 0 | AO52: 15.02012709 | AP52: 0.4512084355 | AQ52: 0 | AR52: 0.4959651691 | AS52: 0.4512084355 | AT52: 0 | AU52: 0.221625 | AV52: 0.1239455899 | AW52: 0 | AX52: 0.036 | AY52: 0.54 | AZ52: 0.8855084746 | BA52: 0.576 | BB52: 4.247300485 | BC52: 180 | BD52: 0.9769478279 | BE52: 75.84440837 | BF52: 16.59324087 | BH52: 97.69478279 | BI52: 1.032078636 | BJ52: 2.344718154 | BK52: 0.4050010674 | BL52: 0.1239455899 | BQ52: 9.995982 | BR52: 11.519 | BS52: 5.110126 | BT52: 88.59139042 | BU52: 7580.320731
A53: VsdBot | B53: =Vsd_Q2 -> 0.65 | C53: V | D53: Diode Forward Voltage of Bottom FET Body Diode | G53: 44 | H53: 14.94 | I53: BUCK | J53: 1 | K53: 15 | L53: 13.38688086 | M53: 15 | N53: 0.8095095095 | O53: 0 | P53: 2.800902903 | Q53: 15.02177602 | R53: 0.8946775476 | S53: 0.1506877371 | T53: 1.045365285 | U53: 0.8085510225 | V53: 0.001961264268 | W53: 0.001961264268 | X53: 5.898871146 | Y53: 0.173983404 | Z53: 0.173983404 | AA53: 13.51550444 | AB53: 0.3653377207 | AC53: 0.8387833807 | AD53: 0 | AE53: 1.299038666 | AF53: 6.556286634 | AG53: 0.08596978885 | AH53: 0.24375 | AI53: 0.3354881581 | AJ53: 0 | AK53: 0 | AL53: 0 | AM53: 0 | AN53: 0 | AO53: 15.02177602 | AP53: 0.4513075095 | AQ53: 0 | AR53: 0.4960848754 | AS53: 0.4513075095 | AT53: 0 | AU53: 0.22365 | AV53: 0.1289546833 | AW53: 0 | AX53: 0.036 | AY53: 0.54 | AZ53: 0.8855084746 | BA53: 0.576 | BB53: 4.280526336 | BC53: 180 | BD53: 0.9767716838 | BE53: 76.13443332 | BF53: 16.7744079 | BH53: 97.67716838 | BI53: 1.045365285 | BJ53: 2.3542617 | BK53: 0.4092926581 | BL53: 0.1289546833 | BQ53: 9.995574 | BR53: 12.605 | BS53: 5.111198 | BT53: 87.3865081 | BU53: 9299.433596
A54: QrrBot | B54: =Qrr_Q2*1000000000 -> 60 | C54: nC | D54: Reverse Recovery Charge of Body Diode | G54: 45 | H54: 15.075 | I54: BUCK | J54: 1 | K54: 15 | L54: 13.26699834 | M54: 15 | N54: 0.802281746 | O54: 0 | P54: 2.907177309 | Q54: 15.02345855 | R54: 0.894892326 | S54: 0.1641880625 | T54: 1.059080389 | U54: 0.8392298009 | V54: 0.002112919976 | W54: 0.002112919976 | X54: 5.983520203 | Y54: 0.1790125701 | Z54: 0.1790125701 | AA54: 13.45653913 | AB54: 0.3621568905 | AC54: 0.8463627486 | AD54: 0 | AE54: 1.302889738 | AF54: 6.680259084 | AG54: 0.08925172285 | AH54: 0.24375 | AI54: 0.3390539527 | AJ54: 0 | AK54: 0 | AL54: 0 | AM54: 0 | AN54: 0 | AO54: 15.02345855 | AP54: 0.4514086133 | AQ54: 0 | AR54: 0.4962070397 | AS54: 0.4514086133 | AT54: 0 | AU54: 0.225675 | AV54: 0.1338775843 | AW54: 0 | AX54: 0.036 | AY54: 0.54 | AZ54: 0.8855084746 | BA54: 0.576 | BB54: 4.313909194 | BC54: 180 | BD54: 0.9765947713 | BE54: 76.42823691 | BF54: 16.95269764 | BH54: 97.65947713 | BI54: 1.059080389 | BJ54: 2.363825731 | BK54: 0.4135267027 | BL54: 0.1338775843 | BQ54: 9.994967 | BR54: 13.75 | BS54: 5.112233 | BT54: 85.98511344 | BU54: 11457.23054
A55: TrrBot | B55: =Trr_Q2*1000000000 -> 40 | C55: ns | D55: Reverse Recovery Time of Body Diode | G55: 46 | H55: 15.21 | I55: BUCK | J55: 1 | K55: 15 | L55: 13.14924392 | M55: 15 | N55: 0.7951819076 | O55: 0 | P55: 3.011570752 | Q55: 15.0251721 | R55: 0.8951110967 | S55: 0.1780911877 | T55: 1.073202284 | U55: 0.8693655921 | V55: 0.002267389598 | W55: 0.002267389598 | X55: 6.063688162 | Y55: 0.1838415706 | Z55: 0.1838415706 | AA55: 13.39839262 | AB55: 0.3590338499 | AC55: 0.8539421165 | AD55: 0 | AE55: 1.306814063 | AF55: 6.799917029 | AG55: 0.0924777432 | AH55: 0.24375 | AI55: 0.3425636458 | AJ55: 0 | AK55: 0 | AL55: 0 | AM55: 0 | AN55: 0 | AO55: 15.0251721 | AP55: 0.4515115931 | AQ55: 0 | AR55: 0.4963314762 | AS55: 0.4515115931 | AT55: 0 | AU55: 0.2277 | AV55: 0.1387166148 | AW55: 0 | AX55: 0.036 | AY55: 0.54 | AZ55: 0.8855084746 | BA55: 0.576 | BB55: 4.347437044 | BC55: 180 | BD55: 0.9764171549 | BE55: 76.72570316 | BF55: 17.12818229 | BH55: 97.64171549 | BI55: 1.073202284 | BJ55: 2.373409185 | BK55: 0.4177046458 | BL55: 0.1387166148 | BQ55: 9.994386 | BR55: 14.954 | BS55: 5.113031 | BT55: 84.35265026 | BU55: 14183.31853
A56: θJABot | B56: =ThetaJA_Q2 -> 50 | C56: °C/W | D56: Junction to Ambient Resistance | G56: 47 | H56: 15.345 | I56: BUCK | J56: 1 | K56: 15 | L56: 13.03356142 | M56: 15 | N56: 0.7882066277 | O56: 0 | P56: 3.114132731 | Q56: 15.02691425 | R56: 0.8953335519 | S56: 0.1923764552 | T56: 1.087710007 | U56: 0.8989726852 | V56: 0.002424455666 | W56: 0.002424455666 | X56: 6.139684182 | Y56: 0.1884786092 | Z56: 0.1884786092 | AA56: 13.34104501 | AB56: 0.3559669638 | AC56: 0.8615214844 | AD56: 0 | AE56: 1.310809418 | AF56: 6.915538301 | AG56: 0.09564933997 | AH56: 0.24375 | AI56: 0.3460186307 | AJ56: 0 | AK56: 0 | AL56: 0 | AM56: 0 | AN56: 0 | AO56: 15.02691425 | AP56: 0.4516163038 | AQ56: 0 | AR56: 0.4964580101 | AS56: 0.4516163038 | AT56: 0 | AU56: 0.229725 | AV56: 0.14347401 | AW56: 0 | AX56: 0.036 | AY56: 0.54 | AZ56: 0.8855084746 | BA56: 0.576 | BB56: 4.381098141 | BC56: 180 | BD56: 0.9762388977 | BE56: 77.0267209 | BF56: 17.30093154 | BH56: 97.62388977 | BI56: 1.087710007 | BJ56: 2.383011059 | BK56: 0.4218278807 | BL56: 0.14347401
A57: Bottom Schottky | B57: Input Value | C57: Units | D57: Std Units | G57: 48 | H57: 15.48 | I57: BUCK | J57: 1 | K57: 15 | L57: 12.91989664 | M57: 15 | N57: 0.781352657 | O57: 0 | P57: 3.214911023 | Q57: 15.02868272 | R57: 0.8955594019 | S57: 0.2070238945 | T57: 1.102583296 | U57: 0.9280648724 | V57: 0.002583913222 | W57: 0.002583913222 | X57: 6.211787132 | Y57: 0.1929314969 | Z57: 0.1929314969 | AA57: 13.28447704 | AB57: 0.3529546606 | AC57: 0.8691008523 | AD57: 0 | AE57: 1.314873671 | AF57: 7.0273732 | AG57: 0.09876794819 | AH57: 0.24375 | AI57: 0.3494202525 | AJ57: 0 | AK57: 0 | AL57: 0 | AM57: 0 | AN57: 0 | AO57: 15.02868272 | AP57: 0.4517226088 | AQ57: 0 | AR57: 0.4965864766 | AS57: 0.4517226088 | AT57: 0 | AU57: 0.23175 | AV57: 0.1481519223 | AW57: 0 | AX57: 0.036 | AY57: 0.54 | AZ57: 0.8855084746 | BA57: 0.576 | BB57: 4.414881029 | BC57: 180 | BD57: 0.9760600609 | BE57: 77.33118355 | BF57: 17.47101262 | BH57: 97.60600609 | BI57: 1.102583296 | BJ57: 2.3926304 | BK57: 0.4258977525 | BL57: 0.1481519223
A58: VfdSky | B58: =VfdSky_Q2 -> 0 | C58: V | D58: Diode Forward Voltage | G58: 49 | H58: 15.615 | I58: BUCK | J58: 1 | K58: 15 | L58: 12.80819725 | M58: 15 | N58: 0.7746168582 | O58: 0 | P58: 3.313951759 | Q58: 15.03047536 | R58: 0.8957883731 | S58: 0.2220142237 | T58: 1.117802597 | U58: 0.9566554701 | V58: 0.002745569065 | W58: 0.002745569065 | X58: 6.280249572 | Y58: 0.1972076734 | Z58: 0.1972076734 | AA58: 13.22867017 | AB58: 0.3499954289 | AC58: 0.8766802202 | AD58: 0 | AE58: 1.319004778 | AF58: 7.135648199 | AG58: 0.1018349504 | AH58: 0.24375 | AI58: 0.3527698097 | AJ58: 0 | AK58: 0 | AL58: 0 | AM58: 0 | AN58: 0 | AO58: 15.03047536 | AP58: 0.4518303794 | AQ58: 0 | AR58: 0.4967167202 | AS58: 0.4518303794 | AT58: 0 | AU58: 0.233775 | AV58: 0.1527524257 | AW58: 0 | AX58: 0.036 | AY58: 0.54 | AZ58: 0.8855084746 | BA58: 0.576 | BB58: 4.448774573 | BC58: 180 | BD58: 0.9758807041 | BE58: 77.63898888 | BF58: 17.63849048 | BH58: 97.58807041 | BI58: 1.117802597 | BJ58: 2.402266308 | BK58: 0.4299155597 | BL58: 0.1527524257
A59: QrrSky | B59: =QrrSky_Q2*1000000000 -> 0 | C59: nC | D59: Diode Reverse Recovery Charge | G59: 50 | H59: 15.75 | I59: BUCK | J59: 1 | K59: 15 | L59: 12.6984127 | M59: 15 | N59: 0.7679962013 | O59: 0 | P59: 3.411299491 | Q59: 15.03229015 | R59: 0.896020208 | S59: 0.2373288465 | T59: 1.133349055 | U59: 0.9847573396 | V59: 0.002909241054 | W59: 0.002909241054 | X59: 6.345301075 | Y59: 0.2013142287 | Z59: 0.2013142287 | AA59: 13.17360647 | AB59: 0.3470878147 | AC59: 0.8842595881 | AD59: 0 | AE59: 1.323200776 | AF59: 7.240569017 | AG59: 0.1048516794 | AH59: 0.24375 | AI59: 0.3560685566 | AJ59: 0 | AK59: 0 | AL59: 0 | AM59: 0 | AN59: 0 | AO59: 15.03229015 | AP59: 0.451939494 | AQ59: 0 | AR59: 0.4968485945 | AS59: 0.451939494 | AT59: 0 | AU59: 0.2358 | AV59: 0.1572775191 | AW59: 0 | AX59: 0.036 | AY59: 0.54 | AZ59: 0.8855084746 | BA59: 0.576 | BB59: 4.48276797 | BC59: 180 | BD59: 0.9757008851 | BE59: 77.95003879 | BF59: 17.80342783 | BH59: 97.57008851 | BI59: 1.133349055 | BJ59: 2.411917927 | BK59: 0.4338825566 | BL59: 0.1572775191
A60: Ireverse | B60: =Ireverse -> 0 | C60: mA | D60: Reverse Leakage Current | G60: 51 | H60: 15.885 | I60: BUCK | J60: 1 | K60: 15 | L60: 12.59049418 | M60: 15 | N60: 0.7614877589 | O60: 0 | P60: 3.506997261 | Q60: 15.03412515 | R60: 0.8962546637 | S60: 0.2529498455 | T60: 1.149204509 | U60: 1.012382906 | V60: 0.003074757447 | W60: 0.003074757447 | X60: 6.407151025 | Y60: 0.2052579213 | Z60: 0.2052579213 | AA60: 13.11926862 | AB60: 0.3442304183 | AC60: 0.891838956 | AD60: 0 | AE60: 1.327459781 | AF60: 7.342323202 | AG60: 0.10781942 | AH60: 0.24375 | AI60: 0.3593177053 | AJ60: 0 | AK60: 0 | AL60: 0 | AM60: 0 | AN60: 0 | AO60: 15.03412515 | AP60: 0.4520498383 | AQ60: 0 | AR60: 0.4969819614 | AS60: 0.4520498383 | AT60: 0 | AU60: 0.237825 | AV60: 0.16172913 | AW60: 0 | AX60: 0.036 | AY60: 0.54 | AZ60: 0.8855084746 | BA60: 0.576 | BB60: 4.516850766 | BC60: 180 | BD60: 0.9755206598 | BE60: 78.26423907 | BF60: 17.96588527 | BH60: 97.55206598 | BI60: 1.149204509 | BJ60: 2.421584448 | BK60: 0.4377999553 | BL60: 0.16172913
A61: Controller | B61: Input Value | C61: Units | D61: Std Units | G61: 52 | H61: 16.02 | I61: BUCK | J61: 1 | K61: 15 | L61: 12.48439451 | M61: 15 | N61: 0.7550887021 | O61: 0 | P61: 3.601086665 | Q61: 15.03597859 | R61: 0.8964915108 | S61: 0.2688599716 | T61: 1.165351482 | U61: 1.039544178 | V61: 0.003241956292 | W61: 0.003241956292 | X61: 6.465990982 | Y61: 0.2090451969 | Z61: 0.2090451969 | AA61: 13.06563991 | AB61: 0.3414218923 | AC61: 0.8994183239 | AD61: 0 | AE61: 1.331779985 | AF61: 7.441082309 | AG61: 0.1107394118 | AH61: 0.24375 | AI61: 0.3625184273 | AJ61: 0 | AK61: 0 | AL61: 0 | AM61: 0 | AN61: 0 | AO61: 15.03597859 | AP61: 0.4521613042 | AQ61: 0 | AR61: 0.4971166904 | AS61: 0.4521613042 | AT61: 0 | AU61: 0.23985 | AV61: 0.1661091178 | AW61: 0 | AX61: 0.036 | AY61: 0.54 | AZ61: 0.8855084746 | BA61: 0.576 | BB61: 4.551012856 | BC61: 180 | BD61: 0.9753400819 | BE61: 78.58149924 | BF61: 18.12592137 | BH61: 97.53400819 | BI61: 1.165351482 | BJ61: 2.431265102 | BK61: 0.4416689273 | BL61: 0.1661091178
A62: θJA | B62: 30 | C62: °C/W | D62: Junction to Ambient Resistance | G62: 53 | H62: 16.155 | I62: BUCK | J62: 1 | K62: 15 | L62: 12.38006809 | M62: 15 | N62: 0.7487962963 | O62: 0 | P62: 3.693607912 | Q62: 15.03784875 | R62: 0.8967305334 | S62: 0.2850426323 | T62: 1.181773166 | U62: 1.066252761 | V62: 0.003410684853 | W62: 0.003410684853 | X62: 6.521996708 | Y62: 0.2126822053 | Z62: 0.2126822053 | AA62: 13.01270415 | AB62: 0.3386609388 | AC62: 0.9069976918 | AD62: 0 | AE62: 1.336159647 | AF62: 7.537003752 | AG62: 0.1136128511 | AH62: 0.24375 | AI62: 0.3656718555 | AJ62: 0 | AK62: 0 | AL62: 0 | AM62: 0 | AN62: 0 | AO62: 15.03784875 | AP62: 0.4522737899 | AQ62: 0 | AR62: 0.4972526588 | AS62: 0.4522737899 | AT62: 0 | AU62: 0.241875 | AV62: 0.1704192767 | AW62: 0 | AX62: 0.036 | AY62: 0.54 | AZ62: 0.8855084746 | BA62: 0.576 | BB62: 4.585244493 | BC62: 180 | BD62: 0.9751592035 | BE62: 78.90173233 | BF62: 18.28359278 | BH62: 97.51592035 | BI62: 1.181773166 | BJ62: 2.440959161 | BK62: 0.4454906055 | BL62: 0.1704192767
A63: Theta Ja | B63: 2 | C63: °C/W | D63: Junction to Ambient Resistance | G63: 54 | H63: 16.29 | I63: BUCK | J63: 1 | K63: 15 | L63: 12.27747084 | M63: 15 | N63: 0.7426078972 | O63: 0 | P63: 3.784599883 | Q63: 15.03973403 | R63: 0.8969715276 | S63: 0.3014818767 | T63: 1.198453404 | U63: 1.092519881 | V63: 0.003580799069 | W63: 0.003580799069 | X63: 6.575329891 | Y63: 0.2161748159 | Z63: 0.2161748159 | AA63: 12.96044573 | AB63: 0.3359463068 | AC63: 0.9145770597 | AD63: 0 | AE63: 1.340597095 | AF63: 7.630232387 | AG63: 0.1164408925 | AH63: 0.24375 | AI63: 0.3687790857 | AJ63: 0 | AK63: 0 | AL63: 0 | AM63: 0 | AN63: 0 | AO63: 15.03973403 | AP63: 0.4523871994 | AQ63: 0 | AR63: 0.4973897506 | AS63: 0.4523871994 | AT63: 0 | AU63: 0.2439 | AV63: 0.1746613388 | AW63: 0 | AX63: 0.036 | AY63: 0.54 | AZ63: 0.8855084746 | BA63: 0.576 | BB63: 4.61953629 | BC63: 180 | BD63: 0.9749780745 | BE63: 79.22485475 | BF63: 18.43895429 | BH63: 97.49780745 | BI63: 1.198453404 | BJ63: 2.450665931 | BK63: 0.4492660857 | BL63: 0.1746613388
G64: 55 | H64: 16.425 | I64: BUCK | J64: 1 | K64: 15 | L64: 12.17656012 | M64: 15 | N64: 0.7365209472 | O64: 0 | P64: 3.874100182 | Q64: 15.04163292 | R64: 0.897214301 | S64: 0.3181623804 | T64: 1.215376681 | U64: 1.118356392 | V64: 0.003752163055 | W64: 0.003752163055 | X64: 6.626139643 | Y64: 0.2195286328 | Z64: 0.2195286328 | AA64: 12.9088495 | AB64: 0.3332767907 | AC64: 0.9221564276 | AD64: 0 | AE64: 1.345090722 | AF64: 7.720901869 | AG64: 0.1192246513 | AH64: 0.24375 | AI64: 0.3718411783 | AJ64: 0 | AK64: 0 | AL64: 0 | AM64: 0 | AN64: 0 | AO64: 15.04163292 | AP64: 0.452501442 | AQ64: 0 | AR64: 0.4975278565 | AS64: 0.452501442 | AT64: 0 | AU64: 0.245925 | AV64: 0.178836977 | AW64: 0 | AX64: 0.036 | AY64: 0.54 | AZ64: 0.8855084746 | BA64: 0.576 | BB64: 4.653879211 | BC64: 180 | BD64: 0.9747967428 | BE64: 79.5507861 | BF64: 18.59205892 | BH64: 97.47967428 | BI64: 1.215376681 | BJ64: 2.460384757 | BK64: 0.4529964283 | BL64: 0.178836977
G65: 56 | H65: 16.56 | I65: BUCK | J65: 1 | K65: 15 | L65: 12.07729469 | M65: 15 | N65: 0.730532972 | O65: 0 | P65: 3.962145192 | Q65: 15.043544 | R65: 0.8974586723 | S65: 0.3350694286 | T65: 1.232528101 | U65: 1.143772797 | V65: 0.00392464863 | W65: 0.00392464863 | X65: 6.674563791 | Y65: 0.222749009 | Z65: 0.222749009 | AA65: 12.85790083 | AB65: 0.3306512276 | AC65: 0.9297357955 | AD65: 0 | AE65: 1.34963898 | AF65: 7.809135832 | AG65: 0.1219652049 | AH65: 0.24375 | AI65: 0.3748591597 | AJ65: 0 | AK65: 0 | AL65: 0 | AM65: 0 | AN65: 0 | AO65: 15.043544 | AP65: 0.4526164324 | AQ65: 0 | AR65: 0.4976668734 | AS65: 0.4526164324 | AT65: 0 | AU65: 0.24795 | AV65: 0.1829478073 | AW65: 0 | AX65: 0.036 | AY65: 0.54 | AZ65: 0.8855084746 | BA65: 0.576 | BB65: 4.688264579 | BC65: 180 | BD65: 0.9746152546 | BE65: 79.87944901 | BF65: 18.74295799 | BH65: 97.46152546 | BI65: 1.232528101 | BJ65: 2.470115013 | BK65: 0.4566826597 | BL65: 0.1829478073
A66: Outputs | G66: 57 | H66: 16.695 | I66: BUCK | J66: 1 | K66: 15 | L66: 11.97963462 | M66: 15 | N66: 0.7246415771 | O66: 0 | P66: 4.048770121 | Q66: 15.04546593 | R66: 0.8977044702 | S66: 0.3521888985 | T66: 1.249893369 | U66: 1.168779259 | V66: 0.004098134872 | W66: 0.004098134872 | X66: 6.720730004 | Y66: 0.2258410589 | Z66: 0.2258410589 | AA66: 12.80758556 | AB66: 0.3280684956 | AC66: 0.9373151634 | AD66: 0 | AE66: 1.35424038 | AF66: 7.895048901 | AG66: 0.1246635943 | AH66: 0.24375 | AI66: 0.3778340238 | AJ66: 0 | AK66: 0 | AL66: 0 | AM66: 0 | AN66: 0 | AO66: 15.04546593 | AP66: 0.4527320899 | AQ66: 0 | AR66: 0.4978067038 | AS66: 0.4527320899 | AT66: 0 | AU66: 0.249975 | AV66: 0.1869953914 | AW66: 0 | AX66: 0.036 | AY66: 0.54 | AZ66: 0.8855084746 | BA66: 0.576 | BB66: 4.722684061 | BC66: 180 | BD66: 0.974433654 | BE66: 80.21076899 | BF66: 18.89170119 | BH66: 97.4433654 | BI66: 1.249893369 | BJ66: 2.479856107 | BK66: 0.4603257738 | BL66: 0.1869953914
A67: Design | B67: Value | C67: Units | G67: 58 | H67: 16.83 | I67: BUCK | J67: 1 | K67: 15 | L67: 11.8835413 | M67: 15 | N67: 0.7188444444 | O67: 0 | P67: 4.134009051 | Q67: 15.04739742 | R67: 0.8979515334 | S67: 0.3695072417 | T67: 1.267458775 | U67: 1.193385619 | V67: 0.004272507707 | W67: 0.004272507707 | X67: 6.764756779 | Y67: 0.2288096714 | Z67: 0.2288096714 | AA67: 12.75788996 | AB67: 0.3255275123 | AC67: 0.9448945313 | AD67: 0 | AE67: 1.358893487 | AF67: 7.978747589 | AG67: 0.1273208262 | AH67: 0.24375 | AI67: 0.3807667332 | AJ67: 0 | AK67: 0 | AL67: 0 | AM67: 0 | AN67: 0 | AO67: 15.04739742 | AP67: 0.4528483385 | AQ67: 0 | AR67: 0.497947256 | AS67: 0.4528483385 | AT67: 0 | AU67: 0.252 | AV67: 0.1909812393 | AW67: 0 | AX67: 0.036 | AY67: 0.54 | AZ67: 0.8855084746 | BA67: 0.576 | BB67: 4.757129669 | BC67: 180 | BD67: 0.9742519832 | BE67: 80.54467434 | BF67: 19.03833666 | BH67: 97.42519832 | BI67: 1.267458775 | BJ67: 2.489607476 | BK67: 0.4639267332 | BL67: 0.1909812393
A68: Dmax | B68: =#REF! ->  | C68: index | G68: 59 | H68: 16.965 | I68: BUCK | J68: 1 | K68: 15 | L68: 11.78897731 | M68: 15 | N68: 0.7131393298 | O68: 0 | P68: 4.217894982 | Q68: 15.0493373 | R68: 0.8981997095 | S68: 0.3870114658 | T68: 1.285211175 | U68: 1.217601402 | V68: 0.004447659519 | W68: 0.004447659519 | X68: 6.806754306 | Y68: 0.2316595209 | Z68: 0.2316595209 | AA68: 12.70880074 | AB68: 0.3230272324 | AC68: 0.9524738991 | AD68: 0 | AE68: 1.363596919 | AF68: 8.060331072 | AG68: 0.129937874 | AH68: 0.24375 | AI68: 0.3836582207 | AJ68: 0 | AK68: 0 | AL68: 0 | AM68: 0 | AN68: 0 | AO68: 15.0493373 | AP68: 0.4529651063 | AQ68: 0 | AR68: 0.4980884433 | AS68: 0.4529651063 | AT68: 0 | AU68: 0.254025 | AV68: 0.194906811 | AW68: 0 | AX68: 0.036 | AY68: 0.54 | AZ68: 0.8855084746 | BA68: 0.576 | BB68: 4.79159375 | BC68: 180 | BD68: 0.9740702829 | BE68: 80.88109596 | BF68: 19.18291103 | BH68: 97.40702829 | BI68: 1.285211175 | BJ68: 2.499368583 | BK68: 0.4674864707 | BL68: 0.194906811
A69: Dprime | B69: =1-B68 ->  | C69: index | G69: 60 | H69: 17.1 | I69: BUCK | J69: 1 | K69: 15 | L69: 11.69590643 | M69: 15 | N69: 0.7075240595 | O69: 0 | P69: 4.300459874 | Q69: 15.05128443 | R69: 0.8984488548 | S69: 0.4046891163 | T69: 1.303137971 | U69: 1.241435833 | V69: 0.004623488783 | W69: 0.004623488783 | X69: 6.846825229 | Y69: 0.2343950786 | Z69: 0.2343950786 | AA69: 12.66030502 | AB69: 0.3205666465 | AC69: 0.960053267 | AD69: 0 | AE69: 1.368349346 | AF69: 8.139891872 | AG69: 0.1325156794 | AH69: 0.24375 | AI69: 0.3865093903 | AJ69: 0 | AK69: 0 | AL69: 0 | AM69: 0 | AN69: 0 | AO69: 15.05128443 | AP69: 0.4530823259 | AQ69: 0 | AR69: 0.498230184 | AS69: 0.4530823259 | AT69: 0 | AU69: 0.25605 | AV69: 0.1987735191 | AW69: 0 | AX69: 0.036 | AY69: 0.54 | AZ69: 0.8855084746 | BA69: 0.576 | BB69: 4.826068977 | BC69: 180 | BD69: 0.9738885916 | BE69: 81.21996729 | BF69: 19.32546951 | BH69: 97.38885916 | BI69: 1.303137971 | BJ69: 2.50913892 | BK69: 0.4710058903 | BL69: 0.1987735191
A70: Ipp | B70: =Iripple_Vinnom -> 7.31991153 | C70: A | G70: 61 | H70: 17.235 | I70: BUCK | J70: 1 | K70: 15 | L70: 11.60429359 | M70: 15 | N70: 0.7019965278 | O70: 0 | P70: 4.381734691 | Q70: 15.05323774 | R70: 0.8986988335 | S70: 0.4225282579 | T70: 1.321227091 | U70: 1.264897852 | V70: 0.004799899725 | W70: 0.004799899725 | X70: 6.885065321 | Y70: 0.2370206224 | Z70: 0.2370206224 | AA70: 12.61239033 | AB70: 0.3181447795 | AC70: 0.9676326349 | AD70: 0 | AE70: 1.373149482 | AF70: 8.217516465 | AG70: 0.1350551537 | AH70: 0.24375 | AI70: 0.3893211184 | AJ70: 0 | AK70: 0 | AL70: 0 | AM70: 0 | AN70: 0 | AO70: 15.05323774 | AP70: 0.4531999331 | AQ70: 0 | AR70: 0.4983724009 | AS70: 0.4531999331 | AT70: 0 | AU70: 0.258075 | AV70: 0.2025827305 | AW70: 0 | AX70: 0.036 | AY70: 0.54 | AZ70: 0.8855084746 | BA70: 0.576 | BB70: 4.860548346 | BC70: 180 | BD70: 0.9737069462 | BE70: 81.56122411 | BF70: 19.46605592 | BH70: 97.37069462 | BI70: 1.321227091 | BJ70: 2.518918002 | BK70: 0.4744858684 | BL70: 0.2025827305
A71: Top FET | B71: Value | C71: Units | G71: 62 | H71: 17.37 | I71: BUCK | J71: 1 | K71: 15 | L71: 11.51410478 | M71: 15 | N71: 0.6965546942 | O71: 0 | P71: 4.461749432 | Q71: 15.05519625 | R71: 0.8989495179 | S71: 0.4405174569 | T71: 1.339466975 | U71: 1.287996118 | V71: 0.004976801999 | W71: 0.004976801999 | X71: 6.921564086 | Y71: 0.239540247 | Z71: 0.239540247 | AA71: 12.56504455 | AB71: 0.3157606889 | AC71: 0.9752120028 | AD71: 0 | AE71: 1.377996091 | AF71: 8.29328581 | AG71: 0.1375571791 | AH71: 0.24375 | AI71: 0.392094255 | AJ71: 0 | AK71: 0 | AL71: 0 | AM71: 0 | AN71: 0 | AO71: 15.05519625 | AP71: 0.453317868 | AQ71: 0 | AR71: 0.4985150213 | AS71: 0.453317868 | AT71: 0 | AU71: 0.2601 | AV71: 0.2063357686 | AW71: 0 | AX71: 0.036 | AY71: 0.54 | AZ71: 0.8855084746 | BA71: 0.576 | BB71: 4.895025159 | BC71: 180 | BD71: 0.973525382 | BE71: 81.90480454 | BF71: 19.60471275 | BH71: 97.3525382 | BI71: 1.339466975 | BJ71: 2.528705367 | BK71: 0.477927255 | BL71: 0.2063357686
A72: Tr | B72: =(Qgd_Q1+Qgs_Q1/2)*(RdsonDRT+Rgate1)/(Vdd-Vsp_Q1)*1000000000 -> 9.018181818 | C72: ns | D72: Turn on of MOSFET -> Rise time of current | G72: 63 | H72: 17.505 | I72: BUCK | J72: 1 | K72: 15 | L72: 11.42530706 | M72: 15 | N72: 0.6911965812 | O72: 0 | P72: 4.540533178 | Q72: 15.05715899 | R72: 0.8992007871 | S72: 0.4586457629 | T72: 1.35784655 | U72: 1.310739026 | V72: 0.005154110385 | W72: 0.005154110385 | X72: 6.956405291 | Y72: 0.2419578728 | Z72: 0.2419578728 | AA72: 12.51825595 | AB72: 0.3134134639 | AC72: 0.9827913707 | AD72: 0 | AE72: 1.382887977 | AF72: 8.367275833 | AG72: 0.1400226097 | AH72: 0.24375 | AI72: 0.3948296246 | AJ72: 0 | AK72: 0 | AL72: 0 | AM72: 0 | AN72: 0 | AO72: 15.05715899 | AP72: 0.4534360736 | AQ72: 0 | AR72: 0.4986579766 | AS72: 0.4534360736 | AT72: 0 | AU72: 0.262125 | AV72: 0.2100339146 | AW72: 0 | AX72: 0.036 | AY72: 0.54 | AZ72: 0.8855084746 | BA72: 0.576 | BB72: 4.929493026 | BC72: 180 | BD72: 0.9733439326 | BE72: 82.25064884 | BF72: 19.74148123 | BH72: 97.33439326 | BI72: 1.35784655 | BJ72: 2.538500578 | BK72: 0.4813308746 | BL72: 0.2100339146
A73: Tf | B73: =(Qgd_Q1+Qgs_Q1/2)*(RdsonDRT2+Rgate1)/(Vsp_Q1)*1000000000 -> 20.925 | C73: ns | D73: Turn off of MOSFET -> Fall time of current | G73: 64 | H73: =VIN_min+(VIN_max-VIN_min)*(G73/200) -> 17.64 | I73: =IF(H73>VIN_BB_to_buck, "BUCK", IF(H73<VIN_boost_to_BB,"BOOST","BUCK-BST")) -> BUCK | J73: 1 | K73: =Iout -> 15 | L73: =Vout*K73/(H73*Efficiency) -> 11.33786848 | M73: =Iout/(1-O73) -> 15 | N73: =CHOOSE(J73,(Vout+(Rdson2+Rs+Rdcr)*K73)/(H73+(Rs+Rdson2-Rdson1)*K73),1,IF(H73<Vout,D_max_buck_BB,Vout/H73*(1-D_min_boost_exitBB_to_buck))) -> 0.6859202714 | O73: 0 | P73: =MAX(0, CHOOSE(J73, (H73-(Rdson1+Rdcr)*K73-Vout)*N73/(Fsw*Lf), (H73-(Rdson4+Rdcr+Rs)*L73)*O73/(Fsw*Lf), IF(H73<Vout, (H73-(Rdson4+Rdcr+Rs)*L73)*O73/(0.5*Fsw*Lf),(H73-(Rdson1+Rdcr)*K73-Vout)*N73/(0.5*Fsw*Lf)))) -> 4.618114118 | Q73: =CHOOSE(J73, SQRT(K73^2+(P73^2)/12), SQRT(L73^2+(P73^2)/12), SQRT(M73^2+(P73^2)/12)) -> 15.05912508 | R73: 0.8994525275 | S73: =7.759*10^-3*Fsw^0.9458*(0.00787*P73)^2.304 -> 0.4769026914 | T73: 1.376355219 | U73: =IF(H73>Vout, P73/SQRT(12), SQRT(O73/(1-O73))*SQRT(K73^2+(P73^2)/12)) -> 1.333134715 | V73: 0.005331744502 | W73: 0.005331744502 | X73: =IF(H73>Vout, SQRT(N73*(1-N73))*SQRT(K73^2+(P73^2)/12), P73/SQRT(12)) -> 6.98966744 | Y73: 0.2442772546 | Z73: 0.2442772546 | AA73: =CHOOSE(J73, SQRT(N73)*SQRT(K73^2+(P73^2)/12), SQRT(L73^2+(P73^2)/12), SQRT(N73)*SQRT(M73^2+(P73^2)/12)) -> 12.47201313 | AB73: =Rdson1*AA73^2 -> 0.3111022232 | AC73: =CHOOSE(J73, (H73*K73/2)*(Fsw)*(Tr_buck+Tf_buck), 0, (H73*M73/2)*(Fsw/2)*(Tr_buck+Tf_buck)) -> 0.9903707386 | AD73: =IF(H73>Vout, IF(K73>P73/2,0,ABS(K73-P73/2)*Vsd_Q1*Deadtime*Fsw),0) -> 0 | AE73: =(AD73+AC73+AB73*(1+RdsonTopTc*Ta-RdsonTopTc*25))/(1-AB73*RdsonTopTc*ThetaJA_Q1) -> 1.387823987 | AF73: =CHOOSE(J73, SQRT((1-N73))*SQRT(K73^2+(P73^2)/12), 0, SQRT((1-N73))*SQRT(M73^2+(P73^2)/12)) -> 8.439557841 | AG73: =Rdson2*AF73^2 -> 0.1424522731 | AH73: =CHOOSE(J73, IF(K73<P73/2,Deadtime*Fsw*IF(VfdSky_Q2>0,0,Vsd_Q2)*(K73+P73/2),2*Deadtime*Fsw*IF(VfdSky_Q2>0,0,Vsd_Q2)*K73),0, IF(K73<P73/2,Deadtime*Fsw/2*IF(VfdSky_Q2>0,0,Vsd_Q2)*(K73+P73/2),2*Deadtime*Fsw/2*IF(VfdSky_Q2>0,0,Vsd_Q2)*K73)) -> 0.24375 | AI73: =(AH73+AG73*(1+RdsonBotTc*Ta-RdsonBotTc*25))/(1-AG73*RdsonBotTc*ThetaJA_Q2) -> 0.3975280273 | AJ73: =CHOOSE(J73, 0, SQRT(O73)*SQRT(L73^2+(P73^2)/12), SQRT(O73)*SQRT(M73^2+(P73^2)/12)) -> 0 | AK73: =Rdson4*AJ73^2 -> 0 | AL73: =CHOOSE(J73, 0, (Vout*L73/2)*(Fsw)*(Tr_boost+Tf_boost), (Vout*Iout/2)*(Fsw/2)*(Tr_boost+Tf_boost)) -> 0 | AM73: =IF(H73>Vout, 0, IF(L73>P73/2,0,ABS(L73-P73/2)*Vsd_Q4*Deadtime*Fsw)) -> 0 | AN73: =(AM73+AL73+AK73*(1+RdsonTopTc*Ta-RdsonTopTc*25))/(1-AK73*RdsonTopTc*ThetaJA_Q4) -> 0 | AO73: =CHOOSE(J73, SQRT(Iout^2+(P73^2)/12), SQRT(1-O73)*SQRT(L73^2+(P73^2)/12), SQRT(1-O73)*SQRT(M73^2+(P73^2)/12)) -> 15.05912508 | AP73: =Rdson3*AO73^2 -> 0.4535544963 | AQ73: =CHOOSE(J73, 0, IF(L73<P73/2,Deadtime*Fsw*IF(VfdSky_Q3>0,0,Vsd_Q3)*(L73+P73/2), 2*Deadtime*Fsw*IF(VfdSky_Q3>0,0,Vsd_Q3)*L73), IF(L73<P73/2,Deadtime*Fsw/2*IF(VfdSky_Q3>0,0,Vsd_Q3)*(L73+P73/2), 2*Deadtime*Fsw/2*IF(VfdSky_Q3>0,0,Vsd_Q3)*L73)) -> 0 | AR73: =(AQ73+AP73*(1+RdsonBotTc*Ta-RdsonBotTc*25))/(1-AP73*RdsonBotTc*ThetaJA_Q3) -> 0.4988012019 | AS73: =CHOOSE(J73, Rdson3*Q73^2, Rdson1*Q73^2, 0) -> 0.4535544963 | AT73: =CHOOSE(J73, 2*Deadtime*Fsw*IF(VfdSky_Q2>0,VfdSky_Q2,0)*K73, 2*Deadtime*Fsw*IF(VfdSky_Q3>0,VfdSky_Q3,0)*L73, 2*Deadtime*Fsw/2*IF(VfdSky_Q2>0,VfdSky_Q2,0)*K73+2*Deadtime*Fsw/2*IF(VfdSky_Q3>0,VfdSky_Q3,0)*L73) -> 0 | AU73: =CHOOSE(J73, IF(QrrSky_Q2>0,QrrSky_Q2,Qrr_Q2)*Fsw*(H73-K73*Rdson1), IF(QrrSky_Q3>0,QrrSky_Q3,Qrr_Q3)*Fsw*Vout, IF(QrrSky_Q2>0,QrrSky_Q2,Qrr_Q2)*Fsw/2*(H73-K73*Rdson1)+IF(QrrSky_Q3>0,QrrSky_Q3,Qrr_Q3)*Fsw/2*Vout) -> 0.26415 | AV73: =CHOOSE(J73, Rs*AF73^2, Rs*AJ73^2, Rs*(AF73^2+AJ73^2)) -> 0.2136784097 | AW73: =Rshunt_std/1000*Iout^2 -> 0 | AX73: =IF(Vout>8, Iq*Vout, Iq*H73) -> 0.036 | AY73: =CHOOSE(J73, (Qg_Q1+Qg_Q2)*Fsw, (Qg_Q3+Qg_Q4)*Fsw, (Qg_Q1+Qg_Q2+Qg_Q3+Qg_Q4)*Fsw/2)*IF(Vout>8, Vout, H73) -> 0.54 | AZ73: =(Vin-Vdd)*Fsw*(Qg_Q1+Qg_Q2)+(RdsonDRT+RdsonDRT2)*Fsw*Qg_Q1*Vdd/(RdsonDRT+2*Rgate1+RdsonDRT2)+(RdsonDRB+RdsonDRB2)*Fsw*Qg_Q2*Vdd/(RdsonDRB+2*Rgate2+RdsonDRB2) -> 0.8855084746 | BA73: 0.576 | BB73: 4.963945844 | BC73: =Vout*K73 -> 180 | BD73: 0.97316263 | BE73: =IF(H73>Vout,ThetaJA_Q1*(AE73+AU73),ThetaJA_Q4*(AN73+AU73)) -> 82.59869937 | BF73: =IF(H73>Vout, AI73*ThetaJA_Q2, ThetaJA_Q3*AR73) -> 19.87640137 | BH73: 97.316263 | BI73: 1.376355219 | BJ73: 2.548303217 | BK73: 0.4846975273 | BL73: 0.2136784097
A74: Part Power | B74: Value | C74: Units | G74: 65 | H74: 17.775 | I74: BUCK | J74: =IF(I74="BOOST",2, IF(I74="BUCK", 1,3)) -> 1 | K74: 15 | L74: 11.25175809 | M74: 15 | N74: 0.6807239057 | O74: =CHOOSE(J74,0,(Vout+(Rdson3+Rdcr)*L74-H74)/(Vout+(Rdson3-Rdson4-Rs)*L74),IF(H74>Vout,D_min_boost_exitBB_to_buck, (Vout-H74*D_max_buck_BB)/Vout)) -> 0 | P74: 4.69451959 | Q74: 15.06109368 | R74: =(Q74^2*Rdcr*(1+Ltc*Ta-Ltc*25))/(1-Q74^2*Rdcr*Ltc*ThetaCa) -> 0.8997046314 | S74: 0.4952782062 | T74: =R74+S74 -> 1.394982838 | U74: 1.355191074 | V74: =RCoutEsr*U74^2 -> 0.005509628545 | W74: =V74 -> 0.005509628545 | X74: 7.021424206 | Y74: =RCinEsr*X74^2 -> 0.2465019894 | Z74: =Y74 -> 0.2465019894 | AA74: 12.42630506 | AB74: 0.3088261148 | AC74: 0.9979501065 | AD74: 0 | AE74: 1.39280301 | AF74: 8.510198907 | AG74: 0.1448469709 | AH74: 0.24375 | AI74: 0.4001902397 | AJ74: 0 | AK74: 0 | AL74: 0 | AM74: 0 | AN74: 0 | AO74: 15.06109368 | AP74: 0.4536730857 | AQ74: 0 | AR74: 0.4989446362 | AS74: 0.4536730857 | AT74: 0 | AU74: 0.266175 | AV74: 0.2172704563 | AW74: 0 | AX74: 0.036 | AY74: 0.54 | AZ74: 0.8855084746 | BA74: 0.576 | BB74: 4.998377798 | BC74: 180 | BD74: =BC74/(BC74+BB74) -> 0.9729815047 | BE74: 82.94890049 | BF74: 20.00951198 | BH74: =BD74*100 -> 97.29815047 | BI74: =T74 -> 1.394982838 | BJ74: =AE74+AI74+AN74+AR74+AU74 -> 2.558112886 | BK74: =AI74+AU74*0.33 -> 0.4880279897 | BL74: =AV74 -> 0.2172704563
A75: Power Dis | B75: =BA9 -> 0.576 | C75: W | G75: 66 | H75: 17.91 | I75: BUCK | J75: 1 | K75: 15 | L75: 11.16694584 | M75: 15 | N75: 0.6756056809 | O75: 0 | P75: 4.769776107 | Q75: 15.063064 | R75: 0.8999569978 | S75: 0.5137627029 | T75: 1.413719701 | U75: 1.37691576 | V75: 0.005687691028 | W75: 0.005687691028 | X75: 7.051744812 | Y75: 0.2486355245 | Z75: 0.2486355245 | AA75: 12.38112099 | AB75: 0.306584314 | AC75: 1.005529474 | AD75: 0 | AE75: 1.397823969 | AF75: 8.579262207 | AG75: 0.14720748 | AH75: 0.24375 | AI75: 0.4028170156 | AJ75: 0 | AK75: 0 | AL75: 0 | AM75: 0 | AN75: 0 | AO75: 15.063064 | AP75: 0.453791794 | AQ75: 0 | AR75: 0.4990882219 | AS75: 0.453791794 | AT75: 0 | AU75: 0.2682 | AV75: 0.2208112201 | AW75: 0 | AX75: 0.036 | AY75: 0.54 | AZ75: 0.8855084746 | BA75: =SUM(AX75:AY75) -> 0.576 | BB75: =SUM(T75,W75,Z75,AE75,AI75,AN75,AR75, AT75,AU75,BA75,AV75,AW75) -> 5.032783343 | BC75: 180 | BD75: 0.9728005856 | BE75: 83.30119845 | BF75: 20.14085078 | BH75: 97.28005856 | BI75: 1.413719701 | BJ75: 2.567929206 | BK75: 0.4913230156 | BL75: 0.2208112201
A76: Temp rise | B76: =B75*B62 -> 17.28 | C76: °C | G76: 67 | H76: 18.045 | I76: BUCK | J76: 1 | K76: 15 | L76: 11.0834026 | M76: 15 | N76: 0.6705638474 | O76: 0 | P76: 4.843909392 | Q76: 15.06503529 | R76: 0.9002095311 | S76: 0.532346992 | T76: 1.432556523 | U76: 1.398316196 | V76: 0.005865864551 | W76: 0.005865864551 | X76: 7.080694379 | Y76: 0.2506811644 | Z76: 0.2506811644 | AA76: 12.33645051 | AB76: 0.3043760225 | AC76: 1.013108842 | AD76: 0 | AE76: 1.402885826 | AF76: 8.646807327 | AG76: 0.1495345539 | AH76: 0.24375 | AI76: 0.4054090873 | AJ76: 0 | AK76: 0 | AL76: 0 | AM76: 0 | AN76: 0 | AO76: 15.06503529 | AP76: 0.4539105764 | AQ76: 0 | AR76: 0.4992319047 | AS76: 0.4539105764 | AT76: 0 | AU76: 0.270225 | AV76: 0.2243018308 | AW76: 0 | AX76: 0.036 | AY76: 0.54 | AZ76: 0.8855084746 | BA76: 0.576 | BB76: 5.067157201 | BC76: 180 | BD76: 0.9726199004 | BE76: 83.65554132 | BF76: 20.27045436 | BH76: 97.26199004 | BI76: 1.432556523 | BJ76: 2.577751818 | BK76: 0.4945833373 | BL76: 0.2243018308
A77: Current (switching) | B77: =(Qg_Q1+Qg_Q2)*Fsw+Iq -> 0.048 | C77: A | G77: 68 | H77: 18.18 | I77: BUCK | J77: 1 | K77: 15 | L77: 11.00110011 | M77: 15 | N77: 0.6655967078 | O77: 0 | P77: 4.916944407 | Q77: 15.06700684 | R77: 0.9004621412 | S77: 0.5510222833 | T77: 1.451484425 | U77: 1.419399588 | V77: 0.006044085575 | W77: 0.006044085575 | X77: 7.108334236 | Y77: 0.2526420781 | Z77: 0.2526420781 | AA77: 12.2922835 | AB77: 0.3022004675 | AC77: 1.02068821 | AD77: 0 | AE77: 1.407987579 | AF77: 8.712890533 | AG77: 0.1518289229 | AH77: 0.24375 | AI77: 0.407967166 | AJ77: 0 | AK77: 0 | AL77: 0 | AM77: 0 | AN77: 0 | AO77: 15.06700684 | AP77: 0.4540293904 | AQ77: 0 | AR77: 0.4993756333 | AS77: 0.4540293904 | AT77: 0 | AU77: 0.27225 | AV77: 0.2277433843 | AW77: 0 | AX77: 0.036 | AY77: 0.54 | AZ77: 0.8855084746 | BA77: 0.576 | BB77: 5.10149435 | BC77: 180 | BD77: 0.9724394751 | BE77: 84.01187893 | BF77: 20.3983583 | BH77: 97.24394751 | BI77: 1.451484425 | BJ77: 2.587580378 | BK77: 0.497809666 | BL77: 0.2277433843
A78: Qrr Current | B78: =Qrr_Q2*Fsw -> 0.015 | C78: A | G78: 69 | H78: 18.315 | I78: BUCK | J78: 1 | K78: 15 | L78: 10.92001092 | M78: 15 | N78: 0.6607026144 | O78: 0 | P78: 4.988905377 | Q78: 15.068978 | R78: 0.9007147433 | S78: 0.5697801699 | T78: 1.470494913 | U78: 1.440172931 | V78: 0.006222294216 | W78: 0.006222294216 | X78: 7.134722205 | Y78: 0.2545213047 | Z78: 0.2545213047 | AA78: 12.24861014 | AB78: 0.3000569005 | AC78: 1.028267578 | AD78: 0 | AE78: 1.413128256 | AF78: 8.777565028 | AG78: 0.1540912956 | AH78: 0.24375 | AI78: 0.4104919427 | AJ78: 0 | AK78: 0 | AL78: 0 | AM78: 0 | AN78: 0 | AO78: 15.068978 | AP78: 0.4541481961 | AQ78: 0 | AR78: 0.4995193593 | AS78: 0.4541481961 | AT78: 0 | AU78: 0.274275 | AV78: 0.2311369435 | AW78: 0 | AX78: 0.036 | AY78: 0.54 | AZ78: 0.8855084746 | BA78: 0.576 | BB78: 5.135790013 | BC78: 180 | BD78: 0.9722593346 | BE78: 84.37016278 | BF78: 20.52459713 | BH78: 97.22593346 | BI78: 1.470494913 | BJ78: 2.597414558 | BK78: 0.5010026927 | BL78: 0.2311369435
A79: Diode Current | B79: =C79/Vin ->  | C79: =Deadtime*Fsw*(Iripple_Vinnom/2)*(VsdTop+VsdBot) ->  | G79: 70 | H79: 18.45 | I79: BUCK | J79: 1 | K79: 15 | L79: 10.8401084 | M79: 15 | N79: 0.6558799676 | O79: 0 | P79: 5.059815822 | Q79: 15.07094815 | R79: 0.9009672574 | S79: 0.5886126135 | T79: 1.489579871 | U79: 1.460643014 | V79: 0.006400434039 | W79: 0.006400434039 | X79: 7.159912855 | Y79: 0.2563217604 | Z79: 0.2563217604 | AA79: 12.20542085 | AB79: 0.2979445964 | AC79: 1.035846946 | AD79: 0 | AE79: 1.418306919 | AF79: 8.840881168 | AG79: 0.1563223596 | AH79: 0.24375 | AI79: 0.4129840891 | AJ79: 0 | AK79: 0 | AL79: 0 | AM79: 0 | AN79: 0 | AO79: 15.07094815 | AP79: 0.454266956 | AQ79: 0 | AR79: 0.4996630374 | AS79: 0.454266956 | AT79: 0 | AU79: 0.2763 | AV79: 0.2344835395 | AW79: 0 | AX79: 0.036 | AY79: 0.54 | AZ79: 0.8855084746 | BA79: 0.576 | BB79: 5.17003965 | BC79: 180 | BD79: 0.9720795024 | BE79: 84.73034595 | BF79: 20.64920446 | BH79: 97.20795024 | BI79: 1.489579871 | BJ79: 2.607254045 | BK79: 0.5041630891 | BL79: 0.2344835395
A80: Total | B80: =SUM(B77:B79) ->  | C80: A | G80: 71 | H80: 18.585 | I80: BUCK | J80: 1 | K80: 15 | L80: 10.76136669 | M80: 15 | N80: 0.6511272142 | O80: 0 | P80: 5.12969858 | Q80: 15.07291668 | R80: 0.901219608 | S80: 0.6075119295 | T80: 1.508731538 | U80: 1.480816428 | V80: 0.00657845188 | W80: 0.00657845188 | X80: 7.183957737 | Y80: 0.2580462439 | Z80: 0.2580462439 | AA80: 12.16270637 | AB80: 0.2958628524 | AC80: 1.043426314 | AD80: 0 | AE80: 1.423522661 | AF80: 8.902886672 | AG80: 0.1585227822 | AH80: 0.24375 | AI80: 0.4154442581 | AJ80: 0 | AK80: 0 | AL80: 0 | AM80: 0 | AN80: 0 | AO80: 15.07291668 | AP80: 0.4543856346 | AQ80: 0 | AR80: 0.4998066246 | AS80: 0.4543856346 | AT80: 0 | AU80: 0.278325 | AV80: 0.2377841733 | AW80: 0 | AX80: 0.036 | AY80: 0.54 | AZ80: 0.8855084746 | BA80: 0.576 | BB80: 5.204238951 | BC80: 180 | BD80: 0.9719000009 | BE80: 85.09238307 | BF80: 20.77221291 | BH80: 97.19000009 | BI80: 1.508731538 | BJ80: 2.617098544 | BK80: 0.5072915081 | BL80: 0.2377841733
G81: 72 | H81: 18.72 | I81: BUCK | J81: 1 | K81: 15 | L81: 10.68376068 | M81: 15 | N81: 0.6464428457 | O81: 0 | P81: 5.19857583 | Q81: 15.07488306 | R81: 0.9014717243 | S81: 0.6264707731 | T81: 1.527942497 | U81: 1.500699577 | V81: 0.006756297666 | W81: 0.006756297666 | X81: 7.206905599 | Y81: 0.2596974415 | Z81: 0.2596974415 | AA81: 12.12045765 | AB81: 0.2938109874 | AC81: 1.051005682 | AD81: 0 | AE81: 1.428774605 | AF81: 8.963626805 | AG81: 0.160693211 | AH81: 0.24375 | AI81: 0.4178730846 | AJ81: 0 | AK81: 0 | AL81: 0 | AM81: 0 | AN81: 0 | AO81: 15.07488306 | AP81: 0.4545041984 | AQ81: 0 | AR81: 0.4999500806 | AS81: 0.4545041984 | AT81: 0 | AU81: 0.28035 | AV81: 0.2410398165 | AW81: 0 | AX81: 0.036 | AY81: 0.54 | AZ81: 0.8855084746 | BA81: 0.576 | BB81: 5.238383823 | BC81: 180 | BD81: 0.9717208512 | BE81: 85.45623024 | BF81: 20.89365423 | BH81: 97.17208512 | BI81: 1.527942497 | BJ81: 2.62694777 | BK81: 0.5103885846 | BL81: 0.2410398165
G82: 73 | H82: 18.855 | I82: BUCK | J82: 1 | K82: 15 | L82: 10.60726598 | M82: 15 | N82: 0.6418253968 | O82: 0 | P82: 5.26646912 | Q82: 15.07684676 | R82: 0.9017235392 | S82: 0.6454821252 | T82: 1.547205664 | U82: 1.520298682 | V82: 0.006933924247 | W82: 0.006933924247 | X82: 7.228802572 | Y82: 0.2612779331 | Z82: 0.2612779331 | AA82: 12.07866592 | AB82: 0.291788341 | AC82: 1.05858505 | AD82: 0 | AE82: 1.434061899 | AF82: 9.02314455 | AG82: 0.1628342751 | AH82: 0.24375 | AI82: 0.4202711859 | AJ82: 0 | AK82: 0 | AL82: 0 | AM82: 0 | AN82: 0 | AO82: 15.07684676 | AP82: 0.4546226162 | AQ82: 0 | AR82: 0.5000933671 | AS82: 0.4546226162 | AT82: 0 | AU82: 0.282375 | AV82: 0.2442514127 | AW82: 0 | AX82: 0.036 | AY82: 0.54 | AZ82: 0.8855084746 | BA82: 0.576 | BB82: 5.272470387 | BC82: 180 | BD82: 0.9715420733 | BE82: 85.82184496 | BF82: 21.0135593 | BH82: 97.15420733 | BI82: 1.547205664 | BJ82: 2.636801452 | BK82: 0.5134549359 | BL82: 0.2442514127
G83: 74 | H83: 18.99 | I83: BUCK | J83: 1 | K83: 15 | L83: 10.53185887 | M83: 15 | N83: 0.6372734437 | O83: 0 | P83: 5.333399384 | Q83: 15.07880728 | R83: 0.90197499 | S83: 0.66453928 | T83: 1.56651427 | U83: 1.539619785 | V83: 0.007111287247 | W83: 0.007111287247 | X83: 7.249692358 | Y83: 0.2627901964 | Z83: 0.2627901964 | AA83: 12.03732264 | AB83: 0.2897942727 | AC83: 1.066164418 | AD83: 0 | AE83: 1.439383722 | AF83: 9.081480758 | AG83: 0.1649465855 | AH83: 0.24375 | AI83: 0.4226391629 | AJ83: 0 | AK83: 0 | AL83: 0 | AM83: 0 | AN83: 0 | AO83: 15.07880728 | AP83: 0.4547408582 | AQ83: 0 | AR83: 0.5002364485 | AS83: 0.4547408582 | AT83: 0 | AU83: 0.2844 | AV83: 0.2474198783 | AW83: 0 | AX83: 0.036 | AY83: 0.54 | AZ83: 0.8855084746 | BA83: 0.576 | BB83: 5.306494965 | BC83: 180 | BD83: 0.9713636861 | BE83: 86.1891861 | BF83: 21.13195814 | BH83: 97.13636861 | BI83: 1.56651427 | BJ83: 2.646659333 | BK83: 0.5164911629 | BL83: 0.2474198783
G84: 75 | H84: 19.125 | I84: BUCK | J84: 1 | K84: 15 | L84: 10.45751634 | M84: 15 | N84: 0.6327856025 | O84: 0 | P84: 5.399386968 | Q84: 15.08076418 | R84: 0.9022260173 | S84: 0.6836358316 | T84: 1.585861849 | U84: 1.55866876 | V84: 0.007288344908 | W84: 0.007288344908 | X84: 7.269616383 | Y84: 0.2642366118 | Z84: 0.2642366118 | AA84: 11.99641949 | AB84: 0.2878281609 | AC84: 1.073743786 | AD84: 0 | AE84: 1.444739276 | AF84: 9.138674293 | AG84: 0.1670307357 | AH84: 0.24375 | AI84: 0.4249775999 | AJ84: 0 | AK84: 0 | AL84: 0 | AM84: 0 | AN84: 0 | AO84: 15.08076418 | AP84: 0.4548588966 | AQ84: 0 | AR84: 0.500379291 | AS84: 0.4548588966 | AT84: 0 | AU84: 0.286425 | AV84: 0.2505461035 | AW84: 0 | AX84: 0.036 | AY84: 0.54 | AZ84: 0.8855084746 | BA84: 0.576 | BB84: 5.340454076 | BC84: 180 | BD84: 0.9711857074 | BE84: 86.55821381 | BF84: 21.24887999 | BH84: 97.11857074 | BI84: 1.585861849 | BJ84: 2.656521167 | BK84: 0.5194978499 | BL84: 0.2505461035
G85: 76 | H85: 19.26 | I85: BUCK | J85: 1 | K85: 15 | L85: 10.38421599 | M85: 15 | N85: 0.6283605284 | O85: 0 | P85: 5.464451649 | Q85: 15.08271702 | R85: 0.9024765653 | S85: 0.7027656621 | T85: 1.605242227 | U85: 1.577451315 | V85: 0.007465057957 | W85: 0.007465057957 | X85: 7.288613951 | Y85: 0.2656194666 | Z85: 0.2656194666 | AA85: 11.95594837 | AB85: 0.2858894029 | AC85: 1.081323153 | AD85: 0 | AE85: 1.45012779 | AF85: 9.19476216 | AG85: 0.1690873024 | AH85: 0.24375 | AI85: 0.4272870658 | AJ85: 0 | AK85: 0 | AL85: 0 | AM85: 0 | AN85: 0 | AO85: 15.08271702 | AP85: 0.4549767053 | AQ85: 0 | AR85: 0.5005218629 | AS85: 0.4549767053 | AT85: 0 | AU85: 0.28845 | AV85: 0.2536309536 | AW85: 0 | AX85: 0.036 | AY85: 0.54 | AZ85: 0.8855084746 | BA85: 0.576 | BB85: 5.374344424 | BC85: 180 | BD85: 0.9710081541 | BE85: 86.9288895 | BF85: 21.36435329 | BH85: 97.10081541 | BI85: 1.605242227 | BJ85: 2.666386719 | BK85: 0.5224755658 | BL85: 0.2536309536
G86: 77 | H86: 19.395 | I86: BUCK | J86: 1 | K86: 15 | L86: 10.31193607 | M86: 15 | N86: 0.6239969136 | O86: 0 | P86: 5.528612654 | Q86: 15.08466539 | R86: 0.9027265818 | S86: 0.7219229296 | T86: 1.624649511 | U86: 1.595973002 | V86: 0.00764138947 | W86: 0.00764138947 | X86: 7.306722381 | Y86: 0.2669409598 | Z86: 0.2669409598 | AA86: 11.91590142 | AB86: 0.2839774134 | AC86: 1.088902521 | AD86: 0 | AE86: 1.455548515 | AF86: 9.249779625 | AG86: 0.1711168462 | AH86: 0.24375 | AI86: 0.4295681144 | AJ86: 0 | AK86: 0 | AL86: 0 | AM86: 0 | AN86: 0 | AO86: 15.08466539 | AP86: 0.4550942596 | AQ86: 0 | AR86: 0.5006641344 | AS86: 0.4550942596 | AT86: 0 | AU86: 0.290475 | AV86: 0.2566752694 | AW86: 0 | AX86: 0.036 | AY86: 0.54 | AZ86: 0.8855084746 | BA86: 0.576 | BB86: 5.408162894 | BC86: 180 | BD86: 0.9708310421 | BE86: 87.30117576 | BF86: 21.47840572 | BH86: 97.08310421 | BI86: 1.624649511 | BJ86: 2.676255764 | BK86: 0.5254248644 | BL86: 0.2566752694
G87: 78 | H87: 19.53 | I87: BUCK | J87: 1 | K87: 15 | L87: 10.2406554 | M87: 15 | N87: 0.6196934866 | O87: 0 | P87: 5.59188868 | Q87: 15.0866089 | R87: 0.9029760174 | S87: 0.7411020574 | T87: 1.644078075 | U87: 1.614239217 | V87: 0.007817304752 | W87: 0.007817304752 | X87: 7.323977132 | Y87: 0.2682032051 | Z87: 0.2682032051 | AA87: 11.87627097 | AB87: 0.2820916242 | AC87: 1.096481889 | AD87: 0 | AE87: 1.461000727 | AF87: 9.303760323 | AG87: 0.1731199123 | AH87: 0.24375 | AI87: 0.4318212849 | AJ87: 0 | AK87: 0 | AL87: 0 | AM87: 0 | AN87: 0 | AO87: 15.0866089 | AP87: 0.4552115365 | AQ87: 0 | AR87: 0.5008060773 | AS87: 0.4552115365 | AT87: 0 | AU87: 0.2925 | AV87: 0.2596798685 | AW87: 0 | AX87: 0.036 | AY87: 0.54 | AZ87: 0.8855084746 | BA87: 0.576 | BB87: 5.441906542 | BC87: 180 | BD87: 0.9706543864 | BE87: 87.67503635 | BF87: 21.59106425 | BH87: 97.06543864 | BI87: 1.644078075 | BJ87: 2.686128089 | BK87: 0.5283462849 | BL87: 0.2596798685
G88: 79 | H88: 19.665 | I88: BUCK | J88: 1 | K88: 15 | L88: 10.17035342 | M88: 15 | N88: 0.6154490107 | O88: 0 | P88: 5.654297911 | Q88: 15.08854722 | R88: 0.9032248258 | S88: 0.7602977223 | T88: 1.663522548 | U88: 1.63225521 | V88: 0.007992771215 | W88: 0.007992771215 | X88: 7.340411918 | Y88: 0.2694082356 | Z88: 0.2694082356 | AA88: 11.83704954 | AB88: 0.2802314836 | AC88: 1.104061257 | AD88: 0 | AE88: 1.466483722 | AF88: 9.356736359 | AG88: 0.1750970306 | AH88: 0.24375 | AI88: 0.4340471023 | AJ88: 0 | AK88: 0 | AL88: 0 | AM88: 0 | AN88: 0 | AO88: 15.08854722 | AP88: 0.4553285141 | AQ88: 0 | AR88: 0.5009476654 | AS88: 0.4553285141 | AT88: 0 | AU88: 0.294525 | AV88: 0.2626455459 | AW88: 0 | AX88: 0.036 | AY88: 0.54 | AZ88: 0.8855084746 | BA88: 0.576 | BB88: 5.475572591 | BC88: 180 | BD88: 0.9704782009 | BE88: 88.05043612 | BF88: 21.70235512 | BH88: 97.04782009 | BI88: 1.663522548 | BJ88: 2.69600349 | BK88: 0.5312403523 | BL88: 0.2626455459
G89: 80 | H89: 19.8 | I89: BUCK | J89: 1 | K89: 15 | L89: 10.1010101 | M89: 15 | N89: 0.6112622827 | O89: 0 | P89: 5.715858036 | Q89: 15.09047998 | R89: 0.9034729637 | S89: 0.7795048448 | T89: 1.682977808 | U89: 1.650026088 | V89: 0.008167758272 | W89: 0.008167758272 | X89: 7.356058817 | Y89: 0.2705580066 | Z89: 0.2705580066 | AA89: 11.79822986 | AB89: 0.2783964556 | AC89: 1.111640625 | AD89: 0 | AE89: 1.47199682 | AF89: 9.408738401 | AG89: 0.1770487166 | AH89: 0.24375 | AI89: 0.4362460782 | AJ89: 0 | AK89: 0 | AL89: 0 | AM89: 0 | AN89: 0 | AO89: 15.09047998 | AP89: 0.4554451722 | AQ89: 0 | AR89: 0.5010888739 | AS89: 0.4554451722 | AT89: 0 | AU89: 0.29655 | AV89: 0.2655730749 | AW89: 0 | AX89: 0.036 | AY89: 0.54 | AZ89: 0.8855084746 | BA89: 0.576 | BB89: 5.50915842 | BC89: 180 | BD89: 0.970302499 | BE89: 88.427341 | BF89: 21.81230391 | BH89: 97.0302499 | BI89: 1.682977808 | BJ89: 2.705881772 | BK89: 0.5341075782 | BL89: 0.2655730749
G90: 81 | H90: 19.935 | I90: BUCK | J90: 1 | K90: 15 | L90: 10.03260597 | M90: 15 | N90: 0.6071321321 | O90: 0 | P90: 5.776586268 | Q90: 15.09240689 | R90: 0.9037203902 | S90: 0.7987185788 | T90: 1.702438969 | U90: 1.667556818 | V90: 0.008342237228 | W90: 0.008342237228 | X90: 7.370948372 | Y90: 0.2716543995 | Z90: 0.2716543995 | AA90: 11.75980484 | AB90: 0.2765860196 | AC90: 1.119219993 | AD90: 0 | AE90: 1.477539359 | AF90: 9.459795765 | AG90: 0.1789754718 | AH90: 0.24375 | AI90: 0.438418711 | AJ90: 0 | AK90: 0 | AL90: 0 | AM90: 0 | AN90: 0 | AO90: 15.09240689 | AP90: 0.4555614915 | AQ90: 0 | AR90: 0.5012296796 | AS90: 0.4555614915 | AT90: 0 | AU90: 0.298575 | AV90: 0.2684632078 | AW90: 0 | AX90: 0.036 | AY90: 0.54 | AZ90: 0.8855084746 | BA90: 0.576 | BB90: 5.542661563 | BC90: 180 | BD90: 0.970127293 | BE90: 88.80571793 | BF90: 21.92093555 | BH90: 97.0127293 | BI90: 1.702438969 | BJ90: 2.715762749 | BK90: 0.536948461 | BL90: 0.2684632078
G91: 82 | H91: 20.07 | I91: BUCK | J91: 1 | K91: 15 | L91: 9.965122073 | M91: 15 | N91: 0.6030574198 | O91: 0 | P91: 5.836499356 | Q91: 15.09432765 | R91: 0.9039670671 | S91: 0.8179343018 | T91: 1.721901369 | U91: 1.684852237 | V91: 0.008516181183 | W91: 0.008516181183 | X91: 7.385109679 | Y91: 0.2726992249 | Z91: 0.2726992249 | AA91: 11.72176757 | AB91: 0.2747996698 | AC91: 1.126799361 | AD91: 0 | AE91: 1.483110696 | AF91: 9.509936497 | AG91: 0.1808777844 | AH91: 0.24375 | AI91: 0.4405654862 | AJ91: 0 | AK91: 0 | AL91: 0 | AM91: 0 | AN91: 0 | AO91: 15.09432765 | AP91: 0.4556774541 | AQ91: 0 | AR91: 0.5013700607 | AS91: 0.4556774541 | AT91: 0 | AU91: 0.3006 | AV91: 0.2713166765 | AW91: 0 | AX91: 0.036 | AY91: 0.54 | AZ91: 0.8855084746 | BA91: 0.576 | BB91: 5.576079695 | BC91: 180 | BD91: 0.9699525946 | BE91: 89.18553482 | BF91: 22.02827431 | BH91: 96.99525946 | BI91: 1.721901369 | BJ91: 2.725646243 | BK91: 0.5397634862 | BL91: 0.2713166765
G92: 83 | H92: 20.205 | I92: BUCK | J92: 1 | K92: 15 | L92: 9.898539965 | M92: 15 | N92: 0.599037037 | O92: 0 | P92: 5.895613603 | Q92: 15.09624197 | R92: 0.9042129586 | S92: 0.8371476059 | T92: 1.741360564 | U92: 1.70191705 | V92: 0.008689564938 | W92: 0.008689564938 | X92: 7.398570473 | Y92: 0.2736942252 | Z92: 0.2736942252 | AA92: 11.68411131 | AB92: 0.2730369142 | AC92: 1.134378729 | AD92: 0 | AE92: 1.488710211 | AF92: 9.559187443 | AG92: 0.1827561291 | AH92: 0.24375 | AI92: 0.4426868772 | AJ92: 0 | AK92: 0 | AL92: 0 | AM92: 0 | AN92: 0 | AO92: 15.09624197 | AP92: 0.4557930433 | AQ92: 0 | AR92: 0.5015099968 | AS92: 0.4557930433 | AT92: 0 | AU92: 0.302625 | AV92: 0.2741341937 | AW92: 0 | AX92: 0.036 | AY92: 0.54 | AZ92: 0.8855084746 | BA92: 0.576 | BB92: 5.609410634 | BC92: 180 | BD92: 0.9697784147 | BE92: 89.56676056 | BF92: 22.13434386 | BH92: 96.97784147 | BI92: 1.741360564 | BJ92: 2.735532085 | BK92: 0.5425531272 | BL92: 0.2741341937
G93: 84 | H93: 20.34 | I93: BUCK | J93: 1 | K93: 15 | L93: 9.832841691 | M93: 15 | N93: 0.5950699043 | O93: 0 | P93: 5.953944879 | Q93: 15.09814961 | R93: 0.9044580311 | S93: 0.8563542885 | T93: 1.76081232 | U93: 1.718755839 | V93: 0.008862364906 | W93: 0.008862364906 | X93: 7.41135721 | Y93: 0.2746410785 | Z93: 0.2746410785 | AA93: 11.6468295 | AB93: 0.2712972747 | AC93: 1.141958097 | AD93: 0 | AE93: 1.494337299 | AF93: 9.607574318 | AG93: 0.1846109686 | AH93: 0.24375 | AI93: 0.4447833454 | AJ93: 0 | AK93: 0 | AL93: 0 | AM93: 0 | AN93: 0 | AO93: 15.09814961 | AP93: 0.4559082433 | AQ93: 0 | AR93: 0.5016494689 | AS93: 0.4559082433 | AT93: 0 | AU93: 0.30465 | AV93: 0.2769164528 | AW93: 0 | AX93: 0.036 | AY93: 0.54 | AZ93: 0.8855084746 | BA93: 0.576 | BB93: 5.642652329 | BC93: 180 | BD93: 0.9696047635 | BE93: 89.94936493 | BF93: 22.23916727 | BH93: 96.96047635 | BI93: 1.76081232 | BJ93: 2.745420113 | BK93: 0.5453178454 | BL93: 0.2769164528
G94: 85 | H94: 20.475 | I94: BUCK | J94: 1 | K94: 15 | L94: 9.768009768 | M94: 15 | N94: 0.5911549708 | O94: 0 | P94: 6.011508639 | Q94: 15.10005032 | R94: 0.9047022534 | S94: 0.8755503442 | T94: 1.780252598 | U94: 1.735373065 | V94: 0.009034559029 | W94: 0.009034559029 | X94: 7.423495138 | Y94: 0.2755414003 | Z94: 0.2755414003 | AA94: 11.60991573 | AB94: 0.2695802865 | AC94: 1.149537464 | AD94: 0 | AE94: 1.499991372 | AF94: 9.655121772 | AG94: 0.1864427529 | AH94: 0.24375 | AI94: 0.4468553408 | AJ94: 0 | AK94: 0 | AL94: 0 | AM94: 0 | AN94: 0 | AO94: 15.10005032 | AP94: 0.4560230394 | AQ94: 0 | AR94: 0.501788459 | AS94: 0.4560230394 | AT94: 0 | AU94: 0.306675 | AV94: 0.2796641293 | AW94: 0 | AX94: 0.036 | AY94: 0.54 | AZ94: 0.8855084746 | BA94: 0.576 | BB94: 5.675802858 | BC94: 180 | BD94: 0.9694316504 | BE94: 90.33331859 | BF94: 22.34276704 | BH94: 96.94316504 | BI94: 1.780252598 | BJ94: 2.755310172 | BK94: 0.5480580908 | BL94: 0.2796641293
G95: 86 | H95: 20.61 | I95: BUCK | J95: 1 | K95: 15 | L95: 9.704027171 | M95: 15 | N95: 0.5872912128 | O95: 0 | P95: 6.068319931 | Q95: 15.10194388 | R95: 0.9049455959 | S95: 0.8947319564 | T95: 1.799677552 | U95: 1.751773073 | V95: 0.009206126697 | W95: 0.009206126697 | X95: 7.435008363 | Y95: 0.2763967468 | Z95: 0.2763967468 | AA95: 11.57336376 | AB95: 0.2678854973 | AC95: 1.157116832 | AD95: 0 | AE95: 1.505671861 | AF95: 9.701853444 | AG95: 0.1882519205 | AH95: 0.24375 | AI95: 0.4489033023 | AJ95: 0 | AK95: 0 | AL95: 0 | AM95: 0 | AN95: 0 | AO95: 15.10194388 | AP95: 0.4561374178 | AQ95: 0 | AR95: 0.5019269504 | AS95: 0.4561374178 | AT95: 0 | AU95: 0.3087 | AV95: 0.2823778808 | AW95: 0 | AX95: 0.036 | AY95: 0.54 | AZ95: 0.8855084746 | BA95: 0.576 | BB95: 5.70886042 | BC95: 180 | BD95: 0.9692590843 | BE95: 90.71859304 | BF95: 22.44516511 | BH95: 96.92590843 | BI95: 1.799677552 | BJ95: 2.765202113 | BK95: 0.5507743023 | BL95: 0.2823778808
G96: 87 | H96: 20.745 | I96: BUCK | J96: 1 | K96: 15 | L96: 9.64087732 | M96: 15 | N96: 0.5834776335 | O96: 0 | P96: 6.124393415 | Q96: 15.10383007 | R96: 0.9051880315 | S96: 0.9138954891 | T96: 1.819083521 | U96: 1.767960093 | V96: 0.009377048674 | W96: 0.009377048674 | X96: 7.445919917 | Y96: 0.2772086171 | Z96: 0.2772086171 | AA96: 11.53716749 | AB96: 0.2662124672 | AC96: 1.1646962 | AD96: 0 | AE96: 1.511378212 | AF96: 9.747792022 | AG96: 0.1900388986 | AH96: 0.24375 | AI96: 0.4509276577 | AJ96: 0 | AK96: 0 | AL96: 0 | AM96: 0 | AN96: 0 | AO96: 15.10383007 | AP96: 0.4562513658 | AQ96: 0 | AR96: 0.5020649276 | AS96: 0.4562513658 | AT96: 0 | AU96: 0.310725 | AV96: 0.2850583479 | AW96: 0 | AX96: 0.036 | AY96: 0.54 | AZ96: 0.8855084746 | BA96: 0.576 | BB96: 5.741823331 | BC96: 180 | BD96: 0.9690870735 | BE96: 91.1051606 | BF96: 22.54638288 | BH96: 96.90870735 | BI96: 1.819083521 | BJ96: 2.775095797 | BK96: 0.5534669077 | BL96: 0.2850583479
G97: 88 | H97: 20.88 | I97: BUCK | J97: 1 | K97: 15 | L97: 9.578544061 | M97: 15 | N97: 0.5797132616 | O97: 0 | P97: 6.179743369 | Q97: 15.10570871 | R97: 0.9054295345 | S97: 0.9330374799 | T97: 1.838467014 | U97: 1.783938249 | V97: 0.009547307027 | W97: 0.009547307027 | X97: 7.456251817 | Y97: 0.2779784558 | Z97: 0.2779784558 | AA97: 11.50132097 | AB97: 0.2645607681 | AC97: 1.172275568 | AD97: 0 | AE97: 1.517109888 | AF97: 9.792959289 | AG97: 0.1918041033 | AH97: 0.24375 | AI97: 0.4529288247 | AJ97: 0 | AK97: 0 | AL97: 0 | AM97: 0 | AN97: 0 | AO97: 15.10570871 | AP97: 0.4563648714 | AQ97: 0 | AR97: 0.5022023759 | AS97: 0.4563648714 | AT97: 0 | AU97: 0.31275 | AV97: 0.2877061549 | AW97: 0 | AX97: 0.036 | AY97: 0.54 | AZ97: 0.8855084746 | BA97: 0.576 | BB97: 5.77469002 | BC97: 180 | BD97: 0.9689156256 | BE97: 91.49299438 | BF97: 22.64644123 | BH97: 96.89156256 | BI97: 1.838467014 | BJ97: 2.784991088 | BK97: 0.5561363247 | BL97: 0.2877061549
G98: 89 | H98: 21.015 | I98: BUCK | J98: 1 | K98: 15 | L98: 9.517011658 | M98: 15 | N98: 0.575997151 | O98: 0 | P98: 6.234383709 | Q98: 15.10757961 | R98: 0.9056700811 | S98: 0.9521546327 | T98: 1.857824714 | U98: 1.799711556 | V98: 0.009716885057 | W98: 0.009716885057 | X98: 7.466025115 | Y98: 0.2787076551 | Z98: 0.2787076551 | AA98: 11.4658184 | AB98: 0.2629299834 | AC98: 1.179854936 | AD98: 0 | AE98: 1.522866365 | AF98: 9.837376175 | AG98: 0.19354794 | AH98: 0.24375 | AI98: 0.4549072107 | AJ98: 0 | AK98: 0 | AL98: 0 | AM98: 0 | AN98: 0 | AO98: 15.10757961 | AP98: 0.4564779234 | AQ98: 0 | AR98: 0.5023392818 | AS98: 0.4564779234 | AT98: 0 | AU98: 0.314775 | AV98: 0.29032191 | AW98: 0 | AX98: 0.036 | AY98: 0.54 | AZ98: 0.8855084746 | BA98: 0.576 | BB98: 5.807459022 | BC98: 180 | BD98: 0.9687447476 | BE98: 91.88206825 | BF98: 22.74536054 | BH98: 96.87447476 | BI98: 1.857824714 | BJ98: 2.794887858 | BK98: 0.5587829607 | BL98: 0.29032191
G99: 90 | H99: 21.15 | I99: BUCK | J99: 1 | K99: 15 | L99: 9.456264775 | M99: 15 | N99: 0.5723283793 | O99: 0 | P99: 6.288327993 | Q99: 15.1094426 | R99: 0.9059096493 | S99: 0.9712438101 | T99: 1.877153459 | U99: 1.81528393 | V99: 0.009885767238 | W99: 0.009885767238 | X99: 7.475259955 | Y99: 0.279397557 | Z99: 0.279397557 | AA99: 11.43065413 | AB99: 0.2613197075 | AC99: 1.187434304 | AD99: 0 | AE99: 1.528647136 | AF99: 9.881062798 | AG99: 0.195270804 | AH99: 0.24375 | AI99: 0.4568632134 | AJ99: 0 | AK99: 0 | AL99: 0 | AM99: 0 | AN99: 0 | AO99: 15.1094426 | AP99: 0.4565905115 | AQ99: 0 | AR99: 0.5024756327 | AS99: 0.4565905115 | AT99: 0 | AU99: 0.3168 | AV99: 0.292906206 | AW99: 0 | AX99: 0.036 | AY99: 0.54 | AZ99: 0.8855084746 | BA99: 0.576 | BB99: 5.840128972 | BC99: 180 | BD99: 0.9685744462 | BE99: 92.2723568 | BF99: 22.84316067 | BH99: 96.85744462 | BI99: 1.877153459 | BJ99: 2.804785982 | BK99: 0.5614072134 | BL99: 0.292906206
G100: 91 | H100: 21.285 | I100: BUCK | J100: 1 | K100: 15 | L100: 9.396288466 | M100: 15 | N100: 0.5687060478 | O100: 0 | P100: 6.341589439 | Q100: 15.11129753 | R100: 0.9061482184 | S100: 0.9903020277 | T100: 1.896450246 | U100: 1.830659185 | V100: 0.01005393915 | W100: 0.01005393915 | X100: 7.483975621 | Y100: 0.2800494555 | Z100: 0.2800494555 | AA100: 11.3958226 | AB100: 0.2597295455 | AC100: 1.195013672 | AD100: 0 | AE100: 1.534451706 | AF100: 9.924038507 | AG100: 0.1969730806 | AH100: 0.24375 | AI100: 0.458797221 | AJ100: 0 | AK100: 0 | AL100: 0 | AM100: 0 | AN100: 0 | AO100: 15.11129753 | AP100: 0.4567026261 | AQ100: 0 | AR100: 0.5026114169 | AS100: 0.4567026261 | AT100: 0 | AU100: 0.318825 | AV100: 0.2954596209 | AW100: 0 | AX100: 0.036 | AY100: 0.54 | AZ100: 0.8855084746 | BA100: 0.576 | BB100: 5.872698606 | BC100: 180 | BD100: 0.9684047273 | BE100: 92.66383531 | BF100: 22.93986105 | BH100: 96.84047273 | BI100: 1.896450246 | BJ100: 2.814685344 | BK100: 0.564009471 | BL100: 0.2954596209
G101: 92 | H101: 21.42 | I101: BUCK | J101: 1 | K101: 15 | L101: 9.337068161 | M101: 15 | N101: 0.5651292802 | O101: 0 | P101: 6.394180929 | Q101: 15.11314425 | R101: 0.9063857694 | S101: 1.009326447 | T101: 1.915712216 | U101: 1.84584104 | V101: 0.01022138744 | W101: 0.01022138744 | X101: 7.492190577 | Y101: 0.2806645982 | Z101: 0.2806645982 | AA101: 11.36131843 | AB101: 0.258159113 | AC101: 1.20259304 | AD101: 0 | AE101: 1.540279596 | AF101: 9.966321922 | AG101: 0.1986551453 | AH101: 0.24375 | AI101: 0.4607096123 | AJ101: 0 | AK101: 0 | AL101: 0 | AM101: 0 | AN101: 0 | AO101: 15.11314425 | AP101: 0.4568142583 | AQ101: 0 | AR101: 0.5027466235 | AS101: 0.4568142583 | AT101: 0 | AU101: 0.32085 | AV101: 0.297982718 | AW101: 0 | AX101: 0.036 | AY101: 0.54 | AZ101: 0.8855084746 | BA101: 0.576 | BB101: 5.905166751 | BC101: 180 | BD101: 0.9682355964 | BE101: 93.05647978 | BF101: 23.03548062 | BH101: 96.82355964 | BI101: 1.915712216 | BJ101: 2.824585831 | BK101: 0.5665901123 | BL101: 0.297982718
G102: 93 | H102: 21.555 | I102: BUCK | J102: 1 | K102: 15 | L102: 9.278589654 | M102: 15 | N102: 0.5615972222 | O102: 0 | P102: 6.446115025 | Q102: 15.11498263 | R102: 0.9066222847 | S102: 1.028314369 | T102: 1.934936654 | U102: 1.860833123 | V102: 0.01038809973 | W102: 0.01038809973 | X102: 7.499922515 | Y102: 0.2812441887 | Z102: 0.2812441887 | AA102: 11.32713634 | AB102: 0.2566080353 | AC102: 1.210172408 | AD102: 0 | AE102: 1.546130337 | AF102: 10.00793097 | AG102: 0.2003173645 | AH102: 0.24375 | AI102: 0.4626007574 | AJ102: 0 | AK102: 0 | AL102: 0 | AM102: 0 | AN102: 0 | AO102: 15.11498263 | AP102: 0.4569253998 | AQ102: 0 | AR102: 0.5028812424 | AS102: 0.4569253998 | AT102: 0 | AU102: 0.322875 | AV102: 0.3004760468 | AW102: 0 | AX102: 0.036 | AY102: 0.54 | AZ102: 0.8855084746 | BA102: 0.576 | BB102: 5.937532326 | BC102: 180 | BD102: 0.9680670586 | BE102: 93.45026683 | BF102: 23.13003787 | BH102: 96.80670586 | BI102: 1.934936654 | BJ102: 2.834487336 | BK102: 0.5691495074 | BL102: 0.3004760468
G103: 94 | H103: 21.69 | I103: BUCK | J103: 1 | K103: 15 | L103: 9.220839096 | M103: 15 | N103: 0.5581090407 | O103: 0 | P103: 6.497403978 | Q103: 15.11681255 | R103: 0.9068577478 | S103: 1.047263231 | T103: 1.954120979 | U103: 1.875638968 | V103: 0.01055406461 | W103: 0.01055406461 | X103: 7.507188394 | Y103: 0.2817893879 | Z103: 0.2817893879 | AA103: 11.29327117 | AB103: 0.2550759476 | AC103: 1.217751776 | AD103: 0 | AE103: 1.552003475 | AF103: 10.04888291 | AG103: 0.2019600955 | AH103: 0.24375 | AI103: 0.4644710177 | AJ103: 0 | AK103: 0 | AL103: 0 | AM103: 0 | AN103: 0 | AO103: 15.11681255 | AP103: 0.4570360431 | AQ103: 0 | AR103: 0.5030152643 | AS103: 0.4570360431 | AT103: 0 | AU103: 0.3249 | AV103: 0.3029401433 | AW103: 0 | AX103: 0.036 | AY103: 0.54 | AZ103: 0.8855084746 | BA103: 0.576 | BB103: 5.969794331 | BC103: 180 | BD103: 0.9678991185 | BE103: 93.84517373 | BF103: 23.22355089 | BH103: 96.78991185 | BI103: 1.954120979 | BJ103: 2.844389757 | BK103: 0.5716880177 | BL103: 0.3029401433
G104: 95 | H104: 21.825 | I104: BUCK | J104: 1 | K104: 15 | L104: 9.163802978 | M104: 15 | N104: 0.5546639232 | O104: 0 | P104: 6.548059733 | Q104: 15.11863388 | R104: 0.9070921439 | S104: 1.066170596 | T104: 1.973262739 | U104: 1.890262025 | V104: 0.01071927157 | W104: 0.01071927157 | X104: 7.514004472 | Y104: 0.282301316 | Z104: 0.282301316 | AA104: 11.2597179 | AB104: 0.2535624942 | AC104: 1.225331143 | AD104: 0 | AE104: 1.557898567 | AF104: 10.08919439 | AG104: 0.2035836868 | AH104: 0.24375 | AI104: 0.4663207461 | AJ104: 0 | AK104: 0 | AL104: 0 | AM104: 0 | AN104: 0 | AO104: 15.11863388 | AP104: 0.457146181 | AQ104: 0 | AR104: 0.5031486806 | AS104: 0.457146181 | AT104: 0 | AU104: 0.326925 | AV104: 0.3053755302 | AW104: 0 | AX104: 0.036 | AY104: 0.54 | AZ104: 0.8855084746 | BA104: 0.576 | BB104: 6.001951851 | BC104: 180 | BD104: 0.9677317803 | BE104: 94.24117835 | BF104: 23.31603731 | BH104: 96.77317803 | BI104: 1.973262739 | BJ104: 2.854292994 | BK104: 0.5742059961 | BL104: 0.3053755302
G105: 96 | H105: 21.96 | I105: BUCK | J105: 1 | K105: 15 | L105: 9.107468124 | M105: 15 | N105: 0.551261077 | O105: 0 | P105: 6.598093946 | Q105: 15.12044654 | R105: 0.9073254591 | S105: 1.085034151 | T105: 1.99235961 | U105: 1.904705658 | V105: 0.01088371093 | W105: 0.01088371093 | X105: 7.520386348 | Y105: 0.2827810541 | Z105: 0.2827810541 | AA105: 11.22647159 | AB105: 0.2520673288 | AC105: 1.232910511 | AD105: 0 | AE105: 1.563815183 | AF105: 10.12888144 | AG105: 0.2051884785 | AH105: 0.24375 | AI105: 0.4681502875 | AJ105: 0 | AK105: 0 | AL105: 0 | AM105: 0 | AN105: 0 | AO105: 15.12044654 | AP105: 0.4572558073 | AQ105: 0 | AR105: 0.5032814835 | AS105: 0.4572558073 | AT105: 0 | AU105: 0.32895 | AV105: 0.3077827177 | AW105: 0 | AX105: 0.036 | AY105: 0.54 | AZ105: 0.8855084746 | BA105: 0.576 | BB105: 6.034004047 | BC105: 180 | BD105: 0.9675650477 | BE105: 94.63825917 | BF105: 23.40751438 | BH105: 96.75650477 | BI105: 1.99235961 | BJ105: 2.864196954 | BK105: 0.5767037875 | BL105: 0.3077827177
G106: 97 | H106: 22.095 | I106: BUCK | J106: 1 | K106: 15 | L106: 9.051821679 | M106: 15 | N106: 0.547899729 | O106: =CHOOSE(J106,0,(Vout+(Rdson3+Rdcr)*L106-H106)/(Vout+(Rdson3-Rdson4-Rs)*L106),IF(H106>Vout,D_min_boost_exitBB_to_buck, (Vout-H106*D_max_buck_BB)/Vout)) -> 0 | P106: 6.647517985 | Q106: 15.12225043 | R106: 0.9075576807 | S106: 1.103851702 | T106: 2.011409383 | U106: 1.918973149 | V106: 0.01104737384 | W106: 0.01104737384 | X106: 7.526348989 | Y106: 0.2832296455 | Z106: 0.2832296455 | AA106: 11.19352745 | AB106: 0.2505901135 | AC106: 1.240489879 | AD106: 0 | AE106: 1.569752904 | AF106: 10.16795954 | AG106: 0.2067748024 | AH106: 0.24375 | AI106: 0.4699599788 | AJ106: 0 | AK106: 0 | AL106: 0 | AM106: 0 | AN106: 0 | AO106: 15.12225043 | AP106: 0.4573649159 | AQ106: 0 | AR106: 0.5034136657 | AS106: 0.4573649159 | AT106: 0 | AU106: 0.330975 | AV106: 0.3101622036 | AW106: 0 | AX106: 0.036 | AY106: 0.54 | AZ106: 0.8855084746 | BA106: 0.576 | BB106: 6.065950155 | BC106: 180 | BD106: 0.9673989241 | BE106: 95.03639522 | BF106: 23.49799894 | BH106: 96.73989241 | BI106: 2.011409383 | BJ106: 2.874101549 | BK106: 0.5791817288 | BL106: 0.3101622036
G107: 98 | H107: 22.23 | I107: BUCK | J107: 1 | K107: 15 | L107: 8.996851102 | M107: 15 | N107: 0.5445791246 | O107: 0 | P107: 6.696342945 | Q107: 15.12404545 | R107: 0.907788797 | S107: 1.122621169 | T107: 2.030409966 | U107: 1.933067701 | V107: 0.01121025221 | W107: 0.01121025221 | X107: 7.531906765 | Y107: 0.2836480976 | Z107: 0.2836480976 | AA107: 11.16088077 | AB107: 0.2491305189 | AC107: 1.248069247 | AD107: 0 | AE107: 1.575711322 | AF107: 10.20644361 | AG107: 0.2083429825 | AH107: 0.24375 | AI107: 0.4717501491 | AJ107: 0 | AK107: 0 | AL107: 0 | AM107: 0 | AN107: 0 | AO107: 15.12404545 | AP107: 0.4574735015 | AQ107: 0 | AR107: 0.5035452205 | AS107: 0.4574735015 | AT107: 0 | AU107: 0.333 | AV107: 0.3125144738 | AW107: 0 | AX107: 0.036 | AY107: 0.54 | AZ107: 0.8855084746 | BA107: 0.576 | BB107: 6.097789481 | BC107: 180 | BD107: 0.9672334126 | BE107: 95.4355661 | BF107: 23.58750746 | BH107: 96.72334126 | BI107: 2.030409966 | BJ107: 2.884006692 | BK107: 0.5816401491 | BL107: 0.3125144738
G108: 99 | H108: 22.365 | I108: BUCK | J108: 1 | K108: 15 | L108: 8.942544154 | M108: 15 | N108: 0.5412985274 | O108: 0 | P108: 6.744579652 | Q108: 15.12583153 | R108: 0.9080187976 | S108: 1.141340576 | T108: 2.049359374 | U108: 1.946992439 | V108: 0.01137233867 | W108: 0.01137233867 | X108: 7.537073475 | Y108: 0.2840373829 | Z108: 0.2840373829 | AA108: 11.12852695 | AB108: 0.2476882241 | AC108: 1.255648615 | AD108: 0 | AE108: 1.581690039 | AF108: 10.24434808 | AG108: 0.209893335 | AH108: 0.24375 | AI108: 0.4735211204 | AJ108: 0 | AK108: 0 | AL108: 0 | AM108: 0 | AN108: 0 | AO108: 15.12583153 | AP108: 0.4575815591 | AQ108: 0 | AR108: 0.503676142 | AS108: 0.4575815591 | AT108: 0 | AU108: 0.335025 | AV108: 0.3148400025 | AW108: 0 | AX108: 0.036 | AY108: 0.54 | AZ108: 0.8855084746 | BA108: 0.576 | BB108: 6.129521399 | BC108: 180 | BD108: 0.9670685158 | BE108: 95.83575193 | BF108: 23.67605602 | BH108: 96.70685158 | BI108: 2.049359374 | BJ108: 2.893912301 | BK108: 0.5840793704 | BL108: 0.3148400025
G109: 100 | H109: 22.5 | I109: BUCK | J109: 1 | K109: 15 | L109: 8.888888889 | M109: 15 | N109: 0.5380572189 | O109: 0 | P109: 6.792238674 | Q109: 15.12760861 | R109: 0.9082476729 | S109: 1.160008056 | T109: 2.068255729 | U109: 1.960750413 | V109: 0.01153362655 | W109: 0.01153362655 | X109: 7.541862377 | Y109: 0.2843984406 | Z109: 0.2843984406 | AA109: 11.0964615 | AB109: 0.2462629159 | AC109: 1.263227983 | AD109: 0 | AE109: 1.587688667 | AF109: 10.28168684 | AG109: 0.2114261685 | AH109: 0.24375 | AI109: 0.4752732072 | AJ109: 0 | AK109: 0 | AL109: 0 | AM109: 0 | AN109: 0 | AO109: 15.12760861 | AP109: 0.4576890844 | AQ109: 0 | AR109: 0.5038064246 | AS109: 0.4576890844 | AT109: 0 | AU109: 0.33705 | AV109: 0.3171392528 | AW109: 0 | AX109: 0.036 | AY109: 0.54 | AZ109: 0.8855084746 | BA109: 0.576 | BB109: 6.161145347 | BC109: 180 | BD109: 0.9669042359 | BE109: 96.23693335 | BF109: 23.76366036 | BH109: 96.69042359 | BI109: 2.068255729 | BJ109: 2.903818299 | BK109: 0.5864997072 | BL109: 0.3171392528
G110: 101 | H110: 22.635 | I110: BUCK | J110: 1 | K110: 15 | L110: 8.835873647 | M110: 15 | N110: 0.5348544974 | O110: 0 | P110: 6.839330327 | Q110: 15.12937661 | R110: =(Q110^2*Rdcr*(1+Ltc*Ta-Ltc*25))/(1-Q110^2*Rdcr*Ltc*ThetaCa) -> 0.9084754141 | S110: =7.759*10^-3*Fsw^0.9458*(0.00787*P110)^2.304 -> 1.178621837 | T110: =R110+S110 -> 2.087097252 | U110: 1.974344603 | V110: =RCoutEsr*U110^2 -> 0.01169410983 | W110: =V110 -> 0.01169410983 | X110: 7.546286211 | Y110: =RCinEsr*X110^2 -> 0.2847321779 | Z110: =Y110 -> 0.2847321779 | AA110: 11.06468004 | AB110: 0.2448542886 | AC110: 1.270807351 | AD110: 0 | AE110: 1.59370683 | AF110: 10.31847335 | AG110: 0.2129417846 | AH110: 0.24375 | AI110: 0.4770067169 | AJ110: 0 | AK110: 0 | AL110: 0 | AM110: 0 | AN110: 0 | AO110: 15.12937661 | AP110: 0.4577960732 | AQ110: 0 | AR110: 0.5039360634 | AS110: 0.4577960732 | AT110: 0 | AU110: 0.339075 | AV110: 0.3194126769 | AW110: 0 | AX110: 0.036 | AY110: 0.54 | AZ110: 0.8855084746 | BA110: =SUM(AX110:AY110) -> 0.576 | BB110: =SUM(T110,W110,Z110,AE110,AI110,AN110,AR110, AT110,AU110,BA110,AV110,AW110) -> 6.192660826 | BC110: 180 | BD110: =BC110/(BC110+BB110) -> 0.9667405751 | BE110: 96.6390915 | BF110: 23.85033584 | BH110: =BD110*100 -> 96.67405751 | BI110: =T110 -> 2.087097252 | BJ110: =AE110+AI110+AN110+AR110+AU110 -> 2.91372461 | BK110: =AI110+AU110*0.33 -> 0.5889014669 | BL110: =AV110 -> 0.3194126769
G111: 102 | H111: 22.77 | I111: BUCK | J111: 1 | K111: 15 | L111: 8.783487044 | M111: 15 | N111: 0.5316896778 | O111: 0 | P111: 6.885864682 | Q111: 15.13113548 | R111: 0.9087020135 | S111: 1.197180246 | T111: 2.10588226 | U111: 1.987777914 | V111: 0.01185378311 | W111: 0.01185378311 | X111: 7.550357226 | Y111: 0.2850394712 | Z111: 0.2850394712 | AA111: 11.03317825 | AB111: 0.2434620444 | AC111: 1.278386719 | AD111: 0 | AE111: 1.59974416 | AF111: 10.35472061 | AG111: 0.2144404776 | AH111: 0.24375 | AI111: 0.4787219504 | AJ111: 0 | AK111: 0 | AL111: 0 | AM111: 0 | AN111: 0 | AO111: 15.13113548 | AP111: 0.4579025221 | AQ111: 0 | AR111: 0.504065054 | AS111: 0.4579025221 | AT111: 0 | AU111: 0.3411 | AV111: 0.3216607164 | AW111: 0 | AX111: 0.036 | AY111: 0.54 | AZ111: 0.8855084746 | BA111: 0.576 | BB111: 6.224067395 | BC111: 180 | BD111: 0.9665775349 | BE111: 97.042208 | BF111: 23.93609752 | BH111: 96.65775349 | BI111: 2.10588226 | BJ111: 2.923631164 | BK111: 0.5912849504 | BL111: 0.3216607164
G112: 103 | H112: 22.905 | I112: BUCK | J112: 1 | K112: 15 | L112: 8.731717966 | M112: 15 | N112: 0.5285620915 | O112: 0 | P112: 6.931851575 | Q112: 15.13288518 | R112: 0.9089274642 | S112: 1.215681699 | T112: 2.124609163 | U112: 2.001053186 | V112: 0.01201264156 | W112: 0.01201264156 | X112: 7.554087199 | Y112: 0.2853211671 | Z112: 0.2853211671 | AA112: 11.00195193 | AB112: 0.2420858925 | AC112: 1.285966087 | AD112: 0 | AE112: 1.605800299 | AF112: 10.39044117 | AG112: 0.2159225352 | AH112: 0.24375 | AI112: 0.4804192016 | AJ112: 0 | AK112: 0 | AL112: 0 | AM112: 0 | AN112: 0 | AO112: 15.13288518 | AP112: 0.4580084277 | AQ112: 0 | AR112: 0.5041933923 | AS112: 0.4580084277 | AT112: 0 | AU112: 0.343125 | AV112: 0.3238838028 | AW112: 0 | AX112: 0.036 | AY112: 0.54 | AZ112: 0.8855084746 | BA112: 0.576 | BB112: 6.255364668 | BC112: 180 | BD112: 0.9664151168 | BE112: 97.44626494 | BF112: 24.02096008 | BH112: 96.64151168 | BI112: 2.124609163 | BJ112: 2.933537893 | BK112: 0.5936504516 | BL112: 0.3238838028
G113: 104 | H113: 23.04 | I113: BUCK | J113: 1 | K113: 15 | L113: 8.680555556 | M113: 15 | N113: 0.5254710851 | O113: 0 | P113: 6.977300608 | Q113: 15.13462565 | R113: 0.90915176 | S113: 1.2341247 | T113: 2.14327646 | U113: 2.014173192 | V113: 0.01217068095 | W113: 0.01217068095 | X113: 7.557487463 | Y113: 0.2855780838 | Z113: 0.2855780838 | AA113: 10.97099697 | AB113: 0.2407255489 | AC113: 1.293545455 | AD113: 0 | AE113: 1.611874897 | AF113: 10.42564718 | AG113: 0.2173882384 | AH113: 0.24375 | AI113: 0.4820987583 | AJ113: 0 | AK113: 0 | AL113: 0 | AM113: 0 | AN113: 0 | AO113: 15.13462565 | AP113: 0.4581137873 | AQ113: 0 | AR113: 0.5043210748 | AS113: 0.4581137873 | AT113: 0 | AU113: 0.34515 | AV113: 0.3260823576 | AW113: 0 | AX113: 0.036 | AY113: 0.54 | AZ113: 0.8855084746 | BA113: 0.576 | BB113: 6.286552312 | BC113: 180 | BD113: 0.9662533219 | BE113: 97.85124487 | BF113: 24.10493792 | BH113: 96.62533219 | BI113: 2.14327646 | BJ113: 2.943444731 | BK113: 0.5959982583 | BL113: 0.3260823576
G114: 105 | H114: 23.175 | I114: BUCK | J114: 1 | K114: 15 | L114: 8.629989213 | M114: 15 | N114: 0.5224160207 | O114: 0 | P114: 7.022221165 | Q114: 15.13635687 | R114: 0.9093748955 | S114: 1.252507835 | T114: 2.161882731 | U114: 2.02714064 | V114: 0.01232789752 | W114: 0.01232789752 | X114: 7.560568921 | Y114: 0.2858110121 | Z114: 0.2858110121 | AA114: 10.94030934 | AB114: 0.2393807367 | AC114: 1.301124822 | AD114: 0 | AE114: 1.617967615 | AF114: 10.46035041 | AG114: 0.2188378616 | AH114: 0.24375 | AI114: 0.4837609019 | AJ114: 0 | AK114: 0 | AL114: 0 | AM114: 0 | AN114: 0 | AO114: 15.13635687 | AP114: 0.4582185983 | AQ114: 0 | AR114: 0.5044480985 | AS114: 0.4582185983 | AT114: 0 | AU114: 0.347175 | AV114: 0.3282567924 | AW114: 0 | AX114: 0.036 | AY114: 0.54 | AZ114: 0.8855084746 | BA114: 0.576 | BB114: 6.317630048 | BC114: 180 | BD114: 0.9660921511 | BE114: 98.25713076 | BF114: 24.18804509 | BH114: 96.60921511 | BI114: 2.161882731 | BJ114: 2.953351615 | BK114: 0.5983286519 | BL114: 0.3282567924
G115: 106 | H115: 23.31 | I115: BUCK | J115: 1 | K115: 15 | L115: 8.58000858 | M115: 15 | N115: 0.5193962749 | O115: 0 | P115: 7.066622409 | Q115: 15.13807879 | R115: 0.9095968659 | S115: 1.270829774 | T115: 2.18042664 | U115: 2.039958175 | V115: 0.01248428807 | W115: 0.01248428807 | X115: 7.56334207 | Y115: 0.2860207163 | Z115: 0.2860207163 | AA115: 10.90988509 | AB115: 0.2380511855 | AC115: 1.30870419 | AD115: 0 | AE115: 1.62407812 | AF115: 10.49456224 | AG115: 0.2202716732 | AH115: 0.24375 | AI115: 0.4854059075 | AJ115: 0 | AK115: 0 | AL115: 0 | AM115: 0 | AN115: 0 | AO115: 15.13807879 | AP115: 0.4583228587 | AQ115: 0 | AR115: 0.5045744606 | AS115: 0.4583228587 | AT115: 0 | AU115: 0.3492 | AV115: 0.3304075098 | AW115: 0 | AX115: 0.036 | AY115: 0.54 | AZ115: 0.8855084746 | BA115: 0.576 | BB115: 6.348597643 | BC115: 180 | BD115: 0.9659316049 | BE115: 98.66390601 | BF115: 24.27029537 | BH115: 96.59316049 | BI115: 2.18042664 | BJ115: 2.963258488 | BK115: 0.6006419075 | BL115: 0.3304075098
G116: 107 | H116: 23.445 | I116: BUCK | J116: 1 | K116: 15 | L116: 8.53060354 | M116: 15 | N116: 0.5164112388 | O116: 0 | P116: 7.110513294 | Q116: 15.13979139 | R116: 0.9098176674 | S116: 1.289089261 | T116: 2.198906928 | U116: 2.052628382 | V116: 0.01263984983 | W116: 0.01263984983 | X116: 7.565817014 | Y116: 0.2862079354 | Z116: 0.2862079354 | AA116: 10.87972038 | AB116: 0.2367366311 | AC116: 1.316283558 | AD116: 0 | AE116: 1.630206089 | AF116: 10.52829367 | AG116: 0.2216899354 | AH116: 0.24375 | AI116: 0.4870340446 | AJ116: 0 | AK116: 0 | AL116: 0 | AM116: 0 | AN116: 0 | AO116: 15.13979139 | AP116: 0.4584265666 | AQ116: 0 | AR116: 0.5047001587 | AS116: 0.4584265666 | AT116: 0 | AU116: 0.351225 | AV116: 0.3325349031 | AW116: 0 | AX116: 0.036 | AY116: 0.54 | AZ116: 0.8855084746 | BA116: 0.576 | BB116: 6.379454909 | BC116: 180 | BD116: 0.9657716838 | BE116: 99.07155444 | BF116: 24.35170223 | BH116: 96.57716838 | BI116: 2.198906928 | BJ116: 2.973165292 | BK116: 0.6029382946 | BL116: 0.3325349031
G117: 108 | H117: 23.58 | I117: BUCK | J117: 1 | K117: 15 | L117: 8.481764207 | M117: 15 | N117: 0.5134603175 | O117: 0 | P117: 7.153902569 | Q117: 15.14149465 | R117: 0.9100372964 | S117: 1.307285114 | T117: 2.21732241 | U117: 2.065153787 | V117: 0.01279458049 | W117: 0.01279458049 | X117: 7.568003488 | Y117: 0.286373384 | Z117: 0.286373384 | AA117: 10.84981142 | AB117: 0.2354368158 | AC117: 1.323862926 | AD117: 0 | AE117: 1.636351205 | AF117: 10.56155539 | AG117: 0.2230929046 | AH117: 0.24375 | AI117: 0.4886455768 | AJ117: 0 | AK117: 0 | AL117: 0 | AM117: 0 | AN117: 0 | AO117: 15.14149465 | AP117: 0.4585297203 | AQ117: 0 | AR117: 0.5048251911 | AS117: 0.4585297203 | AT117: 0 | AU117: 0.35325 | AV117: 0.3346393568 | AW117: 0 | AX117: 0.036 | AY117: 0.54 | AZ117: 0.8855084746 | BA117: 0.576 | BB117: 6.410201705 | BC117: 180 | BD117: 0.9656123879 | BE117: 99.48006027 | BF117: 24.43227884 | BH117: 96.56123879 | BI117: 2.21732241 | BJ117: 2.983071973 | BK117: 0.6052180768 | BL117: 0.3346393568
G118: 109 | H118: 23.715 | I118: BUCK | J118: 1 | K118: 15 | L118: 8.433480919 | M118: 15 | N118: 0.5105429293 | O118: 0 | P118: 7.196798783 | Q118: 15.14318855 | R118: 0.9102557502 | S118: 1.325416222 | T118: 2.235671972 | U118: 2.077536857 | V118: 0.01294847818 | W118: 0.01294847818 | X118: 7.56991087 | Y118: 0.2865177529 | Z118: 0.2865177529 | AA118: 10.82015452 | AB118: 0.2341514875 | AC118: 1.331442294 | AD118: 0 | AE118: 1.642513162 | AF118: 10.59435773 | AG118: 0.2244808313 | AH118: 0.24375 | AI118: 0.490240762 | AJ118: 0 | AK118: 0 | AL118: 0 | AM118: 0 | AN118: 0 | AO118: 15.14318855 | AP118: 0.4586323188 | AQ118: 0 | AR118: 0.5049495559 | AS118: 0.4586323188 | AT118: 0 | AU118: 0.355275 | AV118: 0.3367212469 | AW118: 0 | AX118: 0.036 | AY118: 0.54 | AZ118: 0.8855084746 | BA118: 0.576 | BB118: 6.44083793 | BC118: 180 | BD118: 0.9654537171 | BE118: 99.88940808 | BF118: 24.5120381 | BH118: 96.54537171 | BI118: 2.235671972 | BJ118: 2.99297848 | BK118: 0.607481512 | BL118: 0.3367212469
G119: 110 | H119: 23.85 | I119: BUCK | J119: 1 | K119: 15 | L119: 8.385744235 | M119: 15 | N119: 0.507658506 | O119: 0 | P119: 7.239210295 | Q119: 15.14487308 | R119: 0.9104730265 | S119: 1.343481541 | T119: 2.253954567 | U119: 2.089780006 | V119: 0.01310154142 | W119: 0.01310154142 | X119: 7.571548198 | Y119: 0.2866417106 | Z119: 0.2866417106 | AA119: 10.79074604 | AB119: 0.2328804003 | AC119: 1.339021662 | AD119: 0 | AE119: 1.648691657 | AF119: 10.6267107 | AG119: 0.2258539606 | AH119: 0.24375 | AI119: 0.491819853 | AJ119: 0 | AK119: 0 | AL119: 0 | AM119: 0 | AN119: 0 | AO119: 15.14487308 | AP119: 0.4587343609 | AQ119: 0 | AR119: 0.5050732521 | AS119: 0.4587343609 | AT119: 0 | AU119: 0.3573 | AV119: 0.338780941 | AW119: 0 | AX119: 0.036 | AY119: 0.54 | AZ119: 0.8855084746 | BA119: 0.576 | BB119: 6.471363522 | BC119: 180 | BD119: 0.9652956711 | BE119: 100.2995828 | BF119: 24.59099265 | BH119: 96.52956711 | BI119: 2.253954567 | BJ119: 3.002884762 | BK119: 0.609728853 | BL119: 0.338780941
G120: 111 | H120: 23.985 | I120: BUCK | J120: 1 | K120: 15 | L120: 8.338544924 | M120: 15 | N120: 0.5048064919 | O120: 0 | P120: 7.281145273 | Q120: 15.14654822 | R120: 0.9106891238 | S120: 1.361480092 | T120: 2.272169216 | U120: 2.101885592 | V120: 0.01325376912 | W120: 0.01325376912 | X120: 7.572924182 | Y120: 0.2867459033 | Z120: 0.2867459033 | AA120: 10.76158245 | AB120: 0.2316233138 | AC120: 1.34660103 | AD120: 0 | AE120: 1.654886398 | AF120: 10.65862403 | AG120: 0.2272125323 | AH120: 0.24375 | AI120: 0.4933830968 | AJ120: 0 | AK120: 0 | AL120: 0 | AM120: 0 | AN120: 0 | AO120: 15.14654822 | AP120: 0.4588358461 | AQ120: 0 | AR120: 0.5051962785 | AS120: 0.4588358461 | AT120: 0 | AU120: 0.359325 | AV120: 0.3408187984 | AW120: 0 | AX120: 0.036 | AY120: 0.54 | AZ120: 0.8855084746 | BA120: 0.576 | BB120: 6.50177846 | BC120: 180 | BD120: 0.9651382495 | BE120: 100.7105699 | BF120: 24.66915484 | BH120: 96.51382495 | BI120: 2.272169216 | BJ120: 3.012790773 | BK120: 0.6119603468 | BL120: 0.3408187984
G121: 112 | H121: 24.12 | I121: BUCK | J121: 1 | K121: 15 | L121: 8.291873964 | M121: 15 | N121: 0.5019863439 | O121: 0 | P121: 7.322611704 | Q121: 15.14821398 | R121: 0.9109040409 | S121: 1.379410959 | T121: 2.290314999 | U121: 2.113855919 | V121: 0.01340516054 | W121: 0.01340516054 | X121: 7.574047223 | Y121: 0.2868309566 | Z121: 0.2868309566 | AA121: 10.73266027 | AB121: 0.2303799931 | AC121: 1.354180398 | AD121: 0 | AE121: 1.661097098 | AF121: 10.69010712 | AG121: 0.2285567806 | AH121: 0.24375 | AI121: 0.4949307357 | AJ121: 0 | AK121: 0 | AL121: 0 | AM121: 0 | AN121: 0 | AO121: 15.14821398 | AP121: 0.4589367737 | AQ121: 0 | AR121: 0.5053186345 | AS121: 0.4589367737 | AT121: 0 | AU121: 0.36135 | AV121: 0.3428351709 | AW121: 0 | AX121: 0.036 | AY121: 0.54 | AZ121: 0.8855084746 | BA121: 0.576 | BB121: 6.532082756 | BC121: 180 | BD121: 0.9649814517 | BE121: 101.1223549 | BF121: 24.74653679 | BH121: 96.49814517 | BI121: 2.290314999 | BJ121: 3.022696469 | BK121: 0.6141762357 | BL121: 0.3428351709
G122: 113 | H122: 24.255 | I122: BUCK | J122: 1 | K122: 15 | L122: 8.245722531 | M122: 15 | N122: 0.4991975309 | O122: 0 | P122: 7.363617396 | Q122: 15.14987035 | R122: 0.911117777 | S122: 1.397273282 | T122: 2.308391059 | U122: 2.125693243 | V122: 0.01355571529 | W122: 0.01355571529 | X122: 7.574925421 | Y122: 0.2868974757 | Z122: 0.2868974757 | AA122: 10.7039761 | AB122: 0.2291502086 | AC122: 1.361759766 | AD122: 0 | AE122: 1.667323479 | AF122: 10.72116913 | AG122: 0.2298869349 | AH122: 0.24375 | AI122: 0.4964630067 | AJ122: 0 | AK122: 0 | AL122: 0 | AM122: 0 | AN122: 0 | AO122: 15.14987035 | AP122: 0.4590371435 | AQ122: 0 | AR122: 0.5054403196 | AS122: 0.4590371435 | AT122: 0 | AU122: 0.363375 | AV122: 0.3448304024 | AW122: 0 | AX122: 0.036 | AY122: 0.54 | AZ122: 0.8855084746 | BA122: 0.576 | BB122: 6.562276458 | BC122: 180 | BD122: 0.9648252767 | BE122: 101.5349239 | BF122: 24.82315033 | BH122: 96.48252767 | BI122: 2.308391059 | BJ122: 3.032601805 | BK122: 0.6163767567 | BL122: 0.3448304024
G123: 114 | H123: 24.39 | I123: BUCK | J123: 1 | K123: 15 | L123: 8.200082001 | M123: 15 | N123: 0.4964395335 | O123: 0 | P123: 7.404169987 | Q123: 15.15151734 | R123: 0.911330332 | S123: 1.415066263 | T123: 2.326396595 | U123: 2.137399768 | V123: 0.0137054333 | W123: 0.0137054333 | X123: 7.575566594 | Y123: 0.2869460461 | Z123: 0.2869460461 | AA123: 10.67552659 | AB123: 0.227933736 | AC123: 1.369339134 | AD123: 0 | AE123: 1.673565266 | AF123: 10.75181891 | AG123: 0.2312032195 | AH123: 0.24375 | AI123: 0.497980142 | AJ123: 0 | AK123: 0 | AL123: 0 | AM123: 0 | AN123: 0 | AO123: 15.15151734 | AP123: 0.4591369555 | AQ123: 0 | AR123: 0.5055613339 | AS123: 0.4591369555 | AT123: 0 | AU123: 0.3654 | AV123: 0.3468048293 | AW123: 0 | AX123: 0.036 | AY123: 0.54 | AZ123: 0.8855084746 | BA123: 0.576 | BB123: 6.592359646 | BC123: 180 | BD123: 0.9646697236 | BE123: 101.9482633 | BF123: 24.8990071 | BH123: 96.46697236 | BI123: 2.326396595 | BJ123: 3.042506742 | BK123: 0.618562142 | BL123: 0.3468048293
G124: 115 | H124: 24.525 | I124: BUCK | J124: 1 | K124: 15 | L124: 8.154943935 | M124: 15 | N124: 0.4937118437 | O124: 0 | P124: 7.444276945 | Q124: 15.15315495 | R124: 0.9115417061 | S124: 1.432789153 | T124: 2.34433086 | U124: 2.148977649 | V124: 0.01385431481 | W124: 0.01385431481 | X124: 7.575978282 | Y124: 0.2869772346 | Z124: 0.2869772346 | AA124: 10.64730848 | AB124: 0.2267303559 | AC124: 1.376918501 | AD124: 0 | AE124: 1.679822194 | AF124: 10.78206506 | AG124: 0.232505854 | AH124: 0.24375 | AI124: 0.4994823689 | AJ124: 0 | AK124: 0 | AL124: 0 | AM124: 0 | AN124: 0 | AO124: 15.15315495 | AP124: 0.4592362099 | AQ124: 0 | AR124: 0.5056816772 | AS124: 0.4592362099 | AT124: 0 | AU124: 0.367425 | AV124: 0.348758781 | AW124: 0 | AX124: 0.036 | AY124: 0.54 | AZ124: 0.8855084746 | BA124: 0.576 | BB124: 6.62233243 | BC124: 180 | BD124: 0.9645147912 | BE124: 102.3623597 | BF124: 24.97411845 | BH124: 96.45147912 | BI124: 2.34433086 | BJ124: 3.05241124 | BK124: 0.6207326189 | BL124: 0.348758781
G125: 116 | H125: 24.66 | I125: BUCK | J125: 1 | K125: 15 | L125: 8.110300081 | M125: 15 | N125: 0.4910139648 | O125: 0 | P125: 7.483945576 | Q125: 15.15478319 | R125: 0.9117518999 | S125: 1.45044126 | T125: 2.362193159 | U125: 2.160428996 | V125: 0.01400236035 | W125: 0.01400236035 | X125: 7.576167764 | Y125: 0.2869915899 | Z125: 0.2869915899 | AA125: 10.61931857 | AB125: 0.2255398538 | AC125: 1.384497869 | AD125: 0 | AE125: 1.686094002 | AF125: 10.81191595 | AG125: 0.2337950531 | AH125: 0.24375 | AI125: 0.5009699105 | AJ125: 0 | AK125: 0 | AL125: 0 | AM125: 0 | AN125: 0 | AO125: 15.15478319 | AP125: 0.4593349069 | AQ125: 0 | AR125: 0.5058013501 | AS125: 0.4593349069 | AT125: 0 | AU125: 0.36945 | AV125: 0.3506925796 | AW125: 0 | AX125: 0.036 | AY125: 0.54 | AZ125: 0.8855084746 | BA125: 0.576 | BB125: 6.652194952 | BC125: 180 | BD125: 0.9643604783 | BE125: 102.7772001 | BF125: 25.04849552 | BH125: 96.43604783 | BI125: 2.362193159 | BJ125: 3.062315263 | BK125: 0.6228884105 | BL125: 0.3506925796
G126: 117 | H126: 24.795 | I126: BUCK | J126: 1 | K126: 15 | L126: 8.066142367 | M126: 15 | N126: 0.4883454106 | O126: 0 | P126: 7.523183026 | Q126: 15.15640207 | R126: 0.9119609145 | S126: 1.468021937 | T126: 2.379982851 | U126: 2.171755873 | V126: 0.01414957071 | W126: 0.01414957071 | X126: 7.576142067 | Y126: 0.2869896431 | Z126: 0.2869896431 | AA126: 10.59155371 | AB126: 0.2243620201 | AC126: 1.392077237 | AD126: 0 | AE126: 1.692380436 | AF126: 10.84137969 | AG126: 0.2350710271 | AH126: 0.24375 | AI126: 0.5024429848 | AJ126: 0 | AK126: 0 | AL126: 0 | AM126: 0 | AN126: 0 | AO126: 15.15640207 | AP126: 0.4594330471 | AQ126: 0 | AR126: 0.505920353 | AS126: 0.4594330471 | AT126: 0 | AU126: 0.371475 | AV126: 0.3526065406 | AW126: 0 | AX126: 0.036 | AY126: 0.54 | AZ126: 0.8855084746 | BA126: 0.576 | BB126: 6.68194738 | BC126: 180 | BD126: 0.9642067834 | BE126: 103.1927718 | BF126: 25.12214924 | BH126: 96.42067834 | BI126: 2.379982851 | BJ126: 3.072218774 | BK126: 0.6250297348 | BL126: 0.3526065406
G127: 118 | H127: 24.93 | I127: BUCK | J127: 1 | K127: 15 | L127: 8.022462896 | M127: 15 | N127: 0.4857057057 | O127: 0 | P127: 7.561996287 | Q127: 15.1580116 | R127: 0.9121687513 | S127: 1.485530589 | T127: 2.39769934 | U127: 2.182960296 | V127: 0.01429594696 | W127: 0.01429594696 | X127: 7.575907978 | Y127: 0.2869719085 | Z127: 0.2869719085 | AA127: 10.56401083 | AB127: 0.2231966496 | AC127: 1.399656605 | AD127: 0 | AE127: 1.698681247 | AF127: 10.87046415 | AG127: 0.2363339817 | AH127: 0.24375 | AI127: 0.5039018058 | AJ127: 0 | AK127: 0 | AL127: 0 | AM127: 0 | AN127: 0 | AO127: 15.1580116 | AP127: 0.4595306313 | AQ127: 0 | AR127: 0.5060386867 | AS127: 0.4595306313 | AT127: 0 | AU127: 0.3735 | AV127: 0.3545009726 | AW127: 0 | AX127: 0.036 | AY127: 0.54 | AZ127: 0.8855084746 | BA127: 0.576 | BB127: 6.711589908 | BC127: 180 | BD127: 0.9640537049 | BE127: 103.6090624 | BF127: 25.19509029 | BH127: 96.40537049 | BI127: 2.39769934 | BJ127: 3.08212174 | BK127: 0.6271568058 | BL127: 0.3545009726
G128: 119 | H128: 25.065 | I128: BUCK | J128: 1 | K128: 15 | L128: 7.97925394 | M128: 15 | N128: 0.4830943847 | O128: 0 | P128: 7.600392202 | Q128: 15.15961181 | R128: 0.9123754119 | S128: 1.502966664 | T128: 2.415342076 | U128: 2.194044242 | V128: 0.0144414904 | W128: 0.0144414904 | X128: 7.57547205 | Y128: 0.2869388839 | Z128: 0.2869388839 | AA128: 10.5366869 | AB128: 0.2220435417 | AC128: 1.407235973 | AD128: 0 | AE128: 1.704996193 | AF128: 10.899177 | AG128: 0.2375841185 | AH128: 0.24375 | AI128: 0.505346583 | AJ128: 0 | AK128: 0 | AL128: 0 | AM128: 0 | AN128: 0 | AO128: 15.15961181 | AP128: 0.4596276603 | AQ128: 0 | AR128: 0.5061563523 | AS128: 0.4596276603 | AT128: 0 | AU128: 0.375525 | AV128: 0.3563761778 | AW128: 0 | AX128: 0.036 | AY128: 0.54 | AZ128: 0.8855084746 | BA128: 0.576 | BB128: 6.741122756 | BC128: 180 | BD128: 0.9639012412 | BE128: 104.0260597 | BF128: 25.26732915 | BH128: 96.39012412 | BI128: 2.415342076 | BJ128: 3.092024129 | BK128: 0.629269833 | BL128: 0.3563761778
G129: 120 | H129: 25.2 | I129: BUCK | J129: 1 | K129: 15 | L129: 7.936507937 | M129: 15 | N129: 0.4805109923 | O129: 0 | P129: 7.638377464 | Q129: 15.16120271 | R129: 0.9125808985 | S129: 1.520329655 | T129: 2.432910553 | U129: 2.205009643 | V129: 0.01458620257 | W129: 0.01458620257 | X129: 7.574840615 | Y129: 0.2868910517 | Z129: 0.2868910517 | AA129: 10.50957897 | AB129: 0.2209025003 | AC129: 1.414815341 | AD129: 0 | AE129: 1.711325037 | AF129: 10.92752567 | AG129: 0.2388216347 | AH129: 0.24375 | AI129: 0.506777522 | AJ129: 0 | AK129: 0 | AL129: 0 | AM129: 0 | AN129: 0 | AO129: 15.16120271 | AP129: 0.459724135 | AQ129: 0 | AR129: 0.5062733507 | AS129: 0.459724135 | AT129: 0 | AU129: 0.37755 | AV129: 0.3582324521 | AW129: 0 | AX129: 0.036 | AY129: 0.54 | AZ129: 0.8855084746 | BA129: 0.576 | BB129: 6.77054617 | BC129: 180 | BD129: 0.9637493903 | BE129: 104.4437519 | BF129: 25.3388761 | BH129: 96.37493903 | BI129: 2.432910553 | BJ129: 3.10192591 | BK129: 0.631369022 | BL129: 0.3582324521
G130: 121 | H130: 25.335 | I130: BUCK | J130: 1 | K130: 15 | L130: 7.894217486 | M130: 15 | N130: 0.4779550827 | O130: 0 | P130: 7.675958629 | Q130: 15.16278432 | R130: 0.9127852135 | S130: 1.537619097 | T130: 2.450404311 | U130: 2.21585839 | V130: 0.01473008522 | W130: 0.01473008522 | X130: 7.574019791 | Y130: 0.286828879 | Z130: 0.286828879 | AA130: 10.48268413 | AB130: 0.2197733333 | AC130: 1.422394709 | AD130: 0 | AE130: 1.717667547 | AF130: 10.95551741 | AG130: 0.2400467235 | AH130: 0.24375 | AI130: 0.508194824 | AJ130: 0 | AK130: 0 | AL130: 0 | AM130: 0 | AN130: 0 | AO130: 15.16278432 | AP130: 0.4598200568 | AQ130: 0 | AR130: 0.5063896834 | AS130: 0.4598200568 | AT130: 0 | AU130: 0.379575 | AV130: 0.3600700853 | AW130: 0 | AX130: 0.036 | AY130: 0.54 | AZ130: 0.8855084746 | BA130: 0.576 | BB130: 6.799860414 | BC130: 180 | BD130: 0.9635981505 | BE130: 104.8621273 | BF130: 25.4097412 | BH130: 96.35981505 | BI130: 2.450404311 | BJ130: 3.111827054 | BK130: 0.633454574 | BL130: 0.3600700853
G131: 122 | H131: 25.47 | I131: BUCK | J131: 1 | K131: 15 | L131: 7.852375344 | M131: 15 | N131: 0.4754262199 | O131: 0 | P131: 7.713142109 | Q131: 15.16435668 | R131: 0.9129883595 | S131: 1.554834565 | T131: 2.467822924 | U131: 2.226592336 | V131: 0.0148731403 | W131: 0.0148731403 | X131: 7.573015492 | Y131: 0.2867528182 | Z131: 0.2867528182 | AA131: 10.45599954 | AB131: 0.2186558529 | AC131: 1.429974077 | AD131: 0 | AE131: 1.724023495 | AF131: 10.98315925 | AG131: 0.241259574 | AH131: 0.24375 | AI131: 0.5095986864 | AJ131: 0 | AK131: 0 | AL131: 0 | AM131: 0 | AN131: 0 | AO131: 15.16435668 | AP131: 0.4599154269 | AQ131: 0 | AR131: 0.5065053519 | AS131: 0.4599154269 | AT131: 0 | AU131: 0.3816 | AV131: 0.361889361 | AW131: 0 | AX131: 0.036 | AY131: 0.54 | AZ131: 0.8855084746 | BA131: 0.576 | BB131: 6.829065777 | BC131: 180 | BD131: 0.9634475195 | BE131: 105.2811748 | BF131: 25.47993432 | BH131: 96.34475195 | BI131: 2.467822924 | BJ131: 3.121727533 | BK131: 0.6355266864 | BL131: 0.361889361
G132: 123 | H132: 25.605 | I132: BUCK | J132: 1 | K132: 15 | L132: 7.810974419 | M132: 15 | N132: 0.4729239766 | O132: 0 | P132: 7.749934184 | Q132: 15.1659198 | R132: 0.9131903395 | S132: 1.571975671 | T132: 2.485166011 | U132: 2.237213294 | V132: 0.01501536996 | W132: 0.01501536996 | X132: 7.571833433 | Y132: 0.2866633077 | Z132: 0.2866633077 | AA132: 10.4295224 | AB132: 0.2175498751 | AC132: 1.437553445 | AD132: 0 | AE132: 1.730392661 | AF132: 11.01045802 | AG132: 0.2424603715 | AH132: 0.24375 | AI132: 0.5109893028 | AJ132: 0 | AK132: 0 | AL132: 0 | AM132: 0 | AN132: 0 | AO132: 15.1659198 | AP132: 0.4600102466 | AQ132: 0 | AR132: 0.5066203578 | AS132: 0.4600102466 | AT132: 0 | AU132: 0.383625 | AV132: 0.3636905573 | AW132: 0 | AX132: 0.036 | AY132: 0.54 | AZ132: 0.8855084746 | BA132: 0.576 | BB132: 6.858162567 | BC132: 180 | BD132: 0.9632974954 | BE132: 105.7008831 | BF132: 25.54946514 | BH132: 96.32974954 | BI132: 2.485166011 | BJ132: 3.131627322 | BK132: 0.6375855528 | BL132: 0.3636905573
G133: 124 | H133: 25.74 | I133: BUCK | J133: 1 | K133: 15 | L133: 7.77000777 | M133: 15 | N133: 0.4704479348 | O133: 0 | P133: 7.786341002 | Q133: 15.16747371 | R133: 0.9133911566 | S133: 1.589042066 | T133: 2.502433223 | U133: 2.247723037 | V133: 0.01515677655 | W133: 0.01515677655 | X133: 7.570479141 | Y133: 0.2865607721 | Z133: 0.2865607721 | AA133: 10.40324998 | AB133: 0.2164552202 | AC133: 1.445132812 | AD133: 0 | AE133: 1.736774828 | AF133: 11.03742039 | AG133: 0.2436492975 | AH133: 0.24375 | AI133: 0.5123668628 | AJ133: 0 | AK133: 0 | AL133: 0 | AM133: 0 | AN133: 0 | AO133: 15.16747371 | AP133: 0.4601045177 | AQ133: 0 | AR133: 0.5067347029 | AS133: 0.4601045177 | AT133: 0 | AU133: 0.38565 | AV133: 0.3654739463 | AW133: 0 | AX133: 0.036 | AY133: 0.54 | AZ133: 0.8855084746 | BA133: 0.576 | BB133: 6.887151112 | BC133: 180 | BD133: 0.9631480759 | BE133: 106.1212414 | BF133: 25.61834314 | BH133: 96.31480759 | BI133: 2.502433223 | BJ133: 3.141526394 | BK133: 0.6396313628 | BL133: 0.3654739463
G134: 125 | H134: 25.875 | I134: BUCK | J134: 1 | K134: 15 | L134: 7.729468599 | M134: 15 | N134: 0.4679976852 | O134: 0 | P134: 7.822368582 | Q134: 15.16901845 | R134: 0.9135908143 | S134: 1.606033435 | T134: 2.51962425 | U134: 2.258123303 | V134: 0.01529736256 | W134: 0.01529736256 | X134: 7.568957962 | Y134: 0.2864456231 | Z134: 0.2864456231 | AA134: 10.37717957 | AB134: 0.2153717118 | AC134: 1.45271218 | AD134: 0 | AE134: 1.743169784 | AF134: 11.06405283 | AG134: 0.2448265299 | AH134: 0.24375 | AI134: 0.5137315525 | AJ134: 0 | AK134: 0 | AL134: 0 | AM134: 0 | AN134: 0 | AO134: 15.16901845 | AP134: 0.4601982417 | AQ134: 0 | AR134: 0.5068483892 | AS134: 0.4601982417 | AT134: 0 | AU134: 0.387675 | AV134: 0.3672397948 | AW134: 0 | AX134: 0.036 | AY134: 0.54 | AZ134: 0.8855084746 | BA134: 0.576 | BB134: 6.916031756 | BC134: 180 | BD134: 0.9629992586 | BE134: 106.5422392 | BF134: 25.68657763 | BH134: 96.29992586 | BI134: 2.51962425 | BJ134: 3.151424726 | BK134: 0.6416643025 | BL134: 0.3672397948
G135: 126 | H135: 26.01 | I135: BUCK | J135: 1 | K135: 15 | L135: 7.68935025 | M135: 15 | N135: 0.4655728267 | O135: 0 | P135: 7.858022819 | Q135: 15.17055405 | R135: 0.9137893164 | S135: 1.622949496 | T135: 2.536738813 | U135: 2.268415795 | V135: 0.01543713066 | W135: 0.01543713066 | X135: 7.567275064 | Y135: 0.2863182595 | Z135: 0.2863182595 | AA135: 10.35130856 | AB135: 0.2142991777 | AC135: 1.460291548 | AD135: 0 | AE135: 1.749577322 | AF135: 11.09036164 | AG135: 0.2459922427 | AH135: 0.24375 | AI135: 0.5150835545 | AJ135: 0 | AK135: 0 | AL135: 0 | AM135: 0 | AN135: 0 | AO135: 15.17055405 | AP135: 0.4602914204 | AQ135: 0 | AR135: 0.5069614187 | AS135: 0.4602914204 | AT135: 0 | AU135: 0.3897 | AV135: 0.3689883641 | AW135: 0 | AX135: 0.036 | AY135: 0.54 | AZ135: 0.8855084746 | BA135: 0.576 | BB135: 6.944804863 | BC135: 180 | BD135: 0.9628510412 | BE135: 106.9638661 | BF135: 25.75417772 | BH135: 96.28510412 | BI135: 2.536738813 | BJ135: 3.161322296 | BK135: 0.6436845545 | BL135: 0.3689883641
G136: 127 | H136: 26.145 | I136: BUCK | J136: 1 | K136: 15 | L136: 7.649646204 | M136: 15 | N136: 0.4631729668 | O136: 0 | P136: 7.893309487 | Q136: 15.17208054 | R136: 0.9139866667 | S136: 1.639790001 | T136: 2.553776668 | U136: 2.278602178 | V136: 0.01557608366 | W136: 0.01557608366 | X136: 7.56543545 | Y136: 0.2861790678 | Z136: 0.2861790678 | AA136: 10.32563434 | AB136: 0.213237449 | AC136: 1.467870916 | AD136: 0 | AE136: 1.75599724 | AF136: 11.11635297 | AG136: 0.2471466068 | AH136: 0.24375 | AI136: 0.5164230476 | AJ136: 0 | AK136: 0 | AL136: 0 | AM136: 0 | AN136: 0 | AO136: 15.17208054 | AP136: 0.4603840558 | AQ136: 0 | AR136: 0.5070737937 | AS136: 0.4603840558 | AT136: 0 | AU136: 0.391725 | AV136: 0.3707199102 | AW136: 0 | AX136: 0.036 | AY136: 0.54 | AZ136: 0.8855084746 | BA136: 0.576 | BB136: 6.97347081 | BC136: 180 | BD136: 0.9627034211 | BE136: 107.386112 | BF136: 25.82115238 | BH136: 96.27034211 | BI136: 2.553776668 | BJ136: 3.171219081 | BK136: 0.6456922976 | BL136: 0.3707199102
G137: 128 | H137: =VIN_min+(VIN_max-VIN_min)*(G137/200) -> 26.28 | I137: =IF(H137>VIN_BB_to_buck, "BUCK", IF(H137<VIN_boost_to_BB,"BOOST","BUCK-BST")) -> BUCK | J137: 1 | K137: =Iout -> 15 | L137: =Vout*K137/(H137*Efficiency) -> 7.610350076 | M137: =Iout/(1-O137) -> 15 | N137: =CHOOSE(J137,(Vout+(Rdson2+Rs+Rdcr)*K137)/(H137+(Rs+Rdson2-Rdson1)*K137),1,IF(H137<Vout,D_max_buck_BB,Vout/H137*(1-D_min_boost_exitBB_to_buck))) -> 0.4607977208 | O137: 0 | P137: =MAX(0, CHOOSE(J137, (H137-(Rdson1+Rdcr)*K137-Vout)*N137/(Fsw*Lf), (H137-(Rdson4+Rdcr+Rs)*L137)*O137/(Fsw*Lf), IF(H137<Vout, (H137-(Rdson4+Rdcr+Rs)*L137)*O137/(0.5*Fsw*Lf),(H137-(Rdson1+Rdcr)*K137-Vout)*N137/(0.5*Fsw*Lf)))) -> 7.92823424 | Q137: =CHOOSE(J137, SQRT(K137^2+(P137^2)/12), SQRT(L137^2+(P137^2)/12), SQRT(M137^2+(P137^2)/12)) -> 15.17359795 | R137: 0.9141828693 | S137: 1.65655473 | T137: 2.5707376 | U137: =IF(H137>Vout, P137/SQRT(12), SQRT(O137/(1-O137))*SQRT(K137^2+(P137^2)/12)) -> 2.288684086 | V137: 0.01571422454 | W137: 0.01571422454 | X137: =IF(H137>Vout, SQRT(N137*(1-N137))*SQRT(K137^2+(P137^2)/12), P137/SQRT(12)) -> 7.56344396 | Y137: 0.2860284227 | Z137: 0.2860284227 | AA137: =CHOOSE(J137, SQRT(N137)*SQRT(K137^2+(P137^2)/12), SQRT(L137^2+(P137^2)/12), SQRT(N137)*SQRT(M137^2+(P137^2)/12)) -> 10.30015437 | AB137: =Rdson1*AA137^2 -> 0.2121863603 | AC137: =CHOOSE(J137, (H137*K137/2)*(Fsw)*(Tr_buck+Tf_buck), 0, (H137*M137/2)*(Fsw/2)*(Tr_buck+Tf_buck)) -> 1.475450284 | AD137: =IF(H137>Vout, IF(K137>P137/2,0,ABS(K137-P137/2)*Vsd_Q1*Deadtime*Fsw),0) -> 0 | AE137: =(AD137+AC137+AB137*(1+RdsonTopTc*Ta-RdsonTopTc*25))/(1-AB137*RdsonTopTc*ThetaJA_Q1) -> 1.762429338 | AF137: =CHOOSE(J137, SQRT((1-N137))*SQRT(K137^2+(P137^2)/12), 0, SQRT((1-N137))*SQRT(M137^2+(P137^2)/12)) -> 11.14203279 | AG137: =Rdson2*AF137^2 -> 0.2482897894 | AH137: =CHOOSE(J137, IF(K137<P137/2,Deadtime*Fsw*IF(VfdSky_Q2>0,0,Vsd_Q2)*(K137+P137/2),2*Deadtime*Fsw*IF(VfdSky_Q2>0,0,Vsd_Q2)*K137),0, IF(K137<P137/2,Deadtime*Fsw/2*IF(VfdSky_Q2>0,0,Vsd_Q2)*(K137+P137/2),2*Deadtime*Fsw/2*IF(VfdSky_Q2>0,0,Vsd_Q2)*K137)) -> 0.24375 | AI137: =(AH137+AG137*(1+RdsonBotTc*Ta-RdsonBotTc*25))/(1-AG137*RdsonBotTc*ThetaJA_Q2) -> 0.5177502074 | AJ137: =CHOOSE(J137, 0, SQRT(O137)*SQRT(L137^2+(P137^2)/12), SQRT(O137)*SQRT(M137^2+(P137^2)/12)) -> 0 | AK137: =Rdson4*AJ137^2 -> 0 | AL137: =CHOOSE(J137, 0, (Vout*L137/2)*(Fsw)*(Tr_boost+Tf_boost), (Vout*Iout/2)*(Fsw/2)*(Tr_boost+Tf_boost)) -> 0 | AM137: =IF(H137>Vout, 0, IF(L137>P137/2,0,ABS(L137-P137/2)*Vsd_Q4*Deadtime*Fsw)) -> 0 | AN137: =(AM137+AL137+AK137*(1+RdsonTopTc*Ta-RdsonTopTc*25))/(1-AK137*RdsonTopTc*ThetaJA_Q4) -> 0 | AO137: =CHOOSE(J137, SQRT(Iout^2+(P137^2)/12), SQRT(1-O137)*SQRT(L137^2+(P137^2)/12), SQRT(1-O137)*SQRT(M137^2+(P137^2)/12)) -> 15.17359795 | AP137: =Rdson3*AO137^2 -> 0.4604761497 | AQ137: =CHOOSE(J137, 0, IF(L137<P137/2,Deadtime*Fsw*IF(VfdSky_Q3>0,0,Vsd_Q3)*(L137+P137/2), 2*Deadtime*Fsw*IF(VfdSky_Q3>0,0,Vsd_Q3)*L137), IF(L137<P137/2,Deadtime*Fsw/2*IF(VfdSky_Q3>0,0,Vsd_Q3)*(L137+P137/2), 2*Deadtime*Fsw/2*IF(VfdSky_Q3>0,0,Vsd_Q3)*L137)) -> 0 | AR137: =(AQ137+AP137*(1+RdsonBotTc*Ta-RdsonBotTc*25))/(1-AP137*RdsonBotTc*ThetaJA_Q3) -> 0.5071855165 | AS137: =CHOOSE(J137, Rdson3*Q137^2, Rdson1*Q137^2, 0) -> 0.4604761497 | AT137: =CHOOSE(J137, 2*Deadtime*Fsw*IF(VfdSky_Q2>0,VfdSky_Q2,0)*K137, 2*Deadtime*Fsw*IF(VfdSky_Q3>0,VfdSky_Q3,0)*L137, 2*Deadtime*Fsw/2*IF(VfdSky_Q2>0,VfdSky_Q2,0)*K137+2*Deadtime*Fsw/2*IF(VfdSky_Q3>0,VfdSky_Q3,0)*L137) -> 0 | AU137: =CHOOSE(J137, IF(QrrSky_Q2>0,QrrSky_Q2,Qrr_Q2)*Fsw*(H137-K137*Rdson1), IF(QrrSky_Q3>0,QrrSky_Q3,Qrr_Q3)*Fsw*Vout, IF(QrrSky_Q2>0,QrrSky_Q2,Qrr_Q2)*Fsw/2*(H137-K137*Rdson1)+IF(QrrSky_Q3>0,QrrSky_Q3,Qrr_Q3)*Fsw/2*Vout) -> 0.39375 | AV137: =CHOOSE(J137, Rs*AF137^2, Rs*AJ137^2, Rs*(AF137^2+AJ137^2)) -> 0.3724346841 | AW137: =Rshunt_std/1000*Iout^2 -> 0 | AX137: =IF(Vout>8, Iq*Vout, Iq*H137) -> 0.036 | AY137: =CHOOSE(J137, (Qg_Q1+Qg_Q2)*Fsw, (Qg_Q3+Qg_Q4)*Fsw, (Qg_Q1+Qg_Q2+Qg_Q3+Qg_Q4)*Fsw/2)*IF(Vout>8, Vout, H137) -> 0.54 | AZ137: =(Vin-Vdd)*Fsw*(Qg_Q1+Qg_Q2)+(RdsonDRT+RdsonDRT2)*Fsw*Qg_Q1*Vdd/(RdsonDRT+2*Rgate1+RdsonDRT2)+(RdsonDRB+RdsonDRB2)*Fsw*Qg_Q2*Vdd/(RdsonDRB+2*Rgate2+RdsonDRB2) -> 0.8855084746 | BA137: 0.576 | BB137: 7.002029993 | BC137: =Vout*K137 -> 180 | BD137: 0.9625563958 | BE137: =IF(H137>Vout,ThetaJA_Q1*(AE137+AU137),ThetaJA_Q4*(AN137+AU137)) -> 107.8089669 | BF137: =IF(H137>Vout, AI137*ThetaJA_Q2, ThetaJA_Q3*AR137) -> 25.88751037 | BH137: 96.25563958 | BI137: 2.5707376 | BJ137: 3.181115062 | BK137: 0.6476877074 | BL137: 0.3724346841
G138: 129 | H138: 26.415 | I138: BUCK | J138: =IF(I138="BOOST",2, IF(I138="BUCK", 1,3)) -> 1 | K138: 15 | L138: 7.571455612 | M138: 15 | N138: 0.458446712 | O138: =CHOOSE(J138,0,(Vout+(Rdson3+Rdcr)*L138-H138)/(Vout+(Rdson3-Rdson4-Rs)*L138),IF(H138>Vout,D_min_boost_exitBB_to_buck, (Vout-H138*D_max_buck_BB)/Vout)) -> 0 | P138: 7.962802618 | Q138: 15.17510633 | R138: 0.9143779285 | S138: 1.673243496 | T138: 2.587621424 | U138: 2.298663118 | V138: 0.01585155638 | W138: 0.01585155638 | X138: 7.561305277 | Y138: 0.2858666875 | Z138: 0.2858666875 | AA138: 10.27486617 | AB138: 0.2111457497 | AC138: 1.483029652 | AD138: 0 | AE138: 1.768873423 | AF138: 11.16740692 | AG138: 0.2494219546 | AH138: 0.24375 | AI138: 0.5190652062 | AJ138: 0 | AK138: 0 | AL138: 0 | AM138: 0 | AN138: 0 | AO138: 15.17510633 | AP138: 0.4605677043 | AQ138: 0 | AR138: 0.5072965894 | AS138: 0.4605677043 | AT138: 0 | AU138: 0.395775 | AV138: 0.3741329319 | AW138: 0 | AX138: 0.036 | AY138: 0.54 | AZ138: 0.8855084746 | BA138: 0.576 | BB138: 7.030482818 | BC138: 180 | BD138: 0.9624099627 | BE138: 108.2324211 | BF138: 25.95326031 | BH138: 96.24099627 | BI138: 2.587621424 | BJ138: 3.191010218 | BK138: 0.6496709562 | BL138: 0.3741329319
G139: 130 | H139: 26.55 | I139: BUCK | J139: 1 | K139: 15 | L139: 7.532956685 | M139: 15 | N139: 0.4561195713 | O139: 0 | P139: 7.997020048 | Q139: 15.17660571 | R139: 0.9145718488 | S139: 1.689856137 | T139: 2.604427985 | U139: 2.308540839 | V139: 0.01598808241 | W139: 0.01598808241 | X139: 7.559023935 | Y139: 0.2856942143 | Z139: 0.2856942143 | AA139: 10.24976728 | AB139: 0.2101154586 | AC139: 1.49060902 | AD139: 0 | AE139: 1.775329305 | AF139: 11.19248102 | AG139: 0.250543263 | AH139: 0.24375 | AI139: 0.520368213 | AJ139: 0 | AK139: 0 | AL139: 0 | AM139: 0 | AN139: 0 | AO139: 15.17660571 | AP139: 0.4606587216 | AQ139: 0 | AR139: 0.507407015 | AS139: 0.4606587216 | AT139: 0 | AU139: 0.3978 | AV139: 0.3758148945 | AW139: 0 | AX139: 0.036 | AY139: 0.54 | AZ139: 0.8855084746 | BA139: 0.576 | BB139: 7.058829709 | BC139: 180 | BD139: 0.9622641192 | BE139: 108.6564652 | BF139: 26.01841065 | BH139: 96.22641192 | BI139: 2.604427985 | BJ139: 3.200904533 | BK139: 0.651642213 | BL139: 0.3758148945
G140: 131 | H140: 26.685 | I140: BUCK | J140: 1 | K140: 15 | L140: 7.494847292 | M140: 15 | N140: 0.4538159371 | O140: 0 | P140: 8.030891848 | Q140: 15.17809613 | R140: 0.9147646348 | S140: 1.706392518 | T140: 2.621157153 | U140: 2.318318785 | V140: 0.01612380597 | W140: 0.01612380597 | X140: 7.556604325 | Y140: 0.2855113446 | Z140: 0.2855113446 | AA140: 10.2248553 | AB140: 0.2090953318 | AC140: 1.498188388 | AD140: 0 | AE140: 1.781796798 | AF140: 11.21726063 | AG140: 0.2516538722 | AH140: 0.24375 | AI140: 0.5216593934 | AJ140: 0 | AK140: 0 | AL140: 0 | AM140: 0 | AN140: 0 | AO140: 15.17809613 | AP140: 0.460749204 | AQ140: 0 | AR140: 0.5075167959 | AS140: 0.460749204 | AT140: 0 | AU140: 0.399825 | AV140: 0.3774808083 | AW140: 0 | AX140: 0.036 | AY140: 0.54 | AZ140: 0.8855084746 | BA140: 0.576 | BB140: 7.0870711 | BC140: 180 | BD140: 0.9621188623 | BE140: 109.0810899 | BF140: 26.08296967 | BH140: 96.21188623 | BI140: 2.621157153 | BJ140: 3.210797987 | BK140: 0.6536016434 | BL140: 0.3774808083
G141: 132 | H141: 26.82 | I141: BUCK | J141: 1 | K141: 15 | L141: 7.457121551 | M141: 15 | N141: 0.4515354551 | O141: 0 | P141: 8.064423227 | Q141: 15.17957762 | R141: 0.9149562914 | S141: 1.722852533 | T141: 2.637808825 | U141: 2.327998461 | V141: 0.0162587305 | W141: 0.0162587305 | X141: 7.554050696 | Y141: 0.2853184096 | Z141: 0.2853184096 | AA141: 10.20012787 | AB141: 0.208085217 | AC141: 1.505767756 | AD141: 0 | AE141: 1.788275721 | AF141: 11.24175112 | AG141: 0.2527539367 | AH141: 0.24375 | AI141: 0.5229389104 | AJ141: 0 | AK141: 0 | AL141: 0 | AM141: 0 | AN141: 0 | AO141: 15.17957762 | AP141: 0.4608391537 | AQ141: 0 | AR141: 0.5076259349 | AS141: 0.4608391537 | AT141: 0 | AU141: 0.40185 | AV141: 0.3791309051 | AW141: 0 | AX141: 0.036 | AY141: 0.54 | AZ141: 0.8855084746 | BA141: 0.576 | BB141: 7.115207436 | BC141: 180 | BD141: 0.9619741894 | BE141: 109.506286 | BF141: 26.14694552 | BH141: 96.19741894 | BI141: 2.637808825 | BJ141: 3.220690566 | BK141: 0.6555494104 | BL141: 0.3791309051
G142: 133 | H142: 26.955 | I142: BUCK | J142: 1 | K142: 15 | L142: 7.419773697 | M142: 15 | N142: 0.4492777778 | O142: 0 | P142: 8.097619293 | Q142: 15.18105024 | R142: 0.9151468234 | S142: 1.739236098 | T142: 2.654382921 | U142: 2.337581339 | V142: 0.01639285955 | W142: 0.01639285955 | X142: 7.551367165 | Y142: 0.2851157303 | Z142: 0.2851157303 | AA142: 10.17558266 | AB142: 0.207084965 | AC142: 1.513347124 | AD142: 0 | AE142: 1.794765895 | AF142: 11.26595775 | AG142: 0.253843608 | AH142: 0.24375 | AI142: 0.5242069234 | AJ142: 0 | AK142: 0 | AL142: 0 | AM142: 0 | AN142: 0 | AO142: 15.18105024 | AP142: 0.460928573 | AQ142: 0 | AR142: 0.5077344347 | AS142: 0.460928573 | AT142: 0 | AU142: 0.403875 | AV142: 0.380765412 | AW142: 0 | AX142: 0.036 | AY142: 0.54 | AZ142: 0.8855084746 | BA142: 0.576 | BB142: 7.143239176 | BC142: 180 | BD142: 0.9618300976 | BE142: 109.9320448 | BF142: 26.21034617 | BH142: 96.18300976 | BI142: 2.654382921 | BJ142: 3.230582253 | BK142: 0.6574856734 | BL142: 0.380765412
G143: 134 | H143: 27.09 | I143: BUCK | J143: 1 | K143: 15 | L143: 7.38279808 | M143: 15 | N143: 0.447042565 | O143: 0 | P143: 8.130485049 | Q143: 15.18251403 | R143: 0.915336236 | S143: 1.755543152 | T143: 2.670879388 | U143: 2.347068866 | V143: 0.01652619679 | W143: 0.01652619679 | X143: 7.54855772 | Y143: 0.2849036182 | Z143: 0.2849036182 | AA143: 10.15121741 | AB143: 0.2060944298 | AC143: 1.520926491 | AD143: 0 | AE143: 1.801267146 | AF143: 11.28988562 | AG143: 0.2549230347 | AH143: 0.24375 | AI143: 0.5254635893 | AJ143: 0 | AK143: 0 | AL143: 0 | AM143: 0 | AN143: 0 | AO143: 15.18251403 | AP143: 0.4610174645 | AQ143: 0 | AR143: 0.5078422983 | AS143: 0.4610174645 | AT143: 0 | AU143: 0.4059 | AV143: 0.382384552 | AW143: 0 | AX143: 0.036 | AY143: 0.54 | AZ143: 0.8855084746 | BA143: 0.576 | BB143: 7.171166789 | BC143: 180 | BD143: 0.9616865839 | BE143: 110.3583573 | BF143: 26.27317946 | BH143: 96.16865839 | BI143: 2.670879388 | BJ143: 3.240473034 | BK143: 0.6594105893 | BL143: 0.382384552
G144: 135 | H144: 27.225 | I144: BUCK | J144: 1 | K144: 15 | L144: 7.346189164 | M144: 15 | N144: 0.4448294829 | O144: 0 | P144: 8.163025403 | Q144: 15.18396902 | R144: 0.9155245344 | S144: 1.771773658 | T144: 2.687298192 | U144: 2.356462457 | V144: 0.01665874593 | W144: 0.01665874593 | X144: 7.545626223 | Y144: 0.2846823755 | Z144: 0.2846823755 | AA144: 10.12702988 | AB144: 0.2051134682 | AC144: 1.528505859 | AD144: 0 | AE144: 1.807779304 | AF144: 11.31353973 | AG144: 0.2559923624 | AH144: 0.24375 | AI144: 0.5267090618 | AJ144: 0 | AK144: 0 | AL144: 0 | AM144: 0 | AN144: 0 | AO144: 15.18396902 | AP144: 0.4611058306 | AQ144: 0 | AR144: 0.5079495285 | AS144: 0.4611058306 | AT144: 0 | AU144: 0.407925 | AV144: 0.3839885436 | AW144: 0 | AX144: 0.036 | AY144: 0.54 | AZ144: 0.8855084746 | BA144: 0.576 | BB144: 7.198990751 | BC144: 180 | BD144: 0.9615436455 | BE144: 110.7852152 | BF144: 26.33545309 | BH144: 96.15436455 | BI144: 2.687298192 | BJ144: 3.250362894 | BK144: 0.6613243118 | BL144: 0.3839885436
G145: 136 | H145: 27.36 | I145: BUCK | J145: 1 | K145: 15 | L145: 7.30994152 | M145: 15 | N145: 0.4426382047 | O145: 0 | P145: 8.195245161 | Q145: 15.18541527 | R145: 0.9157117239 | S145: 1.787927599 | T145: 2.703639323 | U145: 2.3657635 | V145: 0.01679051081 | W145: 0.01679051081 | X145: 7.542576419 | Y145: 0.2844522952 | Z145: 0.2844522952 | AA145: 10.10301786 | AB145: 0.2041419398 | AC145: 1.536085227 | AD145: 0 | AE145: 1.814302201 | AF145: 11.33692494 | AG145: 0.257051734 | AH145: 0.24375 | AI145: 0.5279434921 | AJ145: 0 | AK145: 0 | AL145: 0 | AM145: 0 | AN145: 0 | AO145: 15.18541527 | AP145: 0.4611936739 | AQ145: 0 | AR145: 0.5080561283 | AS145: 0.4611936739 | AT145: 0 | AU145: 0.40995 | AV145: 0.3855776011 | AW145: 0 | AX145: 0.036 | AY145: 0.54 | AZ145: 0.8855084746 | BA145: 0.576 | BB145: 7.226711551 | BC145: 180 | BD145: 0.9614012793 | BE145: 111.2126101 | BF145: 26.3971746 | BH145: 96.14012793 | BI145: 2.703639323 | BJ145: 3.260251822 | BK145: 0.6632269921 | BL145: 0.3855776011
G146: 137 | H146: 27.495 | I146: BUCK | J146: 1 | K146: 15 | L146: 7.274049827 | M146: 15 | N146: 0.4404684096 | O146: 0 | P146: 8.227149039 | Q146: 15.18685282 | R146: 0.91589781 | S146: 1.80400498 | T146: 2.71990279 | U146: 2.374973356 | V146: 0.01692149533 | W146: 0.01692149533 | X146: 7.539411935 | Y146: 0.2842136616 | Z146: 0.2842136616 | AA146: 10.07917921 | AB146: 0.2031797071 | AC146: 1.543664595 | AD146: 0 | AE146: 1.820835674 | AF146: 11.36004599 | AG146: 0.2581012898 | AH146: 0.24375 | AI146: 0.5291670283 | AJ146: 0 | AK146: 0 | AL146: 0 | AM146: 0 | AN146: 0 | AO146: 15.18685282 | AP146: 0.4612809969 | AQ146: 0 | AR146: 0.508162101 | AS146: 0.4612809969 | AT146: 0 | AU146: 0.411975 | AV146: 0.3871519347 | AW146: 0 | AX146: 0.036 | AY146: 0.54 | AZ146: 0.8855084746 | BA146: 0.576 | BB146: 7.254329685 | BC146: 180 | BD146: 0.9612594822 | BE146: 111.6405337 | BF146: 26.45835142 | BH146: 96.12594822 | BI146: 2.71990279 | BJ146: 3.270139803 | BK146: 0.6651187783 | BL146: 0.3871519347
G147: 138 | H147: 27.63 | I147: BUCK | J147: 1 | K147: 15 | L147: 7.238508867 | M147: 15 | N147: 0.4383197832 | O147: 0 | P147: 8.258741661 | Q147: 15.18828171 | R147: 0.9160827981 | S147: 1.820005825 | T147: 2.736088623 | U147: 2.38409336 | V147: 0.01705170345 | W147: 0.01705170345 | X147: 7.536136286 | Y147: 0.2839667506 | Z147: 0.2839667506 | AA147: 10.0555118 | AB147: 0.2022266351 | AC147: 1.551243963 | AD147: 0 | AE147: 1.827379562 | AF147: 11.38290752 | AG147: 0.2591411672 | AH147: 0.24375 | AI147: 0.5303798161 | AJ147: 0 | AK147: 0 | AL147: 0 | AM147: 0 | AN147: 0 | AO147: 15.18828171 | AP147: 0.4613678023 | AQ147: 0 | AR147: 0.5082674495 | AS147: 0.4613678023 | AT147: 0 | AU147: 0.414 | AV147: 0.3887117508 | AW147: 0 | AX147: 0.036 | AY147: 0.54 | AZ147: 0.8855084746 | BA147: 0.576 | BB147: 7.281845655 | BC147: 180 | BD147: 0.9611182513 | BE147: 112.0689781 | BF147: 26.51899081 | BH147: 96.11182513 | BI147: 2.736088623 | BJ147: 3.280026828 | BK147: 0.6669998161 | BL147: 0.3887117508
G148: 139 | H148: 27.765 | I148: BUCK | J148: 1 | K148: 15 | L148: 7.203313524 | M148: 15 | N148: 0.4361920173 | O148: 0 | P148: 8.290027557 | Q148: 15.18970199 | R148: 0.9162666941 | S148: 1.835930175 | T148: 2.75219687 | U148: 2.393124821 | V148: 0.01718113922 | W148: 0.01718113922 | X148: 7.532752881 | Y148: 0.2837118299 | Z148: 0.2837118299 | AA148: 10.03201355 | AB148: 0.2012825916 | AC148: 1.558823331 | AD148: 0 | AE148: 1.833933709 | AF148: 11.40551404 | AG148: 0.2601715012 | AH148: 0.24375 | AI148: 0.5315819985 | AJ148: 0 | AK148: 0 | AL148: 0 | AM148: 0 | AN148: 0 | AO148: 15.18970199 | AP148: 0.4614540928 | AQ148: 0 | AR148: 0.5083721772 | AS148: 0.4614540928 | AT148: 0 | AU148: 0.416025 | AV148: 0.3902572518 | AW148: 0 | AX148: 0.036 | AY148: 0.54 | AZ148: 0.8855084746 | BA148: 0.576 | BB148: 7.309259975 | BC148: 180 | BD148: 0.9609775834 | BE148: 112.4979354 | BF148: 26.57909993 | BH148: 96.09775834 | BI148: 2.75219687 | BJ148: 3.289912884 | BK148: 0.6688702485 | BL148: 0.3902572518
G149: 140 | H149: 27.9 | I149: BUCK | J149: 1 | K149: 15 | L149: 7.168458781 | M149: 15 | N149: 0.4340848094 | O149: 0 | P149: 8.321011175 | Q149: 15.1911137 | R149: 0.9164495035 | S149: 1.851778093 | T149: 2.768227596 | U149: 2.402069021 | V149: 0.01730980674 | W149: 0.01730980674 | X149: 7.529265026 | Y149: 0.2834491592 | Z149: 0.2834491592 | AA149: 10.00868241 | AB149: 0.200347447 | AC149: 1.566402699 | AD149: 0 | AE149: 1.840497959 | AF149: 11.42786997 | AG149: 0.2611924241 | AH149: 0.24375 | AI149: 0.5327737158 | AJ149: 0 | AK149: 0 | AL149: 0 | AM149: 0 | AN149: 0 | AO149: 15.1911137 | AP149: 0.4615398712 | AQ149: 0 | AR149: 0.5084762872 | AS149: 0.4615398712 | AT149: 0 | AU149: 0.41805 | AV149: 0.3917886362 | AW149: 0 | AX149: 0.036 | AY149: 0.54 | AZ149: 0.8855084746 | BA149: 0.576 | BB149: 7.336573161 | BC149: 180 | BD149: 0.9608374754 | BE149: 112.927398 | BF149: 26.63868579 | BH149: 96.08374754 | BI149: 2.768227596 | BJ149: 3.299797962 | BK149: 0.6707302158 | BL149: 0.3917886362
G150: 141 | H150: 28.035 | I150: BUCK | J150: 1 | K150: 15 | L150: 7.133939718 | M150: 15 | N150: 0.4319978632 | O150: 0 | P150: 8.351696873 | Q150: 15.19251691 | R150: 0.9166312323 | S150: 1.867549653 | T150: 2.784180886 | U150: 2.410927219 | V150: 0.01743771016 | W150: 0.01743771016 | X150: 7.525675924 | Y150: 0.2831789906 | Z150: 0.2831789906 | AA150: 9.985516365 | AB150: 0.1994210741 | AC150: 1.573982067 | AD150: 0 | AE150: 1.847072164 | AF150: 11.44997961 | AG150: 0.262204066 | AH150: 0.24375 | AI150: 0.5339551059 | AJ150: 0 | AK150: 0 | AL150: 0 | AM150: 0 | AN150: 0 | AO150: 15.19251691 | AP150: 0.4616251401 | AQ150: 0 | AR150: 0.5085797828 | AS150: 0.4616251401 | AT150: 0 | AU150: 0.420075 | AV150: 0.3933060989 | AW150: 0 | AX150: 0.036 | AY150: 0.54 | AZ150: 0.8855084746 | BA150: 0.576 | BB150: 7.363785738 | BC150: 180 | BD150: 0.960697924 | BE150: 113.3573582 | BF150: 26.6977553 | BH150: 96.0697924 | BI150: 2.784180886 | BJ150: 3.309682053 | BK150: 0.6725798559 | BL150: 0.3933060989
G151: 142 | H151: 28.17 | I151: BUCK | J151: 1 | K151: 15 | L151: 7.099751509 | M151: 15 | N151: 0.4299308878 | O151: 0 | P151: 8.382088928 | Q151: 15.19391165 | R151: 0.9168118863 | S151: 1.883244951 | T151: 2.800056838 | U151: 2.419700649 | V151: 0.0175648537 | W151: 0.0175648537 | X151: 7.521988684 | Y151: 0.2829015688 | Z151: 0.2829015688 | AA151: 9.962513445 | AB151: 0.1985033483 | AC151: 1.581561435 | AD151: 0 | AE151: 1.853656174 | AF151: 11.47184715 | AG151: 0.2632065542 | AH151: 0.24375 | AI151: 0.5351263043 | AJ151: 0 | AK151: 0 | AL151: 0 | AM151: 0 | AN151: 0 | AO151: 15.19391165 | AP151: 0.4617099025 | AQ151: 0 | AR151: 0.5086826674 | AS151: 0.4617099025 | AT151: 0 | AU151: 0.4221 | AV151: 0.3948098313 | AW151: 0 | AX151: 0.036 | AY151: 0.54 | AZ151: 0.8855084746 | BA151: 0.576 | BB151: 7.390898237 | BC151: 180 | BD151: 0.9605589263 | BE151: 113.7878087 | BF151: 26.75631522 | BH151: 96.05589263 | BI151: 2.800056838 | BJ151: 3.319565146 | BK151: 0.6744193043 | BL151: 0.3948098313
G152: 143 | H152: 28.305 | I152: BUCK | J152: 1 | K152: 15 | L152: 7.065889419 | M152: 15 | N152: 0.4278835979 | O152: 0 | P152: 8.412191534 | Q152: 15.19529797 | R152: 0.9169914715 | S152: 1.898864095 | T152: 2.815855566 | U152: 2.428390523 | V152: 0.0176912416 | W152: 0.0176912416 | X152: 7.51820632 | Y152: 0.2826171313 | Z152: 0.2826171313 | AA152: 9.939671703 | AB152: 0.1975941471 | AC152: 1.589140803 | AD152: 0 | AE152: 1.860249846 | AF152: 11.49347671 | AG152: 0.2642000139 | AH152: 0.24375 | AI152: 0.536287444 | AJ152: 0 | AK152: 0 | AL152: 0 | AM152: 0 | AN152: 0 | AO152: 15.19529797 | AP152: 0.4617941611 | AQ152: 0 | AR152: 0.5087849444 | AS152: 0.4617941611 | AT152: 0 | AU152: 0.424125 | AV152: 0.3963000209 | AW152: 0 | AX152: 0.036 | AY152: 0.54 | AZ152: 0.8855084746 | BA152: 0.576 | BB152: 7.417911195 | BC152: 180 | BD152: 0.9604204788 | BE152: 114.2187423 | BF152: 26.8143722 | BH152: 96.04204788 | BI152: 2.815855566 | BJ152: 3.329447234 | BK152: 0.676248694 | BL152: 0.3963000209
G153: 144 | H153: 28.44 | I153: BUCK | J153: 1 | K153: 15 | L153: 7.032348805 | M153: 15 | N153: 0.4258557135 | O153: 0 | P153: 8.442008808 | Q153: 15.19667593 | R153: 0.9171699938 | S153: 1.914407208 | T153: 2.831577202 | U153: 2.436998029 | V153: 0.01781687818 | W153: 0.01781687818 | X153: 7.514331756 | Y153: 0.2823259087 | Z153: 0.2823259087 | AA153: 9.916989227 | AB153: 0.1966933507 | AC153: 1.59672017 | AD153: 0 | AE153: 1.866853037 | AF153: 11.5148723 | AG153: 0.2651845681 | AH153: 0.24375 | AI153: 0.5374386557 | AJ153: 0 | AK153: 0 | AL153: 0 | AM153: 0 | AN153: 0 | AO153: 15.19667593 | AP153: 0.4618779188 | AQ153: 0 | AR153: 0.5088866171 | AS153: 0.4618779188 | AT153: 0 | AU153: 0.42615 | AV153: 0.3977768522 | AW153: 0 | AX153: 0.036 | AY153: 0.54 | AZ153: 0.8855084746 | BA153: 0.576 | BB153: 7.444825151 | BC153: 180 | BD153: 0.9602825784 | BE153: 114.6501518 | BF153: 26.87193278 | BH153: 96.02825784 | BI153: 2.831577202 | BJ153: 3.33932831 | BK153: 0.6780681557 | BL153: 0.3977768522
G154: 145 | H154: 28.575 | I154: BUCK | J154: 1 | K154: 15 | L154: 6.999125109 | M154: 15 | N154: 0.4238469602 | O154: 0 | P154: 8.471544787 | Q154: 15.19804557 | R154: 0.9173474594 | S154: 1.929874429 | T154: 2.847221888 | U154: 2.445524332 | V154: 0.01794176777 | W154: 0.01794176777 | X154: 7.51036783 | Y154: 0.2820281247 | Z154: 0.2820281247 | AA154: 9.89446414 | AB154: 0.1958008412 | AC154: 1.604299538 | AD154: 0 | AE154: 1.873465608 | AF154: 11.53603782 | AG154: 0.2661603373 | AH154: 0.24375 | AI154: 0.5385800678 | AJ154: 0 | AK154: 0 | AL154: 0 | AM154: 0 | AN154: 0 | AO154: 15.19804557 | AP154: 0.4619611785 | AQ154: 0 | AR154: 0.5089876891 | AS154: 0.4619611785 | AT154: 0 | AU154: 0.428175 | AV154: 0.3992405059 | AW154: 0 | AX154: 0.036 | AY154: 0.54 | AZ154: 0.8855084746 | BA154: 0.576 | BB154: 7.471640651 | BC154: 180 | BD154: 0.9601452218 | BE154: 115.0820304 | BF154: 26.92900339 | BH154: 96.01452218 | BI154: 2.847221888 | BJ154: 3.349208365 | BK154: 0.6798778178 | BL154: 0.3992405059
G155: 146 | H155: 28.71 | I155: BUCK | J155: 1 | K155: 15 | L155: 6.966213863 | M155: 15 | N155: 0.4218570683 | O155: 0 | P155: 8.500803433 | Q155: 15.19940695 | R155: 0.9175238745 | S155: 1.945265907 | T155: 2.862789782 | U155: 2.453970575 | V155: 0.01806591475 | W155: 0.01806591475 | X155: 7.506317295 | Y155: 0.2817239966 | Z155: 0.2817239966 | AA155: 9.872094593 | AB155: 0.1949165033 | AC155: 1.611878906 | AD155: 0 | AE155: 1.880087423 | AF155: 11.55697711 | AG155: 0.2671274399 | AH155: 0.24375 | AI155: 0.5397118065 | AJ155: 0 | AK155: 0 | AL155: 0 | AM155: 0 | AN155: 0 | AO155: 15.19940695 | AP155: 0.4620439432 | AQ155: 0 | AR155: 0.5090881637 | AS155: 0.4620439432 | AT155: 0 | AU155: 0.4302 | AV155: 0.4006911598 | AW155: 0 | AX155: 0.036 | AY155: 0.54 | AZ155: 0.8855084746 | BA155: 0.576 | BB155: 7.498358246 | BC155: 180 | BD155: 0.9600084059 | BE155: 115.5143711 | BF155: 26.98559032 | BH155: 96.00084059 | BI155: 2.862789782 | BJ155: 3.359087393 | BK155: 0.6816778065 | BL155: 0.4006911598
G156: 147 | H156: 28.845 | I156: BUCK | J156: 1 | K156: 15 | L156: 6.933610678 | M156: 15 | N156: 0.4198857736 | O156: 0 | P156: 8.529788634 | Q156: 15.20076011 | R156: 0.9176992452 | S156: 1.960581808 | T156: 2.878281053 | U156: 2.462337882 | V156: 0.01818932354 | W156: 0.01818932354 | X156: 7.502182822 | Y156: 0.2814137355 | Z156: 0.2814137355 | AA156: 9.84987877 | AB156: 0.1940402236 | AC156: 1.619458274 | AD156: 0 | AE156: 1.886718348 | AF156: 11.5776939 | AG156: 0.2680859921 | AH156: 0.24375 | AI156: 0.5408339958 | AJ156: 0 | AK156: 0 | AL156: 0 | AM156: 0 | AN156: 0 | AO156: 15.20076011 | AP156: 0.4621262157 | AQ156: 0 | AR156: 0.5091880445 | AS156: 0.4621262157 | AT156: 0 | AU156: 0.432225 | AV156: 0.4021289882 | AW156: 0 | AX156: 0.036 | AY156: 0.54 | AZ156: 0.8855084746 | BA156: 0.576 | BB156: 7.524978488 | BC156: 180 | BD156: 0.9598721272 | BE156: 115.9471674 | BF156: 27.04169979 | BH156: 95.98721272 | BI156: 2.878281053 | BJ156: 3.368965388 | BK156: 0.6834682458 | BL156: 0.4021289882
G157: 148 | H157: 28.98 | I157: BUCK | J157: 1 | K157: 15 | L157: 6.901311249 | M157: 15 | N157: 0.4179328165 | O157: 0 | P157: 8.558504205 | Q157: 15.2021051 | R157: 0.9178735777 | S157: 1.975822306 | T157: 2.893695884 | U157: 2.470627353 | V157: 0.01831199856 | W157: 0.01831199856 | X157: 7.497967006 | Y157: 0.2810975461 | Z157: 0.2810975461 | AA157: 9.827814886 | AB157: 0.1931718909 | AC157: 1.627037642 | AD157: 0 | AE157: 1.893358252 | AF157: 11.59819185 | AG157: 0.2690361082 | AH157: 0.24375 | AI157: 0.5419467575 | AJ157: 0 | AK157: 0 | AL157: 0 | AM157: 0 | AN157: 0 | AO157: 15.2021051 | AP157: 0.462207999 | AQ157: 0 | AR157: 0.5092873351 | AS157: 0.462207999 | AT157: 0 | AU157: 0.43425 | AV157: 0.4035541623 | AW157: 0 | AX157: 0.036 | AY157: 0.54 | AZ157: 0.8855084746 | BA157: 0.576 | BB157: 7.551501935 | BC157: 180 | BD157: 0.9597363825 | BE157: 116.3804126 | BF157: 27.09733787 | BH157: 95.97363825 | BI157: 2.893695884 | BJ157: 3.378842344 | BK157: 0.6852492575 | BL157: 0.4035541623
G158: 149 | H158: 29.115 | I158: BUCK | J158: 1 | K158: 15 | L158: 6.869311352 | M158: 15 | N158: 0.4159979424 | O158: 0 | P158: 8.586953891 | Q158: 15.20344198 | R158: 0.9180468782 | S158: 1.99098759 | T158: 2.909034468 | U158: 2.47884007 | V158: 0.01843394428 | W158: 0.01843394428 | X158: 7.493672363 | Y158: 0.2807756274 | Z158: 0.2807756274 | AA158: 9.805901182 | AB158: 0.192311396 | AC158: 1.63461701 | AD158: 0 | AE158: 1.900007006 | AF158: 11.61847452 | AG158: 0.2699779002 | AH158: 0.24375 | AI158: 0.5430502113 | AJ158: 0 | AK158: 0 | AL158: 0 | AM158: 0 | AN158: 0 | AO158: 15.20344198 | AP158: 0.4622892962 | AQ158: 0 | AR158: 0.5093860389 | AS158: 0.4622892962 | AT158: 0 | AU158: 0.436275 | AV158: 0.4049668503 | AW158: 0 | AX158: 0.036 | AY158: 0.54 | AZ158: 0.8855084746 | BA158: 0.576 | BB158: 7.577929146 | BC158: 180 | BD158: 0.9596011685 | BE158: 116.8141003 | BF158: 27.15251057 | BH158: 95.96011685 | BI158: 2.909034468 | BJ158: 3.388718256 | BK158: 0.6870209613 | BL158: 0.4049668503
G159: 150 | H159: 29.25 | I159: BUCK | J159: 1 | K159: 15 | L159: 6.837606838 | M159: 15 | N159: 0.4140809012 | O159: 0 | P159: 8.615141368 | Q159: 15.2047708 | R159: 0.9182191532 | S159: 2.006077856 | T159: 2.92429701 | U159: 2.486977094 | V159: 0.0185551652 | W159: 0.0185551652 | X159: 7.489301338 | Y159: 0.2804481726 | Z159: 0.2804481726 | AA159: 9.784135932 | AB159: 0.1914586319 | AC159: 1.642196378 | AD159: 0 | AE159: 1.906664484 | AF159: 11.6385454 | AG159: 0.2709114783 | AH159: 0.24375 | AI159: 0.5441444751 | AJ159: 0 | AK159: 0 | AL159: 0 | AM159: 0 | AN159: 0 | AO159: 15.2047708 | AP159: 0.4623701101 | AQ159: 0 | AR159: 0.5094841595 | AS159: 0.4623701101 | AT159: 0 | AU159: 0.4383 | AV159: 0.4063672174 | AW159: 0 | AX159: 0.036 | AY159: 0.54 | AZ159: 0.8855084746 | BA159: 0.576 | BB159: 7.604260684 | BC159: 180 | BD159: 0.959466482 | BE159: 117.2482242 | BF159: 27.20722375 | BH159: 95.9466482 | BI159: 2.92429701 | BJ159: 3.398593119 | BK159: 0.6887834751 | BL159: 0.4063672174
G160: 151 | H160: 29.385 | I160: BUCK | J160: 1 | K160: 15 | L160: 6.806193636 | M160: 15 | N160: 0.4121814475 | O160: 0 | P160: 8.643070244 | Q160: 15.20609161 | R160: 0.9183904089 | S160: 2.021093315 | T160: 2.939483724 | U160: 2.495039466 | V160: 0.01867566581 | W160: 0.01867566581 | X160: 7.484856303 | Y160: 0.2801153694 | Z160: 0.2801153694 | AA160: 9.762517435 | AB160: 0.1906134934 | AC160: 1.649775746 | AD160: 0 | AE160: 1.913330564 | AF160: 11.65840792 | AG160: 0.2718369505 | AH160: 0.24375 | AI160: 0.5452296644 | AJ160: 0 | AK160: 0 | AL160: 0 | AM160: 0 | AN160: 0 | AO160: 15.20609161 | AP160: 0.4624504439 | AQ160: 0 | AR160: 0.5095817006 | AS160: 0.4624504439 | AT160: 0 | AU160: 0.440325 | AV160: 0.4077554258 | AW160: 0 | AX160: 0.036 | AY160: 0.54 | AZ160: 0.8855084746 | BA160: 0.576 | BB160: 7.630497113 | BC160: 180 | BD160: 0.9593323195 | BE160: 117.6827782 | BF160: 27.26148322 | BH160: 95.93323195 | BI160: 2.939483724 | BJ160: 3.408466929 | BK160: 0.6905369144 | BL160: 0.4077554258
G161: 152 | H161: 29.52 | I161: BUCK | J161: 1 | K161: 15 | L161: 6.775067751 | M161: 15 | N161: 0.4102993404 | O161: 0 | P161: 8.670744062 | Q161: 15.20740445 | R161: 0.9185606517 | S161: 2.036034184 | T161: 2.954594836 | U161: 2.503028209 | V161: 0.01879545065 | W161: 0.01879545065 | X161: 7.480339563 | Y161: 0.2797773999 | Z161: 0.2797773999 | AA161: 9.74104402 | AB161: 0.1897758772 | AC161: 1.657355114 | AD161: 0 | AE161: 1.920005122 | AF161: 11.67806541 | AG161: 0.2727544232 | AH161: 0.24375 | AI161: 0.546305893 | AJ161: 0 | AK161: 0 | AL161: 0 | AM161: 0 | AN161: 0 | AO161: 15.20740445 | AP161: 0.4625303004 | AQ161: 0 | AR161: 0.5096786657 | AS161: 0.4625303004 | AT161: 0 | AU161: 0.44235 | AV161: 0.4091316348 | AW161: 0 | AX161: 0.036 | AY161: 0.54 | AZ161: 0.8855084746 | BA161: 0.576 | BB161: 7.656639002 | BC161: 180 | BD161: 0.9591986777 | BE161: 118.1177561 | BF161: 27.31529465 | BH161: 95.91986777 | BI161: 2.954594836 | BJ161: 3.418339681 | BK161: 0.692281393 | BL161: 0.4091316348
G162: 153 | H162: 29.655 | I162: BUCK | J162: 1 | K162: 15 | L162: 6.744225257 | M162: 15 | N162: 0.4084343434 | O162: 0 | P162: 8.698166299 | Q162: 15.20870939 | R162: 0.9187298879 | S162: 2.050900692 | T162: 2.969630579 | U162: 2.510944327 | V162: 0.01891452424 | W162: 0.01891452424 | X162: 7.475753356 | Y162: 0.2794344412 | Z162: 0.2794344412 | AA162: 9.719714041 | AB162: 0.1889456821 | AC162: 1.664934482 | AD162: 0 | AE162: 1.926688041 | AF162: 11.69752112 | AG162: 0.2736640008 | AH162: 0.24375 | AI162: 0.5473732727 | AJ162: 0 | AK162: 0 | AL162: 0 | AM162: 0 | AN162: 0 | AO162: 15.20870939 | AP162: 0.4626096828 | AQ162: 0 | AR162: 0.5097750584 | AS162: 0.4626096828 | AT162: 0 | AU162: 0.444375 | AV162: 0.4104960011 | AW162: 0 | AX162: 0.036 | AY162: 0.54 | AZ162: 0.8855084746 | BA162: 0.576 | BB162: 7.682686918 | BC162: 180 | BD162: 0.9590655534 | BE162: 118.553152 | BF162: 27.36866363 | BH162: 95.90655534 | BI162: 2.969630579 | BJ162: 3.428211372 | BK162: 0.6940170227 | BL162: 0.4104960011
G163: 154 | H163: 29.79 | I163: BUCK | J163: 1 | K163: 15 | L163: 6.713662303 | M163: 15 | N163: 0.4065862242 | O163: 0 | P163: 8.725340372 | Q163: 15.21000648 | R163: 0.9188981239 | S163: 2.065693074 | T163: 2.984591198 | U163: 2.518788806 | V163: 0.01903289115 | W163: 0.01903289115 | X163: 7.471099855 | Y163: 0.2790866652 | Z163: 0.2790866652 | AA163: 9.69852588 | AB163: 0.1881228085 | AC163: 1.672513849 | AD163: 0 | AE163: 1.933379203 | AF163: 11.71677826 | AG163: 0.2745657856 | AH163: 0.24375 | AI163: 0.5484319135 | AJ163: 0 | AK163: 0 | AL163: 0 | AM163: 0 | AN163: 0 | AO163: 15.21000648 | AP163: 0.4626885941 | AQ163: 0 | AR163: 0.5098708825 | AS163: 0.4626885941 | AT163: 0 | AU163: 0.4464 | AV163: 0.4118486784 | AW163: 0 | AX163: 0.036 | AY163: 0.54 | AZ163: 0.8855084746 | BA163: 0.576 | BB163: 7.708641432 | BC163: 180 | BD163: 0.9589329432 | BE163: 118.9889602 | BF163: 27.42159567 | BH163: 95.89329432 | BI163: 2.984591198 | BJ163: 3.438081999 | BK163: 0.6957439135 | BL163: 0.4118486784
G164: 155 | H164: 29.925 | I164: BUCK | J164: 1 | K164: 15 | L164: 6.683375104 | M164: 15 | N164: 0.4047547548 | O164: 0 | P164: 8.752269633 | Q164: 15.21129576 | R164: 0.9190653662 | S164: 2.080411578 | T164: 2.999476944 | U164: 2.526562614 | V164: 0.01915055593 | W164: 0.01915055593 | X164: 7.466381172 | Y164: 0.278734239 | Z164: 0.278734239 | AA164: 9.677477943 | AB164: 0.1873071587 | AC164: 1.680093217 | AD164: 0 | AE164: 1.940078494 | AF164: 11.73583995 | AG164: 0.2754598786 | AH164: 0.24375 | AI164: 0.5494819234 | AJ164: 0 | AK164: 0 | AL164: 0 | AM164: 0 | AN164: 0 | AO164: 15.21129576 | AP164: 0.4627670373 | AQ164: 0 | AR164: 0.5099661414 | AS164: 0.4627670373 | AT164: 0 | AU164: 0.448425 | AV164: 0.4131898179 | AW164: 0 | AX164: 0.036 | AY164: 0.54 | AZ164: 0.8855084746 | BA164: 0.576 | BB164: 7.734503115 | BC164: 180 | BD164: 0.9588008438 | BE164: 119.4251747 | BF164: 27.47409617 | BH164: 95.88008438 | BI164: 2.999476944 | BJ164: 3.447951559 | BK164: 0.6974621734 | BL164: 0.4131898179
G165: 156 | H165: 30.06 | I165: BUCK | J165: 1 | K165: 15 | L165: 6.653359947 | M165: 15 | N165: 0.402939711 | O165: 0 | P165: 8.778957376 | Q165: 15.21257729 | R165: 0.9192316211 | S165: 2.095056455 | T165: 3.014288076 | U165: 2.534266702 | V165: 0.01926752315 | W165: 0.01926752315 | X165: 7.461599358 | Y165: 0.2783773249 | Z165: 0.2783773249 | AA165: 9.656568665 | AB165: 0.1864986368 | AC165: 1.687672585 | AD165: 0 | AE165: 1.946785802 | AF165: 11.75470924 | AG165: 0.2763463787 | AH165: 0.24375 | AI165: 0.5505234087 | AJ165: 0 | AK165: 0 | AL165: 0 | AM165: 0 | AN165: 0 | AO165: 15.21257729 | AP165: 0.4628450154 | AQ165: 0 | AR165: 0.5100608388 | AS165: 0.4628450154 | AT165: 0 | AU165: 0.45045 | AV165: 0.414519568 | AW165: 0 | AX165: 0.036 | AY165: 0.54 | AZ165: 0.8855084746 | BA165: 0.576 | BB165: 7.760272541 | BC165: 180 | BD165: 0.9586692518 | BE165: 119.8617901 | BF165: 27.52617044 | BH165: 95.86692518 | BI165: 3.014288076 | BJ165: 3.457820049 | BK165: 0.6991719087 | BL165: 0.414519568
G166: 157 | H166: 30.195 | I166: BUCK | J166: 1 | K166: 15 | L166: 6.623613181 | M166: 15 | N166: 0.401140873 | O166: 0 | P166: 8.805406836 | Q166: 15.21385112 | R166: 0.9193968951 | S166: 2.109627966 | T166: 3.029024861 | U166: 2.541902004 | V166: 0.01938379739 | W166: 0.01938379739 | X166: 7.456756406 | Y166: 0.2780160805 | Z166: 0.2780160805 | AA166: 9.635796502 | AB166: 0.1856971485 | AC166: 1.695251953 | AD166: 0 | AE166: 1.953501015 | AF166: 11.77338913 | AG166: 0.2772253831 | AH166: 0.24375 | AI166: 0.5515564741 | AJ166: 0 | AK166: 0 | AL166: 0 | AM166: 0 | AN166: 0 | AO166: 15.21385112 | AP166: 0.4629225316 | AQ166: 0 | AR166: 0.5101549784 | AS166: 0.4629225316 | AT166: 0 | AU166: 0.452475 | AV166: 0.4158380747 | AW166: 0 | AX166: 0.036 | AY166: 0.54 | AZ166: 0.8855084746 | BA166: 0.576 | BB166: 7.785950282 | BC166: 180 | BD166: 0.958538164 | BE166: 120.2988008 | BF166: 27.57782371 | BH166: 95.8538164 | BI166: 3.029024861 | BJ166: 3.467687468 | BK166: 0.7008732241 | BL166: 0.4158380747
G167: 158 | H167: 30.33 | I167: BUCK | J167: 1 | K167: 15 | L167: 6.594131223 | M167: 15 | N167: 0.3993580247 | O167: 0 | P167: 8.83162119 | Q167: 15.2151173 | R167: 0.9195611946 | S167: 2.12412638 | T167: 3.043687575 | U167: 2.549469436 | V167: 0.01949938321 | W167: 0.01949938321 | X167: 7.451854254 | Y167: 0.2776506591 | Z167: 0.2776506591 | AA167: 9.615159937 | AB167: 0.1849026012 | AC167: 1.702831321 | AD167: 0 | AE167: 1.960224027 | AF167: 11.79188254 | AG167: 0.2780969876 | AH167: 0.24375 | AI167: 0.5525812222 | AJ167: 0 | AK167: 0 | AL167: 0 | AM167: 0 | AN167: 0 | AO167: 15.2151173 | AP167: 0.4629995888 | AQ167: 0 | AR167: 0.5102485639 | AS167: 0.4629995888 | AT167: 0 | AU167: 0.4545 | AV167: 0.4171454814 | AW167: 0 | AX167: 0.036 | AY167: 0.54 | AZ167: 0.8855084746 | BA167: 0.576 | BB167: 7.811536911 | BC167: 180 | BD167: 0.9584075769 | BE167: 120.7362013 | BF167: 27.62906111 | BH167: 95.84075769 | BI167: 3.043687575 | BJ167: 3.477553813 | BK167: 0.7025662222 | BL167: 0.4171454814
G168: 159 | H168: 30.465 | I168: BUCK | J168: 1 | K168: 15 | L168: 6.564910553 | M168: 15 | N168: 0.3975909538 | O168: 0 | P168: 8.857603558 | Q168: 15.21637588 | R168: 0.9197245261 | S168: 2.138551971 | T168: 3.058276498 | U168: 2.556969899 | V168: 0.0196142852 | W168: 0.0196142852 | X168: 7.446894782 | Y168: 0.2772812094 | Z168: 0.2772812094 | AA168: 9.594657475 | AB168: 0.1841149041 | AC168: 1.710410689 | AD168: 0 | AE168: 1.966954729 | AF168: 11.81019234 | AG168: 0.278961286 | AH168: 0.24375 | AI168: 0.5535977543 | AJ168: 0 | AK168: 0 | AL168: 0 | AM168: 0 | AN168: 0 | AO168: 15.21637588 | AP168: 0.4630761901 | AQ168: 0 | AR168: 0.5103415988 | AS168: 0.4630761901 | AT168: 0 | AU168: 0.456525 | AV168: 0.418441929 | AW168: 0 | AX168: 0.036 | AY168: 0.54 | AZ168: 0.8855084746 | BA168: 0.576 | BB168: 7.837033004 | BC168: 180 | BD168: 0.9582774873 | BE168: 121.1739865 | BF168: 27.67988772 | BH168: 95.82774873 | BI168: 3.058276498 | BJ168: 3.487419082 | BK168: 0.7042510043 | BL168: 0.418441929
G169: 160 | H169: 30.6 | I169: BUCK | J169: 1 | K169: 15 | L169: 6.535947712 | M169: 15 | N169: 0.3958394518 | O169: 0 | P169: 8.883357006 | Q169: 15.21762693 | R169: 0.919886896 | S169: 2.152905021 | T169: 3.072791917 | U169: 2.564404279 | V169: 0.01972850792 | W169: 0.01972850792 | X169: 7.44187982 | Y169: 0.2769078762 | Z169: 0.2769078762 | AA169: 9.574287645 | AB169: 0.1833339678 | AC169: 1.717990057 | AD169: 0 | AE169: 1.973693019 | AF169: 11.82832133 | AG169: 0.2798183708 | AH169: 0.24375 | AI169: 0.5546061698 | AJ169: 0 | AK169: 0 | AL169: 0 | AM169: 0 | AN169: 0 | AO169: 15.21762693 | AP169: 0.4631523386 | AQ169: 0 | AR169: 0.5104340868 | AS169: 0.4631523386 | AT169: 0 | AU169: 0.45855 | AV169: 0.4197275562 | AW169: 0 | AX169: 0.036 | AY169: 0.54 | AZ169: 0.8855084746 | BA169: 0.576 | BB169: 7.862439133 | BC169: 180 | BD169: 0.9581478918 | BE169: 121.612151 | BF169: 27.73030849 | BH169: 95.81478918 | BI169: 3.072791917 | BJ169: 3.497283276 | BK169: 0.7059276698 | BL169: 0.4197275562
G170: 161 | H170: 30.735 | I170: BUCK | J170: 1 | K170: 15 | L170: 6.507239304 | M170: 15 | N170: 0.3941033138 | O170: =CHOOSE(J170,0,(Vout+(Rdson3+Rdcr)*L170-H170)/(Vout+(Rdson3-Rdson4-Rs)*L170),IF(H170>Vout,D_min_boost_exitBB_to_buck, (Vout-H170*D_max_buck_BB)/Vout)) -> 0 | P170: 8.908884547 | Q170: 15.21887048 | R170: 0.9200483107 | S170: 2.167185816 | T170: 3.087234127 | U170: 2.571773446 | V170: 0.01984205597 | W170: 0.01984205597 | X170: 7.436811145 | Y170: 0.2765308001 | Z170: 0.2765308001 | AA170: 9.554048999 | AB170: 0.1825597046 | AC170: 1.725569425 | AD170: 0 | AE170: 1.980438793 | AF170: 11.84627226 | AG170: 0.2806683327 | AH170: 0.24375 | AI170: 0.5556065665 | AJ170: 0 | AK170: 0 | AL170: 0 | AM170: 0 | AN170: 0 | AO170: 15.21887048 | AP170: 0.4632280373 | AQ170: 0 | AR170: 0.5105260316 | AS170: 0.4632280373 | AT170: 0 | AU170: 0.460575 | AV170: 0.4210024991 | AW170: 0 | AX170: 0.036 | AY170: 0.54 | AZ170: 0.8855084746 | BA170: 0.576 | BB170: 7.887755874 | BC170: 180 | BD170: 0.9580187871 | BE170: 122.0506897 | BF170: 27.78032832 | BH170: 95.80187871 | BI170: 3.087234127 | BJ170: 3.507146392 | BK170: 0.7075963165 | BL170: 0.4210024991
G171: 162 | H171: 30.87 | I171: BUCK | J171: 1 | K171: 15 | L171: 6.478781989 | M171: 15 | N171: 0.3923823387 | O171: 0 | P171: 8.93418914 | Q171: 15.22010659 | R171: 0.9202087766 | S171: 2.181394649 | T171: 3.101603426 | U171: 2.579078253 | V171: 0.0199549339 | W171: 0.0199549339 | X171: 7.431690487 | Y171: 0.2761501175 | Z171: 0.2761501175 | AA171: 9.533940113 | AB171: 0.1817920282 | AC171: 1.733148793 | AD171: 0 | AE171: 1.987191952 | AF171: 11.86404781 | AG171: 0.2815112611 | AH171: 0.24375 | AI171: 0.5565990407 | AJ171: 0 | AK171: 0 | AL171: 0 | AM171: 0 | AN171: 0 | AO171: 15.22010659 | AP171: 0.4633032893 | AQ171: 0 | AR171: 0.5106174369 | AS171: 0.4633032893 | AT171: 0 | AU171: 0.4626 | AV171: 0.4222668917 | AW171: 0 | AX171: 0.036 | AY171: 0.54 | AZ171: 0.8855084746 | BA171: 0.576 | BB171: 7.912983798 | BC171: 180 | BD171: 0.95789017 | BE171: 122.4895976 | BF171: 27.82995203 | BH171: 95.789017 | BI171: 3.101603426 | BJ171: 3.517008429 | BK171: 0.7092570407 | BL171: 0.4222668917
G172: 163 | H172: 31.005 | I172: BUCK | J172: 1 | K172: 15 | L172: 6.450572488 | M172: 15 | N172: 0.3906763285 | O172: 0 | P172: 8.959273693 | Q172: 15.22133531 | R172: 0.9203683002 | S172: 2.195531819 | T172: 3.115900119 | U172: 2.586319539 | V172: 0.02006714628 | W172: 0.02006714628 | X172: 7.426519525 | Y172: 0.2757659613 | Z172: 0.2757659613 | AA172: 9.513959582 | AB172: 0.1810308538 | AC172: 1.740728161 | AD172: 0 | AE172: 1.993952395 | AF172: 11.88165064 | AG172: 0.2823472437 | AH172: 0.24375 | AI172: 0.5575836871 | AJ172: 0 | AK172: 0 | AL172: 0 | AM172: 0 | AN172: 0 | AO172: 15.22133531 | AP172: 0.4633780975 | AQ172: 0 | AR172: 0.5107083062 | AS172: 0.4633780975 | AT172: 0 | AU172: 0.464625 | AV172: 0.4235208655 | AW172: 0 | AX172: 0.036 | AY172: 0.54 | AZ172: 0.8855084746 | BA172: 0.576 | BB172: 7.938123481 | BC172: 180 | BD172: 0.9577620371 | BE172: 122.9288698 | BF172: 27.87918436 | BH172: 95.77620371 | BI172: 3.115900119 | BJ172: 3.526869389 | BK172: 0.7109099371 | BL172: 0.4235208655
G173: 164 | H173: 31.14 | I173: BUCK | J173: 1 | K173: 15 | L173: 6.422607579 | M173: 15 | N173: 0.388985089 | O173: 0 | P173: 8.984141064 | Q173: 15.2225567 | R173: 0.9205268879 | S173: 2.209597629 | T173: 3.130124516 | U173: 2.593498131 | V173: 0.02017869767 | W173: 0.02017869767 | X173: 7.421299893 | Y173: 0.2753784605 | Z173: 0.2753784605 | AA173: 9.494106024 | AB173: 0.1802760984 | AC173: 1.748307528 | AD173: 0 | AE173: 2.000720027 | AF173: 11.8990833 | AG173: 0.2831763667 | AH173: 0.24375 | AI173: 0.5585605989 | AJ173: 0 | AK173: 0 | AL173: 0 | AM173: 0 | AN173: 0 | AO173: 15.2225567 | AP173: 0.4634524651 | AQ173: 0 | AR173: 0.5107986432 | AS173: 0.4634524651 | AT173: 0 | AU173: 0.46665 | AV173: 0.4247645501 | AW173: 0 | AX173: 0.036 | AY173: 0.54 | AZ173: 0.8855084746 | BA173: 0.576 | BB173: 7.963175494 | BC173: 180 | BD173: 0.9576343852 | BE173: 123.3685013 | BF173: 27.92802995 | BH173: 95.76343852 | BI173: 3.130124516 | BJ173: 3.536729269 | BK173: 0.7125550989 | BL173: 0.4247645501
G174: 165 | H174: 31.275 | I174: BUCK | J174: 1 | K174: 15 | L174: 6.394884093 | M174: 15 | N174: 0.3873084291 | O174: 0 | P174: 9.008794061 | Q174: 15.22377081 | R174: =(Q174^2*Rdcr*(1+Ltc*Ta-Ltc*25))/(1-Q174^2*Rdcr*Ltc*ThetaCa) -> 0.920684546 | S174: =7.759*10^-3*Fsw^0.9458*(0.00787*P174)^2.304 -> 2.223592385 | T174: =R174+S174 -> 3.144276931 | U174: 2.600614838 | V174: =RCoutEsr*U174^2 -> 0.02028959261 | W174: =V174 -> 0.02028959261 | X174: 7.416033179 | Y174: =RCinEsr*X174^2 -> 0.2749877406 | Z174: =Y174 -> 0.2749877406 | AA174: 9.474378078 | AB174: 0.1795276799 | AC174: 1.755886896 | AD174: 0 | AE174: 2.007494751 | AF174: 11.91634833 | AG174: 0.2839987151 | AH174: 0.24375 | AI174: 0.5595298679 | AJ174: 0 | AK174: 0 | AL174: 0 | AM174: 0 | AN174: 0 | AO174: 15.22377081 | AP174: 0.4635263951 | AQ174: 0 | AR174: 0.5108884515 | AS174: 0.4635263951 | AT174: 0 | AU174: 0.468675 | AV174: 0.4259980727 | AW174: 0 | AX174: 0.036 | AY174: 0.54 | AZ174: 0.8855084746 | BA174: =SUM(AX174:AY174) -> 0.576 | BB174: =SUM(T174,W174,Z174,AE174,AI174,AN174,AR174, AT174,AU174,BA174,AV174,AW174) -> 7.988140408 | BC174: 180 | BD174: =BC174/(BC174+BB174) -> 0.9575072109 | BE174: 123.8084876 | BF174: 27.97649339 | BH174: =BD174*100 -> 95.75072109 | BI174: =T174 -> 3.144276931 | BJ174: =AE174+AI174+AN174+AR174+AU174 -> 3.546588071 | BK174: =AI174+AU174*0.33 -> 0.7141926179 | BL174: =AV174 -> 0.4259980727
G175: 166 | H175: 31.41 | I175: BUCK | J175: 1 | K175: 15 | L175: 6.367398918 | M175: 15 | N175: 0.3856461612 | O175: 0 | P175: 9.033235445 | Q175: 15.22497768 | R175: 0.920841281 | S175: 2.237516402 | T175: 3.158357683 | U175: 2.607670458 | V175: 0.02039983565 | W175: 0.02039983565 | X175: 7.410720928 | Y175: 0.2745939234 | Z175: 0.2745939234 | AA175: 9.454774404 | AB175: 0.1787855181 | AC175: 1.763466264 | AD175: 0 | AE175: 2.014276475 | AF175: 11.93344821 | AG175: 0.2848143724 | AH175: 0.24375 | AI175: 0.5604915841 | AJ175: 0 | AK175: 0 | AL175: 0 | AM175: 0 | AN175: 0 | AO175: 15.22497768 | AP175: 0.4635998904 | AQ175: 0 | AR175: 0.5109777348 | AS175: 0.4635998904 | AT175: 0 | AU175: 0.4707 | AV175: 0.4272215585 | AW175: 0 | AX175: 0.036 | AY175: 0.54 | AZ175: 0.8855084746 | BA175: 0.576 | BB175: 8.013018795 | BC175: 180 | BD175: 0.957380511 | BE175: 124.2488237 | BF175: 28.02457921 | BH175: 95.7380511 | BI175: 3.158357683 | BJ175: 3.556445794 | BK175: 0.7158225841 | BL175: 0.4272215585
G176: 167 | H176: 31.545 | I176: BUCK | J176: 1 | K176: 15 | L176: 6.340148994 | M176: 15 | N176: 0.3839981007 | O176: 0 | P176: 9.057467927 | Q176: 15.22617736 | R176: 0.9209970993 | S176: 2.251369995 | T176: 3.172367095 | U176: 2.614665773 | V176: 0.02050943131 | W176: 0.02050943131 | X176: 7.405364642 | Y176: 0.2741971274 | Z176: 0.2741971274 | AA176: 9.435293682 | AB176: 0.1780495337 | AC176: 1.771045632 | AD176: 0 | AE176: 2.021065106 | AF176: 11.95038536 | AG176: 0.2856234205 | AH176: 0.24375 | AI176: 0.5614458365 | AJ176: 0 | AK176: 0 | AL176: 0 | AM176: 0 | AN176: 0 | AO176: 15.22617736 | AP176: 0.4636729542 | AQ176: 0 | AR176: 0.5110664967 | AS176: 0.4636729542 | AT176: 0 | AU176: 0.472725 | AV176: 0.4284351307 | AW176: 0 | AX176: 0.036 | AY176: 0.54 | AZ176: 0.8855084746 | BA176: 0.576 | BB176: 8.037811223 | BC176: 180 | BD176: 0.9572542822 | BE176: 124.6895053 | BF176: 28.07229183 | BH176: 95.72542822 | BI176: 3.172367095 | BJ176: 3.566302439 | BK176: 0.7174450865 | BL176: 0.4284351307
G177: 168 | H177: 31.68 | I177: BUCK | J177: 1 | K177: 15 | L177: 6.313131313 | M177: 15 | N177: 0.3823640662 | O177: 0 | P177: 9.081494176 | Q177: 15.22736992 | R177: 0.9211520071 | S177: 2.265153485 | T177: 3.186305492 | U177: 2.621601554 | V177: 0.02061838412 | W177: 0.02061838412 | X177: 7.399965782 | Y177: 0.2737974679 | Z177: 0.2737974679 | AA177: 9.415934612 | AB177: 0.1773196492 | AC177: 1.778625 | AD177: 0 | AE177: 2.027860554 | AF177: 11.96716216 | AG177: 0.2864259402 | AH177: 0.24375 | AI177: 0.5623927124 | AJ177: 0 | AK177: 0 | AL177: 0 | AM177: 0 | AN177: 0 | AO177: 15.22736992 | AP177: 0.4637455894 | AQ177: 0 | AR177: 0.5111547407 | AS177: 0.4637455894 | AT177: 0 | AU177: 0.47475 | AV177: 0.4296389102 | AW177: 0 | AX177: 0.036 | AY177: 0.54 | AZ177: 0.8855084746 | BA177: 0.576 | BB177: 8.062518261 | BC177: 180 | BD177: 0.9571285212 | BE177: 125.1305277 | BF177: 28.11963562 | BH177: 95.71285212 | BI177: 3.186305492 | BJ177: 3.576158007 | BK177: 0.7190602124 | BL177: 0.4296389102
G178: 169 | H178: 31.815 | I178: BUCK | J178: 1 | K178: 15 | L178: 6.28634292 | M178: 15 | N178: 0.3807438795 | O178: 0 | P178: 9.105316812 | Q178: 15.2285554 | R178: 0.9213060109 | S178: 2.278867195 | T178: 3.200173206 | U178: 2.628478556 | V178: 0.02072669856 | W178: 0.02072669856 | X178: 7.394525769 | Y178: 0.2733950567 | Z178: 0.2733950567 | AA178: 9.396695913 | AB178: 0.1765957882 | AC178: 1.786204368 | AD178: 0 | AE178: 2.03466273 | AF178: 11.98378093 | AG178: 0.2872220109 | AH178: 0.24375 | AI178: 0.5633322979 | AJ178: 0 | AK178: 0 | AL178: 0 | AM178: 0 | AN178: 0 | AO178: 15.2285554 | AP178: 0.463817799 | AQ178: 0 | AR178: 0.5112424705 | AS178: 0.463817799 | AT178: 0 | AU178: 0.476775 | AV178: 0.4308330163 | AW178: 0 | AX178: 0.036 | AY178: 0.54 | AZ178: 0.8855084746 | BA178: 0.576 | BB178: 8.087140476 | BC178: 180 | BD178: 0.9570032249 | BE178: 125.5718865 | BF178: 28.1666149 | BH178: 95.70032249 | BI178: 3.200173206 | BJ178: 3.586012498 | BK178: 0.7206680479 | BL178: 0.4308330163
G179: 170 | H179: 31.95 | I179: BUCK | J179: 1 | K179: 15 | L179: 6.259780908 | M179: 15 | N179: 0.3791373652 | O179: 0 | P179: 9.128938414 | Q179: 15.22973385 | R179: 0.921459117 | S179: 2.292511454 | T179: 3.213970571 | U179: 2.635297525 | V179: 0.02083437914 | W179: 0.02083437914 | X179: 7.389045985 | Y179: 0.2729900028 | Z179: 0.2729900028 | AA179: 9.377576324 | AB179: 0.1758778754 | AC179: 1.793783736 | AD179: 0 | AE179: 2.041471547 | AF179: 12.00024397 | AG179: 0.2880117107 | AH179: 0.24375 | AI179: 0.5642646777 | AJ179: 0 | AK179: 0 | AL179: 0 | AM179: 0 | AN179: 0 | AO179: 15.22973385 | AP179: 0.4638895861 | AQ179: 0 | AR179: 0.5113296897 | AS179: 0.4638895861 | AT179: 0 | AU179: 0.4788 | AV179: 0.432017566 | AW179: 0 | AX179: 0.036 | AY179: 0.54 | AZ179: 0.8855084746 | BA179: 0.576 | BB179: 8.111678433 | BC179: 180 | BD179: 0.95687839 | BE179: 126.0135773 | BF179: 28.21323388 | BH179: 95.687839 | BI179: 3.213970571 | BJ179: 3.595865914 | BK179: 0.7222686777 | BL179: 0.432017566
G180: 171 | H180: 32.085 | I180: BUCK | J180: 1 | K180: 15 | L180: 6.233442419 | M180: 15 | N180: 0.3775443511 | O180: 0 | P180: 9.152361514 | Q180: 15.23090532 | R180: 0.9216113315 | S180: 2.30608659 | T180: 3.227697922 | U180: 2.642059192 | V180: 0.02094143032 | W180: 0.02094143032 | X180: 7.383527775 | Y180: 0.2725824121 | Z180: 0.2725824121 | AA180: 9.358574601 | AB180: 0.1751658371 | AC180: 1.801363104 | AD180: 0 | AE180: 2.048286919 | AF180: 12.01655351 | AG180: 0.2887951164 | AH180: 0.24375 | AI180: 0.565189935 | AJ180: 0 | AK180: 0 | AL180: 0 | AM180: 0 | AN180: 0 | AO180: 15.23090532 | AP180: 0.4639609535 | AQ180: 0 | AR180: 0.5114164018 | AS180: 0.4639609535 | AT180: 0 | AU180: 0.480825 | AV180: 0.4331926746 | AW180: 0 | AX180: 0.036 | AY180: 0.54 | AZ180: 0.8855084746 | BA180: 0.576 | BB180: 8.136132695 | BC180: 180 | BD180: 0.9567540133 | BE180: 126.455596 | BF180: 28.25949675 | BH180: 95.67540133 | BI180: 3.227697922 | BJ180: 3.605718256 | BK180: 0.723862185 | BL180: 0.4331926746
G181: 172 | H181: 32.22 | I181: BUCK | J181: 1 | K181: 15 | L181: 6.207324643 | M181: 15 | N181: 0.3759646676 | O181: 0 | P181: 9.175588606 | Q181: 15.23206986 | R181: 0.921762661 | S181: 2.319592939 | T181: 3.2413556 | U181: 2.648764276 | V181: 0.02104785657 | W181: 0.02104785657 | X181: 7.377972449 | Y181: 0.2721723873 | Z181: 0.2721723873 | AA181: 9.339689521 | AB181: 0.1744596007 | AC181: 1.808942472 | AD181: 0 | AE181: 2.055108763 | AF181: 12.03271174 | AG181: 0.2895723037 | AH181: 0.24375 | AI181: 0.566108152 | AJ181: 0 | AK181: 0 | AL181: 0 | AM181: 0 | AN181: 0 | AO181: 15.23206986 | AP181: 0.4640319044 | AQ181: 0 | AR181: 0.5115026105 | AS181: 0.4640319044 | AT181: 0 | AU181: 0.48285 | AV181: 0.4343584555 | AW181: 0 | AX181: 0.036 | AY181: 0.54 | AZ181: 0.8855084746 | BA181: 0.576 | BB181: 8.160503825 | BC181: 180 | BD181: 0.9566300916 | BE181: 126.8979382 | BF181: 28.3054076 | BH181: 95.66300916 | BI181: 3.2413556 | BJ181: 3.615569526 | BK181: 0.725448652 | BL181: 0.4343584555
G182: 173 | H182: 32.355 | I182: BUCK | J182: 1 | K182: 15 | L182: 6.181424818 | M182: 15 | N182: 0.3743981481 | O182: 0 | P182: 9.198622138 | Q182: 15.23322752 | R182: 0.9219131115 | S182: 2.333030835 | T182: 3.254943946 | U182: 2.655413484 | V182: 0.02115366231 | W182: 0.02115366231 | X182: 7.372381277 | Y182: 0.2717600285 | Z182: 0.2717600285 | AA182: 9.320919876 | AB182: 0.1737590947 | AC182: 1.816521839 | AD182: 0 | AE182: 2.061936995 | AF182: 12.04872082 | AG182: 0.2903433469 | AH182: 0.24375 | AI182: 0.5670194095 | AJ182: 0 | AK182: 0 | AL182: 0 | AM182: 0 | AN182: 0 | AO182: 15.23322752 | AP182: 0.4641024415 | AQ182: 0 | AR182: 0.5115883191 | AS182: 0.4641024415 | AT182: 0 | AU182: 0.484875 | AV182: 0.4355150203 | AW182: 0 | AX182: 0.036 | AY182: 0.54 | AZ182: 0.8855084746 | BA182: 0.576 | BB182: 8.184792381 | BC182: 180 | BD182: 0.9565066216 | BE182: 127.3405998 | BF182: 28.35097047 | BH182: 95.65066216 | BI182: 3.254943946 | BJ182: 3.625419724 | BK182: 0.7270281595 | BL182: 0.4355150203
G183: 174 | H183: 32.49 | I183: BUCK | J183: 1 | K183: 15 | L183: 6.155740228 | M183: 15 | N183: 0.3728446289 | O183: 0 | P183: 9.221464521 | Q183: 15.23437836 | R183: 0.9220626893 | S183: 2.346400617 | T183: 3.268463307 | U183: 2.662007512 | V183: 0.02125885198 | W183: 0.02125885198 | X183: 7.366755501 | Y183: 0.271345433 | Z183: 0.271345433 | AA183: 9.302264478 | AB183: 0.1730642488 | AC183: 1.824101207 | AD183: 0 | AE183: 2.068771535 | AF183: 12.06458286 | AG183: 0.2911083191 | AH183: 0.24375 | AI183: 0.567923787 | AJ183: 0 | AK183: 0 | AL183: 0 | AM183: 0 | AN183: 0 | AO183: 15.23437836 | AP183: 0.464172568 | AQ183: 0 | AR183: 0.5116735314 | AS183: 0.464172568 | AT183: 0 | AU183: 0.4869 | AV183: 0.4366624787 | AW183: 0 | AX183: 0.036 | AY183: 0.54 | AZ183: 0.8855084746 | BA183: 0.576 | BB183: 8.208998923 | BC183: 180 | BD183: 0.9563836003 | BE183: 127.7835767 | BF183: 28.39618935 | BH183: 95.63836003 | BI183: 3.268463307 | BJ183: 3.635268853 | BK183: 0.728600787 | BL183: 0.4366624787
G184: 175 | H184: 32.625 | I184: BUCK | J184: 1 | K184: 15 | L184: 6.130268199 | M184: 15 | N184: 0.3713039486 | O184: 0 | P184: 9.244118123 | Q184: 15.23552242 | R184: 0.9222114006 | S184: 2.359702627 | T184: 3.281914027 | U184: 2.668547043 | V184: 0.02136342997 | W184: 0.02136342997 | X184: 7.361096324 | Y184: 0.2709286954 | Z184: 0.2709286954 | AA184: 9.283722156 | AB184: 0.1723749941 | AC184: 1.831680575 | AD184: 0 | AE184: 2.075612301 | AF184: 12.08029992 | AG184: 0.2918672925 | AH184: 0.24375 | AI184: 0.5688213627 | AJ184: 0 | AK184: 0 | AL184: 0 | AM184: 0 | AN184: 0 | AO184: 15.23552242 | AP184: 0.4642422866 | AQ184: 0 | AR184: 0.5117582508 | AS184: 0.4642422866 | AT184: 0 | AU184: 0.488925 | AV184: 0.4378009388 | AW184: 0 | AX184: 0.036 | AY184: 0.54 | AZ184: 0.8855084746 | BA184: 0.576 | BB184: 8.233124006 | BC184: 180 | BD184: 0.9562610245 | BE184: 128.2268651 | BF184: 28.44106814 | BH184: 95.62610245 | BI184: 3.281914027 | BJ184: 3.645116915 | BK184: 0.7301666127 | BL184: 0.4378009388
G185: 176 | H185: 32.76 | I185: BUCK | J185: 1 | K185: 15 | L185: 6.105006105 | M185: 15 | N185: 0.3697759488 | O185: 0 | P185: 9.266585277 | Q185: 15.23665975 | R185: 0.9223592517 | S185: 2.372937206 | T185: 3.295296458 | U185: 2.675032752 | V185: 0.02146740067 | W185: 0.02146740067 | X185: 7.35540492 | Y185: 0.2705099077 | Z185: 0.2705099077 | AA185: 9.265291754 | AB185: 0.1716912626 | AC185: 1.839259943 | AD185: 0 | AE185: 2.082459216 | AF185: 12.09587405 | AG185: 0.2926203379 | AH185: 0.24375 | AI185: 0.569712214 | AJ185: 0 | AK185: 0 | AL185: 0 | AM185: 0 | AN185: 0 | AO185: 15.23665975 | AP185: 0.4643116004 | AQ185: 0 | AR185: 0.5118424807 | AS185: 0.4643116004 | AT185: 0 | AU185: 0.49095 | AV185: 0.4389305068 | AW185: 0 | AX185: 0.036 | AY185: 0.54 | AZ185: 0.8855084746 | BA185: 0.576 | BB185: 8.257168184 | BC185: 180 | BD185: 0.9561388909 | BE185: 128.6704608 | BF185: 28.4856107 | BH185: 95.61388909 | BI185: 3.295296458 | BJ185: 3.654963911 | BK185: 0.731725714 | BL185: 0.4389305068
G186: 177 | H186: 32.895 | I186: BUCK | J186: 1 | K186: 15 | L186: 6.07995136 | M186: 15 | N186: 0.3682604736 | O186: 0 | P186: 9.288868273 | Q186: 15.2377904 | R186: 0.9225062485 | S186: 2.3861047 | T186: 3.308610948 | U186: 2.681465299 | V186: 0.02157076845 | W186: 0.02157076845 | X186: 7.349682431 | Y186: 0.2700891592 | Z186: 0.2700891592 | AA186: 9.246972136 | AB186: 0.1710129874 | AC186: 1.846839311 | AD186: 0 | AE186: 2.089312203 | AF186: 12.11130722 | AG186: 0.2933675249 | AH186: 0.24375 | AI186: 0.5705964166 | AJ186: 0 | AK186: 0 | AL186: 0 | AM186: 0 | AN186: 0 | AO186: 15.2377904 | AP186: 0.4643805123 | AQ186: 0 | AR186: 0.5119262248 | AS186: 0.4643805123 | AT186: 0 | AU186: 0.492975 | AV186: 0.4400512874 | AW186: 0 | AX186: 0.036 | AY186: 0.54 | AZ186: 0.8855084746 | BA186: 0.576 | BB186: 8.281132007 | BC186: 180 | BD186: 0.9560171966 | BE186: 129.1143601 | BF186: 28.52982083 | BH186: 95.60171966 | BI186: 3.308610948 | BJ186: 3.664809844 | BK186: 0.7332781666 | BL186: 0.4400512874
G187: 178 | H187: 33.03 | I187: BUCK | J187: 1 | K187: 15 | L187: 6.055101423 | M187: 15 | N187: 0.3667573696 | O187: 0 | P187: 9.310969367 | Q187: 15.23891441 | R187: 0.9226523974 | S187: 2.399205454 | T187: 3.321857851 | U187: 2.687845335 | V187: 0.02167353764 | W187: 0.02167353764 | X187: 7.343929967 | Y187: 0.2696665368 | Z187: 0.2696665368 | AA187: 9.22876218 | AB187: 0.1703401028 | AC187: 1.854418679 | AD187: 0 | AE187: 2.096171185 | AF187: 12.12660139 | AG187: 0.2941089223 | AH187: 0.24375 | AI187: 0.5714740455 | AJ187: 0 | AK187: 0 | AL187: 0 | AM187: 0 | AN187: 0 | AO187: 15.23891441 | AP187: 0.4644490251 | AQ187: 0 | AR187: 0.5120094865 | AS187: 0.4644490251 | AT187: 0 | AU187: 0.495 | AV187: 0.4411633835 | AW187: 0 | AX187: 0.036 | AY187: 0.54 | AZ187: 0.8855084746 | BA187: 0.576 | BB187: 8.305016026 | BC187: 180 | BD187: 0.9558959384 | BE187: 129.5585592 | BF187: 28.57370227 | BH187: 95.58959384 | BI187: 3.321857851 | BJ187: 3.674654717 | BK187: 0.7348240455 | BL187: 0.4411633835
G188: 179 | H188: 33.165 | I188: BUCK | J188: 1 | K188: 15 | L188: 6.030453792 | M188: 15 | N188: 0.365266486 | O188: 0 | P188: 9.332890778 | Q188: 15.24003185 | R188: 0.9227977043 | S188: 2.412239817 | T188: 3.335037522 | U188: 2.694173501 | V188: 0.02177571257 | W188: 0.02177571257 | X188: 7.338148612 | Y188: 0.2692421253 | Z188: 0.2692421253 | AA188: 9.210660781 | AB188: 0.169672544 | AC188: 1.861998047 | AD188: 0 | AE188: 2.103036088 | AF188: 12.14175847 | AG188: 0.2948445977 | AH188: 0.24375 | AI188: 0.5723451742 | AJ188: 0 | AK188: 0 | AL188: 0 | AM188: 0 | AN188: 0 | AO188: 15.24003185 | AP188: 0.4645171417 | AQ188: 0 | AR188: 0.5120922691 | AS188: 0.4645171417 | AT188: 0 | AU188: 0.497025 | AV188: 0.4422668965 | AW188: 0 | AX188: 0.036 | AY188: 0.54 | AZ188: 0.8855084746 | BA188: 0.576 | BB188: 8.328820787 | BC188: 180 | BD188: 0.9557751132 | BE188: 130.0030544 | BF188: 28.61725871 | BH188: 95.57751132 | BI188: 3.335037522 | BJ188: 3.684498531 | BK188: 0.7363634242 | BL188: 0.4422668965
G189: 180 | H189: 33.3 | I189: BUCK | J189: 1 | K189: 15 | L189: 6.006006006 | M189: 15 | N189: 0.3637876743 | O189: 0 | P189: 9.354634687 | Q189: 15.24114276 | R189: 0.9229421752 | S189: 2.425208139 | T189: 3.348150314 | U189: 2.700450427 | V189: 0.02187729753 | W189: 0.02187729753 | X189: 7.332339418 | Y189: 0.2688160067 | Z189: 0.2688160067 | AA189: 9.192666848 | AB189: 0.1690102476 | AC189: 1.869577415 | AD189: 0 | AE189: 2.109906838 | AF189: 12.15678036 | AG189: 0.2955746175 | AH189: 0.24375 | AI189: 0.5732098754 | AJ189: 0 | AK189: 0 | AL189: 0 | AM189: 0 | AN189: 0 | AO189: 15.24114276 | AP189: 0.464584865 | AQ189: 0 | AR189: 0.5121745763 | AS189: 0.464584865 | AT189: 0 | AU189: 0.49905 | AV189: 0.4433619262 | AW189: 0 | AX189: 0.036 | AY189: 0.54 | AZ189: 0.8855084746 | BA189: 0.576 | BB189: 8.352546834 | BC189: 180 | BD189: 0.9556547178 | BE189: 130.4478419 | BF189: 28.66049377 | BH189: 95.56547178 | BI189: 3.348150314 | BJ189: 3.694341289 | BK189: 0.7378963754 | BL189: 0.4433619262
G190: 181 | H190: 33.435 | I190: BUCK | J190: 1 | K190: 15 | L190: 5.981755645 | M190: 15 | N190: 0.3623207885 | O190: 0 | P190: 9.376203242 | Q190: 15.24224717 | R190: 0.9230858164 | S190: 2.438110769 | T190: 3.361196585 | U190: 2.706676733 | V190: 0.02197829681 | W190: 0.02197829681 | X190: 7.326503409 | Y190: 0.268388261 | Z190: 0.268388261 | AA190: 9.174779309 | AB190: 0.1683531507 | AC190: 1.877156783 | AD190: 0 | AE190: 2.116783363 | AF190: 12.17166889 | AG190: 0.2962990471 | AH190: 0.24375 | AI190: 0.5740682205 | AJ190: 0 | AK190: 0 | AL190: 0 | AM190: 0 | AN190: 0 | AO190: 15.24224717 | AP190: 0.4646521979 | AQ190: 0 | AR190: 0.5122564114 | AS190: 0.4646521979 | AT190: 0 | AU190: 0.501075 | AV190: 0.4444485707 | AW190: 0 | AX190: 0.036 | AY190: 0.54 | AZ190: 0.8855084746 | BA190: 0.576 | BB190: 8.376194709 | BC190: 180 | BD190: 0.9555347494 | BE190: 130.8929182 | BF190: 28.70341102 | BH190: 95.55347494 | BI190: 3.361196585 | BJ190: 3.704182995 | BK190: 0.7394229705 | BL190: 0.4444485707
G191: 182 | H191: 33.57 | I191: BUCK | J191: 1 | K191: 15 | L191: 5.957700328 | M191: 15 | N191: 0.360865685 | O191: 0 | P191: 9.397598556 | Q191: 15.24334516 | R191: 0.9232286336 | S191: 2.450948059 | T191: 3.374176693 | U191: 2.712853028 | V191: 0.02207871465 | W191: 0.02207871465 | X191: 7.320641584 | Y191: 0.267958966 | Z191: 0.267958966 | AA191: 9.156997103 | AB191: 0.1677011919 | AC191: 1.884736151 | AD191: 0 | AE191: 2.123665593 | AF191: 12.18642587 | AG191: 0.2970179512 | AH191: 0.24375 | AI191: 0.5749202799 | AJ191: 0 | AK191: 0 | AL191: 0 | AM191: 0 | AN191: 0 | AO191: 15.24334516 | AP191: 0.4647191431 | AQ191: 0 | AR191: 0.5123377777 | AS191: 0.4647191431 | AT191: 0 | AU191: 0.5031 | AV191: 0.4455269268 | AW191: 0 | AX191: 0.036 | AY191: 0.54 | AZ191: 0.8855084746 | BA191: 0.576 | BB191: 8.39976495 | BC191: 180 | BD191: 0.9554152047 | BE191: 131.3382796 | BF191: 28.746014 | BH191: 95.54152047 | BI191: 3.374176693 | BJ191: 3.71402365 | BK191: 0.7409432799 | BL191: 0.4455269268
G192: 183 | H192: 33.705 | I192: BUCK | J192: 1 | K192: 15 | L192: 5.93383771 | M192: 15 | N192: 0.3594222222 | O192: 0 | P192: 9.418822707 | Q192: 15.24443675 | R192: 0.923370633 | S192: 2.463720362 | T192: 3.387090995 | U192: 2.718979913 | V192: 0.0221785553 | W192: 0.0221785553 | X192: 7.314754915 | Y192: 0.2675281973 | Z192: 0.2675281973 | AA192: 9.139319187 | AB192: 0.1670543104 | AC192: 1.892315518 | AD192: 0 | AE192: 2.130553457 | AF192: 12.20105309 | AG192: 0.2977313931 | AH192: 0.24375 | AI192: 0.5757661231 | AJ192: 0 | AK192: 0 | AL192: 0 | AM192: 0 | AN192: 0 | AO192: 15.24443675 | AP192: 0.4647857035 | AQ192: 0 | AR192: 0.5124186788 | AS192: 0.4647857035 | AT192: 0 | AU192: 0.505125 | AV192: 0.4465970897 | AW192: 0 | AX192: 0.036 | AY192: 0.54 | AZ192: 0.8855084746 | BA192: 0.576 | BB192: 8.423258096 | BC192: 180 | BD192: 0.9552960809 | BE192: 131.7839228 | BF192: 28.78830615 | BH192: 95.52960809 | BI192: 3.387090995 | BJ192: 3.723863258 | BK192: 0.7424573731 | BL192: 0.4465970897
G193: 184 | H193: 33.84 | I193: BUCK | J193: 1 | K193: 15 | L193: 5.910165485 | M193: 15 | N193: 0.3579902612 | O193: 0 | P193: 9.439877742 | Q193: 15.245522 | R193: 0.9235118204 | S193: 2.476428031 | T193: 3.399939851 | U193: 2.725057978 | V193: 0.02227782294 | W193: 0.02227782294 | X193: 7.308844348 | Y193: 0.2670960285 | Z193: 0.2670960285 | AA193: 9.121744533 | AB193: 0.1664124466 | AC193: 1.899894886 | AD193: 0 | AE193: 2.137446886 | AF193: 12.21555229 | AG193: 0.2984394353 | AH193: 0.24375 | AI193: 0.5766058183 | AJ193: 0 | AK193: 0 | AL193: 0 | AM193: 0 | AN193: 0 | AO193: 15.245522 | AP193: 0.464851882 | AQ193: 0 | AR193: 0.5124991178 | AS193: 0.464851882 | AT193: 0 | AU193: 0.50715 | AV193: 0.447659153 | AW193: 0 | AX193: 0.036 | AY193: 0.54 | AZ193: 0.8855084746 | BA193: 0.576 | BB193: 8.446674678 | BC193: 180 | BD193: 0.9551773748 | BE193: 132.2298443 | BF193: 28.83029091 | BH193: 95.51773748 | BI193: 3.399939851 | BJ193: 3.733701822 | BK193: 0.7439653183 | BL193: 0.447659153
G194: 185 | H194: 33.975 | I194: BUCK | J194: 1 | K194: 15 | L194: 5.886681383 | M194: 15 | N194: 0.3565696649 | O194: 0 | P194: 9.460765673 | Q194: 15.24660095 | R194: 0.9236522017 | S194: 2.489071419 | T194: 3.412723621 | U194: 2.731087804 | V194: 0.02237652178 | W194: 0.02237652178 | X194: 7.302910803 | Y194: 0.266662531 | Z194: 0.266662531 | AA194: 9.104272123 | AB194: 0.1657755418 | AC194: 1.907474254 | AD194: 0 | AE194: 2.144345814 | AF194: 12.22992517 | AG194: 0.2991421394 | AH194: 0.24375 | AI194: 0.5774394329 | AJ194: 0 | AK194: 0 | AL194: 0 | AM194: 0 | AN194: 0 | AO194: 15.24660095 | AP194: 0.4649176812 | AQ194: 0 | AR194: 0.5125790984 | AS194: 0.4649176812 | AT194: 0 | AU194: 0.509175 | AV194: 0.4487132091 | AW194: 0 | AX194: 0.036 | AY194: 0.54 | AZ194: 0.8855084746 | BA194: 0.576 | BB194: 8.470015228 | BC194: 180 | BD194: 0.9550590834 | BE194: 132.6760407 | BF194: 28.87197164 | BH194: 95.50590834 | BI194: 3.412723621 | BJ194: 3.743539345 | BK194: 0.7454671829 | BL194: 0.4487132091
G195: 186 | H195: 34.11 | I195: BUCK | J195: 1 | K195: 15 | L195: 5.863383172 | M195: 15 | N195: 0.3551602986 | O195: 0 | P195: 9.481488482 | Q195: 15.24767366 | R195: 0.9237917828 | S195: 2.501650882 | T195: 3.425442665 | U195: 2.737069964 | V195: 0.02247465596 | W195: 0.02247465596 | X195: 7.296955179 | Y195: 0.2662277744 | Z195: 0.2662277744 | AA195: 9.086900959 | AB195: 0.1651435381 | AC195: 1.915053622 | AD195: 0 | AE195: 2.151250173 | AF195: 12.24417343 | AG195: 0.2998395659 | AH195: 0.24375 | AI195: 0.5782670331 | AJ195: 0 | AK195: 0 | AL195: 0 | AM195: 0 | AN195: 0 | AO195: 15.24767366 | AP195: 0.464983104 | AQ195: 0 | AR195: 0.5126586236 | AS195: 0.464983104 | AT195: 0 | AU195: 0.5112 | AV195: 0.4497593489 | AW195: 0 | AX195: 0.036 | AY195: 0.54 | AZ195: 0.8855084746 | BA195: 0.576 | BB195: 8.493280274 | BC195: 180 | BD195: 0.9549412039 | BE195: 133.1225087 | BF195: 28.91335166 | BH195: 95.49412039 | BI195: 3.425442665 | BJ195: 3.75337583 | BK195: 0.7469630331 | BL195: 0.4497593489
G196: 187 | H196: 34.245 | I196: BUCK | J196: 1 | K196: 15 | L196: 5.840268652 | M196: 15 | N196: 0.3537620297 | O196: 0 | P196: 9.502048119 | Q196: 15.24874016 | R196: 0.9239305695 | S196: 2.514166774 | T196: 3.438097344 | U196: 2.74300502 | V196: 0.02257222961 | W196: 0.02257222961 | X196: 7.290978348 | Y196: 0.2657918264 | Z196: 0.2657918264 | AA196: 9.069630052 | AB196: 0.1645163786 | AC196: 1.92263299 | AD196: 0 | AE196: 2.158159899 | AF196: 12.25829871 | AG196: 0.3005317745 | AH196: 0.24375 | AI196: 0.5790886845 | AJ196: 0 | AK196: 0 | AL196: 0 | AM196: 0 | AN196: 0 | AO196: 15.24874016 | AP196: 0.4650481531 | AQ196: 0 | AR196: 0.5127376969 | AS196: 0.4650481531 | AT196: 0 | AU196: 0.513225 | AV196: 0.4507976618 | AW196: 0 | AX196: 0.036 | AY196: 0.54 | AZ196: 0.8855084746 | BA196: 0.576 | BB196: 8.516470342 | BC196: 180 | BD196: 0.9548237333 | BE196: 133.5692449 | BF196: 28.95443423 | BH196: 95.48237333 | BI196: 3.438097344 | BJ196: 3.76321128 | BK196: 0.7484529345 | BL196: 0.4507976618
G197: 188 | H197: 34.38 | I197: BUCK | J197: 1 | K197: 15 | L197: 5.81733566 | M197: 15 | N197: 0.3523747277 | O197: 0 | P197: 9.522446504 | Q197: 15.24980051 | R197: 0.9240685677 | S197: 2.526619451 | T197: 3.450688018 | U197: 2.748893526 | V197: 0.02266924686 | W197: 0.02266924686 | X197: 7.284981162 | Y197: 0.2653547527 | Z197: 0.2653547527 | AA197: 9.05245843 | AB197: 0.1638940072 | AC197: 1.930212358 | AD197: 0 | AE197: 2.165074926 | AF197: 12.27230264 | AG197: 0.301218824 | AH197: 0.24375 | AI197: 0.5799044514 | AJ197: 0 | AK197: 0 | AL197: 0 | AM197: 0 | AN197: 0 | AO197: 15.24980051 | AP197: 0.4651128312 | AQ197: 0 | AR197: 0.5128163215 | AS197: 0.4651128312 | AT197: 0 | AU197: 0.51525 | AV197: 0.451828236 | AW197: 0 | AX197: 0.036 | AY197: 0.54 | AZ197: 0.8855084746 | BA197: 0.576 | BB197: 8.539585953 | BC197: 180 | BD197: 0.9547066686 | BE197: 134.0162463 | BF197: 28.99522257 | BH197: 95.47066686 | BI197: 3.450688018 | BJ197: 3.773045699 | BK197: 0.7499369514 | BL197: 0.451828236
G198: 189 | H198: 34.515 | I198: BUCK | J198: 1 | K198: 15 | L198: 5.794582066 | M198: 15 | N198: 0.3509982639 | O198: 0 | P198: 9.542685527 | Q198: 15.25085475 | R198: 0.924205783 | S198: 2.539009266 | T198: 3.463215049 | U198: 2.754736029 | V198: 0.02276571177 | W198: 0.02276571177 | X198: 7.27896445 | Y198: 0.2649166173 | Z198: 0.2649166173 | AA198: 9.035385132 | AB198: 0.163276369 | AC198: 1.937791726 | AD198: 0 | AE198: 2.171995192 | AF198: 12.2861868 | AG198: 0.3019007722 | AH198: 0.24375 | AI198: 0.5807143972 | AJ198: 0 | AK198: 0 | AL198: 0 | AM198: 0 | AN198: 0 | AO198: 15.25085475 | AP198: 0.4651771412 | AQ198: 0 | AR198: 0.5128945007 | AS198: 0.4651771412 | AT198: 0 | AU198: 0.517275 | AV198: 0.4528511583 | AW198: 0 | AX198: 0.036 | AY198: 0.54 | AZ198: 0.8855084746 | BA198: 0.576 | BB198: 8.562627627 | BC198: 180 | BD198: 0.9545900069 | BE198: 134.4635096 | BF198: 29.03571986 | BH198: 95.45900069 | BI198: 3.463215049 | BJ198: 3.78287909 | BK198: 0.7514151472 | BL198: 0.4528511583
G199: 190 | H199: 34.65 | I199: BUCK | J199: 1 | K199: 15 | L199: 5.772005772 | M199: 15 | N199: 0.3496325119 | O199: 0 | P199: 9.562767048 | Q199: 15.25190292 | R199: 0.9243422212 | S199: 2.551336577 | T199: 3.475678798 | U199: 2.760533065 | V199: 0.0228616284 | W199: 0.0228616284 | X199: 7.272929017 | Y199: 0.2644774824 | Z199: 0.2644774824 | AA199: 9.018409211 | AB199: 0.1626634094 | AC199: 1.945371094 | AD199: 0 | AE199: 2.178920635 | AF199: 12.29995277 | AG199: 0.3025776762 | AH199: 0.24375 | AI199: 0.5815185846 | AJ199: 0 | AK199: 0 | AL199: 0 | AM199: 0 | AN199: 0 | AO199: 15.25190292 | AP199: 0.4652410856 | AQ199: 0 | AR199: 0.5129722378 | AS199: 0.4652410856 | AT199: 0 | AU199: 0.5193 | AV199: 0.4538665143 | AW199: 0 | AX199: 0.036 | AY199: 0.54 | AZ199: 0.8855084746 | BA199: 0.576 | BB199: 8.585595881 | BC199: 180 | BD199: 0.9544737452 | BE199: 134.9110318 | BF199: 29.07592923 | BH199: 95.44737452 | BI199: 3.475678798 | BJ199: 3.792711457 | BK199: 0.7528875846 | BL199: 0.4538665143
G200: 191 | H200: 34.785 | I200: BUCK | J200: 1 | K200: 15 | L200: 5.749604715 | M200: 15 | N200: 0.3482773471 | O200: 0 | P200: 9.582692898 | Q200: 15.25294508 | R200: 0.924477888 | S200: 2.563601738 | T200: 3.488079626 | U200: 2.766285162 | V200: 0.02295700079 | W200: 0.02295700079 | X200: 7.266875651 | Y200: 0.2640374086 | Z200: 0.2640374086 | AA200: 9.001529734 | AB200: 0.1620550751 | AC200: 1.952950462 | AD200: 0 | AE200: 2.185851193 | AF200: 12.31360207 | AG200: 0.3032495921 | AH200: 0.24375 | AI200: 0.5823170752 | AJ200: 0 | AK200: 0 | AL200: 0 | AM200: 0 | AN200: 0 | AO200: 15.25294508 | AP200: 0.4653046672 | AQ200: 0 | AR200: 0.5130495359 | AS200: 0.4653046672 | AT200: 0 | AU200: 0.521325 | AV200: 0.4548743882 | AW200: 0 | AX200: 0.036 | AY200: 0.54 | AZ200: 0.8855084746 | BA200: 0.576 | BB200: 8.608491227 | BC200: 180 | BD200: 0.9543578809 | BE200: 135.3588096 | BF200: 29.11585376 | BH200: 95.43578809 | BI200: 3.488079626 | BJ200: 3.802542804 | BK200: 0.7543543252 | BL200: 0.4548743882
G201: 192 | H201: =VIN_min+(VIN_max-VIN_min)*(G201/200) -> 34.92 | I201: =IF(H201>VIN_BB_to_buck, "BUCK", IF(H201<VIN_boost_to_BB,"BOOST","BUCK-BST")) -> BUCK | J201: 1 | K201: =Iout -> 15 | L201: =Vout*K201/(H201*Efficiency) -> 5.727376861 | M201: =Iout/(1-O201) -> 15 | N201: =CHOOSE(J201,(Vout+(Rdson2+Rs+Rdcr)*K201)/(H201+(Rs+Rdson2-Rdson1)*K201),1,IF(H201<Vout,D_max_buck_BB,Vout/H201*(1-D_min_boost_exitBB_to_buck))) -> 0.3469326469 | O201: 0 | P201: =MAX(0, CHOOSE(J201, (H201-(Rdson1+Rdcr)*K201-Vout)*N201/(Fsw*Lf), (H201-(Rdson4+Rdcr+Rs)*L201)*O201/(Fsw*Lf), IF(H201<Vout, (H201-(Rdson4+Rdcr+Rs)*L201)*O201/(0.5*Fsw*Lf),(H201-(Rdson1+Rdcr)*K201-Vout)*N201/(0.5*Fsw*Lf)))) -> 9.60246488 | Q201: =CHOOSE(J201, SQRT(K201^2+(P201^2)/12), SQRT(L201^2+(P201^2)/12), SQRT(M201^2+(P201^2)/12)) -> 15.25398126 | R201: 0.924612789 | S201: 2.575805105 | T201: 3.500417894 | U201: =IF(H201>Vout, P201/SQRT(12), SQRT(O201/(1-O201))*SQRT(K201^2+(P201^2)/12)) -> 2.771992842 | V201: 0.02305183295 | W201: 0.02305183295 | X201: =IF(H201>Vout, SQRT(N201*(1-N201))*SQRT(K201^2+(P201^2)/12), P201/SQRT(12)) -> 7.260805117 | Y201: 0.2635964547 | Z201: 0.2635964547 | AA201: =CHOOSE(J201, SQRT(N201)*SQRT(K201^2+(P201^2)/12), SQRT(L201^2+(P201^2)/12), SQRT(N201)*SQRT(M201^2+(P201^2)/12)) -> 8.984745778 | AB201: =Rdson1*AA201^2 -> 0.1614513134 | AC201: =CHOOSE(J201, (H201*K201/2)*(Fsw)*(Tr_buck+Tf_buck), 0, (H201*M201/2)*(Fsw/2)*(Tr_buck+Tf_buck)) -> 1.96052983 | AD201: =IF(H201>Vout, IF(K201>P201/2,0,ABS(K201-P201/2)*Vsd_Q1*Deadtime*Fsw),0) -> 0 | AE201: =(AD201+AC201+AB201*(1+RdsonTopTc*Ta-RdsonTopTc*25))/(1-AB201*RdsonTopTc*ThetaJA_Q1) -> 2.192786805 | AF201: =CHOOSE(J201, SQRT((1-N201))*SQRT(K201^2+(P201^2)/12), 0, SQRT((1-N201))*SQRT(M201^2+(P201^2)/12)) -> 12.32713623 | AG201: =Rdson2*AF201^2 -> 0.3039165752 | AH201: =CHOOSE(J201, IF(K201<P201/2,Deadtime*Fsw*IF(VfdSky_Q2>0,0,Vsd_Q2)*(K201+P201/2),2*Deadtime*Fsw*IF(VfdSky_Q2>0,0,Vsd_Q2)*K201),0, IF(K201<P201/2,Deadtime*Fsw/2*IF(VfdSky_Q2>0,0,Vsd_Q2)*(K201+P201/2),2*Deadtime*Fsw/2*IF(VfdSky_Q2>0,0,Vsd_Q2)*K201)) -> 0.24375 | AI201: =(AH201+AG201*(1+RdsonBotTc*Ta-RdsonBotTc*25))/(1-AG201*RdsonBotTc*ThetaJA_Q2) -> 0.5831099298 | AJ201: =CHOOSE(J201, 0, SQRT(O201)*SQRT(L201^2+(P201^2)/12), SQRT(O201)*SQRT(M201^2+(P201^2)/12)) -> 0 | AK201: =Rdson4*AJ201^2 -> 0 | AL201: =CHOOSE(J201, 0, (Vout*L201/2)*(Fsw)*(Tr_boost+Tf_boost), (Vout*Iout/2)*(Fsw/2)*(Tr_boost+Tf_boost)) -> 0 | AM201: =IF(H201>Vout, 0, IF(L201>P201/2,0,ABS(L201-P201/2)*Vsd_Q4*Deadtime*Fsw)) -> 0 | AN201: =(AM201+AL201+AK201*(1+RdsonTopTc*Ta-RdsonTopTc*25))/(1-AK201*RdsonTopTc*ThetaJA_Q4) -> 0 | AO201: =CHOOSE(J201, SQRT(Iout^2+(P201^2)/12), SQRT(1-O201)*SQRT(L201^2+(P201^2)/12), SQRT(1-O201)*SQRT(M201^2+(P201^2)/12)) -> 15.25398126 | AP201: =Rdson3*AO201^2 -> 0.4653678886 | AQ201: =CHOOSE(J201, 0, IF(L201<P201/2,Deadtime*Fsw*IF(VfdSky_Q3>0,0,Vsd_Q3)*(L201+P201/2), 2*Deadtime*Fsw*IF(VfdSky_Q3>0,0,Vsd_Q3)*L201), IF(L201<P201/2,Deadtime*Fsw/2*IF(VfdSky_Q3>0,0,Vsd_Q3)*(L201+P201/2), 2*Deadtime*Fsw/2*IF(VfdSky_Q3>0,0,Vsd_Q3)*L201)) -> 0 | AR201: =(AQ201+AP201*(1+RdsonBotTc*Ta-RdsonBotTc*25))/(1-AP201*RdsonBotTc*ThetaJA_Q3) -> 0.5131263984 | AS201: =CHOOSE(J201, Rdson3*Q201^2, Rdson1*Q201^2, 0) -> 0.4653678886 | AT201: =CHOOSE(J201, 2*Deadtime*Fsw*IF(VfdSky_Q2>0,VfdSky_Q2,0)*K201, 2*Deadtime*Fsw*IF(VfdSky_Q3>0,VfdSky_Q3,0)*L201, 2*Deadtime*Fsw/2*IF(VfdSky_Q2>0,VfdSky_Q2,0)*K201+2*Deadtime*Fsw/2*IF(VfdSky_Q3>0,VfdSky_Q3,0)*L201) -> 0 | AU201: =CHOOSE(J201, IF(QrrSky_Q2>0,QrrSky_Q2,Qrr_Q2)*Fsw*(H201-K201*Rdson1), IF(QrrSky_Q3>0,QrrSky_Q3,Qrr_Q3)*Fsw*Vout, IF(QrrSky_Q2>0,QrrSky_Q2,Qrr_Q2)*Fsw/2*(H201-K201*Rdson1)+IF(QrrSky_Q3>0,QrrSky_Q3,Qrr_Q3)*Fsw/2*Vout) -> 0.52335 | AV201: =CHOOSE(J201, Rs*AF201^2, Rs*AJ201^2, Rs*(AF201^2+AJ201^2)) -> 0.4558748628 | AW201: =Rshunt_std/1000*Iout^2 -> 0 | AX201: =IF(Vout>8, Iq*Vout, Iq*H201) -> 0.036 | AY201: =CHOOSE(J201, (Qg_Q1+Qg_Q2)*Fsw, (Qg_Q3+Qg_Q4)*Fsw, (Qg_Q1+Qg_Q2+Qg_Q3+Qg_Q4)*Fsw/2)*IF(Vout>8, Vout, H201) -> 0.54 | AZ201: =(Vin-Vdd)*Fsw*(Qg_Q1+Qg_Q2)+(RdsonDRT+RdsonDRT2)*Fsw*Qg_Q1*Vdd/(RdsonDRT+2*Rgate1+RdsonDRT2)+(RdsonDRB+RdsonDRB2)*Fsw*Qg_Q2*Vdd/(RdsonDRB+2*Rgate2+RdsonDRB2) -> 0.8855084746 | BA201: 0.576 | BB201: 8.631314177 | BC201: =Vout*K201 -> 180 | BD201: 0.9542424108 | BE201: =IF(H201>Vout,ThetaJA_Q1*(AE201+AU201),ThetaJA_Q4*(AN201+AU201)) -> 135.8068402 | BF201: =IF(H201>Vout, AI201*ThetaJA_Q2, ThetaJA_Q3*AR201) -> 29.15549649 | BH201: 95.42424108 | BI201: 3.500417894 | BJ201: 3.812373133 | BK201: 0.7558154298 | BL201: 0.4558748628
... 8 more rows

Sheet Efficiency vs Load Calculations (hidden)
A1: BUCK-BOOST CONTROLLER POWER TOOL
H2: =BD19 -> 0.8890007435 | I2: 10% load
H3: =BD59 -> 0.9617704706 | I3: 50% load
H4: =BD109 -> 0.9651207968 | I4: 100% load
A6: Enter the values of your design and MOSFET datasheet specifications below. Note that thermal resistance (θJA) will change when components are placed on the PCB | BV6: 80 | BW6: 100 | BX6: 120 | BY6: 140 | BZ6: 160 | CA6: 180 | CB6: 20 | CC6: 30 | CD6: 40 | CE6: 50
G7: Operating Point Condtions | Q7: Filter Inductor | U7: Cout | X7: Cin | AA7: High-side BUCK "Control" MOSFET Losses | AF7: Low-side BUCK "Sync" MOSFET Losses | AJ7: Low-side BOOST "Control" MOSFET Losses | AO7: High-side BOOST "Sync" MOSFET Losses | AS7: Pass FET | AT7: External Diode | AU7: Diode/FET | AV7: Sense Rs | AW7: Output Rs | AX7: Controller IC Losses | BB7: RESULTS | BH7: Consolidated Buck/Boost Efficiency & Losses
A8: Input Parameters | G8: Step | H8: Vin | I8: Mode | J8: Mode Digit | K8: Iout | L8: Iin | M8: Avg IL | N8: Duty Cycle BUCK Leg | O8: Duty Cycle BOOST Leg | P8: Ripple Current pk-pk | Q8: Irms Lf | R8: DCR Loss | S8: Core Loss | T8: Total Inductor Loss | U8: Irms Cout | V8: Cout ESR Loss | W8: Total Cout Loss | X8: Irms Cin | Y8: Cin ESR Loss | Z8: Total Cin Loss | AA8: Irms | AB8: RDS(on) Loss | AC8: Transition Loss | AD8: Dead Time Loss | AE8: Total Control MOSFET Loss | AF8: Irms | AG8: RDS(on) Loss | AH8: Deadtime Loss | AI8: Total Sync MOSFET Loss | AJ8: Irms | AK8: RDS(on) Loss | AL8: Transition Loss | AM8: Dead Time Loss | AN8: Total Control MOSFET Loss | AO8: Irms | AP8: RDS(on) Loss | AQ8: Deadtime Loss | AR8: Total Sync MOSFET Loss | AS8: Q1/Q3 RDS(on) Loss @ D = 100% | AT8: Deadtime Loss | AU8: Reverse Recovery Loss | AV8: Isense Shunt Loss | AW8: Iout Shunt Loss | AX8: IQ Loss | AY8: Switching Current Loss | AZ8: Switching Current Diss | BA8: Total IC Loss | BB8: Total Loss | BC8: Pout | BD8: EFF, h | BE8: =IF(Vin>Vout, "Buck ''CONTROL'' MOSFET Temp Rise", "Boost ''CONTROL'' MOSFET Temp Rise") -> Buck ''CONTROL'' MOSFET Temp Rise | BF8: =IF(Vin>Vout, "Buck ''SYNC'' MOSFET Temp Rise", "Boost ''SYNC'' MOSFET Temp Rise") -> Buck ''SYNC'' MOSFET Temp Rise | BH8: h | BI8: Inductor Cu & Core Loss | BJ8: Total MOSFET Loss | BK8: =IF(Vin>Vout, "Buck ''Control'' MOSFET Loss", "Boost ''Control'' MOSFET Loss") -> Buck ''Control'' MOSFET Loss | BL8: =IF(Vin>Vout, "Buck ''SYNC'' MOSFET Loss", "Boost ''SYNC'' MOSFET Loss") -> Buck ''SYNC'' MOSFET Loss | BM8: Shunt Loss | BT8: Qg | BV8: θJA=80 | BW8: θJA=100 | BX8: θJA=120 | BY8: θJA=140 | BZ8: θJA=160 | CA8: θJA=180 | CB8: θJA=20 | CC8: θJA=30 | CD8: θJA=40 | CE8: θJA=50
A9: Design | B9: Input Value | C9: Units | D9: Description | G9: 0 | H9: =Vin -> 24 | I9: =IF(H9>VIN_BB_to_buck, "BUCK", IF(H9<VIN_boost_to_BB,"BOOST","BUCK-BST")) -> BUCK | J9: =IF(I9="BOOST",2, IF(I9="BUCK", 1,3)) -> 1 | K9: 0 | L9: =Vout*K9/(Vin*Efficiency) -> 0 | M9: =K9/(1-O9) -> 0 | N9: =CHOOSE(J9,(Vout+(Rdson2+Rs+Rdcr)*K9)/(Vin+(Rs+Rdson2-Rdson1)*K9), 1, IF(Vin<Vout, D_max_buck_BB, Vout/Vin*(1-D_min_boost_exitBB_to_buck))) -> 0.5 | O9: =CHOOSE(J9,0,(Vout+(Rdson3+Rdcr)*L9-Vin)/(Vout+(Rdson3-Rdson4-Rs)*L9), IF(Vin>Vout,D_min_boost_exitBB_to_buck, (Vout-Vin*D_max_buck_BB)/Vout)) -> 0 | P9: =MAX(0, CHOOSE(J9, (Vin-(Rdson1+Rdcr)*K9-Vout)*N9/(Fsw*Lf), (Vin-(Rdson4+Rdcr+Rs)*L9)*O9/(Fsw*Lf), IF(Vin<Vout, (Vin-(Rdson4+Rdcr+Rs)*L9)*O9/(0.5*Fsw*Lf),(Vin-(Rdson1+Rdcr)*K9-Vout)*N9/(0.5*Fsw*Lf)))) -> 7.272727273 | Q9: =CHOOSE(J9, SQRT(K9^2+(P9^2)/12), SQRT(L9^2+(P9^2)/12), SQRT(M9^2+(P9^2)/12)) -> 2.099455524 | R9: =(Q9^2*Rdcr*(1+Ltc*Ta-Ltc*25))/(1-Q9^2*Rdcr*Ltc*ThetaCa) -> 0.01632984522 | S9: =ABS(7.759*10^-3*Fsw^0.9458*(0.00787*P9)^2.304) -> 1.357856198 | T9: =R9+S9 -> 1.374186043 | U9: =IF(Vin>Vout, P9/SQRT(12), SQRT(O9/(1-O9))*SQRT(K9^2+(P9^2)/12)) -> 2.099455524 | V9: =RCoutEsr*U9^2 -> 0.0132231405 | W9: =V9 -> 0.0132231405 | X9: =IF(Vin>Vout, SQRT(N9*(1-N9))*SQRT(K9^2+(P9^2)/12), P9/SQRT(12)) -> 1.049727762 | Y9: =RCinEsr*X9^2 -> 0.005509641873 | Z9: =Y9 -> 0.005509641873 | AA9: =CHOOSE(J9, SQRT(N9)*SQRT(K9^2+(P9^2)/12), SQRT(L9^2+(P9^2)/12), SQRT(N9)*SQRT(M9^2+(P9^2)/12)) -> 1.484539238 | AB9: =Rdson1*AA9^2 -> 0.004407713499 | AC9: =CHOOSE(J9, (Vin*K9/2)*(Fsw)*(Tr_buck+Tf_buck), 0, (Vin*K9/2)*(Fsw/2)*(Tr_buck+Tf_buck)) -> 0 | AD9: =CHOOSE(J9, IF(K9>P9/2,0,ABS(K9-P9/2)*Vsd_Q1*Deadtime*Fsw),0, IF(K9>P9/2,0,ABS(K9-P9/2)*Vsd_Q1*Deadtime*Fsw/2)) -> 0.02954545455 | AE9: =(AD9+AC9+AB9*(1+RdsonTopTc*Ta-RdsonTopTc*25))/(1-AB9*RdsonTopTc*ThetaJA_Q1) -> 0.03398312562 | AF9: =CHOOSE(J9, SQRT((1-N9))*SQRT(K9^2+(P9^2)/12), 0, SQRT((1-N9))*SQRT(M9^2+(P9^2)/12)) -> 1.484539238 | AG9: =Rdson2*AF9^2 -> 0.004407713499 | AH9: =CHOOSE(J9, IF(K9<P9/2,Deadtime*Fsw*IF(VfdSky_Q2>0,0,Vsd_Q2)*(K9+P9/2),2*Deadtime*Fsw*IF(VfdSky_Q2>0,0,Vsd_Q2)*K9),0, IF(K9<P9/2,Deadtime*Fsw/2*IF(VfdSky_Q2>0,0,Vsd_Q2)*(K9+P9/2),2*Deadtime*Fsw/2*IF(VfdSky_Q2>0,0,Vsd_Q2)*K9)) -> 0.02954545455 | AI9: =(AH9+AG9*(1+RdsonBotTc*Ta-RdsonBotTc*25))/(1-AG9*RdsonBotTc*ThetaJA_Q2) -> 0.03398312562 | AJ9: =CHOOSE(J9, 0, SQRT(O9)*SQRT(L9^2+(P9^2)/12), SQRT(O9)*SQRT(M9^2+(P9^2)/12)) -> 0 | AK9: =Rdson4*AJ9^2 -> 0 | AL9: =CHOOSE(J9, 0, (Vout*L9/2)*(Fsw)*(Tr_boost+Tf_boost), (Vout*Iout/2)*(Fsw/2)*(Tr_boost+Tf_boost)) -> 0 | AM9: =IF(H9>Vout, 0, IF(L9>P9/2,0,ABS(L9-P9/2)*Vsd_Q4*Deadtime*Fsw)) -> 0 | AN9: =(AM9+AL9+AK9*(1+RdsonTopTc*Ta-RdsonTopTc*25))/(1-AK9*RdsonTopTc*ThetaJA_Q4) -> 0 | AO9: =CHOOSE(J9, SQRT(K9^2+(P9^2)/12), SQRT(1-O9)*SQRT(L9^2+(P9^2)/12), SQRT(1-O9)*SQRT(M9^2+(P9^2)/12)) -> 2.099455524 | AP9: =Rdson3*AO9^2 -> 0.008815426997 | AQ9: =CHOOSE(J9, 0, IF(L9<P9/2,Deadtime*Fsw*IF(VfdSky_Q3>0,0,Vsd_Q3)*(L9+P9/2), 2*Deadtime*Fsw*IF(VfdSky_Q3>0,0,Vsd_Q3)*L9), IF(L9<P9/2,Deadtime*Fsw/2*IF(VfdSky_Q3>0,0,Vsd_Q3)*(L9+P9/2), 2*Deadtime*Fsw/2*IF(VfdSky_Q3>0,0,Vsd_Q3)*L9)) -> 0 | AR9: =(AQ9+AP9*(1+RdsonBotTc*Ta-RdsonBotTc*25))/(1-AP9*RdsonBotTc*ThetaJA_Q3) -> 0.008830996799 | AS9: =CHOOSE(J9, Rdson3*Q9^2, Rdson1*Q9^2, 0) -> 0.008815426997 | AT9: =CHOOSE(J9, 2*Deadtime*Fsw*IF(VfdSky_Q2>0,VfdSky_Q2,0)*K9, 2*Deadtime*Fsw*IF(VfdSky_Q3>0,VfdSky_Q3,0)*L9, 2*Deadtime*Fsw/2*IF(VfdSky_Q2>0,VfdSky_Q2,0)*K9+2*Deadtime*Fsw/2*IF(VfdSky_Q3>0,VfdSky_Q3,0)*L9) -> 0 | AU9: =CHOOSE(J9, IF(QrrSky_Q2>0,QrrSky_Q2,Qrr_Q2*K9/Iout)*Fsw*(Vin-K9*Rdson1), IF(QrrSky_Q3>0,QrrSky_Q3,Qrr_Q3)*Fsw*Vout, IF(QrrSky_Q2>0,QrrSky_Q2,Qrr_Q2*K9/Iout)*Fsw/2*(Vin-K9*Rdson1)+IF(QrrSky_Q3>0,QrrSky_Q3,Qrr_Q3)*Fsw/2*Vout) -> 0 | AV9: =CHOOSE(J9, Rs*AF9^2, Rs*AJ9^2, Rs*(AF9^2+AJ9^2)) -> 0.006611570248 | AW9: =Rshunt_std/1000*Iout^2 -> 0 | AX9: =IF(Vout>8, Iq*Vout, Iq*Vin) -> 0.036 | AY9: =CHOOSE(J9, (Qg_Q1+Qg_Q2)*Fsw, (Qg_Q3+Qg_Q4)*Fsw, (Qg_Q1+Qg_Q2+Qg_Q3+Qg_Q4)*Fsw/2)*IF(Vout>8, Vout, Vin) -> 0.54 | AZ9: =(Vin-Vdd)*Fsw*(Qg_Q1+Qg_Q2)+(RdsonDRT+RdsonDRT2)*Fsw*Qg_Q1*Vdd/(RdsonDRT+2*Rgate1+RdsonDRT2)+(RdsonDRB+RdsonDRB2)*Fsw*Qg_Q2*Vdd/(RdsonDRB+2*Rgate2+RdsonDRB2) -> 0.8855084746 | BA9: =SUM(AX9:AY9) -> 0.576 | BB9: =SUM(T9,W9,Z9,AE9,AI9,AN9,AR9, AT9,AU9,BA9,AV9,AW9) -> 2.052327643 | BC9: =Vout*K9 -> 0 | BD9: =BC9/(BC9+BB9) -> 0 | BE9: =IF(Vin>Vout,ThetaJA_Q1*BK9,ThetaJA_Q4*BK9) -> 1.699156281 | BF9: =IF(Vin>Vout, ThetaJA_Q2*BL9, ThetaJA_Q3*BL9) -> 1.699156281 | BH9: =BD9*100 -> 0 | BI9: =T9 -> 1.374186043 | BJ9: =AE9+AI9+AN9+AR9+AU9 -> 0.07679724804 | BK9: =IF(Vin>Vout, AE9+AU9*0.66, AN9+AU9*0.66) -> 0.03398312562 | BL9: =IF(Vin>Vout, AI9+AU9*0.33, AR9+AU9*0.33) -> 0.03398312562 | BM9: =AV9 -> 0.006611570248 | BQ9: 250kHz / 5-1.2V /25A | BR9: 70 | BS9: 70 | BT9: 70 | BU9: =250000*(5-Vdd)*BT9/1000000000+((250000*BT9/1000000000*Vdd)*2.5/(2*4)) -> -0.002734375 | BV9: =BV$6*$BU9 -> -0.21875 | BW9: -0.2734375 | BX9: -0.328125 | BY9: -0.3828125 | BZ9: -0.4375 | CA9: -0.4921875 | CB9: -0.0546875 | CC9: -0.08203125 | CD9: -0.109375 | CE9: -0.13671875
G10: 1 | H10: 24 | I10: BUCK | J10: =IF(I10="BOOST",2, IF(I10="BUCK", 1,3)) -> 1 | K10: =Iout*G10/100 -> 0.15 | L10: 0.08333333333 | M10: =K10/(1-O10) -> 0.15 | N10: 0.5000449992 | O10: 0 | P10: 7.272863577 | Q10: 2.104846483 | R10: 0.01641392635 | S10: =7.759*10^-3*Fsw^0.9458*(0.00787*P10)^2.304 -> 1.357914832 | T10: =R10+S10 -> 1.374328759 | U10: 2.099494872 | V10: 0.01322363615 | W10: =V10 -> 0.01322363615 | X10: 1.052423237 | Y10: 0.005537973353 | Z10: =Y10 -> 0.005537973353 | AA10: 1.488418195 | AB10: 0.004430777445 | AC10: 0.01347443182 | AD10: 0.02832725828 | AE10: 0.04627347304 | AF10: 1.488284246 | AG10: 0.004429979991 | AH10: 0.03076475828 | AI10: 0.03522594832 | AJ10: 0 | AK10: 0 | AL10: 0 | AM10: 0 | AN10: 0 | AO10: =CHOOSE(J10, SQRT(K10^2+(P10^2)/12), SQRT(1-O10)*SQRT(L10^2+(P10^2)/12), SQRT(1-O10)*SQRT(M10^2+(P10^2)/12)) -> 2.104846483 | AP10: 0.008860757436 | AQ10: 0 | AR10: 0.008876487917 | AS10: 0.008860757436 | AT10: 0 | AU10: 0.003599955 | AV10: 0.006644969987 | AW10: 0 | AX10: 0.036 | AY10: 0.54 | AZ10: 0.8855084746 | BA10: =SUM(AX10:AY10) -> 0.576 | BB10: =SUM(T10,W10,Z10,AE10,AI10,AN10,AR10, AT10,AU10,BA10,AV10,AW10) -> 2.069711202 | BC10: 1.8 | BD10: =BC10/(BC10+BB10) -> 0.4651509908 | BE10: 2.432472167 | BF10: 1.820696674 | BH10: =BD10*100 -> 46.51509908 | BI10: =T10 -> 1.374328759 | BJ10: =AE10+AI10+AN10+AR10+AU10 -> 0.09397586428 | BK10: 0.04864944334 | BL10: 0.03641393347 | BM10: =AV10 -> 0.006644969987
A11: Vin | B11: =Vin -> 24 | C11: V | D11: Vin | G11: 2 | H11: 24 | I11: BUCK | J11: 1 | K11: 0.3 | L11: 0.1666666667 | M11: =K11/(1-O11) -> 0.3 | N11: 0.5000899966 | O11: 0 | P11: 7.272999764 | Q11: 2.120859212 | R11: 0.01666495012 | S11: 1.357973418 | T11: 1.374638368 | U11: 2.099534186 | V11: 0.01322413139 | W11: 0.01322413139 | X11: 1.060429589 | Y11: 0.005622554565 | Z11: 0.005622554565 | AA11: 1.49980889 | AB11: 0.004498853415 | AC11: 0.02694886364 | AD11: 0.02710906154 | AE11: 0.05860951372 | AF11: 1.499538959 | AG11: 0.00449723418 | AH11: 0.03198406154 | AI11: 0.03651413825 | AJ11: 0 | AK11: 0 | AL11: 0 | AM11: 0 | AN11: 0 | AO11: 2.120859212 | AP11: 0.008996087595 | AQ11: 0 | AR11: 0.009012302688 | AS11: 0.008996087595 | AT11: 0 | AU11: 0.00719982 | AV11: 0.00674585127 | AW11: 0 | AX11: 0.036 | AY11: 0.54 | AZ11: 0.8855084746 | BA11: =SUM(AX11:AY11) -> 0.576 | BB11: =SUM(T11,W11,Z11,AE11,AI11,AN11,AR11, AT11,AU11,BA11,AV11,AW11) -> 2.08756668 | BC11: 3.6 | BD11: 0.6329596122 | BE11: 3.168069746 | BF11: 1.944503942 | BH11: 63.29596122 | BI11: 1.374638368 | BJ11: 0.1113357747 | BK11: 0.06336139492 | BL11: 0.03889007885 | BM11: 0.00674585127 | BQ11: 250kHz / 12-5V / 30A | BR11: 90 | BS11: 90 | BT11: 90 | BU11: =250000*(12-Vdd)*BT11/1000000000+((250000*BT9/1000000000*Vdd)*2.5/(2*4)) -> 0.142265625 | BV11: 11.38125 | BW11: 14.2265625 | BX11: 17.071875 | BY11: 19.9171875 | BZ11: 22.7625 | CA11: 25.6078125 | CB11: 2.8453125 | CC11: 4.26796875 | CD11: 5.690625 | CE11: 7.11328125
A12: Vout | B12: =Vout -> 12 | C12: V | D12: Vout | G12: 3 | H12: 24 | I12: BUCK | J12: 1 | K12: 0.45 | L12: 0.25 | M12: 0.45 | N12: 0.5001349924 | O12: 0 | P12: 7.273135833 | Q12: 2.147256095 | R12: 0.01708293661 | S12: 1.358031954 | T12: 1.375114891 | U12: 2.099573466 | V12: 0.01322462621 | W12: 0.01322462621 | X12: 1.073628008 | Y12: 0.005763385502 | Z12: 0.005763385502 | AA12: 1.518544296 | AB12: 0.004611953559 | AC12: 0.04042329545 | AD12: 0.02589086432 | AE12: 0.07099159533 | AF12: 1.518134368 | AG12: 0.004609463916 | AH12: 0.03320336432 | AI12: 0.03784771978 | AJ12: 0 | AK12: 0 | AL12: 0 | AM12: 0 | AN12: 0 | AO12: 2.147256095 | AP12: 0.009221417475 | AQ12: 0 | AR12: 0.009238455807 | AS12: 0.009221417475 | AT12: 0 | AU12: 0.010799595 | AV12: 0.006914195875 | AW12: 0 | AX12: 0.036 | AY12: 0.54 | AZ12: 0.8855084746 | BA12: 0.576 | BB12: 2.105894464 | BC12: 5.4 | BD12: 0.7194345758 | BE12: 3.905966401 | BF12: 2.070579306 | BH12: 71.94345758 | BI12: 1.375114891 | BJ12: 0.1288773659 | BK12: 0.07811932803 | BL12: 0.04141158613 | BM12: 0.006914195875 | BQ12: 250kHz / 18-1.2V / 20A | BR12: 60 | BS12: 60 | BT12: 60 | BU12: =250000*(18-Vdd)*BT12/1000000000+((250000*BT9/1000000000*Vdd)*2.5/(2*4)) -> 0.198515625 | BV12: 15.88125 | BW12: 19.8515625 | BX12: 23.821875 | BY12: 27.7921875 | BZ12: 31.7625 | CA12: 35.7328125 | CB12: 3.9703125 | CC12: 5.95546875 | CD12: 7.940625 | CE12: 9.92578125
A13: Fsw | B13: =Fsw/1000 -> 250 | C13: kHz | D13: Switching Frequency | G13: 4 | H13: 24 | I13: BUCK | J13: 1 | K13: 0.6 | L13: 0.3333333333 | M13: 0.6 | N13: 0.5001799865 | O13: 0 | P13: 7.273271785 | Q13: 2.183660582 | R13: 0.01766791927 | S13: 1.358090441 | T13: 1.37575836 | U13: 2.099612711 | V13: 0.01322512061 | W13: 0.01322512061 | X13: 1.09183022 | Y13: 0.00596046615 | Z13: 0.00596046615 | AA13: 1.544359094 | AB13: 0.004770090024 | AC13: 0.05389772727 | AD13: 0.02467266663 | AE13: 0.08342006817 | AF13: 1.543803267 | AG13: 0.004766657052 | AH13: 0.03442266663 | AI13: 0.03922671974 | AJ13: 0 | AK13: 0 | AL13: 0 | AM13: 0 | AN13: 0 | AO13: 2.183660582 | AP13: 0.009536747076 | AQ13: 0 | AR13: 0.009554971746 | AS13: 0.009536747076 | AT13: 0 | AU13: 0.01439928 | AV13: 0.007149985578 | AW13: 0 | AX13: 0.036 | AY13: 0.54 | AZ13: 0.8855084746 | BA13: 0.576 | BB13: 2.124694972 | BC13: 7.2 | BD13: 0.7721432198 | BE13: 4.646179648 | BF13: 2.198924107 | BH13: 77.21432198 | BI13: 1.37575836 | BJ13: 0.1466010397 | BK13: 0.09292359297 | BL13: 0.04397848214 | BM13: 0.007149985578 | BQ13: 500kHz / 5-1.2V / 15A | BR13: 30 | BS13: 30 | BT13: 30 | BU13: =500000*(5-Vdd)*BT13/1000000000+((500000*BT9/1000000000*Vdd)*2.5/(2*4)) -> 0.04453125 | BV13: 3.5625 | BW13: 4.453125 | BX13: 5.34375 | BY13: 6.234375 | BZ13: 7.125 | CA13: 8.015625 | CB13: 0.890625 | CC13: 1.3359375 | CD13: 1.78125 | CE13: 2.2265625
A14: Iout | B14: =Iout -> 15 | C14: A | D14: Max Output Current | G14: 5 | H14: 24 | I14: BUCK | J14: 1 | K14: 0.75 | L14: 0.4166666667 | M14: 0.75 | N14: 0.5002249789 | O14: 0 | P14: 7.273407618 | Q14: 2.229582517 | R14: 0.01841994494 | S14: 1.358148879 | T14: 1.376568824 | U14: 2.099651923 | V14: 0.0132256146 | W14: 0.0132256146 | X14: 1.114791145 | Y14: 0.00621379649 | Z14: 0.00621379649 | AA14: 1.576907568 | AB14: 0.004973274956 | AC14: 0.06737215909 | AD14: 0.02345446845 | AE14: 0.09589528522 | AF14: 1.576198186 | AG14: 0.004968801441 | AH14: 0.03564196845 | AI14: 0.04065116741 | AJ14: 0 | AK14: 0 | AL14: 0 | AM14: 0 | AN14: 0 | AO14: 2.229582517 | AP14: 0.009942076397 | AQ14: 0 | AR14: 0.009961884761 | AS14: 0.009942076397 | AT14: 0 | AU14: 0.017998875 | AV14: 0.007453202162 | AW14: 0 | AX14: 0.036 | AY14: 0.54 | AZ14: 0.8855084746 | BA14: 0.576 | BB14: 2.143968649 | BC14: 9 | BD14: 0.8076117479 | BE14: 5.388727136 | BF14: 2.329539808 | BH14: 80.76117479 | BI14: 1.376568824 | BJ14: 0.1645072124 | BK14: 0.1077745427 | BL14: 0.04659079616 | BM14: 0.007453202162 | BQ14: 500kHz / 12-5V / 15A | BR14: 45 | BS14: 45 | BT14: 45 | BU14: =500000*(12-Vdd)*BT14/1000000000+((500000*BT9/1000000000*Vdd)*2.5/(2*4)) -> 0.18328125 | BV14: 14.6625 | BW14: 18.328125 | BX14: 21.99375 | BY14: 25.659375 | BZ14: 29.325 | CA14: 32.990625 | CB14: 3.665625 | CC14: 5.4984375 | CD14: 7.33125 | CE14: 9.1640625
A15: Ta | B15: =Ta -> 25 | C15: °C | D15: Ambient Temperature | G15: 6 | H15: 24 | I15: BUCK | J15: 1 | K15: 0.9 | L15: 0.5 | M15: 0.9 | N15: 0.5002699696 | O15: 0 | P15: 7.273543334 | Q15: 2.284448012 | R15: 0.01933907383 | S15: 1.358207267 | T15: 1.377546341 | U15: 2.099691101 | V15: 0.01322610816 | W15: 0.01322610816 | X15: 1.142223839 | Y15: 0.006523376497 | Z15: 0.006523376497 | AA15: 1.615784717 | AB15: 0.005221520502 | AC15: 0.08084659091 | AD15: 0.02223626979 | AE15: 0.1084176022 | AF15: 1.614912527 | AG15: 0.005215884937 | AH15: 0.03686126979 | AI15: 0.04212109449 | AJ15: 0 | AK15: 0 | AL15: 0 | AM15: 0 | AN15: 0 | AO15: 2.284448012 | AP15: 0.01043740544 | AQ15: 0 | AR15: 0.0104592389 | AS15: 0.01043740544 | AT15: 0 | AU15: 0.02159838 | AV15: 0.007823827405 | AW15: 0 | AX15: 0.036 | AY15: 0.54 | AZ15: 0.8855084746 | BA15: 0.576 | BB15: 2.163715969 | BC15: 10.8 | BD15: 0.8330944635 | BE15: 6.133626648 | BF15: 2.462427994 | BH15: 83.30944635 | BI15: 1.377546341 | BJ15: 0.1825963155 | BK15: 0.122672533 | BL15: 0.04924855989 | BM15: 0.007823827405 | BQ15: 1Mhz / 5-1.2V / 10A | BR15: 20 | BS15: 20 | BT15: 20 | BU15: =1000000*(5-Vdd)*BT15/1000000000+((1000000*BT9/1000000000*Vdd)*2.5/(2*4)) -> 0.1140625 | BV15: 9.125 | BW15: 11.40625 | BX15: 13.6875 | BY15: 15.96875 | BZ15: 18.25 | CA15: 20.53125 | CB15: 2.28125 | CC15: 3.421875 | CD15: 4.5625 | CE15: 5.703125
A16: Vcc | B16: =Vdd -> 7.5 | C16: V | D16: Subregulated VCC Voltage | G16: 7 | H16: 24 | I16: BUCK | J16: 1 | K16: 1.05 | L16: 0.5833333333 | M16: 1.05 | N16: 0.5003149587 | O16: 0 | P16: 7.273678932 | Q16: 2.347630103 | R16: 0.02042537951 | S16: 1.358265607 | T16: 1.378690986 | U16: 2.099730245 | V16: 0.0132266013 | W16: 0.0132266013 | X16: 1.173814819 | Y16: 0.006889206142 | Z16: 0.006889206142 | AA16: 1.660547923 | AB16: 0.005514838806 | AC16: 0.09432102273 | AD16: 0.02101807066 | AE16: 0.1209873774 | AF16: 1.659502244 | AG16: 0.005507895395 | AH16: 0.03808057066 | AI16: 0.04363653515 | AJ16: 0 | AK16: 0 | AL16: 0 | AM16: 0 | AN16: 0 | AO16: 2.347630103 | AP16: 0.0110227342 | AQ16: 0 | AR16: 0.01104708802 | AS16: 0.0110227342 | AT16: 0 | AU16: 0.025197795 | AV16: 0.008261843092 | AW16: 0 | AX16: 0.036 | AY16: 0.54 | AZ16: 0.8855084746 | BA16: 0.576 | BB16: 2.183937432 | BC16: 12.6 | BD16: 0.8522763342 | BE16: 6.880896104 | BF16: 2.597590375 | BH16: 85.22763342 | BI16: 1.378690986 | BJ16: 0.2008687955 | BK16: 0.1376179221 | BL16: 0.0519518075 | BM16: 0.008261843092 | BQ16: 1Mhz / 12-1.2V/ 10A | BR16: 25 | BS16: 25 | BT16: 25 | BU16: =1000000*(12-Vdd)*BT16/1000000000+((1000000*BT9/1000000000*Vdd)*2.5/(2*4)) -> 0.2765625 | BV16: 22.125 | BW16: 27.65625 | BX16: 33.1875 | BY16: 38.71875 | BZ16: 44.25 | CA16: 49.78125 | CB16: 5.53125 | CC16: 8.296875 | CD16: 11.0625 | CE16: 13.828125
A17: Components | B17: Input Value | C17: Units | D17: Description | G17: 8 | H17: 24 | I17: BUCK | J17: 1 | K17: 1.2 | L17: 0.6666666667 | M17: 1.2 | N17: 0.500359946 | O17: 0 | P17: 7.273814412 | Q17: 2.418477071 | R17: 0.02167894902 | S17: 1.358323897 | T17: 1.380002846 | U17: 2.099769354 | V17: 0.01322709403 | W17: 0.01322709403 | X17: 1.209238222 | Y17: 0.007311285388 | Z17: 0.007311285388 | AA17: 1.710736978 | AB17: 0.005853242013 | AC17: 0.1077954545 | AD17: 0.01979987105 | AE17: 0.1336049721 | AF17: 1.709505875 | AG17: 0.005844820671 | AH17: 0.03929987105 | AI17: 0.04519752601 | AJ17: 0 | AK17: 0 | AL17: 0 | AM17: 0 | AN17: 0 | AO17: 2.418477071 | AP17: 0.01169806268 | AQ17: 0 | AR17: 0.0117254958 | AS17: 0.01169806268 | AT17: 0 | AU17: 0.02879712 | AV17: 0.008767231006 | AW17: 0 | AX17: 0.036 | AY17: 0.54 | AZ17: 0.8855084746 | BA17: 0.576 | BB17: 2.20463357 | BC17: 14.4 | BD17: 0.8672278096 | BE17: 7.630553563 | BF17: 2.73502878 | BH17: 86.72278096 | BI17: 1.380002846 | BJ17: 0.2193251139 | BK17: 0.1526110713 | BL17: 0.05470057561 | BM17: 0.008767231006 | BQ17: 500kHz / 18-1.2V / 20A | BR17: 50 | BS17: 50 | BT17: 50 | BU17: =500000*(18-Vdd)*BT17/1000000000+((500000*BT15/1000000000*Vdd)*2.5/(2*4)) -> 0.2859375 | BV17: 22.875 | BW17: 28.59375 | BX17: 34.3125 | BY17: 40.03125 | BZ17: 45.75 | CA17: 51.46875 | CB17: 5.71875 | CC17: 8.578125 | CD17: 11.4375 | CE17: 14.296875
A18: L | B18: =Lf*1000000 -> 3.3 | C18: uH | D18: Filter Inductance | G18: 9 | H18: 24 | I18: BUCK | J18: 1 | K18: 1.35 | L18: 0.75 | M18: 1.35 | N18: 0.5004049317 | O18: 0 | P18: 7.273949775 | Q18: 2.496336404 | R18: 0.02309988277 | S18: 1.358382137 | T18: 1.38148202 | U18: 2.09980843 | V18: 0.01322758633 | W18: 0.01322758633 | X18: 1.248167793 | Y18: 0.007789614196 | Z18: 0.007789614196 | AA18: 1.765891031 | AB18: 0.006236742265 | AC18: 0.1212698864 | AD18: 0.01858167096 | AE18: 0.1462707502 | AF18: 1.764461479 | AG18: 0.006226648622 | AH18: 0.04051917096 | AI18: 0.04680410613 | AJ18: 0 | AK18: 0 | AL18: 0 | AM18: 0 | AN18: 0 | AO18: 2.496336404 | AP18: 0.01246339089 | AQ18: 0 | AR18: 0.01249453574 | AS18: 0.01246339089 | AT18: 0 | AU18: 0.032396355 | AV18: 0.009339972933 | AW18: 0 | AX18: 0.036 | AY18: 0.54 | AZ18: 0.8855084746 | BA18: 0.576 | BB18: 2.225804941 | BC18: 16.2 | BD18: 0.8792017528 | BE18: 8.382617224 | BF18: 2.874745164 | BH18: 87.92017528 | BI18: 1.38148202 | BJ18: 0.2379657471 | BK18: 0.1676523445 | BL18: 0.05749490328 | BM18: 0.009339972933 | BQ18: θJA=120°C/W - 160°C/W
A19: Rdcr | B19: =Rdcr*1000 -> 3.7 | C19: mW | D19: Inductor DCR at 25°C | G19: 10 | H19: 24 | I19: BUCK | J19: 1 | K19: 1.5 | L19: 0.8333333333 | M19: 1.5 | N19: 0.5004499156 | O19: 0 | P19: 7.274085019 | Q19: 2.580573464 | R19: 0.02468829464 | S19: 1.358440329 | T19: 1.383128624 | U19: 2.099847472 | V19: 0.01322807822 | W19: 0.01322807822 | X19: 1.29028621 | Y19: 0.008324192517 | Z19: 0.008324192517 | AA19: 1.825561791 | AB19: 0.006665351706 | AC19: 0.1347443182 | AD19: 0.01736347039 | AE19: 0.1589850786 | AF19: 1.823919832 | AG19: 0.006653367106 | AH19: 0.04173847039 | AI19: 0.04845631703 | AJ19: 0 | AK19: 0 | AL19: 0 | AM19: 0 | AN19: 0 | AO19: 2.580573464 | AP19: 0.01331871881 | AQ19: 0 | AR19: 0.01335429122 | AS19: 0.01331871881 | AT19: 0 | AU19: 0.0359955 | AV19: 0.009980050659 | AW19: 0 | AX19: 0.036 | AY19: 0.54 | AZ19: 0.8855084746 | BA19: 0.576 | BB19: 2.247452132 | BC19: 18 | BD19: 0.8890007435 | BE19: 9.137105429 | BF19: 3.016741601 | BH19: 88.90007435 | BI19: 1.383128624 | BJ19: 0.2567911868 | BK19: 0.1827421086 | BL19: 0.06033483203 | BM19: 0.009980050659 | BQ19: θJA=30°C/W - 50°C/W
A20: LTc | B20: =Ltc*1000000 -> 4000 | C20: ppm | D20: Inductor Series Resistance Temp Co | G20: 11 | H20: 24 | I20: BUCK | J20: 1 | K20: 1.65 | L20: 0.9166666667 | M20: 1.65 | N20: 0.5004948979 | O20: 0 | P20: 7.274220146 | Q20: 2.67058481 | R20: 0.02644431197 | S20: 1.358498471 | T20: 1.384942783 | U20: 2.09988648 | V20: 0.01322856968 | W20: 0.01322856968 | X20: 1.335291751 | Y20: 0.008915020301 | Z20: 0.008915020301 | AA20: 1.889322957 | AB20: 0.007139082475 | AC20: 0.14821875 | AD20: 0.01614526934 | AE20: 0.1717483269 | AF20: 1.887453838 | AG20: 0.007124963981 | AH20: 0.04295776934 | AI20: 0.0501542027 | AJ20: 0 | AK20: 0 | AL20: 0 | AM20: 0 | AN20: 0 | AO20: 2.67058481 | AP20: 0.01426404646 | AQ20: 0 | AR20: 0.01430485548 | AS20: 0.01426404646 | AT20: 0 | AU20: 0.039594555 | AV20: 0.01068744597 | AW20: 0 | AX20: 0.036 | AY20: 0.54 | AZ20: 0.8855084746 | BA20: 0.576 | BB20: 2.269575759 | BC20: 19.8 | BD20: 0.897162692 | BE20: 9.894036661 | BF20: 3.161020293 | BH20: 89.7162692 | BI20: 1.384942783 | BJ20: 0.2758019401 | BK20: 0.1978807332 | BL20: 0.06322040585 | BM20: 0.01068744597
A21: ThetaCa | B21: =ThetaCa -> 20 | C21: °C/W | D21: Core to Ambient Thermal Resistance | G21: 12 | H21: 24 | I21: BUCK | J21: 1 | K21: 1.8 | L21: 1 | M21: 1.8 | N21: 0.5005398785 | O21: 0 | P21: 7.274355155 | Q21: 2.765806738 | R21: 0.02836807561 | S21: 1.358556564 | T21: 1.38692464 | U21: 2.099925454 | V21: 0.01322906073 | W21: 0.01322906073 | X21: 1.382902563 | Y21: 0.00956209749 | Z21: 0.00956209749 | AA21: 1.956776266 | AB21: 0.007657946714 | AC21: 0.1616931818 | AD21: 0.01492706782 | AE21: 0.1845608678 | AF21: 1.954664563 | AG21: 0.007641427107 | AH21: 0.04417706782 | AI21: 0.05189780959 | AJ21: 0 | AK21: 0 | AL21: 0 | AM21: 0 | AN21: 0 | AO21: 2.765806738 | AP21: 0.01529937382 | AQ21: 0 | AR21: 0.01534633167 | AS21: 0.01529937382 | AT21: 0 | AU21: 0.04319352 | AV21: 0.01146214066 | AW21: 0 | AX21: 0.036 | AY21: 0.54 | AZ21: 0.8855084746 | BA21: 0.576 | BB21: 2.292176468 | BC21: 21.6 | BD21: 0.9040616299 | BE21: 10.65342955 | BF21: 3.30758356 | BH21: 90.40616299 | BI21: 1.38692464 | BJ21: 0.2949985291 | BK21: 0.213068591 | BL21: 0.06615167119 | BM21: 0.01146214066
A22: Cin | B22: =Cin*1000000 -> 186 | C22: μF | D22: Input Capacitance | G22: 13 | H22: 24 | I22: BUCK | J22: 1 | K22: 1.95 | L22: 1.083333333 | M22: 1.95 | N22: 0.5005848574 | O22: 0 | P22: 7.274490047 | Q22: 2.865719884 | R22: 0.03045973991 | S22: 1.358614608 | T22: 1.389074348 | U22: 2.099964393 | V22: 0.01322955136 | W22: 0.01322955136 | X22: 1.432858962 | Y22: 0.01026542402 | Z22: 0.01026542402 | AA22: 2.027554754 | AB22: 0.008221956562 | AC22: 0.1751676136 | AD22: 0.01370886582 | AE22: 0.1974230768 | AF22: 2.025184479 | AG22: 0.008202744345 | AH22: 0.04539636582 | AI22: 0.05368718661 | AJ22: 0 | AK22: 0 | AL22: 0 | AM22: 0 | AN22: 0 | AO22: 2.865719884 | AP22: 0.01642470091 | AQ22: 0 | AR22: 0.01647883289 | AS22: 0.01642470091 | AT22: 0 | AU22: 0.046792395 | AV22: 0.01230411652 | AW22: 0 | AX22: 0.036 | AY22: 0.54 | AZ22: 0.8855084746 | BA22: 0.576 | BB22: 2.315254931 | BC22: 23.4 | BD22: 0.9099657018 | BE22: 11.41530288 | BF22: 3.456433848 | BH22: 90.99657018 | BI22: 1.389074348 | BJ22: 0.3143814913 | BK22: 0.2283060575 | BL22: 0.06912867696 | BM22: 0.01230411652
A23: RCinEsr | B23: =RCinEsr*1000 -> 5 | C23: mW | D23: Input Capacitor ESR | G23: 14 | H23: 24 | I23: BUCK | J23: 1 | K23: 2.1 | L23: 1.166666667 | M23: 2.1 | N23: 0.5006298347 | O23: 0 | P23: 7.27462482 | Q23: 2.969850814 | R23: 0.03271947279 | S23: 1.358672602 | T23: 1.391392075 | U23: 2.100003299 | V23: 0.01323004157 | W23: 0.01323004157 | X23: 1.484924229 | Y23: 0.01102499983 | Z23: 0.01102499983 | AA23: 2.101323887 | AB23: 0.008831124158 | AC23: 0.1886420455 | AD23: 0.01249066333 | AE23: 0.2103353324 | AF23: 2.098678579 | AG23: 0.008808903556 | AH23: 0.04661566333 | AI23: 0.05552238516 | AJ23: 0 | AK23: 0 | AL23: 0 | AM23: 0 | AN23: 0 | AO23: 2.969850814 | AP23: 0.01764002771 | AQ23: 0 | AR23: 0.01770248217 | AS23: 0.01764002771 | AT23: 0 | AU23: 0.05039118 | AV23: 0.01321335533 | AW23: 0 | AX23: 0.036 | AY23: 0.54 | AZ23: 0.8855084746 | BA23: 0.576 | BB23: 2.338811852 | BC23: 25.2 | BD23: 0.9150721584 | BE23: 12.17967556 | BF23: 3.607573728 | BH23: 91.50721584 | BI23: 1.391392075 | BJ23: 0.3339513798 | BK23: 0.2435935112 | BL23: 0.07215147456 | BM23: 0.01321335533
A24: Cout | B24: =Cout*1000000 -> 298 | C24: μF | D24: Output Capcitance | G24: 15 | H24: 24 | I24: BUCK | J24: 1 | K24: 2.25 | L24: 1.25 | M24: 2.25 | N24: 0.5006748102 | O24: 0 | P24: 7.274759476 | Q24: 3.077771454 | R24: 0.03514745573 | S24: 1.358730548 | T24: 1.393878003 | U24: 2.100042171 | V24: 0.01323053136 | W24: 0.01323053136 | X24: 1.538884325 | Y24: 0.01184082483 | Z24: 0.01184082483 | AA24: 2.177781169 | AB24: 0.009485461638 | AC24: 0.2021164773 | AD24: 0.01127246037 | AE24: 0.2232980162 | AF24: 2.174843972 | AG24: 0.009459892602 | AH24: 0.04783496037 | AI24: 0.05740345909 | AJ24: 0 | AK24: 0 | AL24: 0 | AM24: 0 | AN24: 0 | AO24: 3.077771454 | AP24: 0.01894535424 | AQ24: 0 | AR24: 0.01901741256 | AS24: 0.01894535424 | AT24: 0 | AU24: 0.053989875 | AV24: 0.0141898389 | AW24: 0 | AX24: 0.036 | AY24: 0.54 | AZ24: 0.8855084746 | BA24: 0.576 | BB24: 2.362847961 | BC24: 27 | BD24: 0.919529333 | BE24: 12.94656669 | BF24: 3.761005892 | BH24: 91.9529333 | BI24: 1.393878003 | BJ24: 0.3537087629 | BK24: 0.2589313337 | BL24: 0.07522011784 | BM24: 0.0141898389
A25: RCoutEsr | B25: =CoutEsr*1000 -> 3 | C25: mW | D25: Output Capacitor ESR | G25: 16 | H25: 24 | I25: BUCK | J25: 1 | K25: 2.4 | L25: 1.333333333 | M25: 2.4 | N25: 0.5007197841 | O25: 0 | P25: 7.274894015 | Q25: 3.189097089 | R25: 0.03774388387 | S25: 1.358788444 | T25: 1.396532327 | U25: 2.100081009 | V25: 0.01323102073 | W25: 0.01323102073 | X25: 1.594546892 | Y25: 0.01271289896 | Z25: 0.01271289896 | AA25: 2.25665473 | AB25: 0.01018498114 | AC25: 0.2155909091 | AD25: 0.01005425693 | AE25: 0.2363115128 | AF25: 2.253408457 | AG25: 0.01015569935 | AH25: 0.04905425693 | AI25: 0.05933046475 | AJ25: 0 | AK25: 0 | AL25: 0 | AM25: 0 | AN25: 0 | AO25: 3.189097089 | AP25: 0.02034068049 | AQ25: 0 | AR25: 0.02042376715 | AS25: 0.02034068049 | AT25: 0 | AU25: 0.05758848 | AV25: 0.01523354902 | AW25: 0 | AX25: 0.036 | AY25: 0.54 | AZ25: 0.8855084746 | BA25: 0.576 | BB25: 2.387364021 | BC25: 28.8 | BD25: 0.9234509201 | BE25: 13.71599548 | BF25: 3.916733158 | BH25: 92.34509201 | BI25: 1.396532327 | BJ25: 0.3736542247 | BK25: 0.2743199096 | BL25: 0.07833466315 | BM25: 0.01523354902 | BQ25: EFF_1 @ 25°C | BR25: Vin | BS25: Iout | BT25: Vout | BU25: Efficiency | BV25: Pdis
A26: Top Driver | B26: Input Value | C26: Units | D26: Description | G26: 17 | H26: 24 | I26: BUCK | J26: 1 | K26: 2.55 | L26: 1.416666667 | M26: 2.55 | N26: 0.5007647562 | O26: 0 | P26: 7.275028435 | Q26: 3.303483499 | R26: 0.04050896599 | S26: 1.35884629 | T26: 1.399355256 | U26: 2.100119813 | V26: 0.01323150968 | W26: 0.01323150968 | X26: 1.651739817 | Y26: 0.01364122212 | Z26: 0.01364122212 | AA26: 2.337701307 | AB26: 0.0109296948 | AC26: 0.2290653409 | AD26: 0.008836053018 | AE26: 0.2493762099 | AF26: 2.334128494 | AG26: 0.01089631165 | AH26: 0.05027355302 | AI26: 0.06130346099 | AJ26: 0 | AK26: 0 | AL26: 0 | AM26: 0 | AN26: 0 | AO26: 3.303483499 | AP26: 0.02182600646 | AQ26: 0 | AR26: 0.02192169908 | AS26: 0.02182600646 | AT26: 0 | AU26: 0.061186995 | AV26: 0.01634446748 | AW26: 0 | AX26: 0.036 | AY26: 0.54 | AZ26: 0.8855084746 | BA26: 0.576 | BB26: 2.41236082 | BC26: 30.6 | BD26: 0.9269255285 | BE26: 14.48798133 | BF26: 4.074758467 | BH26: 92.69255285 | BI26: 1.399355256 | BJ26: 0.393788365 | BK26: 0.2897596266 | BL26: 0.08149516934 | BM26: 0.01634446748 | BQ26: Vin=10V | BR26: 9.998964 | BS26: 0.1027 | BT26: 5.121136 | BU26: 61.87068324 | BV26: 324.123657
A27: RdsonDRT | B27: =RdsonDRT -> 1.5 | C27: W | D27: Drain to Source Resistance of pullup Top FET Driver | G27: 18 | H27: 24 | I27: BUCK | J27: 1 | K27: 2.7 | L27: 1.5 | M27: 2.7 | N27: 0.5008097267 | O27: 0 | P27: 7.275162738 | Q27: 3.420623638 | R27: 0.04344292457 | S27: 1.358904088 | T27: 1.402347012 | U27: 2.100158583 | V27: 0.01323199822 | W27: 0.01323199822 | X27: 1.710309576 | Y27: 0.01462579423 | Z27: 0.01462579423 | AA27: 2.420703901 | AB27: 0.01171961476 | AC27: 0.2425397727 | AD27: 0.007617848623 | AE27: 0.2624924983 | AF27: 2.416786853 | AG27: 0.01168171739 | AH27: 0.05149284862 | AI27: 0.06332250914 | AJ27: 0 | AK27: 0 | AL27: 0 | AM27: 0 | AN27: 0 | AO27: 3.420623638 | AP27: 0.02340133214 | AQ27: 0 | AR27: 0.02351137163 | AS27: 0.02340133214 | AT27: 0 | AU27: 0.06478542 | AV27: 0.01752257608 | AW27: 0 | AX27: 0.036 | AY27: 0.54 | AZ27: 0.8855084746 | BA27: 0.576 | BB27: 2.43783918 | BC27: 32.4 | BD27: 0.930023238 | BE27: 15.26254377 | BF27: 4.235084887 | BH27: 93.0023238 | BI27: 1.402347012 | BJ27: 0.4141117991 | BK27: 0.3052508755 | BL27: 0.08470169774 | BM27: 0.01752257608 | BQ27: Vout=5.1V | BR27: 9.998667 | BS27: 0.1166 | BT27: 5.121298 | BU27: 64.72942057 | BV27: 325.3788646
A28: RdsonDRT2 | B28: =RdsonDRT2 -> 1 | C28: W | D28: Drain to Source Resistance of pulldown Top FET Driver | G28: 19 | H28: 24 | I28: BUCK | J28: 1 | K28: 2.85 | L28: 1.583333333 | M28: 2.85 | N28: 0.5008546955 | O28: 0 | P28: 7.275296923 | Q28: 3.540244169 | R28: 0.04654599585 | S28: 1.358961836 | T28: 1.405507832 | U28: 2.100197319 | V28: 0.01323248633 | W28: 0.01323248633 | X28: 1.770119498 | Y28: 0.01566661519 | Z28: 0.01566661519 | AA28: 2.505469331 | AB28: 0.01255475314 | AC28: 0.2560142045 | AD28: 0.006399643751 | AE28: 0.275660772 | AF28: 2.501190158 | AG28: 0.01251190442 | AH28: 0.05271214375 | AI28: 0.06538767303 | AJ28: 0 | AK28: 0 | AL28: 0 | AM28: 0 | AN28: 0 | AO28: 3.540244169 | AP28: 0.02506665755 | AQ28: 0 | AR28: 0.0251929582 | AS28: 0.02506665755 | AT28: 0 | AU28: 0.068383755 | AV28: 0.01876785663 | AW28: 0 | AX28: 0.036 | AY28: 0.54 | AZ28: 0.8855084746 | BA28: 0.576 | BB28: 2.463799948 | BC28: 34.2 | BD28: 0.9328002021 | BE28: 16.03970252 | BF28: 4.397715609 | BH28: 93.28002021 | BI28: 1.405507832 | BJ28: 0.4346251583 | BK28: 0.3207940503 | BL28: 0.08795431218 | BM28: 0.01876785663 | BQ28: L=3.3uH/30mOhm | BR28: 9.998766 | BS28: 0.1466 | BT28: 5.121323 | BU28: 69.88537692 | BV28: 323.5244619
A29: Bottom Driver | B29: Input Value | C29: Units | D29: Description | G29: 20 | H29: 24 | I29: BUCK | J29: 1 | K29: 3 | L29: 1.666666667 | M29: 3 | N29: 0.5008996626 | O29: 0 | P29: 7.275430991 | Q29: 3.662102039 | R29: 0.04981842987 | S29: 1.359019535 | T29: 1.408837965 | U29: 2.10023602 | V29: 0.01323297402 | W29: 0.01323297402 | X29: 1.831048055 | Y29: 0.0167636849 | Z29: 0.0167636849 | AA29: 2.591825812 | AB29: 0.01343512208 | AC29: 0.2694886364 | AD29: 0.0051814384 | AE29: 0.2888814283 | AF29: 2.587166462 | AG29: 0.01338686061 | AH29: 0.0539314384 | AI29: 0.067499019 | AJ29: 0 | AK29: 0 | AL29: 0 | AM29: 0 | AN29: 0 | AO29: 3.662102039 | AP29: 0.02682198268 | AQ29: 0 | AR29: 0.02696664245 | AS29: 0.02682198268 | AT29: 0 | AU29: 0.071982 | AV29: 0.02008029091 | AW29: 0 | AX29: 0.036 | AY29: 0.54 | AZ29: 0.8855084746 | BA29: 0.576 | BB29: 2.490244004 | BC29: 36 | BD29: 0.9353019429 | BE29: 16.81947741 | BF29: 4.56265395 | BH29: 93.53019429 | BI29: 1.408837965 | BJ29: 0.4553290897 | BK29: 0.3363895483 | BL29: 0.091253079 | BM29: 0.02008029091 | BQ29: 4394 Top and Bottom Fets | BR29: 9.99879 | BS29: 0.1958 | BT29: 5.12176 | BU29: 75.66251657 | BV29: 322.5719977
A30: RdsonDRB | B30: =RdsonDRB -> 1.5 | C30: W | D30: Drain to Source Resistance of pullup Bottom FET Driver | G30: 21 | H30: 24 | I30: BUCK | J30: 1 | K30: 3.15 | L30: 1.75 | M30: 3.15 | N30: 0.5009446281 | O30: 0 | P30: 7.27556494 | Q30: 3.785981216 | R30: 0.0532604905 | S30: 1.359077184 | T30: 1.412337675 | U30: 2.100274688 | V30: 0.0132334613 | W30: 0.0132334613 | X30: 1.89298723 | Y30: 0.01791700326 | Z30: 0.01791700326 | AA30: 2.679620655 | AB30: 0.01436073371 | AC30: 0.2829630682 | AD30: 0.00396323257 | AE30: 0.3021548676 | AF30: 2.674562938 | AG30: 0.01430657382 | AH30: 0.05515073257 | AI30: 0.0696566159 | AJ30: 0 | AK30: 0 | AL30: 0 | AM30: 0 | AN30: 0 | AO30: 3.785981216 | AP30: 0.02866730753 | AQ30: 0 | AR30: 0.02883261824 | AS30: 0.02866730753 | AT30: 0 | AU30: 0.075580155 | AV30: 0.02145986074 | AW30: 0 | AX30: 0.036 | AY30: 0.54 | AZ30: 0.8855084746 | BA30: 0.576 | BB30: 2.517172257 | BC30: 37.8 | BD30: 0.9375657538 | BE30: 17.60188849 | BF30: 4.729903352 | BH30: 93.75657538 | BI30: 1.412337675 | BJ30: 0.4762242567 | BK30: 0.3520377699 | BL30: 0.09459806705 | BM30: 0.02145986074 | BR30: 9.998766 | BS30: 0.2681 | BT30: 5.122408 | BU30: 80.95755345 | BV30: 323.0250607
A31: RdsonDRB2 | B31: 1 | C31: W | D31: Drain to Source Resistance of pulldown Bottom FET Driver | G31: 22 | H31: 24 | I31: BUCK | J31: 1 | K31: 3.3 | L31: 1.833333333 | M31: 3.3 | N31: 0.5009895918 | O31: 0 | P31: 7.275698772 | Q31: 3.911689667 | R31: 0.05687245552 | S31: 1.359134785 | T31: 1.41600724 | U31: 2.100313322 | V31: 0.01323394816 | W31: 0.01323394816 | X31: 1.955841003 | Y31: 0.01912657014 | Z31: 0.01912657014 | AA31: 2.76871813 | AB31: 0.01533160017 | AC31: 0.2964375 | AD31: 0.002745026263 | AE31: 0.3154814937 | AF31: 2.76324374 | AG31: 0.01527103194 | AH31: 0.05637002626 | AI31: 0.07186053511 | AJ31: 0 | AK31: 0 | AL31: 0 | AM31: 0 | AN31: 0 | AO31: 3.911689667 | AP31: 0.0306026321 | AQ31: 0 | AR31: 0.03079108978 | AS31: 0.0306026321 | AT31: 0 | AU31: 0.07917822 | AV31: 0.02290654791 | AW31: 0 | AX31: 0.036 | AY31: 0.54 | AZ31: 0.8855084746 | BA31: 0.576 | BB31: 2.544585645 | BC31: 39.6 | BD31: 0.939622478 | BE31: 18.38695594 | BF31: 4.899467385 | BH31: 93.9622478 | BI31: 1.41600724 | BJ31: 0.4973113385 | BK31: 0.3677391189 | BL31: 0.09798934771 | BM31: 0.02290654791 | BR31: 9.998704 | BS31: 0.3655 | BT31: 5.123094 | BU31: 85.41902227 | BV31: 319.6330069
A32: Deadtime | B32: Input Value | C32: Units | D32: Description | G32: 23 | H32: 24 | I32: BUCK | J32: 1 | K32: 3.45 | L32: 1.916666667 | M32: 3.45 | N32: 0.5010345538 | O32: 0 | P32: 7.275832487 | Q32: 4.039056598 | R32: 0.06065461669 | S32: 1.359192336 | T32: 1.419846953 | U32: 2.100351922 | V32: 0.01323443459 | W32: 0.01323443459 | X32: 2.019523976 | Y32: 0.02039238544 | Z32: 0.02039238544 | AA32: 2.858997515 | AB32: 0.01634773358 | AC32: 0.3099119318 | AD32: 0.001526819478 | AE32: 0.3288617136 | AF32: 2.853088048 | AG32: 0.01628022282 | AH32: 0.05758931948 | AI32: 0.07411085053 | AJ32: 0 | AK32: 0 | AL32: 0 | AM32: 0 | AN32: 0 | AO32: 4.039056598 | AP32: 0.0326279564 | AQ32: 0 | AR32: 0.03284227164 | AS32: 0.0326279564 | AT32: 0 | AU32: 0.082776195 | AV32: 0.02442033423 | AW32: 0 | AX32: 0.036 | AY32: 0.54 | AZ32: 0.8855084746 | BA32: 0.576 | BB32: 2.572485138 | BC32: 41.4 | BD32: 0.9414978451 | BE32: 19.17470012 | BF32: 5.071349744 | BH32: 94.14978451 | BI32: 1.419846953 | BJ32: 0.5185910308 | BK32: 0.3834940023 | BL32: 0.1014269949 | BM32: 0.02442033423 | BR32: 9.998729 | BS32: 0.4906 | BT32: 5.123817 | BU32: 88.55185027 | BV32: 324.9815318
A33: Deadtime | B33: =Deadtime*1000000000 -> 50 | C33: ns | D33: Total Deadtime | G33: 24 | H33: 24 | I33: BUCK | J33: 1 | K33: 3.6 | L33: 2 | M33: 3.6 | N33: 0.5010795142 | O33: 0 | P33: 7.275966084 | Q33: 4.167929966 | R33: 0.06460727974 | S33: 1.359249838 | T33: 1.423857117 | U33: 2.100390488 | V33: 0.01323492061 | W33: 0.01323492061 | X33: 2.083960126 | Y33: 0.02171444903 | Z33: 0.02171444903 | AA33: 2.950351341 | AB33: 0.01740914607 | AC33: 0.3233863636 | AD33: 0.0003086122147 | AE33: 0.3422959379 | AF33: 2.94398831 | AG33: 0.01733413434 | AH33: 0.05880861221 | AI33: 0.07640763861 | AJ33: 0 | AK33: 0 | AL33: 0 | AM33: 0 | AN33: 0 | AO33: 4.167929966 | AP33: 0.03474328041 | AQ33: 0 | AR33: 0.03498638879 | AS33: 0.03474328041 | AT33: 0 | AU33: 0.08637408 | AV33: 0.02600120151 | AW33: 0 | AX33: 0.036 | AY33: 0.54 | AZ33: 0.8855084746 | BA33: 0.576 | BB33: 2.600871734 | BC33: 43.2 | BD33: 0.9432134884 | BE33: 19.96514154 | BF33: 5.24555425 | BH33: 94.32134884 | BI33: 1.423857117 | BJ33: 0.5400640453 | BK33: 0.3993028307 | BL33: 0.104911085 | BM33: 0.02600120151 | BR33: 9.998642 | BS33: 0.6455 | BT33: 5.12373 | BU33: 90.41893857 | BV33: 350.4584847
A34: IQ | B34: Input Value | C34: Units | D34: Description | G34: 25 | H34: 24 | I34: BUCK | J34: 1 | K34: 3.75 | L34: 2.083333333 | M34: 3.75 | N34: 0.5011244729 | O34: 0 | P34: 7.276099563 | Q34: 4.298174272 | R34: 0.06873076452 | S34: 1.35930729 | T34: 1.428038055 | U34: 2.100429021 | V34: 0.01323540621 | W34: 0.01323540621 | X34: 2.149081701 | Y34: 0.02309276079 | Z34: 0.02309276079 | AA34: 3.04268383 | AB34: 0.01851584977 | AC34: 0.3368607955 | AD34: 0 | AE34: 0.3566975569 | AF34: 3.035848676 | AG34: 0.01843275437 | AH34: 0.0609375 | AI34: 0.07966393953 | AJ34: 0 | AK34: 0 | AL34: 0 | AM34: 0 | AN34: 0 | AO34: 4.298174272 | AP34: 0.03694860414 | AQ34: 0 | AR34: 0.03722367672 | AS34: 0.03694860414 | AT34: 0 | AU34: 0.089971875 | AV34: 0.02764913155 | AW34: 0 | AX34: 0.036 | AY34: 0.54 | AZ34: 0.8855084746 | BA34: 0.576 | BB34: 2.631572401 | BC34: 45 | BD34: 0.9447515111 | BE34: 20.80394972 | BF34: 5.467732914 | BH34: 94.47515111 | BI34: 1.428038055 | BJ34: 0.5635570482 | BK34: 0.4160789944 | BL34: 0.1093546583 | BM34: 0.02764913155 | BR34: 9.998605 | BS34: 0.8324 | BT34: 5.123156 | BU34: 91.67894636 | BV34: 387.0599604
